Workbook

Sheet Sumário
A1: ARSAE-MG
A2: Gerência de Regulação Tarifária (GRT)
A3: Cálculo do Índice de Reajuste Tarifário (IRT) e Efeito Tarifário Médio (ETM) - Reajuste Tarifário da Copasa - 2022
B6: Esta planilha contém cálculos referentes ao reajuste tarifário anual da Copasa - 2022 | R6: PR0: | S6: 2021-08-01 | T6: 2022-12-01
R7: PR1: | S7: 2023-01-01 | T7: 2023-12-01
B9: Conteúdo das abas principais:
B37: Conteúdo de abas complementares e/ou específicas do prestador:

Sheet 1.Anterior (IRT_2021)
A1: ARSAE-MG
A2: Cálculo do Índice de Reposicionamento Tarifário (IRT) e Efeito Tarifário Médio (ETM) - 2ª Revisão Tarifária Periódica da Copasa - 2021 | K2: WACC regulatório | M2: 0.07924041001
K3: NCG (descasamento de prazos pgto/recebimento) | M3: 0.03175509143
A4: Versão final | K4: NCG (estoque de materiais de consumo) | M4: 0.01096441772
K5: Rendimento médio do caixa no PR0 | M5: 0.02232796405
K6: Custos operacionais resíduos sólidos | M6: 1378494.374
K7: Receita (-) custos do serviço de resíduos sólidos | M7: 1076145.208
K8: Autosserviços de água e esgoto | M8: 0.001781365871
K9: PIS/Pasep e Cofins | M9: 0.08445920764
K10: PDI | M10: 0 | O10: Receita para proteção de mananciais
K11: Proteção de Mananciais | M11: 0.005 | P11: RO 2020 sem resíduos sólidos | Q11: 5426498104
K12: Receitas Irrecuperáveis | M12: 0.02861960197 | P12: RO 2021 sem resíduos sólidos | Q12: 5554702719
B13: Legenda: | K13: Resultado análise de eficiência dos custos op. | M13: -0.0181 | O13: RO para aplicar 0,5% de prot. de mananciais | Q13: 5501284129
B14: Entrada de dados | E14: RT0 base | F14: 5635085430 | K14: Incentivo atendimento telefônico | M14: -0.0576165
B15: Destaque | E15: RT0 aplicação | F15: 5790044734 | K15: Fator de Qualidade (FQ) | M15: -0.004732111172
B16: Ajuste necessário | K16: Fator de incentivo à redução perdas (IP) | M16: -0.008926881584
B17: Cálculo diferente
E18: Etapas → | F18: A - Reconstrução da RT a preços do momento 1 | H18: B - Custos Operacionais Eficientes | J18: C - Fator X (aplicação de regras do ciclo anterior) | P18: D - Componentes Financeiros
C19: Grupo | E19: Subgrupo (classificação regulatória) | F19: RT0 base a preços de 1º de agosto de 2021 (M1) | G19: Participação de cada item na RT | H19: Fator de Produtividade | I19: Valores após Fator de Produtividade | J19: Fator de Desempenho do Atendimento Telefônico | K19: Valores após FD | L19: Fator de Incentivo Redução Perdas (IP) | M19: Valores após IP | N19: Fator de Qualidade | O19: Valores após FQ (RT1 base) | P19: RT1 aplicação (com impacto dos CF) | S19: (%) RT base | T19: (%) RT aplic
C20: Custos Operacionais (1) | D20: Custos impactados pela análise de eficiência | E20: Energia Elétrica | F20: 492244737.5 | G20: 0.0871350348 | H20: -0.0181 | I20: 483335107.8 | K20: 483335107.8 | L20: -0.008926881584 | M20: 479020432.5 | N20: -0.004732111172 | O20: 476753654.6 | P20: 476753654.6 | S20: 0.08626258199 | T20: 0.08360083311
E21: Pessoal | F21: 1462977370 | G21: 0.2589699275 | H21: -0.0181 | I21: 1436497479 | K21: 1436497479 | L21: -0.008926881584 | M21: 1423674036 | N21: -0.004732111172 | O21: 1416937052 | P21: 1416937052 | S21: 0.2563769517 | T21: 0.2484660934
E22: Combustíveis e Lubrificantes | F22: 31651183.22 | G22: 0.005602755583 | H22: -0.0181 | I22: 31078296.8 | K22: 31078296.8 | L22: -0.008926881584 | M22: 30800864.53 | N22: -0.004732111172 | O22: 30655111.41 | P22: 30655111.41 | S22: 0.005546657139 | T22: 0.005375507516
E23: Material de Tratamento | F23: 106628198 | G23: 0.01887486251 | H23: -0.0181 | I23: 104698227.6 | K23: 104698227.6 | L23: -0.008926881584 | M23: 103763598.9 | N23: -0.004732111172 | O23: 103272578 | P23: 103272578 | S23: 0.01868587507 | T23: 0.01810929707
E24: Outros Materiais | F24: 15773485.42 | G24: 0.00279215418 | H24: -0.0181 | I24: 15487985.34 | K24: 15487985.34 | L24: -0.008926881584 | M24: 15349725.93 | N24: -0.004732111172 | O24: 15277089.32 | P24: 15277089.32 | S24: 0.002764197311 | T24: 0.002678904256
E25: Serviços de Terceiros | F25: 144730425.6 | G25: 0.02561955408 | H25: -0.0181 | I25: 142110804.9 | K25: 142110804.9 | L25: -0.008926881584 | M25: 140842198.6 | N25: -0.004732111172 | O25: 140175717.6 | P25: 140175717.6 | S25: 0.02536303439 | T25: 0.02458042359
E26: Aluguel | F26: 62844429.42 | G26: 0.01112444914 | H26: -0.0181 | I26: 61706945.25 | K26: 61706945.25 | L26: -0.008926881584 | M26: 61156094.66 | N26: -0.004732111172 | O26: 60866697.22 | P26: 60866697.22 | S26: 0.01101306389 | T26: 0.01067324088
E27: Comercialização | F27: 59584960.25 | G27: 0.010547472 | H27: -0.0181 | I27: 58506472.47 | K27: 58506472.47 | L27: -0.008926881584 | M27: 57984192.12 | N27: -0.004732111172 | O27: 57709804.48 | P27: 57709804.48 | S27: 0.01044186383 | T27: 0.01011966597
E28: Telecomunicação | F28: 12392004.44 | G28: 0.002193579038 | H28: -0.0181 | I28: 12167709.16 | K28: 12167709.16 | L28: -0.008926881584 | M28: 12059089.46 | N28: -0.004732111172 | O28: 12002024.51 | P28: 12002024.51 | S28: 0.002171615494 | T28: 0.002104607355
E29: Comunicação, Publicidade e Propaganda Legal | F29: 4192994.662 | G29: 0.0007422257831 | H29: -0.0181 | I29: 4117101.459 | K29: 4117101.459 | L29: -0.008926881584 | M29: 4080348.581 | N29: -0.004732111172 | O29: 4061039.918 | P29: 4061039.918 | S29: 0.0007347941344 | T29: 0.0007121210655
E30: Convênios | G30: 0 | H30: -0.0181 | I30: 0 | K30: 0 | L30: -0.008926881584 | M30: 0 | N30: -0.004732111172 | O30: 0 | P30: 0 | S30: 0 | T30: 0
E31: Indenizações | F31: 668996.2263 | G31: 0.000118422819 | H31: -0.0181 | I31: 656887.3946 | K31: 656887.3946 | L31: -0.008926881584 | M31: 651023.4386 | N31: -0.004732111172 | O31: 647942.7234 | P31: 647942.7234 | S31: 0.0001172370925 | T31: 0.0001136195831
E32: Outros custos operacionais | F32: 7159437.681 | G32: 0.001267332698 | H32: -0.0181 | I32: 7029851.859 | K32: 7029851.859 | L32: -0.008926881584 | M32: 6967097.204 | N32: -0.004732111172 | O32: 6934128.126 | P32: 6934128.126 | S32: 0.001254643337 | T32: 0.001215929616
E33: Subtotal | F33: 2400848222 | G33: 0.4249877701 | I33: 2357392869 | K33: 2357392869 | L33: -0.008926881584 | M33: 2336348702 | N33: -0.004732111172 | O33: 2325292840 | P33: 2325292840 | S33: 0.4207325154 | T33: 0.4077502434
E34: Atendimento Telefônico | F34: 11145180.14 | G34: 0.001972871593 | H34: 0 | I34: 11145180.14 | J34: -0.0576165 | K34: 10503033.87 | L34: -0.008926881584 | M34: 10409274.53 | N34: -0.004732111172 | O34: 10360016.69 | P34: 10360016.69 | S34: 0.001874514816 | T34: 0.00181667412
E35: Autosserviços de Água e Esgoto | F35: 10063322.72 | G35: 0.001781365871 | H35: -0.008716821207 | I35: 9975602.536 | J35: -0.0001299424606 | K35: 9974306.282 | L35: -0.008520366517 | M35: 9889321.537 | N35: -0.004514766992 | O35: 9844673.554 | P35: 10157757.43 | S35: 0.001781365871 | T35: 0.001781365871
E36: Manutenção | F36: 407683384.3 | G36: 0.07216634972 | H36: 0 | I36: 407683384.3 | K36: 407683384.3 | L36: -0.008926881584 | M36: 404044043 | N36: -0.004732111172 | O36: 402132061.7 | P36: 402132061.7 | S36: 0.0727607426 | T36: 0.07051561127
E37: Treinamento | F37: 1249075.263 | G37: 0.0002211059016 | H37: 0 | I37: 1249075.263 | K37: 1249075.263 | L37: -0.008926881584 | M37: 1237924.916 | N37: -0.004732111172 | O37: 1232066.918 | P37: 1232066.918 | S37: 0.0002229270243 | T37: 0.0002160483088
E38: Subtotal | F38: 430140962.4 | G38: 0.07614169309 | I38: 430053242.2 | K38: 429409799.7 | L38: -0.008926881584 | M38: 425580564 | N38: -0.004732111172 | O38: 423568818.8 | P38: 423881902.7 | S38: 0.07663955031 | T38: 0.07432969957
E39: Total de Custos Operacionais | F39: 2830989184 | G39: 0.5011294632 | I39: 2787446111 | K39: 2786802669 | L39: -0.008926881584 | M39: 2761929266 | N39: -0.004732111172 | O39: 2748861659 | P39: 2749174743 | S39: 0.4973720657 | T39: 0.482079943
C40: Tributos e Outras Obrigações (2) | E40: PIS/Pasep e Cofins | F40: 477128408.7 | G40: 0.08445920764 | H40: -0.008716821207 | I40: 472969365.6 | J40: -0.0001299424606 | K40: 472907906.8 | L40: -0.008520366517 | M40: 468878558.1 | N40: -0.004514766992 | O40: 466761680.7 | P40: 481605805 | S40: 0.08445920764 | T40: 0.08445920764
E41: TFAS | F41: 42948780.49 | G41: 0.007602607397 | I41: 42948780.49 | K41: 42948780.49 | M41: 42948780.49 | O41: 42948780.49 | P41: 42948780.49 | S41: 0.007780360717 | T41: 0.007540287143
E42: Outros Tributos e Taxas | F42: 7413309.031 | G42: 0.001312271907 | I42: 7413309.031 | K42: 7413309.031 | M42: 7413309.031 | O42: 7413309.031 | P42: 7413309.031 | S42: 0.001342953577 | T42: 0.001301514924
E43: Total de Tributos e Outras Obrigações | F43: 527490498.2 | G43: 0.09337408694 | I43: 523331455.2 | K43: 523269996.4 | L43: -0.008926881584 | M43: 519240647.7 | N43: -0.004732111172 | O43: 517123770.2 | P43: 531967894.5 | S43: 0.09358252193 | T43: 0.0933010097
C44: Programas Especiais (3) | E44: Proteção de Mananciais | F44: 27513621.13 | G44: 0.004870342235 | I44: 27513621.13 | K44: 27513621.13 | M44: 27513621.13 | O44: 27513621.13 | P44: 27513621.13 | S44: 0.004982909229 | T44: 0.004829154811
E45: Programa de Pesquisa, Desenvolvimento e Inovação | F45: 0 | G45: 0 | I45: 0 | K45: 0 | M45: 0 | O45: 0 | P45: 0 | S45: 0 | T45: 0
E46: Repasse a Fundos Municipais de Saneamento | F46: 147135064 | G46: 0.02604521277 | I46: 147135064 | K46: 147135064 | M46: 147135064 | O46: 147135064 | P46: 147135064 | S46: 0.02665416478 | T46: 0.0258317144
E47: Total Programas Especiais | F47: 174648685.1 | G47: 0.030915555 | I47: 174648685.1 | K47: 174648685.1 | L47: -0.008926881584 | M47: 174648685.1 | N47: -0.004732111172 | O47: 174648685.1 | P47: 174648685.1 | S47: 0.031637074 | T47: 0.03066086921
C48: Custos de Capital (4) | E48: Remuneração da BRE | F48: 926750518 | G48: 0.1640493691 | I48: 926750518 | K48: 926750518 | L48: -0.008926881584 | M48: 918477525.8 | N48: -0.004732111172 | O48: 914131188.1 | P48: 914131188.1 | S48: 0.1654005498 | T48: 0.1602968916
E49: Amortização da BRE | F49: 829369134.2 | G49: 0.1468113377 | I49: 829369134.2 | K49: 829369134.2 | L49: -0.008926881584 | M49: 821965454.1 | N49: -0.004732111172 | O49: 818075822.2 | P49: 818075822.2 | S49: 0.1480205385 | T49: 0.1434531642
E50: Anuidade da BRA | F50: 48660876.61 | G50: 0.008613737951 | I50: 48660876.61 | K50: 48660876.61 | L50: -0.008926881584 | M50: 48226486.73 | N50: -0.004732111172 | O50: 47998273.63 | P50: 47998273.63 | S50: 0.008684684375 | T50: 0.008416706669
E51: Remuneração do capital de giro | F51: 15117784.74 | G51: 0.00267608488 | H51: -0.008716821207 | I51: 14986005.71 | J51: -0.0001299424606 | K51: 14984058.4 | L51: -0.008520366517 | M51: 14856388.73 | N51: -0.004514766992 | O51: 14789315.59 | P51: 15259650.77 | S51: 0.00267608488 | T51: 0.00267608488
E52: Tributos sobre o lucro (IRPJ e CSLL) | F52: 307790066.8 | G52: 0.05448366664 | I52: 307790066.8 | K52: 307790066.8 | L52: -0.008926881584 | M52: 305042461.3 | N52: -0.004732111172 | O52: 303598966.5 | P52: 303598966.5 | S52: 0.05493241738 | T52: 0.05323740319
E53: Total de Custos de Capital | F53: 2127688380 | G53: 0.3766341962 | I53: 2127556601 | K53: 2127554654 | L53: -0.008926881584 | M53: 2108568317 | N53: -0.004732111172 | O53: 2098593566 | P53: 2099063901 | S53: 0.3797142749 | T53: 0.3680802506
C54: RI (5) | E54: Receitas Irrecuperáveis | F54: 161678347.8 | G54: 0.02861960197 | H54: -0.008716821207 | I54: 160269026.5 | J54: -0.0001299424606 | K54: 160248200.8 | L54: -0.008520366517 | M54: 158882827.4 | N54: -0.004514766992 | O54: 158165508.4 | P54: 163195545.3 | S54: 0.02861960197 | T54: 0.02861960197
C55: RR | E55: Receita Requerida = (1) + (2) + (3) + (4) + (5) | F55: 5822495096 | G55: 1.030672903 | I55: 5773251879 | K55: 5772524205 | M55: 5723269743 | O55: 5697393189 | P55: 5718050769 | S55: 1.030925539 | T55: 1.002741674
C56: Outras Receitas (OR) | E56: Receitas Operacionais Indiretas | F56: 32839234.82 | G56: 0.00581305934 | I56: 32839234.82 | K56: 32839234.82 | L56: -0.008926881584 | M56: 32546082.86 | N56: -0.004732111172 | O56: 32392071.18 | P56: 32392071.18 | S56: 0.005860938179 | T56: 0.005680090988
E57: Receitas Financeiras | F57: 50920318.78 | G57: 0.009013694634 | I57: 50920318.78 | K57: 50920318.78 | L57: -0.008926881584 | M57: 50465759.13 | N57: -0.004732111172 | O57: 50226949.54 | P57: 50226949.54 | S57: 0.009087935272 | T57: 0.008807514712
E58: Receita de Resíduos Sólidos | F58: 538072.6039 | G58: 9.524728554e-05 | I58: 538072.6039 | K58: 538072.6039 | L58: -0.008926881584 | M58: 533269.2935 | N58: -0.004732111172 | O58: 530745.8039 | P58: 530745.8039 | S58: 9.603178285e-05 | T58: 9.306859204e-05
E59: Receita de Indenizações e Ressarcimentos | F59: 2664214.97 | G59: 0.0004716078129 | I59: 2664214.97 | K59: 2664214.97 | L59: -0.008926881584 | M59: 2640431.838 | N59: -0.004732111172 | O59: 2627937.021 | P59: 2627937.021 | S59: 0.0004754921763 | T59: 0.0004608202207
E60: Outras Receitas Diversas | F60: 86316052.19 | G60: 0.0152792943 | I60: 86316052.19 | K60: 86316052.19 | L60: -0.008926881584 | M60: 85545519.02 | N60: -0.004732111172 | O60: 85140708.11 | P60: 85140708.11 | S60: 0.01540514109 | T60: 0.01492979458
E61: Total Outras Receitas | F61: 173277893.4 | G61: 0.03067290337 | I61: 173277893.4 | K61: 173277893.4 | L61: -0.008926881584 | M61: 171731062.1 | N61: -0.004732111172 | O61: 170918411.7 | P61: 170918411.7 | S61: 0.0309255385 | T61: 0.0299712891
C62: RT base | E62: Receita Tarifária base = RR - OR | F62: 5649217202 | G62: 1 | H62: -0.008716821207 | I62: 5599973986 | J62: -0.0001299424606 | K62: 5599246312 | L62: -0.008520366517 | M62: 5551538681 | N62: -0.004514766992 | O62: 5526474777 | P62: 5547132358 | S62: 1 | T62: 0.9727703853
E63: Valores para cálculo circular | F63: 5649217202 | I63: 5599973986 | K63: 5599246312 | M63: 5551538681 | O63: 5526474777
C64: CF | E64: Componentes Financeiros | P64: 155097375.2 | T64: 0.02722961469
C65: RT aplic | E65: RT1 aplicação = RT base + CF | P65: 5702229733 | Q65: -0.01625840908 | T65: 1
O66: RT1 aplicação p/ circular | P66: 5702229733 | Q66: -0.01625840908
O69: IRT | P69: -0.01927400281
E70: Impactos sobre a Receita Tarifária base (desagregação do IRT) | O70: ETM | P70: -0.01516654979 | R70: -0.04661308914 | S70: -> ETM se os CF fossem 0. Ou seja, os CF são responsáveis por
E71: Aspectos | F71: Variação em R$ | G71: Impacto individual | H71: Impacto acumulado | P71: VERDADEIRO | R71: -0.04661308914 | S71: 0.03035468006 | T71: (pontos percentuais) do ETM desta revisão.
E72: Reconstrução da receita, a preços do M1 | F72: 14131772.72 | G72: 0.002507818718 | H72: 0.002507818718
E73: Análise de eficiência dos custos operacionais (apenas FP) | F73: -49243216.31 | G73: -0.008738681414 | H73: -0.008716821207
E74: Fator de desempenho do atend. telefônico (FD) | F74: -727674.3993 | G74: -0.000129132807 | H74: -0.0001299424606
E75: Fator de incentivo redução de perdas de água (IP) | F75: -47707630.8 | G75: -0.008466177025 | H75: -0.008520366517
E76: Fator de Qualidade (FQ) | F76: -25063903.59 | G76: -0.004447830278 | H76: -0.004514766992
E77: Total | F77: -108610652.4 | G77: -0.01927400281 | H77: -0.01927400281
E82: Aspectos | F82: Variação em R$ | G82: Impacto individual* | H82: Impacto acumulado**
E83: Reconstrução da receita, a preços do M1 | F83: 14131772.72 | G83: 0.002507818718 | H83: 0.002507818718
E84: Análise de eficiência dos custos operacionais (apenas FP) | F84: -49243216.31 | G84: -0.008738681414 | H84: -0.008716821207
E85: Fator X referente às regras do ciclo anterior | F85: -73499208.79 | G85: -0.01304314011 | H85: -0.01312491968
E86: Fator de desempenho do atend. telefônico (FD) | F86: -727674.3993 | G86: -0.000129132807 | H86: -0.0001299424606
E87: Fator de incentivo redução de perdas de água (IP) | F87: -47707630.8 | G87: -0.008466177025 | H87: -0.008520366517
E88: Fator de Qualidade (FQ) | F88: -25063903.59 | G88: -0.004447830278 | H88: -0.004514766992
E89: Total | F89: -108610652.4 | G89: -0.01927400281 | H89: -0.01927400281
E92: Desagregação do ETM - resumido
E93: Aspectos | F93: Impacto acumulado* | G93: Impacto individual**
E94: Variação da Receita Tarifária base (IRT) | F94: -0.01927400281 | G94: -0.01927400281
E95: (-) Componentes Financeiros considerados no reajuste 2020 | F95: 0.02749901607 | G95: 0.02624722704
E96: (+) Componentes Financeiros calculados nesta revisão | F96: 0.03180236272 | G96: 0.03035468006
E97: Total | F97: -0.01516654979 | G97: -0.01516654979
E99: Desagregação do ETM - completo
E100: Aspectos | F100: Impacto acumulado
E101: Reconstrução da receita, a preços do M1 | F101: 0.002507818718
E102: Análise de eficiência dos custos operacionais | F102: -0.008716821207
E103: Fator X referente às regras do ciclo anterior | F103: -0.01316507597
E104: Fator de desempenho do atend. telefônico (FD) | F104: -0.0001299424606
E105: Fator de incentivo redução de perdas de água (IP) | F105: -0.008520366517
E106: Fator de Qualidade (FQ) | F106: -0.004514766992
E107: (-) Impacto Componentes Financeiros PR anterior | F107: 0.02749901607
E108: (+) Impacto dos novos Componentes Financeiros | F108: 0.03180236272
E109: Total | F109: -0.01516654979
E110: Fonte: cálculos da Arsae.

Sheet 2.IRT_2022
A1: ARSAE-MG
A2: Gerência de Regulação Tarifária (GRT) | L2: WACC regulatório | N2: ='1.Anterior (IRT_2021)'!M2 -> 0.07924041001
L3: NCG (descasamento de prazos pgto/recebimento) | N3: ='1.Anterior (IRT_2021)'!M3 -> 0.03175509143
A4: =Sumário!A3 -> Cálculo do Índice de Reajuste Tarifário (IRT) e Efeito Tarifário Médio (ETM) - Reajuste Tarifário da Copasa - 2022 | L4: NCG (estoque de materiais de consumo) | N4: ='1.Anterior (IRT_2021)'!M4 -> 0.01096441772
L5: Rendimento médio do caixa no PR0 | N5: ='1.Anterior (IRT_2021)'!M5 -> 0.02232796405
L6: Custos operacionais resíduos sólidos
L7: Receita (-) custos do serviço de resíduos sólidos
L8: Autosserviços de água e esgoto | N8: ='1.Anterior (IRT_2021)'!M8 -> 0.001781365871
L9: PIS/Pasep e Cofins | N9: ='1.Anterior (IRT_2021)'!M9 -> 0.08445920764
L10: PDI | N10: 0.001
L11: Proteção de Mananciais | N11: 0.005 | P11: Receita para proteção de mananciais e PDI
L12: Receitas Irrecuperáveis | N12: ='1.Anterior (IRT_2021)'!M12 -> 0.02861960197 | P12: RO 2021 sem resíduos sólidos | R12: 5609314519
B13: Legenda: | L13: Resultado análise de eficiência dos custos op. | N13: - | P13: Receita operacional 2022 | R13: =7/12*R12*(1+'1.Anterior (IRT_2021)'!P70)+5/12*R12*(1+'1.Anterior (IRT_2021)'!P70+'2.IRT_2022'!V67) -> 5891105821
B14: Entrada de dados | E14: RT0 base | F14: 5581937739 | G14: =F14/'1.Anterior (IRT_2021)'!O62-1 -> 0.01003586626 | L14: Incentivo atendimento telefônico | N14: -0.099317 | P14: RO 2022 sem resíduos sólidos | R14: =SUM(R13:R13) -> 5891105821
B15: Destaque | E15: RT0 aplicação | F15: 5759546077 | G15: =F15/'1.Anterior (IRT_2021)'!P65-1 -> 0.01005156697 | L15: Fator de Qualidade (FQ) | N15: 0.009066410335 | P15: RO para aplicar 0,5% mananciais | R15: =5/12*R12+7/12*R13 -> 5773692779
B16: Valor previsto | L16: Fator de incentivo à redução perdas (IP) | N16: -0.00766016495
B17: Cálculo diferente | L17: Fator de incentivo à universalização do serv. de tratamento de esgoto | N17: 0.01014175
E19: Etapas → | F19: A - Mercado | H19: B - Inflação | M19: C - Fator X (FP + IP + FQ) | U19: D - Componentes Fin.
C20: Grupo | E20: Subgrupo (classificação regulatória) | F20: RT0 base | G20: Peso RT base (rev. 2021) | H20: Ajuste índices itens não administráveis | I20: Valores ajustados | J20: Índices de inflação utilizados | K20: Inflação (%) | L20: Valores atualizados para preços de ago/21-jul/22 | M20: Fator de Incentivo ao Desempenho do Atendimento Telefônico (FD) | N20: Valores após FD | O20: Fator de Incentivo redução Perdas (IP) | P20: Valores após IP | Q20: Fator de Universalização do Serv. Trat. Esgoto | R20: Valores após FE | S20: Fator de Qualidade | T20: Valores após FQ (RT1 base) | U20: RT1 aplicação (com impacto dos CF) | X20: (%) RT base | Y20: (%) RT aplic
C21: Custos Operacionais (1) | D21: Custos impactados pelo Fator de Produtividade | E21: Energia Elétrica | F21: =G21*$F$14 -> 481512361.9 | G21: ='1.Anterior (IRT_2021)'!S20 -> 0.08626258199 | H21: ='3.1.Índices_inflação'!AY194 -> 0.1994300422 | I21: =F21*(1+H21) -> 577540392.6 | J21: IEE | K21: =HLOOKUP(J21,'3.1.Índices_inflação'!$A$1:$BA$147,147,FALSE) -> -0.1307995861 | L21: =I21*(1+K21) -> 501998348.3 | N21: =L21*(1+M21) -> 501998348.3 | O21: =$N$16 -> -0.00766016495 | P21: =(L21*O21)+N21 -> 498152958.1 | Q21: =$N$17 -> 0.01014175 | R21: =(Q21*L21)+P21 -> 503244099.9 | S21: =$N$15 -> 0.009066410335 | T21: =R21+S21*L21 -> 507795422.9 | U21: =T21 -> 507795422.9 | X21: =T21/copiar_RTbase_FQ -> 0.08048984369 | Y21: =U21/copiar_RTaplic -> 0.07620432106
E22: Pessoal | F22: =G22*$F$14 -> 1431080182 | G22: ='1.Anterior (IRT_2021)'!S21 -> 0.2563769517 | I22: =F22 -> 1431080182 | J22: INPC | K22: =HLOOKUP(J22,'3.1.Índices_inflação'!$A$1:$AU$147,147,FALSE) -> 0.1268168564 | L22: =I22*(1+K22) -> 1612565272 | N22: =L22*(1+M22) -> 1612565272 | O22: -0.00766016495 | P22: =(L22*O22)+N22 -> 1600212756 | Q22: =$N$17 -> 0.01014175 | R22: =(Q22*L22)+P22 -> 1616566990 | S22: =$N$15 -> 0.009066410335 | T22: =R22+S22*L22 -> 1631187168 | U22: =T22 -> 1631187168 | X22: 0.25855688 | Y22: 0.24479053
E23: Combustíveis e Lubrificantes | F23: =G23*$F$14 -> 30961094.81 | G23: ='1.Anterior (IRT_2021)'!S22 -> 0.005546657139 | H23: ='3.1.Índices_inflação'!AS194 -> -0.04144015746 | I23: =F23*(1+H23) -> 29678062.17 | J23: IPCA BH Comb | K23: =HLOOKUP(J23,'3.1.Índices_inflação'!$A$1:$AU$147,147,FALSE) -> 0.2801489483 | L23: 37992340.07 | N23: 37992340.07 | O23: -0.00766016495 | P23: 37701312.48 | Q23: 0.01014175 | R23: 38086621.29 | S23: 0.009066410335 | T23: 38431075.44 | U23: 38431075.44 | X23: 0.006091648557 | Y23: 0.005767310771
E24: Material de Tratamento | F24: 104303391.2 | G24: ='1.Anterior (IRT_2021)'!S23 -> 0.01868587507 | H24: ='3.1.Índices_inflação'!E194 -> -0.004938097994 | I24: 103788330.9 | J24: IGP-M | K24: =HLOOKUP(J24,'3.1.Índices_inflação'!$A$1:$AU$147,147,FALSE) -> 0.1135050606 | L24: 115568831.7 | N24: 115568831.7 | O24: -0.00766016495 | P24: 114683555.4 | Q24: 0.01014175 | R24: 115855625.6 | S24: 0.009066410335 | T24: 116903420 | U24: 116903420 | X24: 0.01853017491 | Y24: 0.01754357237
E25: Outros Materiais | F25: 15429577.29 | G25: ='1.Anterior (IRT_2021)'!S24 -> 0.002764197311 | I25: 15429577.29 | J25: IGP-M | K25: =HLOOKUP(J25,'3.1.Índices_inflação'!$A$1:$AU$147,147,FALSE) -> 0.1135050606 | L25: 17180912.39 | N25: 17180912.39 | O25: -0.00766016495 | P25: 17049303.77 | Q25: 0.01014175 | R25: 17223548.29 | S25: 0.009066410335 | T25: 17379317.49 | U25: 17379317.49 | X25: 0.002754767934 | Y25: 0.002608095761
E26: Serviços de Terceiros | F26: 141574878.8 | G26: ='1.Anterior (IRT_2021)'!S25 -> 0.02536303439 | I26: 141574878.8 | J26: IPCA | K26: =HLOOKUP(J26,'3.1.Índices_inflação'!$A$1:$AU$147,147,FALSE) -> 0.1173782289 | L26: 158192687.4 | N26: 158192687.4 | O26: -0.00766016495 | P26: 156980905.3 | Q26: 0.01014175 | R26: 158585256 | S26: 0.009066410335 | T26: 160019495.8 | U26: 160019495.8 | X26: 0.02536443541 | Y26: 0.02401395618
E27: Aluguel | F27: 61474236.97 | G27: ='1.Anterior (IRT_2021)'!S26 -> 0.01101306389 | I27: 61474236.97 | J27: IGP-M | K27: =HLOOKUP(J27,'3.1.Índices_inflação'!$A$1:$AU$147,147,FALSE) -> 0.1135050606 | L27: =I27*(1+K27) -> 68451873.97 | N27: 68451873.97 | O27: -0.00766016495 | P27: 67927521.32 | Q27: 0.01014175 | R27: 68621743.12 | S27: 0.009066410335 | T27: 69242355.89 | U27: 69242355.89 | X27: 0.01097549555 | Y27: 0.01039112698
E28: Comercialização | F28: 58285833.77 | G28: ='1.Anterior (IRT_2021)'!S27 -> 0.01044186383 | I28: 58285833.77 | J28: IPCA | K28: =HLOOKUP(J28,'3.1.Índices_inflação'!$A$1:$AU$147,147,FALSE) -> 0.1173782289 | L28: 65127321.7 | N28: 65127321.7 | O28: -0.00766016495 | P28: 64628435.68 | Q28: 0.01014175 | R28: 65288940.69 | S28: 0.009066410335 | T28: 65879411.71 | U28: 65879411.71 | X28: 0.01044244062 | Y28: 0.009886453512
E29: Telecomunicação | F29: 12121822.48 | G29: ='1.Anterior (IRT_2021)'!S28 -> 0.002171615494 | H29: ='3.1.Índices_inflação'!AP194 -> -0.00948542315 | I29: 12006841.87 | J29: IPCA BH Tel | K29: =HLOOKUP(J29,'3.1.Índices_inflação'!$A$1:$AU$147,147,FALSE) -> 0.02378474592 | L29: 12292421.55 | N29: 12292421.55 | O29: -0.00766016495 | P29: 12198259.57 | Q29: 0.01014175 | R29: 12322926.24 | S29: 0.009066410335 | T29: 12434374.38 | U29: 12434374.38 | X29: 0.001970952877 | Y29: 0.001866013387
E30: Comunicação, Publicidade e Propaganda Legal | F30: 4101575.109 | G30: ='1.Anterior (IRT_2021)'!S29 -> 0.0007347941344 | I30: 4101575.109 | J30: IPCA | K30: =HLOOKUP(J30,'3.1.Índices_inflação'!$A$1:$AU$147,147,FALSE) -> 0.1173782289 | L30: 4583010.731 | N30: 4583010.731 | O30: -0.00766016495 | P30: 4547904.113 | Q30: 0.01014175 | R30: 4594383.862 | S30: 0.009066410335 | T30: 4635935.318 | U30: 4635935.318 | X30: 0.0007348347234 | Y30: 0.0006957099011
E31: Convênios | F31: 0 | G31: ='1.Anterior (IRT_2021)'!S30 -> 0 | I31: 0 | J31: IPCA | K31: =HLOOKUP(J31,'3.1.Índices_inflação'!$A$1:$AU$147,147,FALSE) -> 0.1173782289 | L31: 0 | N31: 0 | O31: -0.00766016495 | P31: 0 | Q31: 0.01014175 | R31: 0 | S31: 0.009066410335 | T31: 0 | U31: 0 | X31: 0 | Y31: 0
E32: Indenizações | F32: 654410.151 | G32: ='1.Anterior (IRT_2021)'!S31 -> 0.0001172370925 | I32: 654410.151 | J32: IGP-M | K32: =HLOOKUP(J32,'3.1.Índices_inflação'!$A$1:$AU$147,147,FALSE) -> 0.1135050606 | L32: 728689.0149 | N32: 728689.0149 | O32: -0.00766016495 | P32: 723107.1369 | Q32: 0.01014175 | R32: 730497.3187 | S32: 0.009066410335 | T32: 737103.9123 | U32: 737103.9123 | X32: 0.0001168371671 | Y32: 0.0001106164031
E33: Outros custos operacionais | F33: 7003340.991 | G33: ='1.Anterior (IRT_2021)'!S32 -> 0.001254643337 | I33: 7003340.991 | J33: IPCA | K33: =HLOOKUP(J33,'3.1.Índices_inflação'!$A$1:$AU$147,147,FALSE) -> 0.1173782289 | L33: 7825380.752 | N33: 7825380.752 | O33: -0.00766016495 | P33: 7765437.045 | Q33: 0.01014175 | R33: 7844800.1 | S33: 0.009066410335 | T33: 7915748.213 | U33: 7915748.213 | X33: 0.001254712641 | Y33: 0.001187907947
E34: Subtotal | F34: =SUM(F21:F33) -> 2348502706 | G34: =F34/copiar_RTbase_ref -> 0.4207325154 | H34: =I34/F34-1 -> 0.04007445119 | I34: =SUM(I21:I33) -> 2442617663 | K34: =L34/I34-1 -> 0.06545822922 | L34: =SUM(L21:L33) -> 2602507090 | M34: 0 | N34: =SUM(N21:N33) -> 2602507090 | O34: -0.00766016495 | P34: =SUM(P21:P33) -> 2582571456 | Q34: 0.01014175 | R34: =SUM(R21:R33) -> 2608965432 | S34: 0.009066410335 | T34: =SUM(T21:T33) -> 2632560829 | U34: =SUM(U21:U33) -> 2632560829 | X34: 0.417283024 | Y34: 0.3950656143
E35: Atendimento Telefônico | F35: =G35*$F$14 -> 10463424.99 | G35: ='1.Anterior (IRT_2021)'!S34 -> 0.001874514816 | I35: =F35*(1+H35) -> 10463424.99 | J35: IPCA | K35: =HLOOKUP(J35,'3.1.Índices_inflação'!$A$1:$AU$147,147,FALSE) -> 0.1173782289 | L35: =I35*(1+K35) -> 11691603.29 | M35: =$N$14 -> -0.099317 | N35: =L35*(1+M35) -> 10530428.32 | O35: -0.00766016495 | P35: 10440868.71 | Q35: 0.01014175 | R35: 10559442.03 | S35: 0.009066410335 | T35: 10665442.9 | U35: =T35 -> 10665442.9 | X35: 0.001690562367 | Y35: 0.001600551716
E36: Autosserviços de Água e Esgoto | F36: =G36*$F$14 -> 9943473.381 | G36: ='1.Anterior (IRT_2021)'!S35 -> 0.001781365871 | H36: =I36/F36-1 -> 0.0226730037 | I36: =$N$8*colar_RTbase_ajust -> 10168921.79 | J36: Variação da receita | K36: =L36/I36-1 -> 0.09336782285 | L36: =$N$8*colar_RTbase_inflac -> 11118371.88 | M36: =N36/L36-1 -> -0.0002108204449 | N36: =$N$8*colar_RTbase_AT -> 11116027.9 | O36: =P36/N36-1 -> -0.00729672601 | P36: =$N$8*colar_RTbase_IP -> 11034917.29 | Q36: =R36/P36-1 -> 0.00973158015 | R36: =$N$8*colar_RTbase_FE -> 11142304.47 | S36: =T36/R36-1 -> 0.00861588502 | T36: =$N$8*colar_RTbase_FQ -> 11238305.28 | U36: =$N$8*colar_RTaplic -> 11870316.84 | X36: 0.001781365871 | Y36: 0.001781365871
E37: Manutenção | F37: =G37*$F$14 -> 406145935 | G37: ='1.Anterior (IRT_2021)'!S36 -> 0.0727607426 | I37: =F37*(1+H37) -> 406145935 | J37: INCC-DI MS | K37: =HLOOKUP(J37,'3.1.Índices_inflação'!$A$1:$AU$147,147,FALSE) -> 0.1607270241 | L37: =I37*(1+K37) -> 471424562.5 | N37: =L37*(1+M37) -> 471424562.5 | O37: -0.00766016495 | P37: 467813372.6 | Q37: 0.01014175 | R37: 472594442.7 | S37: 0.009066410335 | T37: 476868571.2 | U37: =T37 -> 476868571.2 | X37: 0.07558767768 | Y37: 0.0715631612
E38: Treinamento | F38: 1244364.77 | G38: ='1.Anterior (IRT_2021)'!S37 -> 0.0002229270243 | I38: =F38*(1+H38) -> 1244364.77 | J38: IPCA | K38: =HLOOKUP(J38,'3.1.Índices_inflação'!$A$1:$AU$147,147,FALSE) -> 0.1173782289 | L38: =I38*(1+K38) -> 1390426.103 | N38: 1390426.103 | O38: -0.00766016495 | P38: 1379775.209 | Q38: 0.01014175 | R38: 1393876.563 | S38: 0.009066410335 | T38: 1406482.737 | U38: =T38 -> 1406482.737 | X38: 0.0002229393384 | Y38: 0.000211069374
E39: Subtotal | F39: =SUM(F35:F38) -> 427797198.2 | G39: =F39/copiar_RTbase_ref -> 0.07663955031 | H39: =I39/F39-1 -> 0.0005269983295 | I39: =SUM(I35:I38) -> 428022646.6 | K39: =L39/I39-1 -> 0.1579409822 | L39: =SUM(L35:L38) -> 495624963.8 | M39: =N39/L39-1 -> -0.002347579377 | N39: =SUM(N35:N38) -> 494461444.8 | O39: -0.00766016495 | P39: =SUM(P35:P38) -> 490668933.8 | Q39: 0.01014175 | R39: =SUM(R35:R38) -> 495690065.7 | S39: 0.009066410335 | T39: =SUM(T35:T38) -> 500178802.1 | U39: =SUM(U35:U38) -> 500810813.7 | X39: 0.07928254526 | Y39: 0.07515614816
E40: Total de Custos Operacionais | F40: =F34+F39 -> 2776299904 | G40: =F40/copiar_RTbase_ref -> 0.4973720657 | H40: =I40/F40-1 -> 0.03398062483 | I40: =SUM(I21:I33)+SUM(I35:I38) -> 2870640309 | K40: =L40/I40-1 -> 0.07924773555 | L40: =SUM(L21:L33)+SUM(L35:L38) -> 3098132053 | M40: =N40/L40-1 -> -0.0003755549872 | N40: =SUM(N21:N33)+SUM(N35:N38) -> 3096968534 | O40: =P40/N40-1 -> -0.007661732545 | P40: =SUM(P21:P33)+SUM(P35:P38) -> 3073240390 | Q40: =R40/P40-1 -> 0.01022214477 | R40: =SUM(R21:R33)+SUM(R35:R38) -> 3104655498 | S40: =T40/R40-1 -> 0.00904581316 | T40: =SUM(T21:T33)+SUM(T35:T38) -> 3132739631 | U40: =SUM(U21:U33)+SUM(U35:U38) -> 3133371643 | X40: =X34+X39 -> 0.4965655693 | Y40: =Y34+Y39 -> 0.4702217624
C41: Tributos e Outras Obrigações (2) | E41: PIS/Pasep e Cofins | F41: =G41*$F$14 -> 471446038.5 | G41: ='1.Anterior (IRT_2021)'!S40 -> 0.08445920764 | H41: =I41/F41-1 -> 0.0226730037 | I41: =$N$9*colar_RTbase_ajust -> 482135136.3 | J41: Variação da receita | K41: =L41/I41-1 -> 0.09336782285 | L41: =$N$9*colar_RTbase_inflac -> 527151044.3 | M41: =N41/L41-1 -> -0.0002108204449 | N41: =$N$9*colar_RTbase_FP -> 527039910.1 | O41: =P41/N41-1 -> -0.00729672601 | P41: =$N$9*colar_RTbase_IP -> 523194244.2 | Q41: =R41/P41-1 -> 0.00973158015 | R41: =$N$9*colar_RTbase_FE -> 528285751 | S41: =T41/R41-1 -> 0.00861588502 | T41: =$N$9*colar_RTbase_FQ -> 532837400.3 | U41: =$N$9*colar_RTaplic -> 562802718.5 | X41: =T41/copiar_RTbase_FQ -> 0.08445920764 | Y41: =U41/copiar_RTaplic -> 0.08445920764
E42: TFAS | F42: 43429489.11 | G42: ='1.Anterior (IRT_2021)'!S41 -> 0.007780360717 | I42: =F42*(1+H42) -> 43429489.11 | J42: Variação TFAS | K42: =L42/I42-1 -> 0.2217552379 | L42: 53060205.8 | N42: =L42*(1+M42) -> 53060205.8 | P42: =N42*(1+O42) -> 53060205.8 | R42: =P42*(1+Q42) -> 53060205.8 | T42: 53060205.8 | U42: =T42 -> 53060205.8 | X42: =T42/copiar_RTbase_FQ -> 0.008410488709 | Y42: =U42/copiar_RTaplic -> 0.007962688863
E43: Outros Tributos e Taxas | F43: 7496283.251 | G43: ='1.Anterior (IRT_2021)'!S42 -> 0.001342953577 | I43: =F43*(1+H43) -> 7496283.251 | J43: IPCA | K43: =HLOOKUP(J43,'3.1.Índices_inflação'!$A$1:$AU$147,147,FALSE) -> 0.1173782289 | L43: =I43*(1+K43) -> 8376183.702 | N43: =L43*(1+M43) -> 8376183.702 | P43: =(L43*O43)+N43 -> 8376183.702 | R43: =(Q43*L43)+P43 -> 8376183.702 | T43: 8376183.702 | U43: =T43 -> 8376183.702 | X43: =T43/copiar_RTbase_FQ -> 0.001327695537 | Y43: =U43/copiar_RTaplic -> 0.001257005013
E44: Total de Tributos e Outras Obrigações | F44: =SUM(F41:F43) -> 522371810.9 | G44: =F44/copiar_RTbase_ref -> 0.09358252193 | H44: =I44/F44-1 -> 0.02046262366 | I44: =SUM(I41:I43) -> 533060908.6 | K44: =L44/I44-1 -> 0.104165442 | L44: =SUM(L41:L43) -> 588587433.8 | M44: =N44/L44-1 -> -0.0001888151383 | N44: =SUM(N41:N43) -> 588476299.6 | O44: =P44/N44-1 -> -0.006534954463 | P44: =SUM(P41:P43) -> 584630633.7 | Q44: =R44/P44-1 -> 0.008708929071 | R44: =SUM(R41:R43) -> 589722140.5 | S44: =T44/R44-1 -> 0.007718294728 | T44: =SUM(T41:T43) -> 594273789.8 | U44: =SUM(U41:U43) -> 624239108 | X44: =SUM(X41:X43) -> 0.09419739188 | Y44: =SUM(Y41:Y43) -> 0.09367890151
C45: Programas Especiais (3) | E45: Proteção de Mananciais | F45: 27814289.07 | G45: ='1.Anterior (IRT_2021)'!S44 -> 0.004982909229 | I45: =F45*(1+H45) -> 27814289.07 | J45: Variação da ROL | K45: =L45/I45-1 -> 0.0379004769 | L45: =$N$11*$R$15 -> 28868463.89 | N45: =L45*(1+M45) -> 28868463.89 | P45: =N45*(1+O45) -> 28868463.89 | R45: 28868463.89 | T45: 28868463.89 | U45: =T45 -> 28868463.89 | X45: 0.004575894232 | Y45: =U45/copiar_RTaplic -> 0.004332259788
E46: Programa de Pesquisa, Desenvolvimento e Inovação | F46: 0 | G46: ='1.Anterior (IRT_2021)'!S45 -> 0 | I46: =F46*(1+H46) -> 0 | J46: Variação da ROL | K46: - | L46: =$N$10*$R$15 -> 5773692.779 | N46: 5773692.779 | P46: 5773692.779 | R46: 5773692.779 | T46: 5773692.779 | U46: =T46 -> 5773692.779 | X46: 0.0009151788463 | Y46: 0.0008664519577
E47: Repasse a Fundos Municipais de Saneamento | F47: 148781888.3 | G47: ='1.Anterior (IRT_2021)'!S46 -> 0.02665416478 | I47: 166350920 | J47: Variação do Repasse | K47: =L47/I47-1 -> 0 | L47: =I47 -> 166350920 | N47: =L47 -> 166350920 | P47: 166350920 | R47: 166350920 | T47: 166350920 | U47: =T47 -> 166350920 | X47: 0.02636801937 | Y47: 0.0249641063
E48: Total Programas Especiais | F48: =SUM(F45:F47) -> 176596177.3 | G48: =F48/copiar_RTbase_ref -> 0.031637074 | I48: =SUM(I45:I47) -> 194165209.1 | K48: =L48/I48-1 -> 0.03516524733 | L48: =SUM(L45:L47) -> 200993076.7 | N48: =SUM(N45:N47) -> 200993076.7 | P48: =SUM(P45:P47) -> 200993076.7 | Q48: =R48/P48-1 -> 0 | R48: =SUM(R45:R47) -> 200993076.7 | S48: =T48/R48-1 -> 0 | T48: =SUM(T45:T47) -> 200993076.7 | U48: =SUM(U45:U47) -> 200993076.7 | X48: =SUM(X45:X47) -> 0.03185909245 | Y48: 0.03016281805
C49: Custos de Capital (4) | E49: Remuneração da BRE | F49: =G49*$F$14 -> 923255570.7 | G49: ='1.Anterior (IRT_2021)'!S48 -> 0.1654005498 | I49: =F49*(1+H49) -> 923255570.7 | J49: IPCA | K49: =HLOOKUP(J49,'3.1.Índices_inflação'!$A$1:$AU$147,147,FALSE) -> 0.1173782289 | L49: =I49*(1+K49) -> 1031625674 | N49: =L49*(1+M49) -> 1031625674 | O49: -0.00766016495 | P49: =(L49*O49)+N49 -> 1023723252 | Q49: 0.01014175 | R49: =(Q49*L49)+P49 -> 1034185741 | S49: 0.009066410335 | T49: 1043538883 | U49: =T49 -> 1043538883 | X49: =T49/copiar_RTbase_FQ -> 0.1654096862 | Y49: =U49/copiar_RTaplic -> 0.1566027745
E50: Amortização da BRE | F50: 826241430.1 | G50: ='1.Anterior (IRT_2021)'!S49 -> 0.1480205385 | I50: =F50*(1+H50) -> 826241430.1 | J50: IPCA | K50: =HLOOKUP(J50,'3.1.Índices_inflação'!$A$1:$AU$147,147,FALSE) -> 0.1173782289 | L50: =I50*(1+K50) -> 923224185.9 | N50: =L50*(1+M50) -> 923224185.9 | O50: -0.00766016495 | P50: 916152136.3 | Q50: 0.01014175 | R50: 925515245.2 | S50: 0.009066410335 | T50: 933885574.5 | U50: =T50 -> 933885574.5 | X50: =T50/copiar_RTbase_FQ -> 0.148028715 | Y50: 0.1401472186
E51: Anuidade da BRA | F51: 48477367.47 | G51: ='1.Anterior (IRT_2021)'!S50 -> 0.008684684375 | I51: =F51*(1+H51) -> 48477367.47 | J51: IPCA | K51: =HLOOKUP(J51,'3.1.Índices_inflação'!$A$1:$AU$147,147,FALSE) -> 0.1173782289 | L51: =I51*(1+K51) -> 54167555 | N51: =L51*(1+M51) -> 54167555 | O51: -0.00766016495 | P51: 53752622.6 | Q51: 0.01014175 | R51: 54301976.4 | S51: 0.009066410335 | T51: 54793081.68 | U51: =T51 -> 54793081.68 | X51: =T51/copiar_RTbase_FQ -> 0.008685164105 | Y51: 0.00822273971
E52: Remuneração do capital de giro | F52: 14937739.19 | G52: ='1.Anterior (IRT_2021)'!S51 -> 0.00267608488 | H52: =I52/F52-1 -> 0.0226730037 | I52: =$N$2*$N$4*colar_RTbase_ajust+($N$2-$N$5)*$N$3*colar_RTbase_ajust -> 15276422.6 | J52: Variação da receita | K52: =L52/I52-1 -> 0.09336782285 | L52: =($N$2*$N$4*colar_RTbase_inflac)+((($N$2-$N$5)*$N$3)*colar_RTbase_inflac) -> 16702748.92 | M52: =N52/L52-1 -> -0.0002108204449 | N52: =($N$2*$N$4*colar_RTbase_FP)+((($N$2-$N$5)*$N$3)*colar_RTbase_FP) -> 16699227.64 | O52: =P52/N52-1 -> -0.00729672601 | P52: =($N$2*$N$4*colar_RTbase_IP)+((($N$2-$N$5)*$N$3)*colar_RTbase_IP) -> 16577377.95 | Q52: =R52/P52-1 -> 0.00973158015 | R52: =($N$2*$N$4*colar_RTbase_FE)+((($N$2-$N$5)*$N$3)*colar_RTbase_FE) -> 16738702.03 | S52: =T52/R52-1 -> 0.00861588502 | T52: =($N$2*$N$4*colar_RTbase_FQ)+((($N$2-$N$5)*$N$3)*colar_RTbase_FQ) -> 16882920.77 | U52: =($N$2*$N$4*colar_RTaplic)+((($N$2-$N$5)*$N$3)*colar_RTaplic) -> 17832370.06 | X52: =T52/copiar_RTbase_FQ -> 0.00267608488 | Y52: 0.00267608488
E53: Tributos sobre o lucro (IRPJ e CSLL) | F53: =G53*$F$14 -> 306629333.7 | G53: ='1.Anterior (IRT_2021)'!S52 -> 0.05493241738 | H53: =I53/F53-1 -> 0 | I53: =F53 -> 306629333.7 | J53: IPCA | K53: =HLOOKUP(J53,'3.1.Índices_inflação'!$A$1:$AU$147,147,FALSE) -> 0.1173782289 | L53: =I53*(1+K53) -> 342620941.8 | N53: =L53*(1+M53) -> 342620941.8 | O53: -0.00766016495 | P53: =(L53*O53)+N53 -> 339996408.9 | Q53: 0.01014175 | R53: =(Q53*L53)+P53 -> 343471184.8 | S53: 0.009066410335 | T53: 346577526.9 | U53: =T53 -> 346577526.9 | X53: =T53/copiar_RTbase_FQ -> 0.05493545177 | Y53: =U53/copiar_RTaplic -> 0.05201052223
E54: Total de Custos de Capital | F54: =SUM(F49:F53) -> 2119541441 | G54: =F54/copiar_RTbase_ref -> 0.3797142749 | H54: =I54/F54-1 -> 0.0001597908912 | I54: =SUM(I49:I53) -> 2119880125 | K54: =L54/I54-1 -> 0.1172052035 | L54: =SUM(L49:L53) -> 2368341106 | M54: =N54/L54-1 -> -1.486813259e-06 | N54: =SUM(N49:N53) -> 2368337585 | O54: =P54/N54-1 -> -0.00765760233 | P54: =SUM(P49:P53) -> 2350201797 | Q54: =R54/P54-1 -> 0.01021659179 | R54: =SUM(R49:R53) -> 2374212850 | S54: =T54/R54-1 -> 0.009040948894 | T54: =SUM(T49:T53) -> 2395677987 | U54: =SUM(U49:U53) -> 2396627436 | X54: =SUM(X49:X53) -> 0.379735102 | Y54: =SUM(Y49:Y53) -> 0.3596593399
C55: RI (5) | E55: Receitas Irrecuperáveis | F55: =G55*$F$14 -> 159752836.3 | G55: ='1.Anterior (IRT_2021)'!S54 -> 0.02861960197 | H55: =I55/F55-1 -> 0.0226730037 | I55: =$N$12*colar_RTbase_ajust -> 163374913 | J55: Variação da receita | K55: =L55/I55-1 -> 0.09336782285 | L55: =$N$12*colar_RTbase_inflac -> 178628872.9 | M55: =N55/L55-1 -> -0.0002108204449 | N55: =$N$12*colar_RTbase_FP -> 178591214.3 | O55: =P55/N55-1 -> -0.00729672601 | P55: =$N$12*colar_RTbase_IP -> 177288083.1 | Q55: =R55/P55-1 -> 0.00973158015 | R55: =$N$12*colar_RTbase_FE -> 179013376.3 | S55: =T55/R55-1 -> 0.00861588502 | T55: =$N$12*colar_RTbase_FQ -> 180555735 | U55: =$N$12*colar_RTaplic -> 190709695.8 | X55: =T55/copiar_RTbase_FQ -> 0.02861960197 | Y55: =U55/copiar_RTaplic -> 0.02861960197
C56: RR | E56: Receita Requerida = (1) + (2) + (3) + (4) | F56: =F40+F44+F54+F55+F48 -> 5754562169 | G56: =F56/copiar_RTbase_ref -> 1.030925539 | H56: =I56/F56-1 -> 0.02199286259 | I56: =I40+I44+I54+I55+I48 -> 5881121465 | K56: =L56/I56-1 -> 0.09412508847 | L56: =L40+L44+L54+L55+L48 -> 6434682543 | M56: =N56/L56-1 -> -0.0002044907502 | N56: =N40+N44+N54+N55+N48 -> 6433366710 | O56: =P56/N56-1 -> -0.00730764017 | P56: =P40+P44+P54+P55+P48 -> 6386353981 | Q56: =R56/P56-1 -> 0.009746243424 | R56: =R40+R44+R54+R55+R48 -> 6448596941 | S56: =T56/R56-1 -> 0.008628741889 | T56: =T40+T44+T54+T55+T48 -> 6504240220 | U56: =U40+U44+U54+U55+U48 -> 6545940960 | X56: =X40+X44+X54+X55+X48 -> 1.030976758 | Y56: =Y40+Y44+Y54+Y55+Y48 -> 0.9823424239
C57: Outras Receitas (OR) | E57: Receitas Operacionais Indiretas | F57: =G57*$F$14 -> 32715392.01 | G57: ='1.Anterior (IRT_2021)'!S56 -> 0.005860938179 | I57: =F57*(1+H57) -> 32715392.01 | J57: INPC | K57: =HLOOKUP(J57,'3.1.Índices_inflação'!$A$1:$AU$147,147,FALSE) -> 0.1268168564 | L57: =I57*(1+K57) -> 36864255.18 | N57: =L57*(1+M57) -> 36864255.18 | O57: -0.00766016495 | P57: =(L57*O57)+N57 -> 36581868.9 | Q57: 0.01014175 | R57: =(Q57*L57)+P57 -> 36955736.96 | S57: 0.009066410335 | T57: =R57+S57*L57 -> 37289963.43 | U57: =T57 -> 37289963.43 | X57: =T57/copiar_RTbase_FQ -> 0.005910772709 | Y57: =U57/copiar_RTaplic -> 0.0055960653
E58: Receitas Financeiras | F58: =G58*$F$14 -> 50728288.86 | G58: ='1.Anterior (IRT_2021)'!S57 -> 0.009087935272 | I58: =F58*(1+H58) -> 50728288.86 | J58: IPCA | K58: =HLOOKUP(J58,'3.1.Índices_inflação'!$A$1:$AU$147,147,FALSE) -> 0.1173782289 | L58: =I58*(1+K58) -> 56682685.57 | N58: =L58*(1+M58) -> 56682685.57 | O58: -0.00766016495 | P58: 56248486.84 | Q58: 0.01014175 | R58: 56823348.47 | S58: 0.009066410335 | T58: 57337256.96 | U58: =T58 -> 57337256.96 | X58: =T58/copiar_RTbase_FQ -> 0.009088437276 | Y58: =U58/copiar_RTaplic -> 0.008604541398
E59: Receita de Resíduos Sólidos | F59: =G59*$F$14 -> 536043.4329 | G59: ='1.Anterior (IRT_2021)'!S58 -> 9.603178285e-05 | I59: =F59*(1+H59) -> 536043.4329 | J59: IPCA | K59: =HLOOKUP(J59,'3.1.Índices_inflação'!$A$1:$AU$147,147,FALSE) -> 0.1173782289 | L59: =I59*(1+K59) -> 598963.2616 | N59: =L59*(1+M59) -> 598963.2616 | O59: -0.00766016495 | P59: 594375.1042 | Q59: 0.01014175 | R59: 600449.6399 | S59: 0.009066410335 | T59: 605880.0866 | U59: =T59 -> 605880.0866 | X59: =T59/copiar_RTbase_FQ -> 9.603708751e-05 | Y59: 9.092378262e-05
E60: Receita de Indenizações e Ressarcimentos | F60: =G60*$F$14 -> 2654167.723 | G60: ='1.Anterior (IRT_2021)'!S59 -> 0.0004754921763 | I60: =F60 -> 2654167.723 | J60: IPCA | K60: =HLOOKUP(J60,'3.1.Índices_inflação'!$A$1:$AU$147,147,FALSE) -> 0.1173782289 | L60: =I60*(1+K60) -> 2965709.23 | N60: =L60*(1+M60) -> 2965709.23 | O60: -0.00766016495 | P60: 2942991.408 | Q60: 0.01014175 | R60: 2973068.89 | S60: 0.009066410335 | T60: 2999957.226 | U60: =T60 -> 2999957.226 | X60: =T60/copiar_RTbase_FQ -> 0.0004755184418 | Y60: =U60/copiar_RTaplic -> 0.0004502004023
E61: Outras Receitas Diversas | F61: =G61*$F$14 -> 85990538.43 | G61: ='1.Anterior (IRT_2021)'!S60 -> 0.01540514109 | I61: =F61 -> 85990538.43 | J61: IPCA | K61: =HLOOKUP(J61,'3.1.Índices_inflação'!$A$1:$AU$147,147,FALSE) -> 0.1173782289 | L61: =I61*(1+K61) -> 96083955.54 | N61: =L61*(1+M61) -> 96083955.54 | O61: -0.00766016495 | P61: 95347936.59 | Q61: 0.01014175 | R61: 96322396.04 | S61: 0.009066410335 | T61: 97193532.61 | U61: =T61 -> 97193532.61 | X61: =T61/copiar_RTbase_FQ -> 0.01540599205 | Y61: =U61/copiar_RTaplic -> 0.01458573045
E62: Total de Outras Receitas | F62: =SUM(F57:F61) -> 172624430.5 | G62: =F62/copiar_RTbase_ref -> 0.0309255385 | I62: =SUM(I57:I61) -> 172624430.5 | K62: =L62/I62-1 -> 0.1191670163 | L62: =SUM(L57:L61) -> 193195568.8 | N62: =SUM(N57:N61) -> 193195568.8 | O62: =P62/N62-1 -> -0.00766016495 | P62: =SUM(P57:P61) -> 191715658.8 | Q62: =R62/P62-1 -> 0.01022003717 | R62: =SUM(R57:R61) -> 193675000 | S62: =T62/R62-1 -> 0.009043966962 | T62: =SUM(T57:T61) -> 195426590.3 | U62: =SUM(U57:U61) -> 195426590.3 | X62: =SUM(X57:X61) -> 0.03097675756 | Y62: =SUM(Y57:Y61) -> 0.02932746134
C63: RT base | E63: Receita Tarifária base = RR - OR | F63: =F56-F62 -> 5581937739 | G63: =copiar_RTbase_ref/copiar_RTbase_ref -> 1 | H63: =I63/F63-1 -> 0.0226730037 | I63: =I56-I62 -> 5708497034 | K63: =L63/I63-1 -> 0.09336782285 | L63: =L56-L62 -> 6241486974 | M63: =N63/L63-1 -> -0.0002108204449 | N63: =N56-N62 -> 6240171141 | O63: =P63/N63-1 -> -0.00729672601 | P63: =P56-P62 -> 6194638322 | Q63: =R63/P63-1 -> 0.00973158015 | R63: =R56-R62 -> 6254921941 | S63: =T63/R63-1 -> 0.00861588502 | T63: =T56-T62 -> 6308813629 | U63: =U56-U62 -> 6350514369 | X63: =X56-X62 -> 1 | Y63: =Y56-Y62 -> 0.9530149625
E64: Valores para cálculo circular | F64: 5581937739 | G64: =copiar_RTbase_ref=F14 -> TRUE | I64: 5708497034 | K64: =(1+H63)*(1+K63)-1 -> 0.1181577556 | L64: 6241486974 | N64: 6240171141 | P64: 6194638322 | R64: 6254921941 | T64: 6308813629
C65: CF | E65: Componentes Financeiros | U65: ='4.Componentes Financeiros'!F22 -> 313089686.2 | Y65: =U65/copiar_RTaplic -> 0.04698503746
C66: RT aplic | E66: RT1 aplicação = RT base + CF | U66: =U63+U65 -> 6663604055 | V66: =copiar_RTaplic/F15-1 -> 0.1569668801 | Y66: =Y63+Y65 -> 1
T67: RT1 aplicação p/ circular | U67: 6663604055 | V67: =colar_RTaplic/F15-1 -> 0.1569668801
U69: =(1+K64)*(1+H91)-1 -> 0.1302472875
T70: IRT | U70: =copiar_RTbase_FQ/F14-1 -> 0.1302192759
E71: Impactos sobre a Receita Tarifária base (desagregação do IRT) | T71: ETM | U71: =copiar_RTaplic/F15-1 -> 0.1569668801
E72: Aspectos | F72: Variação em R$ | G72: Impacto individual | H72: Impacto acumulado | U72: =IF(AND(V67-U71<0.00001,V67-U71>-0.00001),"VERDADEIRO","falso") -> VERDADEIRO
E73: Correção inflacionária | F73: =copiar_RTbase_inflac-copiar_RTbase_ref -> 659549234.9 | G73: =F73/$F$14 -> 0.1181577556 | H73: =F73/F14 -> 0.1181577556
E74: Itens que Variam com a Receita | F74: =copiar_RTbase_AT-copiar_RTbase_inflac-(F75) -> -154658.0972 | G74: -2.770688324e-05 | H74: =F74/L63 -> -2.47790467e-05
E75: Fator de Desempenho Atend. Telefônico | F75: =N35-L35 -> -1161174.963 | G75: -0.0002080236323 | H75: =F75/L63 -> -0.0001860413982
E76: Fator de incentivo redução de Perdas | F76: =copiar_RTbase_IP-copiar_RTbase_FP -> -45532819.07 | G76: -0.008157170718 | H76: =F76/colar_RTbase_FP -> -0.00729672601
E77: Fator de incentivo à universalização | F77: =copiar_RTbase_FE-copiar_RTbase_IP -> 60283619.33 | G77: 0.01079976563 | H77: =F77/colar_RTbase_IP -> 0.00973158015
E78: Fator de Qualidade | F78: =copiar_RTbase_FQ-copiar_RTbase_FE -> 53891688.25 | G78: 0.009654655923 | H78: =F78/copiar_RTbase_FE -> 0.00861588502
E79: Total | F79: =SUM(F73:F78) -> 726875890.3 | G79: 0.1302192759 | H79: =((1+H73)*(1+H74)*(1+H75)*(1+H76)*(1+H77)*(1+H78))-1 -> 0.1302192811
G86: =G88+G91 -> 0.1302469828
E87: Aspectos | F87: Variação em R$ | G87: Impacto individual | H87: Impacto acumulado
E88: =E73 -> Correção inflacionária | F88: =F89+F90 -> 659549234.9 | G88: =G89+G90 -> 0.1181577556 | H88: =(1+H89)*(1+H90)-1 -> 0.1181577556
E89: Ajuste inflação projetada no reajuste 2019 p/ itens não adm. | F89: =copiar_RTbase_ajust-copiar_RTbase_ref -> 126559295 | G89: =F89/$F$14 -> 0.0226730037 | H89: =F89/$F$14 -> 0.0226730037
E90: Inflação projetada para o próximo período | F90: =copiar_RTbase_inflac-copiar_RTbase_ajust -> 532989939.8 | G90: =F90/$F$14 -> 0.09548475185 | H90: =F90/copiar_RTbase_ajust -> 0.09336782285
E91: Fator X | F91: =F92+F93+F94+F95 -> 67481313.54 | G91: =G92+G93+G95+G94 -> 0.0120892272 | H91: =(1+H92)*(1+H93)*(1+H94)*(1+H95)-1 -> 0.01081200923
E92: Fator de Desempenho Atend. Telefônico | F92: =F75 -> -1161174.963 | G92: =F92/$F$14 -> -0.0002080236323 | H92: =H75 -> -0.0001860413982
E93: Fator de incentivo redução de Perdas | F93: =F76 -> -45532819.07 | G93: =F93/$F$14 -> -0.008157170718 | H93: =H76 -> -0.00729672601
E94: Fator de incentivo à universalização | F94: 60283619.33 | G94: =F94/$F$14 -> 0.01079976563 | H94: 0.00973158015
E95: Fator de Qualidade | F95: 53891688.25 | G95: =F95/$F$14 -> 0.009654655923 | H95: 0.00861588502
E96: Total | F96: =F88+F91 -> 727030548.4 | G96: =G88+G91 -> 0.1302469828 | H96: =((1+H88)*(1+H92)*(1+H93)*(1+H94)*(1+H95))-1 -> 0.1302472875
E99: resumido
E100: Aspectos | F100: Impacto acumulado | G100: Impacto individual
E101: Variação da Receita Tarifária base (IRT) | F101: =U70 -> 0.1302192759 | G101: =F101 -> 0.1302192759
E102: (-) Componentes Financeiros considerados no ano anterior | F102: =(F15-F14)/F14 -> 0.03181840179 | G102: =G101+G103-F104 -> -0.02674760426
E103: (+) Componentes Financeiros calculados neste reajuste | F103: =(copiar_RTaplic-copiar_RTbase_FQ)/copiar_RTbase_FQ -> 0.05623726534 | G103: =Y72 -> 0
E104: Total | F104: =(1+F101)/(1+F102)*(1+F103)-1 -> 0.1569668801 | G104: =G101-G102+G103 -> 0.1569668801
E106: completo
E107: Aspectos | F107: Impacto acumulado
E108: Correção inflacionária | F108: =H73 -> 0.1181577556
E109: Fator de Produtividade | F109: =H75 -> -0.0001860413982
E110: Fator de Qualidade | F110: =H78 -> 0.00861588502
E111: Fator de incentivo redução de Perdas | F111: =H76 -> -0.00729672601
E112: Fator de Universalização | F112: =H77 -> 0.00973158015
E113: (-) Impacto Componentes Financeiros PR anterior | F113: =F102 -> 0.03181840179
E114: (+) Impacto dos novos Componentes Financeiros | F114: =F103 -> 0.05623726534
E115: Total | F115: =(1+F108)*(1+F109)*(1+F111)*(1+F110)*(1+F112)/(1+F113)*(1+F114)-1 -> 0.1569955547

Sheet 3.1.Índices_inflação
A1: Mês | B1: INPC | C1: Δ% | D1: Acum até dez/22 | E1: IGP-M | F1: Δ% | G1: Acum até dez/22 | H1: IGP-DI | I1: Δ% | J1: Acum até dez/22 | K1: INCC | L1: Δ% | M1: Acum até dez/22 | N1: INCC-DI MB | O1: Δ% | P1: Acum até dez/22 | Q1: INCC-DI MS | R1: Δ% | S1: Acum até dez/22 | T1: INCC-M | U1: Δ% | V1: Acum até dez/22 | W1: SELIC | X1: Δ% | Y1: Acum até dez/22 | Z1: IPCA | AA1: Δ% | AB1: Acum até dez/22 | AC1: IPCA 15 | AD1: Δ% | AE1: Acum até dez/22 | AF1: IPCA BH Fixo | AG1: Δ% | AH1: IPCA BH Cel | AI1: Δ% | AJ1: IPCA BH Int | AK1: Δ% | AL1: IPCA BH Gas | AM1: Δ% | AN1: IPCA BH Die | AO1: Δ% | AP1: IPCA BH Tel | AQ1: Δ% | AR1: Acum até dez/22 | AS1: IPCA BH Comb | AT1: Δ% | AU1: Acum até dez/22 | AV1: ETM | AW1: Δ% | AX1: Acum até dez/22 | AY1: IEE | AZ1: Δ% | BA1: Acum até dez/22
A2: 2012-12-01 | B2: 100 | D2: =B$122/B2-1 -> 0.8303897345 | E2: 100 | G2: =E$117/E2-1 -> 1.339970467 | H2: 100 | J2: =H$117/H2-1 -> 1.321737873 | K2: 100 | M2: =K$117/K2-1 -> 0.996681238 | N2: 100 | P2: =N$122/N2-1 -> 0.9946384685 | Q2: 100 | S2: =Q$122/Q2-1 -> 1.156791502 | T2: 100 | V2: =T$117/T2-1 -> 0.9905788609 | W2: 100 | Y2: =W$122/W2-1 -> 1.244927694 | Z2: 100 | AB2: =Z$122/Z2-1 -> 0.8068668804 | AC2: 100 | AE2: =AC$117/AC2-1 -> 0.7985584165 | AF2: 100 | AH2: 100 | AJ2: 100 | AL2: 100 | AN2: 100 | AP2: =AVERAGE(AF2,AH2,AJ2) -> 100 | AR2: =AP$122/AP2-1 -> 0.1354934693 | AS2: =0.4*AN2+0.6*AL2 -> 100 | AU2: =AS$122/AS2-1 -> 1.748569642 | AV2: 100 | AX2: =AV$122/AV2-1 -> 0.8258117321 | AY2: Cálculo mensal a partir de jan/17
A3: 2013-01-01 | B3: 100.92 | C3: =B3/B2-1 -> 0.0092 | D3: 0.8137036608 | E3: 100.34 | F3: =E3/E2-1 -> 0.0034 | G3: =E$117/E3-1 -> 1.332041525 | H3: 100.31 | I3: =H3/H2-1 -> 0.0031 | J3: =H$117/H3-1 -> 1.314562729 | K3: 100.65 | L3: =K3/K2-1 -> 0.0065 | M3: =K$117/K3-1 -> 0.9837866249 | N3: 100.66 | O3: =N3/N2-1 -> 0.0066 | P3: 0.9815601714 | Q3: 100.63 | R3: =Q3/Q2-1 -> 0.0063 | S3: 1.143288782 | T3: 100.39 | U3: =T3/T2-1 -> 0.0039 | V3: =T$117/T3-1 -> 0.9828457624 | W3: 100.6 | X3: =W3/W2-1 -> 0.006 | Y3: 1.231538463 | Z3: 100.86 | AA3: =Z3/Z2-1 -> 0.0086 | AB3: 0.7914603217 | AC3: 100.88 | AD3: =AC3/AC2-1 -> 0.0088 | AE3: =AC$117/AC3-1 -> 0.7828691679 | AF3: 100 | AG3: =AF3/AF2-1 -> 0 | AH3: 100 | AI3: 0 | AJ3: 100 | AK3: =AJ3/AJ2-1 -> 0 | AL3: 99.68 | AM3: =AL3/AL2-1 -> -0.0032 | AN3: 99.67 | AO3: =AN3/AN2-1 -> -0.0033 | AP3: 100 | AQ3: =AP3/AP2-1 -> 0 | AR3: 0.1354934693 | AS3: 99.676 | AT3: =AS3/AS2-1 -> -0.00324 | AU3: 1.757503954 | AV3: =AV2*(1+AW3) -> 100 | AW3: 0 | AX3: =AV$122/AV3-1 -> 0.8258117321
A4: 2013-02-01 | B4: 101.444784 | C4: 0.0052 | D4: 0.8043211906 | E4: 100.630986 | F4: =E4/E3-1 -> 0.0029 | G4: =E$117/E4-1 -> 1.325298161 | H4: 100.51062 | I4: 0.002 | J4: =H$117/H4-1 -> 1.309942843 | K4: 101.2539 | L4: 0.006 | M4: =K$117/K4-1 -> 0.9719548955 | N4: 101.435082 | O4: 0.0077 | P4: 0.9664187471 | Q4: 101.072772 | R4: 0.0044 | S4: 1.133899624 | T4: 101.19312 | U4: 0.008 | V4: =T$122/T4-1 -> 1.048979467 | W4: 101.09294 | X4: 0.0049 | Y4: 1.220657243 | Z4: 101.46516 | AA4: 0.006 | AB4: 0.7807756677 | AC4: 101.565984 | AD4: 0.0068 | AE4: =AC$117/AC4-1 -> 0.7708275406 | AF4: 100.19 | AG4: 0.0019 | AH4: 100 | AI4: 0 | AJ4: 100 | AK4: 0 | AL4: 103.108992 | AM4: 0.0344 | AN4: 103.427559 | AO4: 0.0377 | AP4: 100.0633333 | AQ4: 0.0006333333333 | AR4: 0.1347747786 | AS4: =0.4*AN4+0.6*AL4 -> 103.2364188 | AT4: 0.03571992054 | AU4: 1.662403126 | AV4: =AV3*(1+AW4) -> 100 | AW4: 0 | AX4: 0.8258117321
A5: 2013-03-01 | B5: 102.0534527 | C5: 0.006 | D5: 0.7935598316 | E5: 100.8423111 | F5: 0.0021 | G5: 1.320425268 | H5: 100.8222029 | I5: 0.0031 | J5: 1.30280415 | K5: 101.7601695 | L5: 0.005 | M5: =K$122/K5-1 -> 1.03716916 | N5: 101.9625444 | O5: 0.0052 | P5: 0.9562462665 | Q5: 101.5579213 | R5: 0.0048 | S5: 1.123705836 | T5: 101.4764607 | U5: 0.0028 | V5: 1.043258344 | W5: 101.6489512 | X5: 0.0055 | Y5: 1.208510435 | Z5: 101.9420463 | AA5: 0.0047 | AB5: 0.7724451753 | AC5: 102.0636573 | AD5: 0.0049 | AE5: 0.7621927959 | AF5: 100.280171 | AG5: 0.0009 | AH5: 100 | AI5: 0 | AJ5: 100 | AK5: 0 | AL5: 103.1605465 | AM5: 0.0005 | AN5: 107.368149 | AO5: 0.0381 | AP5: 100.0933903 | AQ5: 0.0003003797595 | AR5: 0.1344340176 | AS5: 104.8435875 | AT5: 0.01556784626 | AU5: 1.621590607 | AV5: 100 | AW5: 0 | AX5: 0.8258117321
A6: 2013-04-01 | B6: 102.6555681 | C6: 0.0059 | D6: 0.7830398962 | E6: 100.9935745 | F6: 0.0015 | G6: 1.316949843 | H6: 100.7617096 | I6: -0.0006 | J6: 1.304186662 | K6: 102.5131948 | L6: 0.0074 | M6: 1.022204844 | N6: 102.9311886 | O6: 0.0095 | P6: 0.9378368167 | Q6: 102.0657109 | R6: 0.005 | S6: 1.113140135 | T6: 102.328863 | U6: 0.0084 | V6: 1.026237945 | W6: 102.2690098 | X6: 0.0061 | Y6: 1.195120202 | Z6: 102.5027275 | AA6: 0.0055 | AB6: 0.7627500501 | AC6: 102.584182 | AD6: 0.0051 | AE6: 0.7532512147 | AF6: 98.83613654 | AG6: -0.0144 | AH6: 100 | AI6: 0 | AJ6: 100 | AK6: 0 | AL6: 102.6447438 | AM6: -0.005 | AN6: 107.5077276 | AO6: 0.0013 | AP6: 99.61204551 | AQ6: -0.004808957107 | AR6: 0.1399158239 | AS6: 104.5899373 | AT6: -0.002419320133 | AU6: 1.627948455 | AV6: 100 | AW6: 0 | AX6: 0.8258117321
A7: 2013-05-01 | B7: 103.0148626 | C7: 0.0035 | D7: 0.7768210227 | E7: 100.9935745 | F7: 0 | G7: 1.316949843 | H7: 101.0841471 | I7: 0.0032 | J7: =H$122/H7-1 -> 1.355513162 | K7: 104.8197416 | L7: 0.0225 | M7: 0.9777064487 | N7: 106.8116944 | O7: 0.0377 | P7: 0.8674345348 | Q7: 102.7189315 | R7: 0.0064 | S7: 1.099702042 | T7: 103.5977409 | U7: 0.0124 | V7: 1.001420333 | W7: 102.8826238 | X7: 0.006 | Y7: 1.182028034 | Z7: 102.8819876 | AA7: 0.0037 | AB7: 0.756251918 | AC7: 103.0560692 | AD7: 0.0046 | AE7: 0.745223188 | AF7: 98.36172308 | AG7: -0.0048 | AH7: 100 | AI7: 0 | AJ7: 100 | AK7: 0 | AL7: 102.2752227 | AM7: -0.0036 | AN7: 108.8300726 | AO7: 0.0123 | AP7: 99.45390769 | AQ7: -0.001587537106 | AR7: 0.14172836 | AS7: 104.8971627 | AT7: 0.002937427645 | AU7: 1.620251656 | AV7: 105.25 | AW7: 0.0525 | AX7: 0.7347379878
A8: 2013-06-01 | B8: 103.3033042 | C8: 0.0028 | D8: 0.7718598152 | E8: 101.7510263 | F8: 0.0075 | G8: =E$122/E8-1 -> 1.326355394 | H8: 101.8523866 | I8: 0.0076 | J8: 1.337746291 | K8: 106.0251687 | L8: 0.0115 | M8: 0.9552214026 | N8: 108.6702179 | O8: 0.0174 | P8: 0.8354968889 | Q8: 103.2325261 | R8: 0.005 | S8: 1.089255763 | T8: 105.6282566 | U8: 0.0196 | V8: 0.9629465797 | W8: 103.5102078 | X8: 0.0061 | Y8: 1.168798364 | Z8: 103.1494808 | AA8: 0.0026 | AB8: 0.7516975044 | AC8: 103.4476823 | AD8: 0.0038 | AE8: 0.7386164455 | AF8: 98.36172308 | AG8: 0 | AH8: 100.7 | AI8: 0.007 | AJ8: 100 | AK8: 0 | AL8: 101.5797512 | AM8: -0.0068 | AN8: 108.2097412 | AO8: -0.0057 | AP8: 99.68724103 | AQ8: 0.002346145453 | AR8: 0.139055969 | AS8: 104.2317472 | AT8: -0.006343503077 | AU8: 1.636979342 | AV8: 105.25 | AW8: 0 | AX8: 0.7347379878
A9: 2013-07-01 | B9: 103.1690099 | C9: -0.0013 | D9: 0.7741662313 | E9: 102.015579 | F9: 0.0026 | G9: 1.320322555 | H9: 101.9949799 | I9: 0.0014 | J9: 1.334478021 | K9: 106.5340895 | L9: 0.0048 | M9: 0.9458811729 | N9: 109.2679041 | O9: 0.0055 | P9: 0.8254568761 | Q9: 103.6454562 | R9: 0.004 | S9: 1.080932035 | T9: 106.3993429 | U9: 0.0073 | V9: 0.948720917 | W9: 104.2554813 | X9: 0.0072 | Y9: 1.153294643 | Z9: 103.1804256 | AA9: 0.0003 | AB9: 0.7511721528 | AC9: 103.5200957 | AD9: 0.0007 | AE9: 0.7374002654 | AF9: 98.36172308 | AG9: 0 | AH9: 103.2175 | AI9: 0.025 | AJ9: 100 | AK9: 0 | AL9: 100.9905886 | AM9: -0.0058 | AN9: 109.0213143 | AO9: 0.0075 | AP9: 100.5264077 | AQ9: 0.0084179947 | AR9: 0.1295474446 | AS9: 104.2028789 | AT9: -0.0002769627409 | AU9: 1.63770989 | AV9: 105.25 | AW9: 0 | AX9: 0.7347379878
A10: 2013-08-01 | B10: 103.3340803 | C10: 0.0016 | D10: 0.7713320999 | E10: 102.1686024 | F10: 0.0015 | G10: 1.316847284 | H10: 102.4641568 | I10: 0.0046 | J10: 1.323788594 | K10: 106.8643452 | L10: 0.0031 | M10: 0.9398675834 | N10: 109.2679041 | O10: 0 | P10: 0.8254568761 | Q10: 104.3295162 | R10: 0.0066 | S10: 1.067287935 | T10: 106.7291809 | U10: 0.0031 | V10: 0.9426985515 | W10: 104.9956953 | X10: 0.0071 | Y10: 1.138114033 | Z10: 103.4280586 | AA10: 0.0024 | AB10: 0.7469794022 | AC10: 103.6857278 | AD10: 0.0016 | AE10: =AC$122/AC10-1 -> 0.7826779876 | AF10: 98.36172308 | AG10: 0 | AH10: 103.2175 | AI10: 0 | AJ10: 100 | AK10: 0 | AL10: 100.3846451 | AM10: -0.006 | AN10: 109.4573995 | AO10: 0.004 | AP10: 100.5264077 | AQ10: 0 | AR10: 0.1295474446 | AS10: 104.0137469 | AT10: -0.001815036381 | AU10: 1.642506134 | AV10: 105.25 | AW10: 0 | AX10: 0.7347379878
A11: 2013-09-01 | B11: 103.6130823 | C11: 0.0027 | D11: 0.7665623815 | E11: 103.7011314 | F11: 0.015 | G11: 1.282608162 | H11: 103.8576694 | I11: 0.0136 | J11: 1.29260911 | K11: 107.3238618 | L11: 0.0043 | M11: 0.9315618674 | N11: 109.2679041 | O11: 0 | P11: 0.8254568761 | Q11: 105.2789148 | R11: 0.0091 | S11: 1.048645263 | T11: 107.1881163 | U11: 0.0043 | V11: 0.9343807144 | W11: 105.7411647 | X11: 0.0071 | Y11: 1.123040446 | Z11: 103.7900568 | AA11: 0.0035 | AB11: 0.7408863002 | AC11: 103.9656793 | AD11: 0.0027 | AE11: 0.7778777178 | AF11: 98.36172308 | AG11: 0 | AH11: 103.2175 | AI11: 0 | AJ11: 100 | AK11: 0 | AL11: 99.26033706 | AM11: -0.0112 | AN11: 109.3917251 | AO11: -0.0006 | AP11: 100.5264077 | AQ11: 0 | AR11: 0.1295474446 | AS11: 103.3128923 | AT11: -0.006738095799 | AU11: 1.660432383 | AV11: 105.25 | AW11: 0 | AX11: 0.7347379878
A12: 2013-10-01 | B12: 104.2451221 | C12: 0.0061 | D12: 0.7558516862 | E12: 104.5929611 | F12: 0.0086 | G12: 1.263145114 | H12: 104.5119727 | I12: 0.0063 | J12: 1.278256097 | K12: 107.6029039 | L12: 0.0026 | M12: 0.92655283 | N12: 109.2679041 | O12: 0 | P12: 0.8254568761 | Q12: 105.8579489 | R12: 0.0055 | S12: 1.037439347 | T12: 107.5418371 | U12: 0.0033 | V12: 0.9280182542 | W12: 106.5976681 | X12: 0.0081 | Y12: 1.105981992 | Z12: 104.3816602 | AA12: 0.0057 | AB12: 0.7310194891 | AC12: 104.4647145 | AD12: 0.0048 | AE12: 0.7693846713 | AF12: 98.36172308 | AG12: 0 | AH12: 103.2175 | AI12: 0 | AJ12: 100 | AK12: 0 | AL12: 99.28018913 | AM12: 0.0002 | AN12: 109.8402312 | AO12: 0.0041 | AP12: 100.5264077 | AQ12: 0 | AR12: 0.1295474446 | AS12: 103.5042059 | AT12: 0.001851788924 | AU12: 1.65551493 | AV12: 105.25 | AW12: 0 | AX12: 0.7347379878
A13: 2013-11-01 | B13: 104.8080458 | C13: 0.0054 | D13: 0.7464210127 | E13: 104.8962807 | F13: 0.0029 | G13: 1.256600971 | H13: 104.8046062 | I13: 0.0028 | J13: 1.271894791 | K13: 107.979514 | L13: 0.0035 | M13: 0.9198334131 | N13: 109.7596097 | O13: 0.0045 | P13: 0.81727912 | Q13: 106.1120079 | R13: 0.0024 | S13: 1.0325612 | T13: 107.8322001 | U13: 0.0027 | V13: 0.9228266223 | W13: 107.3651713 | X13: 0.0072 | Y13: 1.090927315 | Z13: 104.9453211 | AA13: 0.0054 | AB13: 0.7217221893 | AC13: 105.0601634 | AD13: 0.0057 | AE13: 0.7593563402 | AF13: 98.36172308 | AG13: 0 | AH13: 104.7244755 | AI13: 0.0146 | AJ13: 100 | AK13: 0 | AL13: 99.22062101 | AM13: -0.0006 | AN13: 110.4333684 | AO13: 0.0054 | AP13: 101.0287329 | AQ13: 0.004996947351 | AR13: 0.1239312195 | AS13: 103.70572 | AT13: 0.001946916354 | AU13: 1.65035491 | AV13: 105.25 | AW13: 0 | AX13: 0.7347379878
A14: 2013-12-01 | B14: 105.5626637 | C14: 0.0072 | D14: 0.7339366687 | E14: 105.5256584 | F14: 0.006 | G14: 1.243142118 | H14: 105.527758 | I14: 0.0069 | J14: 1.256326141 | K14: 108.0874936 | L14: 0.001 | M14: 0.9179154976 | N14: 109.7596097 | O14: 0 | P14: 0.81727912 | Q14: 106.3348432 | R14: 0.0021 | S14: 1.028301766 | T14: 108.0694309 | U14: 0.0022 | V14: 0.9186056898 | W14: 108.2133562 | X14: 0.0079 | Y14: 1.074538461 | Z14: 105.9108181 | AA14: 0.0092 | AB14: 0.7060267432 | AC14: 105.8481146 | AD14: 0.0075 | AE14: 0.7462593947 | AF14: 98.36172308 | AG14: 0 | AH14: 104.7244755 | AI14: 0 | AJ14: 100 | AK14: 0 | AL14: 103.4374974 | AM14: 0.0425 | AN14: 116.0986002 | AO14: 0.0513 | AP14: 101.0287329 | AQ14: 0 | AR14: 0.1239312195 | AS14: 108.5019385 | AT14: 0.04624835117 | AU14: 1.53319865 | AV14: 105.25 | AW14: 0 | AX14: 0.7347379878
A15: 2014-01-01 | B15: 106.2277085 | C15: 0.0063 | D15: 0.7230812568 | E15: 106.0321816 | F15: 0.0048 | G15: 1.232426471 | H15: 105.949869 | I15: 0.004 | J15: 1.247336794 | K15: 109.0386635 | L15: 0.0088 | M15: 0.901185069 | N15: 111.065749 | O15: 0.0119 | P15: 0.795907817 | Q15: 106.9090513 | R15: 0.0054 | S15: 1.017407764 | T15: 108.8259169 | U15: 0.007 | V15: 0.9052688081 | W15: 109.1331697 | X15: 0.0085 | Y15: 1.057053506 | Z15: 106.4933276 | AA15: 0.0055 | AB15: 0.6966949212 | AC15: 106.557297 | AD15: 0.0067 | AE15: 0.7346373247 | AF15: 98.36172308 | AG15: 0 | AH15: 104.7244755 | AI15: 0 | AJ15: 100 | AK15: 0 | AL15: 103.9857161 | AM15: 0.0053 | AN15: 116.2379185 | AO15: 0.0012 | AP15: 101.0287329 | AQ15: 0 | AR15: 0.1239312195 | AS15: 108.8865971 | AT15: 0.003545176935 | AU15: 1.524249738 | AV15: 105.25 | AW15: 0 | AX15: 0.7347379878
A16: 2014-02-01 | B16: 106.9075658 | C16: 0.0064 | D16: 0.7121236653 | E16: 106.4351039 | F16: 0.0038 | G16: 1.223975365 | H16: 106.8504429 | I16: 0.0085 | J16: 1.228395432 | K16: 109.3984911 | L16: 0.0033 | M16: 0.8949317941 | N16: 111.1323885 | O16: 0.0006 | P16: 0.7948309185 | Q16: 107.5718874 | R16: 0.0062 | S16: 1.004976907 | T16: 109.304751 | U16: 0.0044 | V16: 0.8969223498 | W16: 109.9953218 | X16: 0.0079 | Y16: 1.040930158 | Z16: 107.2281315 | AA16: 0.0069 | AB16: 0.6850679523 | AC16: 107.3031981 | AD16: 0.007 | AE16: 0.7225792698 | AF16: 98.36172308 | AG16: 0 | AH16: 105.0595938 | AI16: 0.0032 | AJ16: 100 | AK16: 0 | AL16: 104.2352819 | AM16: 0.0024 | AN16: 117.1213267 | AO16: 0.0076 | AP16: 101.140439 | AQ16: 0.001105686512 | AR16: 0.1226898764 | AS16: 109.3896998 | AT16: 0.004620428198 | AU16: 1.512640264 | AV16: 105.25 | AW16: 0 | AX16: 0.7347379878
A17: 2014-03-01 | B17: 107.7842079 | C17: 0.0082 | D17: 0.6981984382 | E17: 108.2125701 | F17: 0.0167 | G17: 1.187445033 | H17: 108.4318295 | I17: 0.0148 | J17: 1.195896169 | K17: 109.7048069 | L17: 0.0028 | M17: 0.8896407998 | N17: 111.1435017 | O17: 0.0001 | P17: 0.7946514533 | Q17: 108.1850472 | R17: 0.0057 | S17: 0.9936133113 | T17: 109.5452214 | U17: 0.0022 | V17: 0.8927582816 | W17: 110.8422857 | X17: 0.0077 | Y17: 1.025335078 | Z17: 108.2146303 | AA17: 0.0092 | AB17: 0.6697066511 | AC17: 108.0865114 | AD17: 0.0073 | AE17: 0.7100955721 | AF17: 94.30922009 | AG17: -0.0412 | AH17: 106.3833447 | AI17: 0.0126 | AJ17: 100 | AK17: 0 | AL17: 104.7564583 | AM17: 0.005 | AN17: 117.1564631 | AO17: 0.0003 | AP17: 100.2308549 | AQ17: -0.008993277521 | AR17: 0.1328781642 | AS17: 109.7164602 | AT17: 0.002987122237 | AU17: 1.505157053 | AV17: 105.25 | AW17: 0 | AX17: 0.7347379878
A18: 2014-04-01 | B18: 108.6249247 | C18: 0.0078 | D18: 0.6850550091 | E18: 109.0566282 | F18: 0.0078 | G18: 1.170515016 | H18: 108.9197727 | I18: 0.0045 | J18: 1.186058904 | K18: 110.6702092 | L18: 0.0088 | M18: 0.8731570181 | N18: 112.2438224 | O18: 0.0099 | P18: 0.7770585734 | Q18: 109.0180721 | R18: 0.0077 | S18: 0.978379787 | T18: 110.2791744 | U18: 0.0067 | V18: 0.8801612015 | W18: 111.7511925 | X18: 0.0082 | Y18: 1.008862406 | Z18: 108.9396684 | AA18: 0.0067 | AB18: 0.6585940708 | AC18: 108.9295862 | AD18: 0.0078 | AE18: 0.6968600636 | AF18: 94.48840761 | AG18: 0.0019 | AH18: 106.7237714 | AI18: 0.0032 | AJ18: 100 | AK18: 0 | AL18: 104.7774096 | AM18: 0.0002 | AN18: 117.0393067 | AO18: -0.001 | AP18: 100.4040597 | AQ18: 0.001728058097 | AR18: 0.130923862 | AS18: 109.6821684 | AT18: -0.0003125493676 | AU18: 1.505940283 | AV18: 105.25 | AW18: 0 | AX18: 0.7347379878
A19: 2014-05-01 | B19: 109.2766742 | C19: 0.006 | D19: 0.6750049792 | E19: 108.9148545 | F19: -0.0013 | G19: 1.173340358 | H19: 108.4296337 | I19: -0.0045 | J19: 1.195940637 | K19: 112.9389485 | L19: 0.0205 | M19: 0.8355286801 | N19: 116.0825611 | O19: 0.0342 | P19: 0.7182929544 | Q19: 109.6394751 | R19: 0.0057 | S19: 0.9671669354 | T19: 111.7899991 | U19: 0.0137 | V19: 0.8547511113 | W19: 112.7234278 | X19: 0.0087 | Y19: 0.9915360427 | Z19: 109.4407908 | AA19: 0.0046 | AB19: 0.6509994733 | AC19: 109.5613778 | AD19: 0.0058 | AE19: 0.6870750284 | AF19: 94.83801472 | AG19: 0.0037 | AH19: 106.7237714 | AI19: 0 | AJ19: 100 | AK19: 0 | AL19: 104.6097657 | AM19: -0.0016 | AN19: 117.49576 | AO19: 0.0039 | AP19: 100.5205954 | AQ19: 0.001160667239 | AR19: 0.1296127575 | AS19: 109.7641634 | AT19: 0.0007475691483 | AU19: 1.504068319 | AV19: 111.75445 | AW19: 0.0618 | AX19: 0.6337709435
A20: 2014-06-01 | B20: 109.5607936 | C20: 0.0026 | D20: 0.6706612599 | E20: 108.1088846 | F20: -0.0074 | G20: 1.189542976 | H20: 107.746527 | I20: -0.0063 | J20: 1.209862772 | K20: 113.6843455 | L20: 0.0066 | M20: 0.8234936222 | N20: 117.2317784 | O20: 0.0099 | P20: 0.7014486131 | Q20: 109.9683935 | R20: 0.003 | S20: 0.9612830862 | T20: 113.1873741 | U20: 0.0125 | V20: 0.8318529494 | W20: 113.64776 | X20: 0.0082 | Y20: 0.9753382689 | Z20: 109.878554 | AA20: 0.004 | AB20: 0.6444217861 | AC20: 110.0763163 | AD20: 0.0047 | AE20: 0.679182869 | AF20: 94.83801472 | AG20: 0 | AH20: 106.7237714 | AI20: 0 | AJ20: 100 | AK20: 0 | AL20: 104.3377803 | AM20: -0.0026 | AN20: 117.5192591 | AO20: 0.0002 | AP20: 100.5205954 | AQ20: 0 | AR20: 0.1296127575 | AS20: 109.6103718 | AT20: -0.00140110915 | AU20: 1.507581715 | AV20: 111.75445 | AW20: 0 | AX20: 0.6337709435
A21: 2014-07-01 | B21: 109.7032226 | C21: 0.0013 | D21: 0.66849222 | E21: 107.4494204 | F21: -0.0061 | G21: 1.202981161 | H21: 107.1539211 | I21: -0.0055 | J21: 1.222084236 | K21: 114.5369781 | L21: 0.0075 | M21: 0.809919228 | N21: 118.5330512 | O21: 0.0111 | P21: 0.6827698676 | Q21: 110.342286 | R21: 0.0034 | S21: 0.9546373193 | T21: 114.0928731 | U21: 0.008 | V21: 0.8173144339 | W21: 114.7274137 | X21: 0.0095 | Y21: 0.9567491519 | Z21: 109.8895419 | AA21: 0.0001 | AB21: 0.6442573604 | AC21: 110.263446 | AD21: 0.0017 | AE21: 0.6763331027 | AF21: 94.83801472 | AG21: 0 | AH21: 106.7237714 | AI21: 0 | AJ21: 100 | AK21: 0 | AL21: 104.2543101 | AM21: -0.0008 | AN21: 117.3547321 | AO21: -0.0014 | AP21: 100.5205954 | AQ21: 0 | AR21: 0.1296127575 | AS21: 109.4944789 | AT21: -0.001057317092 | AU21: 1.51023583 | AV21: 111.75445 | AW21: 0 | AX21: 0.6337709435
A22: 2014-08-01 | B22: 109.9006884 | C22: 0.0018 | D22: 0.6654943303 | E22: 107.159307 | F22: -0.0027 | G22: 1.208945313 | H22: 107.2182135 | I22: 0.0006 | J22: 1.220751785 | K22: 114.6286077 | L22: 0.0008 | M22: 0.8084724501 | N22: 118.5330512 | O22: 0 | P22: 0.6827698676 | Q22: 110.5188337 | R22: 0.0016 | S22: 0.9515148955 | T22: 114.3096495 | U22: 0.0019 | V22: 0.8138680846 | W22: 115.7255422 | X22: 0.0087 | Y22: 0.9398722633 | Z22: 110.1642657 | AA22: 0.0025 | AB22: 0.640156968 | AC22: 110.4178148 | AD22: 0.0014 | AE22: 0.6739895174 | AF22: 94.83801472 | AG22: 0 | AH22: 107.1506665 | AI22: 0.004 | AJ22: 100 | AK22: 0 | AL22: 104.1083541 | AM22: -0.0014 | AN22: 117.6011771 | AO22: 0.0021 | AP22: 100.6628937 | AQ22: 0.001415613998 | AR22: 0.1280159224 | AS22: 109.5054833 | AT22: 0.0001005014557 | AU22: 1.509983573 | AV22: 111.75445 | AW22: 0 | AX22: 0.6337709435
A23: 2014-09-01 | B23: 110.4392018 | C23: 0.0049 | D23: 0.6573732016 | E23: 107.3736256 | F23: 0.002 | G23: 1.204536241 | H23: 107.2396571 | I23: 0.0002 | J23: 1.220307723 | K23: 114.8005506 | L23: 0.0015 | M23: 0.8057638043 | N23: 118.5330512 | O23: 0 | P23: 0.6827698676 | Q23: 110.8835458 | R23: 0.0033 | S23: 0.9450960784 | T23: 114.492545 | U23: 0.0016 | V23: 0.8109705317 | W23: 116.7786446 | X23: 0.0091 | Y23: 0.9223786178 | Z23: 110.792202 | AA23: 0.0057 | AB23: 0.6308610599 | AC23: 110.8484443 | AD23: 0.0039 | AE23: 0.6674863207 | AF23: 95.13201256 | AG23: 0.0031 | AH23: 106.7220638 | AI23: -0.004 | AJ23: 100 | AK23: 0 | AL23: 103.1922005 | AM23: -0.0088 | AN23: 117.7775788 | AO23: 0.0015 | AP23: 100.6180255 | AQ23: -0.0004457280313 | AR23: 0.1285189349 | AS23: 109.0263519 | AT23: -0.004375410152 | AU23: 1.521014044 | AV23: 111.75445 | AW23: 0 | AX23: 0.6337709435
A24: 2014-10-01 | B24: 110.8588708 | C24: 0.0038 | D24: 0.6510990253 | E24: 107.6742717 | F24: 0.0028 | G24: 1.198380775 | H24: 107.8723711 | I24: 0.0059 | J24: 1.207284743 | K24: 114.9957115 | L24: 0.0017 | M24: 0.8026992157 | N24: 118.5330512 | O24: 0 | P24: 0.6827698676 | Q24: 111.293815 | R24: 0.0037 | S24: 0.9379257531 | T24: 114.7215301 | U24: 0.002 | V24: 0.8073558201 | W24: 117.8880417 | X24: 0.0095 | Y24: 0.9042878829 | Z24: 111.2575293 | AA24: 0.0042 | AB24: 0.6240400915 | AC24: 111.3805169 | AD24: 0.0048 | AE24: 0.6595206217 | AF24: 95.16055217 | AG24: 0.0003 | AH24: 106.7220638 | AI24: 0 | AJ24: 100 | AK24: 0 | AL24: 103.4914579 | AM24: 0.0029 | AN24: 117.6362458 | AO24: -0.0012 | AP24: 100.6275387 | AQ24: 9.45476838e-05 | AR24: 0.1284122461 | AS24: 109.1493731 | AT24: 0.001128361988 | AU24: 1.518172633 | AV24: 111.75445 | AW24: 0 | AX24: 0.6337709435
A25: 2014-11-01 | B25: 111.4464228 | C25: 0.0053 | D25: 0.6423943353 | E25: 108.7294796 | F25: 0.0098 | G25: 1.177045727 | H25: 109.1021161 | I25: 0.0114 | J25: 1.182405322 | K25: 115.5016927 | L25: 0.0044 | M25: 0.7948020865 | N25: 119.0783032 | O25: 0.0046 | P25: 0.6750645706 | Q25: 111.761249 | R25: 0.0042 | S25: 0.929820507 | T25: 115.0656947 | U25: 0.003 | V25: 0.8019499702 | W25: 118.8783013 | X25: 0.0084 | Y25: 0.888425112 | Z25: 111.8249427 | AA25: 0.0051 | AB25: 0.615799514 | AC25: 111.8037628 | AD25: 0.0038 | AE25: 0.6532383161 | AF25: 95.16055217 | AG25: 0 | AH25: 107.2450019 | AI25: 0.0049 | AJ25: 100 | AK25: 0 | AL25: 105.0955755 | AM25: 0.0155 | AN25: 121.6005872 | AO25: 0.0337 | AP25: 100.8018514 | AQ25: 0.001732256463 | AR25: 0.1264609269 | AS25: =0.4*AN25+0.6*AL25 -> 111.6975802 | AT25: 0.02334605395 | AU25: 1.460724428 | AV25: 111.75445 | AW25: 0 | AX25: 0.6337709435
A26: 2014-12-01 | B26: 112.1373906 | C26: 0.0062 | D26: 0.632274235 | E26: 109.4036024 | F26: 0.0062 | G26: 1.163631213 | H26: 109.5167042 | I26: 0.0038 | J26: 1.174143577 | K26: 115.594094 | L26: 0.0008 | M26: 0.7933673926 | N26: 119.0783032 | O26: 0 | P26: 0.6750645706 | Q26: 111.9624192 | R26: 0.0018 | S26: 0.9263530715 | T26: 115.3533589 | U26: 0.0025 | V26: 0.7974563294 | W26: 120.019533 | X26: 0.0096 | Y26: 0.8704686133 | Z26: 112.6971772 | AA26: 0.0078 | AB26: 0.6032938222 | AC26: 112.6870125 | AD26: 0.0079 | AE26: 0.6402801033 | AF26: 95.16055217 | AG26: 0 | AH26: 107.2450019 | AI26: 0 | AJ26: 100 | AK26: 0 | AL26: 106.3041746 | AM26: 0.0115 | AN26: 123.7407576 | AO26: 0.0176 | AP26: 100.8018514 | AQ26: 0 | AR26: 0.1264609269 | AS26: 113.2788078 | AT26: 0.01415632821 | AU26: 1.426375855 | AV26: 111.75445 | AW26: 0 | AX26: 0.6337709435
A27: 2015-01-01 | B27: 113.797024 | C27: 0.0148 | D27: 0.6084688954 | E27: 110.2350698 | F27: 0.0076 | G27: 1.147311645 | H27: 110.2504661 | I27: 0.0067 | J27: 1.159673763 | K27: 116.6575597 | L27: 0.0092 | M27: 0.7770188194 | N27: 120.1142845 | O27: 0.0087 | P27: 0.6606172009 | Q27: 113.0484547 | R27: 0.0097 | S27: 0.907846956 | T27: 116.1608324 | U27: 0.007 | V27: 0.7849615982 | W27: 121.1477166 | X27: 0.0094 | Y27: 0.8530499438 | Z27: 114.0946222 | AA27: 0.0124 | AB27: 0.5836564818 | AC27: 113.689927 | AD27: 0.0089 | AE27: 0.6258103908 | AF27: 95.16055217 | AG27: 0 | AH27: 108.5855645 | AI27: 0.0125 | AJ27: 100 | AK27: 0 | AL27: 106.5805655 | AM27: 0.0026 | AN27: 123.480902 | AO27: -0.0021 | AP27: 101.2487055 | AQ27: 0.004432995711 | AR27: 0.1214893693 | AS27: 113.3407001 | AT27: 0.0005463711816 | AU27: 1.425050877 | AV27: 111.75445 | AW27: 0 | AX27: 0.6337709435
A28: 2015-02-01 | B28: 115.1170695 | C28: 0.0116 | D28: 0.5900246099 | E28: 110.5327045 | F28: 0.0027 | G28: 1.141529515 | H28: 110.8347936 | I28: 0.0053 | J28: 1.148287837 | K28: 117.0191981 | L28: 0.0031 | M28: 0.7715270855 | N28: 120.3665245 | O28: 0.0021 | P28: 0.6571372128 | Q28: 113.5232582 | R28: 0.0042 | S28: 0.8998675124 | T28: 116.7416366 | U28: 0.005 | V28: 0.7760811922 | W28: 122.1411279 | X28: 0.0082 | Y28: 0.83797852 | Z28: 115.4865766 | AA28: 0.0122 | AB28: 0.5645687432 | AC28: 115.202003 | AD28: 0.0133 | AE28: 0.6044709275 | AF28: 94.39926775 | AG28: -0.008 | AH28: 109.8560156 | AI28: 0.0117 | AJ28: 100 | AK28: 0 | AL28: 115.6825458 | AM28: 0.0854 | AN28: 129.778428 | AO28: 0.051 | AP28: 101.4184278 | AQ28: 0.001676290359 | AR28: 0.1196125736 | AS28: 121.3208987 | AT28: 0.07040894021 | AU28: 1.26553683 | AV28: 111.75445 | AW28: 0 | AX28: 0.6337709435
A29: 2015-03-01 | B29: 116.8553372 | C29: 0.0151 | D29: 0.5663723869 | E29: 111.615925 | F29: 0.0098 | G29: 1.120746202 | H29: 112.1758946 | I29: 0.0121 | J29: 1.122604325 | K29: 117.7447171 | L29: 0.0062 | M29: 0.7606112955 | N29: 121.004467 | O29: 0.0053 | P29: 0.6484006891 | Q29: 114.351978 | R29: 0.0073 | S29: 0.8860989898 | T29: 117.1619065 | U29: 0.0036 | V29: 0.7697102354 | W29: 123.4113956 | X29: 0.0104 | Y29: 0.8190602929 | Z29: 117.0109994 | AA29: 0.0132 | AB29: 0.5441854946 | AC29: 116.6305078 | AD29: 0.0124 | AE29: 0.5848191698 | AF29: 89.42442634 | AG29: -0.0527 | AH29: 109.8560156 | AI29: 0 | AJ29: 100 | AK29: 0 | AL29: 119.1067491 | AM29: 0.0296 | AN29: 131.8808385 | AO29: 0.0162 | AP29: 99.7601473 | AQ29: -0.01635087929 | AR29: 0.1382235291 | AS29: 124.2163849 | AT29: 0.02386634338 | AU29: 1.212727125 | AV29: 111.75445 | AW29: 0 | AX29: 0.6337709435
A30: 2015-04-01 | B30: 117.6850101 | C30: 0.0071 | D30: 0.5553295471 | E30: 112.9218313 | F30: 0.0117 | G30: 1.096220423 | H30: 113.2079128 | I30: 0.0092 | J30: 1.103254384 | K30: 118.2863428 | L30: 0.0046 | M30: 0.7525495674 | N30: 121.137572 | O30: 0.0011 | P30: 0.6465894407 | Q30: 115.3125346 | R30: 0.0084 | S30: 0.8703877328 | T30: 117.9234589 | U30: 0.0065 | V30: 0.7582814062 | W30: 124.5838038 | X30: 0.0095 | Y30: 0.8019418454 | Z30: 117.8417775 | AA30: 0.0071 | AB30: 0.5332990712 | AC30: 117.8784543 | AD30: 0.0107 | AE30: 0.5680411297 | AF30: 89.42442634 | AG30: 0 | AH30: 110.229526 | AI30: 0.0034 | AJ30: 100 | AK30: 0 | AL30: 119.5593548 | AM30: 0.0038 | AN30: 132.1446002 | AO30: 0.002 | AP30: 99.88465079 | AQ30: 0.001248028273 | AR30: 0.1368047646 | AS30: 124.5934529 | AT30: 0.003035574246 | AU30: 1.206030555 | AV30: 111.75445 | AW30: 0 | AX30: 0.6337709435
A31: 2015-05-01 | B31: 118.8500917 | C31: 0.0099 | D31: 0.5400827281 | E31: 113.3848108 | F31: 0.0041 | G31: 1.087661013 | H31: 113.6607444 | I31: 0.004 | J31: 1.094874885 | K31: 119.4100631 | L31: 0.0095 | M31: 0.7360570257 | N31: 122.5669953 | O31: 0.0118 | P31: 0.6273862826 | Q31: 116.1197223 | R31: 0.007 | S31: 0.8573860306 | T31: 118.4541144 | U31: 0.0045 | V31: 0.7504045856 | W31: 125.8171835 | X31: 0.0099 | Y31: 0.7842774982 | Z31: 118.7138067 | AA31: 0.0074 | AB31: 0.5220360048 | AC31: 118.585725 | AD31: 0.006 | AE31: 0.5586889957 | AF31: 89.42442634 | AG31: 0 | AH31: 110.5932835 | AI31: 0.0033 | AJ31: 100 | AK31: 0 | AL31: 118.6626596 | AM31: -0.0075 | AN31: 131.8935255 | AO31: -0.0019 | AP31: 100.0059033 | AQ31: 0.001213925039 | AR31: 0.135426442 | AS31: 123.955006 | AT31: -0.005124241905 | AU31: 1.217393013 | AV31: 128.5623193 | AW31: 0.1504 | AX31: 0.4201764112
A32: 2015-06-01 | B32: 119.7652374 | C32: 0.0077 | D32: 0.5283147048 | E32: 114.144489 | F32: 0.0067 | G32: 1.073766776 | H32: 114.4336375 | I32: 0.0068 | J32: 1.080725948 | K32: 121.6072083 | L32: 0.0184 | M32: 0.7046907165 | N32: 126.5871927 | O32: 0.0328 | P32: 0.5757032171 | Q32: 116.3867977 | R32: 0.0023 | S32: 0.8531238458 | T32: 120.6692064 | U32: 0.0187 | V32: 0.7182728827 | W32: 127.1634274 | X32: 0.0107 | Y32: 0.7653878482 | Z32: 119.6516458 | AA32: 0.0079 | AB32: 0.5101061661 | AC32: 119.7597237 | AD32: 0.0099 | AE32: 0.5434092442 | AF32: 90.30972816 | AG32: 0.0099 | AH32: 111.654979 | AI32: 0.0096 | AJ32: 100 | AK32: 0 | AL32: 119.0067813 | AM32: 0.0029 | AN32: 132.0913657 | AO32: 0.0015 | AP32: 100.6549024 | AQ32: 0.006489608041 | AR32: 0.1281054796 | AS32: 124.2406151 | AT32: 0.002304135608 | AU32: 1.212295584 | AV32: 128.5623193 | AW32: 0 | AX32: 0.4201764112
A33: 2015-07-01 | B33: 120.4598758 | C33: 0.0058 | D33: 0.5195015956 | E33: 114.932086 | F33: 0.0069 | G33: 1.05955584 | H33: 115.0973526 | I33: 0.0058 | J33: 1.06872733 | K33: 122.2760479 | L33: 0.0055 | M33: 0.6953662024 | N33: 127.5998903 | O33: 0.008 | P33: 0.563197636 | Q33: 116.6894034 | R33: 0.0026 | S33: 0.8483182184 | T33: 121.4656231 | U33: 0.0066 | V33: 0.7070066389 | W33: 128.6639558 | X33: 0.0118 | Y33: 0.7447992174 | Z33: 120.393486 | AA33: 0.0062 | AB33: 0.5008011986 | AC33: 120.466306 | AD33: 0.0059 | AE33: 0.5343565406 | AF33: 91.14960863 | AG33: 0.0093 | AH33: 112.6263773 | AI33: 0.0087 | AJ33: 100 | AK33: 0 | AL33: 118.0785284 | AM33: -0.0078 | AN33: 131.536582 | AO33: -0.0042 | AP33: 101.258662 | AQ33: 0.00599831287 | AR33: 0.121379097 | AS33: 123.4617499 | AT33: -0.00626900656 | AU33: 1.226251972 | AV33: 128.5623193 | AW33: 0 | AX33: 0.4201764112
A34: 2015-08-01 | B34: 120.7610255 | C34: 0.0025 | D34: 0.5157123148 | E34: 115.2538958 | F34: 0.0028 | G34: 1.053805186 | H34: 115.557742 | I34: 0.004 | J34: 1.060485388 | K34: 122.9974766 | L34: 0.0059 | M34: 0.6854222114 | N34: 128.7100093 | O34: 0.0087 | P34: 0.5497151145 | Q34: 117.0044648 | R34: 0.0027 | S34: 0.8433411972 | T34: 122.4373481 | U34: 0.008 | V34: 0.6934589671 | W34: 130.0921257 | X34: 0.0111 | Y34: 0.7256445628 | Z34: 120.6583516 | AA34: 0.0022 | AB34: 0.4975066839 | AC34: 120.9843111 | AD34: 0.0043 | AE34: 0.5277870563 | AF34: 91.14960863 | AG34: 0 | AH34: 112.6263773 | AI34: 0 | AJ34: 100 | AK34: 0 | AL34: 117.8305635 | AM34: -0.0021 | AN34: 132.4047234 | AO34: 0.0066 | AP34: 101.258662 | AQ34: 0 | AR34: 0.121379097 | AS34: 123.6602275 | AT34: 0.001607604224 | AU34: 1.222678785 | AV34: 128.5623193 | AW34: 0 | AX34: 0.4201764112
A35: 2015-09-01 | B35: 121.3769067 | C35: 0.0051 | D35: 0.5080214056 | E35: 116.3488078 | F35: 0.0095 | G35: 1.034477648 | H35: 117.198662 | I35: 0.0142 | J35: 1.031636155 | K35: 123.268071 | L35: 0.0022 | M35: 0.681722422 | N35: 128.7100093 | O35: 0 | P35: 0.5497151145 | Q35: 117.5543858 | R35: 0.0047 | S35: 0.8347180225 | T35: 122.7067103 | U35: 0.0022 | V35: 0.6897415358 | W35: 131.5361483 | X35: 0.0111 | Y35: 0.7067001907 | Z35: 121.3099067 | AA35: 0.0054 | AB35: 0.4894635806 | AC35: 121.45615 | AD35: 0.0039 | AE35: 0.5218518341 | AF35: 91.14960863 | AG35: 0 | AH35: 112.6263773 | AI35: 0 | AJ35: 100 | AK35: 0 | AL35: 117.9012619 | AM35: 0.0006 | AN35: 132.7489757 | AO35: 0.0026 | AP35: 101.258662 | AQ35: 0 | AR35: 0.121379097 | AS35: 123.8403474 | AT35: 0.001456571113 | AU35: 1.219446004 | AV35: 128.5623193 | AW35: 0 | AX35: 0.4201764112
A36: 2015-10-01 | B36: 122.3115089 | C36: 0.0077 | D36: 0.4964983682 | E36: 118.5478003 | F36: 0.0189 | G36: 0.9967392759 | H36: 119.2613584 | I36: 0.0176 | J36: 0.9964977938 | K36: 123.7118361 | L36: 0.0036 | M36: 0.6756899382 | N36: 128.7100093 | O36: 0 | P36: 0.5497151145 | Q36: 118.4595545 | R36: 0.0077 | S36: 0.8206986429 | T36: 123.0380184 | U36: 0.0027 | V36: 0.6851915187 | W36: 132.9961996 | X36: 0.0111 | Y36: 0.6879637926 | Z36: 122.304648 | AA36: 0.0082 | AB36: 0.4773493162 | AC36: 122.2577606 | AD36: 0.0066 | AE36: 0.5118734692 | AF36: 91.97907007 | AG36: 0.0091 | AH36: 113.7075905 | AI36: 0.0096 | AJ36: 100 | AK36: 0 | AL36: 124.8928067 | AM36: 0.0593 | AN36: 135.8022022 | AO36: 0.023 | AP36: 101.8955535 | AQ36: 0.006289748858 | AR36: 0.1143699896 | AS36: 129.2565649 | AT36: 0.04373548353 | AU36: 1.126444907 | AV36: 128.5623193 | AW36: 0 | AX36: 0.4201764112
A37: 2015-11-01 | B37: 123.6691666 | C37: 0.0111 | D37: 0.4800695957 | E37: 120.3497269 | F37: 0.0152 | G37: 0.9668432584 | H37: 120.6805686 | I37: 0.0119 | J37: 0.9730188692 | K37: 124.1324563 | L37: 0.0034 | M37: 0.6700118978 | N37: 128.7100093 | O37: 0 | P37: 0.5497151145 | Q37: 119.3124633 | R37: 0.0072 | S37: 0.807683323 | T37: 123.5301705 | U37: 0.004 | V37: 0.6784776082 | W37: 134.4059593 | X37: 0.0106 | Y37: 0.6702590467 | Z37: 123.5399249 | AA37: 0.0101 | AB37: 0.4625772856 | AC37: 123.2969515 | AD37: 0.0085 | AE37: 0.4991308569 | AF37: 92.77009007 | AG37: 0.0086 | AH37: 116.9823691 | AI37: 0.0288 | AJ37: 100 | AK37: 0 | AL37: 127.665427 | AM37: 0.0222 | AN37: 137.9342967 | AO37: 0.0157 | AP37: 103.2508197 | AQ37: 0.01330054312 | AR37: 0.09974281291 | AS37: 131.7729749 | AT37: 0.01946833429 | AU37: 1.085837133 | AV37: 128.5623193 | AW37: 0 | AX37: 0.4201764112
A38: 2015-12-01 | B38: 124.7821891 | C38: 0.009 | D38: 0.4668677856 | E38: 120.9394405 | F38: 0.0049 | G38: 0.9572527201 | H38: 121.2115631 | I38: 0.0044 | J38: 0.9643756165 | K38: 124.2565888 | L38: 0.001 | M38: 0.6683435542 | N38: 128.7357513 | O38: 0.0002 | P38: 0.5494052335 | Q38: 119.5510882 | R38: 0.002 | S38: 0.8040751727 | T38: 123.6784067 | U38: 0.0012 | V38: 0.6764658492 | W38: 135.9650684 | X38: 0.0116 | Y38: 0.6511062146 | Z38: 124.7259082 | AA38: 0.0096 | AB38: 0.4486700531 | AC38: 124.7518555 | AD38: 0.0118 | AE38: 0.4816474174 | AF38: 92.77009007 | AG38: 0 | AH38: 116.9823691 | AI38: 0 | AJ38: 100 | AK38: 0 | AL38: 129.4910426 | AM38: 0.0143 | AN38: 138.5136208 | AO38: 0.0042 | AP38: 103.2508197 | AQ38: 0 | AR38: 0.09974281291 | AS38: 133.1000739 | AT38: 0.01007110133 | AU38: 1.065039907 | AV38: 128.5623193 | AW38: 0 | AX38: 0.4201764112
A39: 2016-01-01 | B39: 126.6664002 | C39: 0.0151 | D39: 0.4450475674 | E39: 122.3181502 | F39: 0.0114 | G39: 0.9351915365 | H39: 123.0661 | I39: 0.0153 | J39: 0.9347735807 | K39: 124.7411895 | L39: 0.0039 | M39: 0.6618622913 | N39: 129.0833379 | O39: 0.0027 | P39: 0.5452331041 | Q39: 120.184709 | R39: 0.0053 | S39: 0.7945639835 | T39: 124.0741776 | U39: 0.0032 | V39: 0.6711182707 | W39: 137.4062981 | X39: 0.0106 | Y39: 0.6337880611 | Z39: 126.3099272 | AA39: 0.0127 | AB39: 0.4305026692 | AC39: 125.8995726 | AD39: 0.0092 | AE39: 0.4681405246 | AF39: 92.77009007 | AG39: 0 | AH39: 116.9823691 | AI39: 0 | AJ39: 100 | AK39: 0 | AL39: 130.8377495 | AM39: 0.0104 | AN39: 139.1646348 | AO39: 0.0047 | AP39: 103.2508197 | AQ39: 0 | AR39: 0.09974281291 | AS39: 134.1685036 | AT39: 0.008027266115 | AU39: 1.048595287 | AV39: 128.5623193 | AW39: 0 | AX39: 0.4201764112
A40: 2016-02-01 | B40: 127.869731 | C40: 0.0095 | D40: 0.4314488037 | E40: 123.8960543 | F40: 0.0129 | G40: 0.9105454996 | H40: 124.0383222 | I40: 0.0079 | J40: 0.9196086722 | K40: 125.4147919 | L40: 0.0054 | M40: 0.6529364346 | N40: 129.8062046 | O40: 0.0056 | P40: 0.5366279873 | Q40: 120.797651 | R40: 0.0051 | S40: 0.785458147 | T40: 124.7193633 | U40: 0.0052 | V40: 0.662473409 | W40: 138.7803611 | X40: 0.01 | Y40: 0.6176119417 | Z40: 127.4467166 | AA40: 0.009 | AB40: 0.4177429824 | AC40: 127.6873465 | AD40: 0.0142 | AE40: 0.4475848201 | AF40: 94.14308741 | AG40: 0.0148 | AH40: 116.9823691 | AI40: 0 | AJ40: 100 | AK40: 0 | AL40: 133.1012425 | AM40: 0.0173 | AN40: 140.6954458 | AO40: 0.011 | AP40: 103.7084855 | AQ40: 0.00443256314 | AR40: 0.09488964542 | AS40: 136.1389238 | AT40: 0.01468616091 | AU40: 1.01894474 | AV40: 128.5623193 | AW40: 0 | AX40: 0.4201764112
A41: 2016-03-01 | B41: 128.4323578 | C41: 0.0044 | D41: 0.4251780204 | E41: 124.5279242 | F41: 0.0051 | G41: 0.9008511587 | H41: 124.571687 | I41: 0.0043 | J41: 0.9113896965 | K41: 126.2174466 | L41: 0.0064 | M41: 0.6424249151 | N41: 131.0653247 | O41: 0.0097 | P41: 0.5218658882 | Q41: 121.1117249 | R41: 0.0026 | S41: 0.7808279942 | T41: 125.7046463 | U41: 0.0079 | V41: 0.6494428108 | W41: 140.3902133 | X41: 0.0116 | Y41: 0.5990628131 | Z41: 127.9947375 | AA41: 0.0043 | AB41: 0.4116727894 | AC41: 128.2364021 | AD41: 0.0043 | AE41: 0.4413868567 | AF41: 90.59389301 | AG41: -0.0377 | AH41: 116.9823691 | AI41: 0 | AJ41: 100 | AK41: 0 | AL41: 133.7135082 | AM41: 0.0046 | AN41: 141.1597408 | AO41: 0.0033 | AP41: 102.5254207 | AQ41: -0.01140759883 | AR41: 0.107523833 | AS41: 136.6920012 | AT41: 0.004062595783 | AU41: 1.010775771 | AV41: 128.5623193 | AW41: 0 | AX41: 0.4201764112
A42: 2016-04-01 | B42: 129.2543249 | C42: 0.0064 | D42: 0.4161148852 | E42: 124.9388663 | F42: 0.0033 | G42: 0.8945989821 | H42: 125.020145 | I42: 0.0036 | J42: 0.9045333764 | K42: 126.9116425 | L42: 0.0055 | M42: 0.6334409897 | N42: 132.0089951 | O42: 0.0072 | P42: 0.5109867834 | Q42: 121.535616 | R42: 0.0035 | S42: 0.7746168353 | T42: 126.2200353 | U42: 0.0041 | V42: 0.6427077092 | W42: 141.8783496 | X42: 0.0106 | Y42: 0.5822905334 | Z42: 128.7755053 | AA42: 0.0061 | AB42: 0.4031137952 | AC42: 128.8904078 | AD42: 0.0051 | AE42: 0.4340730839 | AF42: 90.59389301 | AG42: 0 | AH42: 116.9823691 | AI42: 0 | AJ42: 100 | AK42: 0 | AL42: 133.2321396 | AM42: -0.0036 | AN42: 141.3714804 | AO42: 0.0015 | AP42: 102.5254207 | AQ42: 0 | AR42: 0.107523833 | AS42: 136.4878759 | AT42: -0.001493323175 | AU42: 1.013783 | AV42: 128.5623193 | AW42: 0 | AX42: 0.4201764112
A43: 2016-05-01 | B43: 130.5210173 | C43: 0.0098 | D43: 0.4023716431 | E43: 125.963365 | F43: 0.0082 | G43: 0.8791896271 | H43: 126.4328727 | I43: 0.0113 | J43: 0.8832526217 | K43: 127.0131719 | L43: 0.0008 | M43: 0.6321352814 | N43: 132.1278032 | O43: 0.0009 | P43: 0.5096281181 | Q43: 121.6206909 | R43: 0.0007 | S43: 0.7733754725 | T43: 126.4598534 | U43: 0.0019 | V43: 0.6395924835 | W43: 143.4531992 | X43: 0.0111 | Y43: 0.5649199223 | Z43: 129.7799543 | AA43: 0.0078 | AB43: 0.3922542124 | AC43: 129.9988653 | AD43: 0.0086 | AE43: 0.4218452151 | AF43: 90.59389301 | AG43: 0 | AH43: 116.9823691 | AI43: 0 | AJ43: 100 | AK43: 0 | AL43: 131.0204861 | AM43: -0.0166 | AN43: 137.8796048 | AO43: -0.0247 | AP43: 102.5254207 | AQ43: 0 | AR43: 0.107523833 | AS43: 133.7641336 | AT43: -0.01995592882 | AU43: 1.054788207 | AV43: 146.4324817 | AW43: 0.139 | AX43: 0.2468625208
A44: 2016-06-01 | B44: 131.1344661 | C44: 0.0047 | D44: 0.3958113298 | E44: 128.0921459 | F44: 0.0169 | G44: 0.847959118 | H44: 128.4937285 | I44: 0.0163 | J44: 0.8530479403 | K44: 129.4645261 | L44: 0.0193 | M44: 0.6012315132 | N44: 136.6597868 | O44: 0.0343 | P44: 0.4595650373 | Q44: 121.9004185 | R44: 0.0023 | S44: 0.7693060685 | T44: 128.3820432 | U44: 0.0152 | V44: 0.6150438174 | W44: 145.1172564 | X44: 0.0116 | Y44: 0.5469750122 | Z44: 130.2341841 | AA44: 0.0035 | AB44: 0.3873983183 | AC44: 130.5188608 | AD44: 0.004 | AE44: 0.4161804931 | AF44: 90.59389301 | AG44: 0 | AH44: 116.9823691 | AI44: 0 | AJ44: 100 | AK44: 0 | AL44: 130.7060369 | AM44: -0.0024 | AN44: 139.1480972 | AO44: 0.0092 | AP44: 102.5254207 | AQ44: 0 | AR44: 0.107523833 | AS44: 134.082861 | AT44: 0.00238275715 | AU44: 1.049903784 | AV44: 146.4324817 | AW44: 0 | AX44: 0.2468625208
A45: 2016-07-01 | B45: 131.9737266 | C45: 0.0064 | D45: 0.3869349462 | E45: 128.3227118 | F45: 0.0018 | G45: 0.8446387682 | H45: 127.992603 | I45: -0.0039 | J45: 0.8603031225 | K45: 130.0989022 | L45: 0.0049 | M45: 0.5934237369 | N45: 137.8897249 | O45: 0.009 | P45: 0.4465461222 | Q45: 121.9247986 | R45: 0.0002 | S45: 0.768952278 | T45: 129.7814074 | U45: 0.0109 | V45: 0.5976296542 | W45: 146.7280579 | X45: 0.0111 | Y45: 0.5299920998 | Z45: 130.9114019 | AA45: 0.0052 | AB45: 0.3802211682 | AC45: 131.2236626 | AD45: 0.0054 | AE45: 0.4085741925 | AF45: 90.59389301 | AG45: 0 | AH45: 116.9823691 | AI45: 0 | AJ45: 100 | AK45: 0 | AL45: 129.9479419 | AM45: -0.0058 | AN45: 138.9532898 | AO45: -0.0014 | AP45: 102.5254207 | AQ45: 0 | AR45: 0.107523833 | AS45: 133.5500811 | AT45: -0.003973512639 | AU45: 1.058081597 | AV45: 146.4324817 | AW45: 0 | AX45: 0.2468625208
A46: 2016-08-01 | B46: 132.3828452 | C46: 0.0031 | D46: 0.3826487351 | E46: 128.5151958 | F46: 0.0015 | G46: 0.8418759543 | H46: 128.5429712 | I46: 0.0043 | J46: 0.8523380688 | K46: 130.4761891 | L46: 0.0029 | M46: 0.58881617 | N46: 138.3033941 | O46: 0.003 | P46: 0.4422194638 | Q46: 122.2783805 | R46: 0.0029 | S46: 0.7638371503 | T46: 130.1188391 | U46: 0.0026 | V46: 0.5934865891 | W46: 148.5181402 | X46: 0.0122 | Y46: 0.5115511755 | Z46: 131.4874121 | AA46: 0.0044 | AB46: 0.3741747991 | AC46: 131.8141691 | AD46: 0.0045 | AE46: 0.4022640044 | AF46: 90.59389301 | AG46: 0 | AH46: 116.9823691 | AI46: 0 | AJ46: 100 | AK46: 0 | AL46: 130.8315879 | AM46: 0.0068 | AN46: 139.9676489 | AO46: 0.0073 | AP46: 102.5254207 | AQ46: 0 | AR46: 0.107523833 | AS46: 134.4860123 | AT46: 0.007008091659 | AU46: 1.043758748 | AV46: 146.4324817 | AW46: 0 | AX46: 0.2468625208
A47: 2016-09-01 | B47: 132.4887515 | C47: 0.0008 | D47: 0.3815435003 | E47: 128.7722262 | F47: 0.002 | G47: 0.8381995552 | H47: 128.581534 | I47: 0.0003 | J47: 0.851782534 | K47: 130.9067605 | L47: 0.0033 | M47: 0.583590322 | N47: 138.9672504 | O47: 0.0048 | P47: 0.4353298804 | Q47: 122.461798 | R47: 0.0015 | S47: 0.7611953573 | T47: 130.6002788 | U47: 0.0037 | V47: 0.5876124231 | W47: 150.1666916 | X47: 0.0111 | Y47: 0.4949571511 | Z47: 131.592602 | AA47: 0.0008 | AB47: 0.373076338 | AC47: 132.1173417 | AD47: 0.0023 | AE47: 0.3990461982 | AF47: 91.44547561 | AG47: 0.0094 | AH47: 116.9823691 | AI47: 0 | AJ47: 100 | AK47: 0 | AL47: 128.2934551 | AM47: -0.0194 | AN47: 140.2895744 | AO47: 0.0023 | AP47: 102.8092816 | AQ47: 0.002768687637 | AR47: 0.1044659119 | AS47: 133.0919028 | AT47: -0.01036620406 | AU47: 1.065166688 | AV47: 146.4324817 | AW47: 0 | AX47: 0.2468625208
A48: 2016-10-01 | B48: 132.7139823 | C48: 0.0017 | D48: 0.3791988622 | E48: 128.9782618 | F48: 0.0016 | G48: 0.8352631342 | H48: 128.74869 | I48: 0.0013 | J48: 0.8493783422 | K48: 131.1816647 | L48: 0.0021 | M48: 0.5802717513 | N48: 139.5092226 | O48: 0.0039 | P48: 0.4297538404 | Q48: 122.461798 | R48: 0 | S48: 0.7611953573 | T48: 130.8222993 | U48: 0.0017 | V48: 0.5849180624 | W48: 151.7434418 | X48: 0.0105 | Y48: 0.4794232075 | Z48: 131.9347428 | AA48: 0.0026 | AB48: 0.3695155974 | AC48: 132.3683646 | AD48: 0.0019 | AE48: 0.3963930514 | AF48: 92.0398712 | AG48: 0.0065 | AH48: 116.9823691 | AI48: 0 | AJ48: 100 | AK48: 0 | AL48: 130.9106416 | AM48: 0.0204 | AN48: 140.75253 | AO48: 0.0033 | AP48: 103.0074134 | AQ48: 0.00192717876 | AR48: 0.1023415028 | AS48: 134.847397 | AT48: 0.01319008964 | AU48: 1.038281571 | AV48: 146.4324817 | AW48: 0 | AX48: 0.2468625208
A49: 2016-11-01 | B49: 132.8068821 | C49: 0.0007 | D49: 0.3782340983 | E49: 128.9395683 | F49: -0.0003 | G49: 0.8358138783 | H49: 128.8130644 | I49: 0.0005 | J49: 0.8484541151 | K49: 131.3915553 | L49: 0.0016 | M49: 0.5777473555 | N49: 140.0254068 | O49: 0.0037 | P49: 0.4244832524 | Q49: 122.3515824 | R49: -0.0009 | S49: 0.7627818609 | T49: 131.0446972 | U49: 0.0017 | V49: 0.5822282743 | W49: 153.3215736 | X49: 0.0104 | Y49: 0.4641955735 | Z49: 132.1722253 | AA49: 0.0018 | AB49: 0.3670548986 | AC49: 132.7125224 | AD49: 0.0026 | AE49: 0.3927718446 | AF49: 92.0398712 | AG49: 0 | AH49: 116.9823691 | AI49: 0 | AJ49: 100 | AK49: 0 | AL49: 131.002279 | AM49: 0.0007 | AN49: 139.8094881 | AO49: -0.0067 | AP49: 103.0074134 | AQ49: 0 | AR49: 0.1023415028 | AS49: 134.5251627 | AT49: -0.002389622034 | AU49: 1.043163961 | AV49: 146.4324817 | AW49: 0 | AX49: 0.2468625208
A50: 2016-12-01 | B50: 132.9928118 | C50: 0.0014 | D50: 0.3763072682 | E50: 129.635842 | F50: 0.0054 | G50: 0.8259537282 | H50: 129.8822128 | I50: 0.0083 | J50: 0.8332382378 | K50: 131.8382866 | L50: 0.0034 | M50: 0.5724011915 | N50: 140.781544 | O50: 0.0054 | P50: 0.4168323576 | Q50: 122.4984043 | R50: 0.0012 | S50: 0.7606690581 | T50: 131.5164581 | U50: 0.0036 | V50: 0.5765526847 | W50: 155.0387752 | X50: 0.0112 | Y50: 0.4479782175 | Z50: 132.568742 | AA50: 0.003 | AB50: 0.3629660006 | AC50: 132.9646762 | AD50: 0.0019 | AE50: 0.3901305965 | AF50: 92.0398712 | AG50: 0 | AH50: 117.321618 | AI50: 0.0029 | AJ50: 100 | AK50: 0 | AL50: 133.4258212 | AM50: 0.0185 | AN50: 142.7734492 | AO50: 0.0212 | AP50: 103.1204964 | AQ50: 0.001097813769 | AR50: 0.1011326642 | AS50: 137.1648724 | AT50: 0.01962242382 | AU50: 1.003843691 | AV50: 146.4324817 | AW50: 0 | AX50: 0.2468625208
A51: 2017-01-01 | B51: 133.5513816 | C51: 0.0042 | D51: 0.3705509542 | E51: 130.4655114 | F51: 0.0064 | G51: 0.8143419398 | H51: 130.4407063 | I51: 0.0043 | J51: 0.8253890648 | K51: 132.3788236 | L51: 0.0041 | M51: 0.5659806707 | N51: 141.1757323 | O51: 0.0028 | P51: 0.412876304 | Q51: 123.1966452 | R51: 0.0057 | S51: 0.7506901244 | T51: 131.8978558 | U51: 0.0029 | V51: 0.5719939024 | W51: 156.7286979 | X51: 0.0109 | Y51: 0.4323654342 | Z51: 133.0725032 | AA51: 0.0038 | AB51: 0.3578063365 | AC51: 133.3768667 | AD51: 0.0031 | AE51: 0.3858345095 | AF51: 92.0398712 | AG51: 0 | AH51: 119.1518352 | AI51: 0.0156 | AJ51: 100 | AK51: 0 | AL51: 136.4679299 | AM51: 0.0228 | AN51: 145.7574143 | AO51: 0.0209 | AP51: 103.7305688 | AQ51: 0.005916112072 | AR51: 0.09465655331 | AS51: 140.1837237 | AT51: 0.02200892413 | AU51: 0.9606909913 | AV51: 146.4324817 | AW51: 0 | AX51: 0.2468625208 | AY51: 100 | BA51: =AY$122/AY51-1 -> 0.3127528833
A52: 2017-02-01 | B52: 133.8719049 | C52: 0.0024 | D52: 0.3672695073 | E52: 130.5698838 | F52: 0.0008 | G52: 0.8128916265 | H52: 130.5189708 | I52: 0.0006 | J52: 0.8242944881 | K52: 133.239286 | L52: 0.0065 | M52: 0.5558675318 | N52: 142.276903 | O52: 0.0078 | P52: 0.4019411629 | Q52: 123.8126285 | R52: 0.005 | S52: 0.7419802233 | T52: 132.5969144 | U52: 0.0053 | V52: 0.5637062592 | W52: 158.0922376 | X52: 0.0087 | Y52: 0.4200113356 | Z52: 133.5116424 | AA52: 0.0033 | AB52: 0.3533403135 | AC52: 134.0971017 | AD52: 0.0054 | AE52: 0.378391197 | AF52: 92.0398712 | AG52: 0 | AH52: 120.7127243 | AI52: 0.0131 | AJ52: 100 | AK52: 0 | AL52: 135.3625397 | AM52: -0.0081 | AN52: 146.0197777 | AO52: 0.0018 | AP52: 104.2508652 | AQ52: 0.005015843962 | AR52: 0.08919332953 | AS52: 139.6254349 | AT52: -0.003982550802 | AU52: 0.9685307651 | AV52: 146.4324817 | AW52: 0 | AX52: 0.2468625208 | AY52: =AY51*(1+AZ52) -> 100.7499354 | AZ52: ='3.3.Variacao_mensal_IEE'!CN40 -> 0.007499353504 | BA52: =AY$122/AY52-1 -> 0.3029813655
A53: 2017-03-01 | B53: 134.300295 | C53: 0.0032 | D53: 0.3629082011 | E53: 130.5829408 | F53: 0.0001 | G53: 0.8127103555 | H53: 130.0229987 | I53: -0.0038 | J53: 0.8312532504 | K53: 133.4524688 | L53: 0.0016 | M53: 0.5533821204 | N53: 142.7464168 | O53: 0.0033 | P53: 0.397329974 | Q53: 123.7631034 | R53: -0.0004 | S53: 0.7426772942 | T53: 133.0742633 | U53: 0.0036 | V53: 0.5580971096 | W53: 159.7522061 | X53: 0.0105 | Y53: 0.4052561461 | Z53: 133.8454216 | AA53: 0.0025 | AB53: 0.3499654 | AC53: 134.2982474 | AD53: 0.0015 | AE53: 0.376326707 | AF53: 89.7480784 | AG53: -0.0249 | AH53: 120.7127243 | AI53: 0 | AJ53: 100 | AK53: 0 | AL53: 132.3710276 | AM53: -0.0221 | AN53: 144.9684353 | AO53: -0.0072 | AP53: 103.4869342 | AQ53: -0.007327813825 | AR53: 0.09723365346 | AS53: 137.4099907 | AT53: -0.01586705343 | AU53: 1.000269142 | AV53: 146.4324817 | AW53: 0 | AX53: 0.2468625208 | AY53: 109.2148188 | AZ53: ='3.3.Variacao_mensal_IEE'!CN41 -> 0.08401874816 | BA53: 0.2019915409
A54: 2017-04-01 | B54: 134.4077352 | C54: 0.0008 | D54: 0.3618187461 | E54: 129.1465284 | F54: -0.011 | G54: 0.8328719469 | H54: 128.4107135 | I54: -0.0124 | J54: 0.8542458996 | K54: 133.4257783 | L54: -0.0002 | M54: 0.5536928589 | N54: 142.7464168 | O54: 0 | P54: 0.397329974 | Q54: 123.7012219 | R54: -0.0005 | S54: 0.7435490687 | T54: 132.9678039 | U54: -0.0008 | V54: 0.5593445853 | W54: 161.0142485 | X54: 0.0079 | Y54: 0.3942416371 | Z54: 134.0328051 | AA54: 0.0014 | AB54: 0.3480780907 | AC54: 134.5802737 | AD54: 0.0021 | AE54: 0.3734424778 | AF54: 87.59412452 | AG54: -0.024 | AH54: 122.2699184 | AI54: 0.0129 | AJ54: 100 | AK54: 0 | AL54: 128.7837727 | AM54: -0.0271 | AN54: 142.6634371 | AO54: -0.0159 | AP54: 103.2880143 | AQ54: -0.001922174179 | AR54: 0.09934678948 | AS54: 134.3356385 | AT54: -0.02237357082 | AU54: 1.046046509 | AV54: 146.4324817 | AW54: 0 | AX54: 0.2468625208 | AY54: 96.77677626 | AZ54: ='3.3.Variacao_mensal_IEE'!CN42 -> -0.1138860337 | BA54: 0.3564751112
A55: 2017-05-01 | B55: 134.8916031 | C55: 0.0036 | D55: 0.3569337845 | E55: 127.9454657 | F55: -0.0093 | G55: 0.8500776692 | H55: 127.7558188 | I55: -0.0051 | J55: 0.8637510298 | K55: 134.2663607 | L55: 0.0063 | M55: 0.5439658739 | N55: 144.4022752 | O55: 0.0116 | P55: 0.381306815 | Q55: 123.7012219 | R55: 0 | S55: 0.7435490687 | T55: 133.1406621 | U55: 0.0013 | V55: 0.5573200692 | W55: 162.511681 | X55: 0.0093 | Y55: 0.3813946667 | Z55: 134.4483068 | AA55: 0.0031 | AB55: 0.3439119636 | AC55: 134.9032664 | AD55: 0.0024 | AE55: 0.3701541079 | AF55: 86.945928 | AG55: -0.0074 | AH55: 122.2699184 | AI55: 0 | AJ55: 100 | AK55: 0 | AL55: 127.8951647 | AM55: -0.0069 | AN55: 143.8047446 | AO55: 0.008 | AP55: 103.0719488 | AQ55: -0.002091873956 | AR55: 0.1016513051 | AS55: 134.2589967 | AT55: -0.0005705248515 | AU55: 1.047214496 | AV55: 146.4324817 | AW55: 0 | AX55: 0.2468625208 | AY55: 108.8477372 | AZ55: ='3.3.Variacao_mensal_IEE'!CN43 -> 0.1247299345 | BA55: 0.2060451754
A56: 2017-06-01 | B56: 134.4869283 | C56: -0.003 | D56: 0.361016835 | E56: 127.0882311 | F56: -0.0067 | G56: 0.8625567998 | H56: 126.529363 | I56: -0.0096 | J56: 0.8818164679 | K56: 135.5150379 | L56: 0.0093 | M56: 0.5297392985 | N56: 146.8571139 | O56: 0.017 | P56: 0.3582171238 | Q56: 123.6888517 | R56: -0.0001 | S56: 0.743723441 | T56: 134.9513751 | U56: 0.0136 | V56: 0.5364246933 | W56: 163.8280256 | X56: 0.0081 | Y56: 0.370295275 | Z56: 134.1390757 | AA56: -0.0023 | AB56: 0.3470100868 | AC56: 135.1191116 | AD56: 0.0016 | AE56: 0.3679653633 | AF56: 86.945928 | AG56: 0 | AH56: 122.2699184 | AI56: 0 | AJ56: 101.04 | AK56: 0.0104 | AL56: 125.5163146 | AM56: -0.0186 | AN56: 143.1144819 | AO56: -0.0048 | AP56: 103.4186155 | AQ56: 0.003363346387 | AR56: 0.09795849043 | AS56: 132.5555815 | AT56: -0.01268753074 | AU56: 1.073522375 | AV56: 146.4324817 | AW56: 0 | AX56: 0.2468625208 | AY56: 88.35372407 | AZ56: ='3.3.Variacao_mensal_IEE'!CN44 -> -0.1882814808 | BA56: 0.4857923614
A57: 2017-07-01 | B57: 134.715556 | C57: 0.0017 | D57: 0.358707033 | E57: 126.1731958 | F57: -0.0072 | G57: 0.8760644639 | H57: 126.1497749 | I57: -0.003 | J57: 0.8874789047 | K57: 135.921583 | L57: 0.003 | M57: 0.525163807 | N57: 147.5767138 | O57: 0.0049 | P57: 0.3515943117 | Q57: 123.7754339 | R57: 0.0007 | S57: 0.7425036885 | T57: 135.2482681 | U57: 0.0022 | V57: 0.533051979 | W57: 165.1386498 | X57: 0.008 | Y57: 0.3594199157 | Z57: 134.4610095 | AA57: 0.0024 | AB57: 0.3437850028 | AC57: 134.8758972 | AD57: -0.0018 | AE57: 0.3704321412 | AF57: 86.945928 | AG57: 0 | AH57: 122.2699184 | AI57: 0 | AJ57: 101.04 | AK57: 0 | AL57: 126.8718908 | AM57: 0.0108 | AN57: 139.6940458 | AO57: -0.0239 | AP57: 103.4186155 | AQ57: 0 | AR57: 0.09795849043 | AS57: 132.0007528 | AT57: -0.004185630824 | AU57: 1.082237853 | AV57: 146.4324817 | AW57: 0 | AX57: 0.2468625208 | AY57: 98.11019772 | AZ57: ='3.3.Variacao_mensal_IEE'!CN45 -> 0.1104251546 | BA57: 0.3380391783
A58: 2017-08-01 | B58: 134.6751414 | C58: -0.0003 | D58: 0.3591147675 | E58: 126.299369 | F58: 0.001 | G58: 0.8741902736 | H58: 126.4525344 | I58: 0.0024 | J58: 0.8829598011 | K58: 136.4109007 | L58: 0.0036 | M58: 0.5196929125 | N58: 148.0637169 | O58: 0.0033 | P58: 0.3471487209 | Q58: 124.2581581 | R58: 0.0039 | S58: 0.7357343246 | T58: 135.7892612 | U58: 0.004 | V58: 0.5269442022 | W58: 166.459759 | X58: 0.008 | Y58: 0.3486308687 | Z58: 134.7164854 | AA58: 0.0019 | AB58: 0.3412366531 | AC58: 135.3479628 | AD58: 0.0035 | AE58: 0.3656523579 | AF58: 86.945928 | AG58: 0 | AH58: 122.2699184 | AI58: 0 | AJ58: 101.04 | AK58: 0 | AL58: 137.4403193 | AM58: 0.0833 | AN58: 147.0978302 | AO58: 0.053 | AP58: 103.4186155 | AQ58: 0 | AR58: 0.09795849043 | AS58: 141.3033237 | AT58: 0.07047361986 | AU58: 0.9451556908 | AV58: 159.1574643 | AW58: 0.0869 | AX58: 0.1471731722 | AY58: 96.964676 | AZ58: ='3.3.Variacao_mensal_IEE'!CN46 -> -0.01167586801 | BA58: 0.3538465114
A59: 2017-09-01 | B59: 134.6482063 | C59: -0.0002 | D59: 0.3593866448 | E59: 126.892976 | F59: 0.0047 | G59: 0.8654227865 | H59: 127.2365401 | I59: 0.0062 | J59: 0.8713573853 | K59: 136.4927472 | L59: 0.0006 | M59: 0.5187816436 | N59: 147.9452659 | O59: -0.0008 | P59: 0.3482273028 | Q59: 124.5563777 | R59: 0.0024 | S59: 0.7315785361 | T59: 135.9793661 | U59: 0.0014 | V59: 0.5248094689 | W59: 167.5251015 | X59: 0.0064 | Y59: 0.3400545198 | Z59: 134.9320318 | AA59: 0.0016 | AB59: 0.3390941026 | AC59: 135.4968456 | AD59: 0.0011 | AE59: 0.3641517909 | AF59: 86.945928 | AG59: 0 | AH59: 123.8349734 | AI59: 0.0128 | AJ59: 101.04 | AK59: 0 | AL59: 141.1374639 | AM59: 0.0269 | AN59: 149.9221085 | AO59: 0.0192 | AP59: 103.9403005 | AQ59: 0.005044401174 | AR59: 0.09244774574 | AS59: 144.6513218 | AT59: 0.02369369667 | AU59: 0.9001344807 | AV59: 159.1574643 | AW59: 0 | AX59: 0.1471731722 | AY59: 94.1169758 | AZ59: ='3.3.Variacao_mensal_IEE'!CN47 -> -0.029368429 | BA59: 0.3948098865
A60: 2017-10-01 | B60: 135.1464047 | C60: 0.0037 | D60: 0.3543754556 | E60: 127.146762 | F60: 0.002 | G60: 0.8616993877 | H60: 127.3637766 | I60: 0.001 | J60: 0.8694878974 | K60: 136.9158748 | L60: 0.0031 | M60: 0.5140879709 | N60: 147.9600605 | O60: 0.0001 | P60: 0.3480924935 | Q60: 125.3909054 | R60: 0.0067 | S60: 0.7200541732 | T60: 136.2377269 | U60: 0.0019 | V60: 0.5219178251 | W60: 168.5972621 | X60: 0.0064 | Y60: 0.3315327105 | Z60: 135.4987463 | AA60: 0.0042 | AB60: 0.3334934302 | AC60: 135.9575349 | AD60: 0.0034 | AE60: 0.359529391 | AF60: 86.945928 | AG60: 0 | AH60: 125.3333766 | AI60: 0.0121 | AJ60: 101.04 | AK60: 0 | AL60: 141.6032176 | AM60: 0.0033 | AN60: 150.4618281 | AO60: 0.0036 | AP60: 104.4397682 | AQ60: 0.004805332713 | AR60: 0.08722327616 | AS60: 145.1466618 | AT60: 0.003424372545 | AU60: 0.8936499179 | AV60: 159.1574643 | AW60: 0 | AX60: 0.1471731722 | AY60: 101.9914494 | AZ60: ='3.3.Variacao_mensal_IEE'!CN48 -> 0.08366687917 | BA60: 0.2871205288
A61: 2017-11-01 | B61: 135.3896682 | C61: 0.0018 | D61: 0.3519419601 | E61: 127.8079252 | F61: 0.0052 | G61: 0.8520686309 | H61: 128.3826868 | I61: =H61/H60-1 -> 0.008 | J61: 0.8546506919 | K61: 137.340314 | L61: =K61/K60-1 -> 0.0031 | M61: 0.5094088036 | N61: 148.0340405 | O61: =N61/N60-1 -> 0.0005 | P61: 0.3474187841 | Q61: 126.1808681 | R61: 0.0063 | S61: 0.7092856734 | T61: 136.6191926 | U61: 0.0028 | V61: 0.5176683537 | W61: 169.5582665 | X61: 0.0057 | Y61: 0.3239859903 | Z61: 135.8781428 | AA61: 0.0028 | AB61: 0.329770074 | AC61: 136.392599 | AD61: 0.0032 | AE61: 0.3551927741 | AF61: 86.73725777 | AG61: -0.0024 | AH61: 125.3333766 | AI61: 0 | AJ61: 101.04 | AK61: 0 | AL61: 141.0226444 | AM61: -0.0041 | AN61: 150.4166896 | AO61: -0.0003 | AP61: 104.3702114 | AQ61: -0.0006659986288 | AR61: 0.08794784794 | AS61: 144.7802624 | AT61: -0.002524338694 | AU61: 0.8984422291 | AV61: 159.1574643 | AW61: 0 | AX61: 0.1471731722 | AY61: 107.9665065 | AZ61: ='3.3.Variacao_mensal_IEE'!CN49 -> 0.05858390203 | BA61: 0.2158890064
A62: 2017-12-01 | B62: 135.7416814 | C62: 0.0026 | D62: 0.3484360264 | E62: 128.9454157 | F62: 0.0089 | G62: 0.8357306283 | H62: 129.3327187 | I62: =H62/H61-1 -> 0.0074 | J62: 0.8410270914 | K62: 137.4364522 | L62: =K62/K61-1 -> 0.0007 | M62: 0.5083529565 | N62: 148.1080575 | O62: 0.0005 | P62: 0.3467454114 | Q62: 126.3196671 | R62: 0.0011 | S62: 0.7074075251 | T62: 136.8104594 | U62: 0.0014 | V62: 0.5155465884 | W62: 170.4738812 | X62: 0.0054 | Y62: 0.316874866 | Z62: 136.4760067 | AA62: 0.0044 | AB62: 0.3239447172 | AC62: 136.8699731 | AD62: 0.0035 | AE62: 0.3504661426 | AF62: 86.62449934 | AG62: -0.0013 | AH62: 125.3333766 | AI62: 0 | AJ62: 101.04 | AK62: 0 | AL62: 145.0135852 | AM62: 0.0283 | AN62: 152.9136066 | AO62: 0.0166 | AP62: 104.3326253 | AQ62: -0.0003601233007 | AR62: 0.08833978445 | AS62: 148.1735938 | AT62: 0.02343780335 | AU62: 0.8549659031 | AV62: 159.1574643 | AW62: 0 | AX62: 0.1471731722 | AY62: 100.0772805 | AZ62: ='3.3.Variacao_mensal_IEE'!CN50 -> -0.07307104999 | BA62: 0.3117391644
A63: 2018-01-01 | B63: 136.0538872 | C63: 0.0023 | D63: 0.3453417404 | E63: 129.9254008 | F63: =E63/E62-1 -> 0.0076 | G63: 0.8218843075 | H63: 130.0828485 | I63: =H63/H62-1 -> 0.0058 | J63: 0.8304107093 | K63: 137.8625052 | L63: =K63/K62-1 -> 0.0031 | M63: 0.5036915128 | N63: 148.1080575 | O63: 0 | P63: 0.3467454114 | Q63: 127.1912728 | R63: 0.0069 | S63: 0.6957071458 | T63: 137.1935287 | U63: 0.0028 | V63: 0.5113149067 | W63: 171.4626297 | X63: 0.0058 | Y63: 0.309281036 | Z63: 136.8717871 | AA63: 0.0029 | AB63: 0.3201163797 | AC63: 137.403766 | AD63: 0.0039 | AE63: 0.3452197855 | AF63: 86.62449934 | AG63: =AF63/AF62-1 -> 0 | AH63: 125.3333766 | AI63: 0 | AJ63: 102.45456 | AK63: 0.014 | AL63: 154.1929451 | AM63: 0.0633 | AN63: 159.7182621 | AO63: 0.0445 | AP63: 104.8041453 | AQ63: 0.004519391692 | AR63: 0.08344327989 | AS63: 156.4030719 | AT63: 0.05553943827 | AU63: 0.7573629519 | AV63: 159.1574643 | AW63: 0 | AX63: 0.1471731722 | AY63: 88.79662835 | AZ63: ='3.3.Variacao_mensal_IEE'!CN51 -> -0.1127194116 | BA63: 0.4783814518
A64: 2018-02-01 | B64: 136.2987842 | C64: 0.0018 | D64: 0.3429244763 | E64: 130.0163486 | F64: =E64/E63-1 -> 0.0007 | G64: 0.8206098806 | H64: 130.2779727 | I64: =H64/H63-1 -> 0.0015 | J64: 0.8276692055 | K64: 138.0417264 | L64: =K64/K63-1 -> 0.0013 | M64: 0.5017392518 | N64: 148.1080575 | O64: 0 | P64: 0.3467454114 | Q64: 127.5474084 | R64: 0.0028 | S64: 0.690972423 | T64: 137.3855997 | U64: 0.0014 | V64: 0.5092020239 | W64: 172.268504 | X64: 0.0047 | Y64: 0.3031562019 | Z64: 137.3097768 | AA64: =Z64/Z63-1 -> 0.0032 | AB64: 0.3159054822 | AC64: 137.9259003 | AD64: =AC64/AC63-1 -> 0.0038 | AE64: 0.3401273017 | AF64: 86.41660054 | AG64: =AF64/AF63-1 -> -0.0024 | AH64: 126.2483102 | AI64: 0.0073 | AJ64: 102.45456 | AK64: 0 | AL64: 157.0609339 | AM64: 0.0186 | AN64: 160.9321209 | AO64: 0.0076 | AP64: 105.0398236 | AQ64: 0.002248749635 | AR64: 0.08101235376 | AS64: 158.6094087 | AT64: 0.01410673561 | AU64: 0.7329171478 | AV64: 159.1574643 | AW64: 0 | AX64: 0.1471731722 | AY64: 88.54624052 | AZ64: ='3.3.Variacao_mensal_IEE'!CN52 -> -0.002819789797 | BA64: 0.4825619649
A65: 2018-03-01 | B65: =B64*(1+C65) -> 136.3941934 | C65: 0.0007 | D65: 0.3419850868 | E65: =E64*(1+F65) -> 130.8484533 | F65: 0.0064 | G65: 0.8090320753 | H65: =H64*(1+I65) -> 131.0075294 | I65: 0.0056 | J65: 0.8174912545 | K65: =K64*(1+L65) -> 138.3730266 | L65: 0.0024 | M65: 0.4981437069 | N65: =N64*(1+O65) -> 148.1524899 | O65: 0.0003 | P65: 0.346341509 | Q65: =Q64*(1+R65) -> 128.1851454 | R65: 0.005 | S65: 0.6825596249 | T65: =T64*(1+U65) -> 137.7015865 | U65: 0.0023 | V65: 0.5057388246 | W65: =W64*(1+X65) -> 173.1815271 | X65: 0.0053 | Y65: 0.2962858867 | Z65: =Z64*(1+AA65) -> 137.4333556 | AA65: 0.0009 | AB65: 0.3147222322 | AC65: =AC64*(1+AD65) -> 138.0638262 | AD65: 0.001 | AE65: 0.3387885132 | AF65: =AF64*(1+AG65) -> 85.29318473 | AG65: -0.013 | AH65: =AH64*(1+AI65) -> 126.2483102 | AI65: 0 | AJ65: =AJ64*(1+AK65) -> 102.45456 | AK65: 0 | AL65: =AL64*(1+AM65) -> 157.752002 | AM65: 0.0044 | AN65: =AN64*(1+AO65) -> 160.481511 | AO65: -0.0028 | AP65: 104.6653516 | AQ65: -0.003565047264 | AR65: 0.08488000224 | AS65: 158.8438056 | AT65: 0.001477824626 | AU65: 0.7303599793 | AV65: 159.1574643 | AW65: 0 | AX65: 0.1471731722 | AY65: 91.91561582 | AZ65: ='3.3.Variacao_mensal_IEE'!CN53 -> 0.0380521554 | BA65: 0.4282152946
A66: 2018-04-01 | B66: 136.6806212 | C66: 0.0021 | D66: =B$122/B66-1 -> 0.3391728238 | E66: 131.5942894 | F66: 0.0057 | G66: 0.7987790348 | H66: 132.2258994 | I66: 0.0093 | J66: 0.8007443322 | K66: 138.7743084 | L66: 0.0029 | M66: 0.4938116531 | N66: 148.5525017 | O66: 0.0027 | P66: =N$122/N66-1 -> 0.3427161753 | Q66: 128.5825193 | R66: 0.0031 | S66: =Q$122/Q66-1 -> 0.6773598095 | T66: 138.087151 | U66: 0.0028 | V66: 0.5015345279 | W66: 174.082071 | X66: 0.0052 | Y66: =W$122/W66-1 -> 0.2895800703 | Z66: 137.735709 | AA66: 0.0022 | AB66: =Z$122/Z66-1 -> 0.3118361925 | AC66: 138.3537602 | AD66: 0.0021 | AE66: 0.335982949 | AF66: 85.29318473 | AG66: 0 | AH66: 126.2483102 | AI66: 0 | AJ66: 102.45456 | AK66: 0 | AL66: 158.935142 | AM66: 0.0075 | AN66: 164.5737895 | AO66: 0.0255 | AP66: =AVERAGE(AF66,AH66,AJ66) -> 104.6653516 | AQ66: 0 | AR66: =AP$122/AP66-1 -> 0.08488000224 | AS66: =0.4*AN66+0.6*AL66 -> 161.190601 | AT66: 0.01477423317 | AU66: =AS$122/AS66-1 -> 0.7051674379 | AV66: 159.1574643 | AW66: 0 | AX66: 0.1471731722 | AY66: 91.74472358 | AZ66: ='3.3.Variacao_mensal_IEE'!CN54 -> -0.001859229748 | BA66: 0.4308756211
A67: 2018-05-01 | B67: 137.2683479 | C67: 0.0043 | D67: 0.333439036 | E67: 133.4102906 | F67: 0.0138 | G67: 0.7742937807 | H67: 134.3944042 | I67: 0.0164 | J67: 0.7716886385 | K67: 139.0934893 | L67: 0.0023 | M67: 0.4903837704 | N67: 148.7010542 | O67: 0.001 | P67: 0.3413748005 | Q67: 129.0839912 | R67: 0.0039 | S67: 0.6708435198 | T67: 138.5014124 | U67: 0.003 | V67: 0.4970433977 | W67: 174.9872978 | X67: 0.0052 | Y67: 0.2829089438 | Z67: 138.2866518 | AA67: 0.004 | AB67: 0.3066097535 | AC67: 138.5474555 | AD67: 0.0014 | AE67: 0.3341151878 | AF67: 85.29318473 | AG67: 0 | AH67: 126.2483102 | AI67: 0 | AJ67: 102.45456 | AK67: 0 | AL67: 163.2263909 | AM67: 0.027 | AN67: 168.9679097 | AO67: 0.0267 | AP67: 104.6653516 | AQ67: =AP67/AP66-1 -> 0 | AR67: 0.08488000224 | AS67: 165.5229984 | AT67: =AS67/AS66-1 -> 0.02687748135 | AU67: 0.6605364018 | AV67: 159.1574643 | AW67: 0 | AX67: =AV$122/AV67-1 -> 0.1471731722 | AY67: 90.89698537 | AZ67: ='3.3.Variacao_mensal_IEE'!CN55 -> -0.00924018489 | BA67: 0.4442204854
A68: 2018-06-01 | B68: 139.2312852 | C68: 0.0143 | D68: 0.3146396884 | E68: 135.9050631 | F68: 0.0187 | G68: 0.7417235503 | H68: 136.3834413 | I68: 0.0148 | J68: 0.7458500577 | K68: 140.4426961 | L68: 0.0097 | M68: 0.4760659309 | N68: 150.366506 | O68: 0.0112 | P68: 0.3265178011 | Q68: 130.1037547 | R68: 0.0079 | S68: 0.657747316 | T68: 139.5540232 | U68: 0.0076 | V68: =T$122/T68-1 -> 0.4857516849 | W68: 175.8972318 | X68: 0.0052 | Y68: 0.2762723277 | Z68: 140.0290636 | AA68: 0.0126 | AB68: 0.2903513268 | AC68: 140.0853322 | AD68: 0.0111 | AE68: 0.319469081 | AF68: 85.42112451 | AG68: 0.0015 | AH68: 126.2483102 | AI68: 0 | AJ68: 102.45456 | AK68: 0 | AL68: 174.0972685 | AM68: 0.0666 | AN68: 164.8788863 | AO68: -0.0242 | AP68: 104.7079982 | AQ68: 0.0004074566387 | AR68: 0.08443814072 | AS68: 170.4099156 | AT68: 0.02952409793 | AU68: 0.6129164972 | AV68: =AV67*(1+AW68) -> 159.1574643 | AW68: 0 | AX68: 0.1471731722 | AY68: 118.632262 | AZ68: ='3.3.Variacao_mensal_IEE'!CN56 -> 0.3051286745 | BA68: 0.1065732549
A69: 2018-07-01 | B69: 139.5793635 | C69: 0.0025 | D69: 0.3113612852 | E69: 136.5981789 | F69: 0.0051 | G69: 0.7328858325 | H69: 136.9835285 | I69: 0.0044 | J69: 0.738201969 | K69: 141.2993966 | L69: 0.0061 | M69: =K$122/K69-1 -> 0.4671165201 | N69: 150.7123489 | O69: 0.0023 | P69: 0.3234738114 | Q69: 131.5088753 | R69: 0.0108 | S69: 0.6400349386 | T69: 140.5588121 | U69: 0.0072 | V69: 0.4751307435 | W69: 176.8470768 | X69: 0.0054 | Y69: 0.2694174733 | Z69: 140.4911595 | AA69: 0.0033 | AB69: 0.2861071731 | AC69: 140.9818784 | AD69: 0.0064 | AE69: 0.3110781806 | AF69: 85.43820873 | AG69: 0.0002 | AH69: 126.2483102 | AI69: 0 | AJ69: 102.45456 | AK69: 0 | AL69: 170.754601 | AM69: -0.0192 | AN69: 160.5260837 | AO69: -0.0264 | AP69: 104.713693 | AQ69: 5.438688285e-05 | AR69: 0.08437916472 | AS69: 166.663194 | AT69: -0.02198652325 | AU69: 0.6491761469 | AV69: 159.1574643 | AW69: 0 | AX69: 0.1471731722 | AY69: 126.1836069 | AZ69: ='3.3.Variacao_mensal_IEE'!CN57 -> 0.06365338326 | BA69: 0.0403513704
A70: 2018-08-01 | B70: 139.5793635 | C70: 0 | D70: 0.3113612852 | E70: 137.5543661 | F70: 0.007 | G70: 0.7208399529 | H70: 137.9150165 | I70: 0.0068 | J70: 0.7264620272 | K70: 141.5113457 | L70: 0.0015 | M70: 0.4649191414 | N70: 150.7123489 | O70: 0 | P70: 0.3234738114 | Q70: 131.9428545 | R70: 0.0033 | S70: 0.6346406246 | T70: 140.9664327 | U70: 0.0029 | V70: 0.4708652344 | W70: 177.8551051 | X70: 0.0057 | Y70: 0.2622228034 | Z70: 140.3647175 | AA70: -0.0009 | AB70: 0.2872657123 | AC70: 141.1651548 | AD70: 0.0013 | AE70: 0.3093759918 | AF70: 85.43820873 | AG70: 0 | AH70: 126.2483102 | AI70: 0 | AJ70: 102.45456 | AK70: 0 | AL70: 168.4835648 | AM70: -0.0133 | AN70: 161.1842406 | AO70: 0.0041 | AP70: 104.713693 | AQ70: 0 | AR70: 0.08437916472 | AS70: 165.5638351 | AT70: -0.00659629107 | AU70: 0.6601268266 | AV70: 166.017151 | AW70: 0.0431 | AX70: 0.0997729577 | AY70: 129.2427081 | AZ70: ='3.3.Variacao_mensal_IEE'!CN58 -> 0.02424325435 | BA70: 0.01572684612
A71: 2018-09-01 | B71: 139.9981015 | C71: 0.003 | D71: 0.3074389683 | E71: 139.6451925 | F71: 0.0152 | G71: 0.6950748157 | H71: 140.3836953 | I71: 0.0179 | J71: =H$122/H71-1 -> 0.6961018049 | K71: 141.8368218 | L71: 0.0023 | M71: 0.461557559 | N71: 150.8027763 | O71: 0.0006 | P71: 0.3226802032 | Q71: 132.5234031 | R71: 0.0044 | S71: 0.6274797138 | T71: 141.2060756 | U71: 0.0017 | V71: 0.4683690071 | W71: 178.6910241 | X71: 0.0047 | Y71: 0.2563181083 | Z71: 141.0384681 | AA71: 0.0048 | AB71: 0.2811163538 | AC71: 141.2922034 | AD71: 0.0009 | AE71: 0.3081986131 | AF71: 85.43820873 | AG71: 0 | AH71: 126.2483102 | AI71: 0 | AJ71: 102.45456 | AK71: 0 | AL71: 174.026674 | AM71: 0.0329 | AN71: 170.968124 | AO71: 0.0607 | AP71: 104.713693 | AQ71: 0 | AR71: 0.08437916472 | AS71: 172.803254 | AT71: 0.04372584705 | AU71: 0.590577479 | AV71: 166.017151 | AW71: 0 | AX71: 0.0997729577 | AY71: 120.9744887 | AZ71: ='3.3.Variacao_mensal_IEE'!CN59 -> -0.06397435897 | BA71: 0.08514852756
A72: 2018-10-01 | B72: 140.5580939 | C72: 0.004 | D72: 0.3022300481 | E72: 140.8880347 | F72: 0.0089 | G72: =E$122/E72-1 -> 0.6801217322 | H72: 140.7486929 | I72: 0.0026 | J72: 0.6917033761 | K72: 142.3332506 | L72: 0.0035 | M72: 0.4564599492 | N72: 151.0440608 | O72: 0.0016 | P72: 0.3205672956 | Q72: 133.2787865 | R72: 0.0057 | S72: 0.6182556566 | T72: 141.6720557 | U72: 0.0033 | V72: 0.4635393273 | W72: 179.6559557 | X72: 0.0054 | Y72: 0.2495704279 | Z72: 141.6731412 | AA72: 0.0045 | AB72: 0.2753771566 | AC72: 142.1116982 | AD72: 0.0058 | AE72: 0.3006548151 | AF72: 85.43820873 | AG72: 0 | AH72: 126.2483102 | AI72: 0 | AJ72: 102.45456 | AK72: 0 | AL72: 176.2194101 | AM72: 0.0126 | AN72: 175.6868442 | AO72: 0.0276 | AP72: 104.713693 | AQ72: 0 | AR72: 0.08437916472 | AS72: 176.0063838 | AT72: 0.01853628141 | AU72: 0.5616306538 | AV72: 166.017151 | AW72: 0 | AX72: 0.0997729577 | AY72: 118.7068829 | AZ72: ='3.3.Variacao_mensal_IEE'!CN60 -> -0.01874449616 | BA72: 0.1058776469
A73: 2018-11-01 | B73: 140.2066987 | C73: -0.0025 | D73: 0.3054937826 | E73: 140.1976834 | F73: -0.0049 | G73: 0.6883948671 | H73: 139.1441578 | I73: -0.0114 | J73: 0.7112111836 | K73: 142.5182839 | L73: 0.0013 | M73: 0.4545690095 | N73: 151.0440608 | O73: 0 | P73: 0.3205672956 | Q73: 133.665295 | R73: 0.0029 | S73: 0.6135762854 | T73: 142.040403 | U73: 0.0026 | V73: 0.4597439929 | W73: 180.5362699 | X73: 0.0049 | Y73: 0.2434773887 | Z73: 141.3756276 | AA73: -0.0021 | AB73: 0.2780610849 | AC73: 142.3817105 | AD73: 0.0019 | AE73: 0.2981882574 | AF73: 85.43820873 | AG73: 0 | AH73: 126.2483102 | AI73: 0 | AJ73: 102.45456 | AK73: 0 | AL73: 171.2500228 | AM73: -0.0282 | AN73: 174.4218989 | AO73: -0.0072 | AP73: 104.713693 | AQ73: 0 | AR73: 0.08437916472 | AS73: 172.5187732 | AT73: -0.0198152502 | AU73: 0.5932003167 | AV73: 166.017151 | AW73: 0 | AX73: 0.0997729577 | AY73: 111.9618349 | AZ73: ='3.3.Variacao_mensal_IEE'!CN61 -> -0.05682103581 | BA73: 0.1725003301
A74: 2018-12-01 | B74: 140.4029881 | C74: 0.0014 | D74: 0.3036686465 | E74: 138.6835484 | F74: -0.0108 | G74: 0.7068286162 | H74: 138.5180091 | I74: -0.0045 | J74: 0.7189464426 | K74: 142.7035576 | L74: 0.0013 | M74: 0.4526805248 | N74: 151.1346872 | O74: 0.0006 | P74: 0.3197754303 | Q74: 133.9727252 | R74: 0.0023 | S74: 0.6098735761 | T74: 142.2250556 | U74: 0.0013 | V74: 0.4578487895 | W74: 181.4208976 | X74: 0.0049 | Y74: 0.2374140598 | Z74: 141.5876911 | AA74: 0.0015 | AB74: 0.2761468646 | AC74: 142.1538997 | AD74: -0.0016 | AE74: =AC$122/AC74-1 -> 0.3002686873 | AF74: 85.43820873 | AG74: 0 | AH74: 126.2483102 | AI74: 0 | AJ74: 102.45456 | AK74: 0 | AL74: 164.4171469 | AM74: -0.0399 | AN74: 167.2182745 | AO74: -0.0413 | AP74: 104.713693 | AQ74: 0 | AR74: 0.08437916472 | AS74: 165.5375979 | AT74: -0.04046617759 | AU74: 0.6603899513 | AV74: 166.017151 | AW74: 0 | AX74: 0.0997729577 | AY74: 112.5413201 | AZ74: ='3.3.Variacao_mensal_IEE'!CN62 -> 0.005175739461 | BA74: 0.1664630214
A75: 2019-01-01 | B75: 140.9084388 | C75: 0.0036 | D75: 0.2989922743 | E75: 138.6974167 | F75: 0.0001 | G75: 0.7066579504 | H75: 138.6149717 | I75: 0.0007 | J75: 0.7177440218 | K75: 143.4028051 | L75: 0.0049 | M75: 0.445597099 | N75: 151.739226 | O75: 0.004 | P75: 0.3145173609 | Q75: 134.7765615 | R75: 0.006 | S75: 0.6002719445 | T75: 142.7939558 | U75: 0.004 | V75: 0.452040627 | W75: 182.4005704 | X75: 0.0054 | Y75: 0.2307679131 | Z75: 142.0407717 | AA75: 0.0032 | AB75: 0.2720762206 | AC75: 142.5803614 | AD75: 0.003 | AE75: 0.2963795487 | AF75: 85.711611 | AG75: 0.0032 | AH75: 126.2483102 | AI75: 0 | AJ75: 102.45456 | AK75: 0 | AL75: 161.1616874 | AM75: -0.0198 | AN75: 163.4056979 | AO75: -0.0228 | AP75: 104.8048271 | AQ75: 0.0008703168299 | AR75: 0.08343623193 | AS75: 162.0592916 | AT75: -0.02101218341 | AU75: 0.6960271856 | AV75: 166.017151 | AW75: 0 | AX75: 0.0997729577 | AY75: 111.4413715 | AZ75: ='3.3.Variacao_mensal_IEE'!CN63 -> -0.009773731423 | BA75: 0.1779762449
A76: 2019-02-01 | B76: 141.6693444 | C76: 0.0054 | D76: 0.2920153912 | E76: 139.917954 | F76: 0.0088 | G76: 0.6917703711 | H76: 140.3476588 | I76: 0.0125 | J76: 0.6965373055 | K76: 143.5318676 | L76: 0.0009 | M76: 0.4442972315 | N76: 151.7999217 | O76: 0.0004 | P76: 0.3139917642 | Q76: 134.9787264 | R76: 0.0015 | S76: 0.5978751318 | T76: 143.0652643 | U76: 0.0019 | V76: 0.4492869817 | W76: 183.2943332 | X76: 0.0049 | Y76: 0.224766557 | Z76: 142.651547 | AA76: 0.0043 | AB76: 0.2666297129 | AC76: 143.0651346 | AD76: 0.0034 | AE76: 0.2919867936 | AF76: 85.711611 | AG76: 0 | AH76: 126.2483102 | AI76: 0 | AJ76: 102.45456 | AK76: 0 | AL76: 160.3397628 | AM76: -0.0051 | AN76: 164.3534509 | AO76: 0.0058 | AP76: 104.8048271 | AQ76: 0 | AR76: 0.08343623193 | AS76: 161.945238 | AT76: -0.0007037766436 | AU76: 0.6972216506 | AV76: 166.017151 | AW76: 0 | AX76: 0.0997729577 | AY76: 113.601147 | AZ76: ='3.3.Variacao_mensal_IEE'!CN64 -> 0.01938037396 | BA76: 0.1555806595
A77: 2019-03-01 | B77: 142.7601984 | C77: 0.0077 | D77: 0.2821428909 | E77: 141.6809202 | F77: 0.0126 | G77: 0.6707193078 | H77: 141.8493788 | I77: 0.0107 | J77: 0.6785765365 | K77: 143.9768164 | L77: 0.0031 | M77: 0.4398337469 | N77: 151.9820816 | O77: 0.0012 | P77: 0.3124168639 | Q77: 135.7076115 | R77: 0.0054 | S77: 0.5892929499 | T77: 143.3370883 | U77: 0.0019 | V77: 0.4465385584 | W77: 184.1558166 | X77: 0.0047 | Y77: 0.2190370827 | Z77: 143.7214336 | AA77: 0.0075 | AB77: 0.2572007076 | AC77: 143.8376864 | AD77: 0.0054 | AE77: 0.2850475369 | AF77: 85.00020463 | AG77: -0.0083 | AH77: 126.2483102 | AI77: 0 | AJ77: 102.45456 | AK77: 0 | AL77: 164.4765286 | AM77: 0.0258 | AN77: 167.4268604 | AO77: 0.0187 | AP77: 104.5676916 | AQ77: -0.002262638695 | AR77: 0.08589321594 | AS77: 165.6566614 | AT77: 0.02291776767 | AU77: 0.6591965691 | AV77: 166.017151 | AW77: 0 | AX77: 0.0997729577 | AY77: 106.8492431 | AZ77: ='3.3.Variacao_mensal_IEE'!CN65 -> -0.0594351733 | BA77: 0.2286028849
A78: 2019-04-01 | B78: 143.6167596 | C78: 0.006 | D78: 0.2744959154 | E78: 142.9843847 | F78: 0.0092 | G78: 0.6554888108 | H78: 143.1260232 | I78: 0.009 | J78: 0.6636040996 | K78: 144.5239283 | L78: 0.0038 | M78: 0.4343830911 | N78: 152.2860457 | O78: 0.002 | P78: 0.3097972694 | Q78: 136.4947156 | R78: 0.0058 | S78: 0.5801282063 | T78: 144.03944 | U78: 0.0049 | V78: 0.4394850815 | W78: 185.1134268 | X78: 0.0052 | Y78: 0.2127308821 | Z78: 144.5406458 | AA78: 0.0057 | AB78: 0.2500752785 | AC78: 144.8733177 | AD78: 0.0072 | AE78: 0.2758613353 | AF78: 85.00020463 | AG78: 0 | AH78: 126.2483102 | AI78: 0 | AJ78: 102.45456 | AK78: 0 | AL78: 168.5390989 | AM78: 0.0247 | AN78: 170.0387195 | AO78: 0.0156 | AP78: 104.5676916 | AQ78: 0 | AR78: 0.08589321594 | AS78: 169.1389471 | AT78: 0.02102110314 | AU78: 0.625036509 | AV78: 166.017151 | AW78: 0 | AX78: 0.0997729577 | AY78: 106.9178682 | AZ78: ='3.3.Variacao_mensal_IEE'!CN66 -> 0.0006422607579 | BA78: 0.227814308
A79: 2019-05-01 | B79: 143.8321847 | C79: 0.0015 | D79: 0.2725870349 | E79: 143.6278144 | F79: 0.0045 | G79: 0.6480724846 | H79: 143.6985273 | I79: 0.004 | J79: 0.6569761949 | K79: 144.5672855 | L79: 0.0003 | M79: 0.4339529053 | N79: 152.3012743 | O79: 0.0001 | P79: 0.3096663028 | Q79: 136.5766125 | R79: 0.0006 | S79: 0.5791806978 | T79: 144.1690755 | U79: 0.0009 | V79: 0.4381907099 | W79: 186.1130393 | X79: 0.0054 | Y79: 0.2062173086 | Z79: 144.7285486 | AA79: 0.0013 | AB79: 0.2484522905 | AC79: 145.3803743 | AD79: 0.0035 | AE79: 0.2714113954 | AF79: 85.00020463 | AG79: 0 | AH79: 126.2483102 | AI79: 0 | AJ79: 102.45456 | AK79: 0 | AL79: 173.3087554 | AM79: 0.0283 | AN79: 173.7285597 | AO79: 0.0217 | AP79: 104.5676916 | AQ79: 0 | AR79: 0.08589321594 | AS79: 173.4766771 | AT79: 0.02564595593 | AU79: 0.58440298 | AV79: 166.017151 | AW79: 0 | AX79: 0.0997729577 | AY79: 109.1449151 | AZ79: ='3.3.Variacao_mensal_IEE'!CN67 -> 0.02082951135 | BA79: 0.2027613762
A80: 2019-06-01 | B80: 143.8465679 | C80: 0.0001 | D80: 0.2724597889 | E80: 144.7768369 | F80: 0.008 | G80: 0.6349925442 | H80: 144.603828 | I80: 0.0063 | J80: 0.6466025985 | K80: 145.8394776 | L80: 0.0088 | M80: 0.4214441963 | N80: 154.6924043 | O80: 0.0157 | P80: 0.2894223715 | Q80: 136.6995314 | R80: 0.0009 | S80: 0.5777607132 | T80: 144.8034195 | U80: 0.0044 | V80: 0.4318903922 | W80: 186.9877706 | X80: 0.0047 | Y80: 0.200574608 | Z80: 144.7430215 | AA80: 0.0001 | AB80: 0.2483274578 | AC80: 145.4676025 | AD80: 0.0006 | AE80: 0.270649006 | AF80: 85.00020463 | AG80: 0 | AH80: 126.2483102 | AI80: 0 | AJ80: 102.45456 | AK80: 0 | AL80: 168.8720512 | AM80: -0.0256 | AN80: 172.5298326 | AO80: -0.0069 | AP80: 104.5676916 | AQ80: 0 | AR80: 0.08589321594 | AS80: 170.3351638 | AT80: -0.01810913928 | AU80: 0.6136243277 | AV80: 166.017151 | AW80: 0 | AX80: 0.0997729577 | AY80: 117.6567101 | AZ80: ='3.3.Variacao_mensal_IEE'!CN68 -> 0.0779861801 | BA80: 0.1157484191
A81: 2019-07-01 | B81: 143.9904145 | C81: 0.001 | D81: 0.2711886003 | E81: 145.3559443 | F81: 0.004 | G81: 0.6284786297 | H81: 144.5893676 | I81: -0.0001 | J81: 0.6467672752 | K81: 146.6853465 | L81: 0.0058 | M81: 0.4132473616 | N81: 155.9918205 | O81: 0.0084 | P81: 0.2786814474 | Q81: 137.0549502 | R81: 0.0026 | S81: 0.5736691733 | T81: 146.1211306 | U81: 0.0091 | V81: 0.4189776951 | W81: 188.0536009 | X81: 0.0057 | Y81: 0.1937701183 | Z81: 145.0180332 | AA81: 0.0019 | AB81: 0.2459601335 | AC81: 145.5985234 | AD81: 0.0009 | AE81: 0.2695064502 | AF81: 84.79620414 | AG81: -0.0024 | AH81: 128.5586543 | AI81: 0.0183 | AJ81: 102.45456 | AK81: 0 | AL81: 163.7214537 | AM81: -0.0305 | AN81: 169.2172598 | AO81: -0.0192 | AP81: 105.2698061 | AQ81: 0.00671444992 | AR81: 0.07865067004 | AS81: 165.9197761 | AT81: -0.02592176245 | AU81: 0.6565654231 | AV81: 166.017151 | AW81: 0 | AX81: 0.0997729577 | AY81: 125.6236875 | AZ81: ='3.3.Variacao_mensal_IEE'!CN69 -> 0.06771375262 | BA81: 0.04498833731
A82: 2019-08-01 | B82: 144.163203 | C82: 0.0012 | D82: 0.2696650023 | E82: 144.3820594 | F82: -0.0067 | G82: 0.639463032 | H82: 143.8519618 | I82: -0.0051 | J82: 0.6552088403 | K82: 147.301425 | L82: 0.0042 | M82: 0.4073365481 | N82: 157.0681641 | O82: 0.0069 | P82: 0.2699190062 | Q82: 137.1920051 | R82: 0.001 | S82: 0.5720970763 | T82: 146.6179424 | U82: 0.0034 | V82: 0.4141695188 | W82: 188.9938689 | X82: 0.005 | Y82: 0.1878309635 | Z82: 145.1775531 | AA82: 0.0011 | AB82: 0.2445910833 | AC82: 145.7150022 | AD82: 0.0008 | AE82: 0.2684916569 | AF82: 84.08391603 | AG82: -0.0084 | AH82: 129.2143034 | AI82: 0.0051 | AJ82: 102.45456 | AK82: 0 | AL82: 162.739125 | AM82: -0.006 | AN82: 167.9142869 | AO82: -0.0077 | AP82: 105.2509265 | AQ82: -0.0001793454364 | AR82: 0.07884415581 | AS82: 164.8091897 | AT82: -0.006693514296 | AU82: 0.6677283869 | AV82: 179.9293883 | AW82: 0.0838 | AX82: 0.01473792 | AY82: 125.9442655 | AZ82: ='3.3.Variacao_mensal_IEE'!CN70 -> 0.002551891375 | BA82: 0.04232842839
A83: 2019-09-01 | B83: 144.0911214 | C83: -0.0005 | D83: 0.2703001524 | E83: 144.3676212 | F83: -0.0001 | G83: 0.6396269947 | H83: 144.5712217 | I83: 0.005 | J83: 0.6469739705 | K83: 147.9790115 | L83: 0.0046 | M83: 0.4008924429 | N83: 158.0734003 | O83: 0.0064 | P83: 0.2618432097 | Q83: 137.5487043 | R83: 0.0026 | S83: 0.5680202237 | T83: 147.4976501 | U83: 0.006 | V83: 0.4057351081 | W83: 189.8632407 | X83: 0.0046 | Y83: 0.1823919605 | Z83: 145.119482 | AA83: -0.0004 | AB83: 0.245089119 | AC83: 145.8461457 | AD83: 0.0009 | AE83: 0.2673510409 | AF83: 84.34457617 | AG83: 0.0031 | AH83: 129.2143034 | AI83: 0 | AJ83: 102.45456 | AK83: 0 | AL83: 163.0157815 | AM83: 0.0017 | AN83: 172.9349241 | AO83: 0.0299 | AP83: 105.3378132 | AQ83: 0.0008255196997 | AR83: 0.07795428332 | AS83: 166.9834385 | AT83: 0.0131925215 | AU83: 0.6460133208 | AV83: 179.9293883 | AW83: 0 | AX83: 0.01473792 | AY83: 124.1981108 | AZ83: ='3.3.Variacao_mensal_IEE'!CN71 -> -0.01386450362 | BA83: 0.05698297264
A84: 2019-10-01 | B84: 144.1487578 | C84: 0.0004 | D84: 0.2697922355 | E84: 145.3493211 | F84: 0.0068 | G84: 0.6285528354 | H84: 145.3663634 | I84: 0.0055 | J84: 0.6379651621 | K84: 148.2453738 | L84: 0.0018 | M84: 0.3983753672 | N84: 158.0734003 | O84: 0 | P84: 0.2618432097 | Q84: 138.0988992 | R84: 0.004 | S84: 0.5617731312 | T84: 147.6746472 | U84: 0.0012 | V84: 0.4040502478 | W84: 190.7745843 | X84: 0.0048 | Y84: 0.1767435912 | Z84: 145.2646015 | AA84: 0.001 | AB84: 0.2438452737 | AC84: 145.9774072 | AD84: 0.0009 | AE84: 0.2662114506 | AF84: 84.34457617 | AG84: 0 | AH84: 129.2143034 | AI84: 0 | AJ84: 102.45456 | AK84: 0 | AL84: 165.2817008 | AM84: 0.0139 | AN84: 176.0304592 | AO84: 0.0179 | AP84: 105.3378132 | AQ84: 0 | AR84: 0.07795428332 | AS84: 169.5812042 | AT84: 0.01555702588 | AU84: 0.6207985163 | AV84: 179.9293883 | AW84: 0 | AX84: 0.01473792 | AY84: 123.2271747 | AZ84: ='3.3.Variacao_mensal_IEE'!CN72 -> -0.007817639437 | BA84: 0.06531119142
A85: 2019-11-01 | B85: 144.9271611 | C85: 0.0054 | D85: 0.2629721857 | E85: 145.785369 | F85: 0.003 | G85: 0.6236817901 | H85: 146.6019775 | I85: 0.0085 | J85: 0.6241598037 | K85: 148.3046719 | L85: 0.0004 | M85: 0.3978162407 | N85: 158.0734003 | O85: 0 | P85: 0.2618432097 | Q85: 138.2093783 | R85: 0.0008 | S85: 0.5605247114 | T85: 147.8961592 | U85: 0.0015 | V85: 0.4019473268 | W85: 191.4995277 | X85: 0.0038 | Y85: 0.1722888934 | Z85: 146.005451 | AA85: 0.0051 | AB85: 0.2375338511 | AC85: 146.1817756 | AD85: 0.0014 | AE85: 0.2644412329 | AF85: 84.34457617 | AG85: 0 | AH85: 129.2143034 | AI85: 0 | AJ85: 102.45456 | AK85: 0 | AL85: 166.2568629 | AM85: 0.0059 | AN85: 176.1536806 | AO85: 0.0007 | AP85: 105.3378132 | AQ85: 0 | AR85: 0.07795428332 | AS85: 170.21559 | AT85: =AS85/AS84-1 -> 0.003740896596 | AU85: 0.6147578741 | AV85: 179.9293883 | AW85: 0 | AX85: 0.01473792 | AY85: 129.5272348 | AZ85: ='3.3.Variacao_mensal_IEE'!CN73 -> 0.05112557404 | BA85: 0.01349564479
A86: 2019-12-01 | B86: 146.6952725 | C86: 0.0122 | D86: 0.2477496401 | E86: 148.8322832 | F86: 0.0209 | G86: 0.5904415614 | H86: 149.1528519 | I86: 0.0174 | J86: 0.596382744 | K86: 148.6161117 | L86: 0.0021 | M86: 0.3948869781 | N86: 158.5792352 | O86: 0.0032 | P86: 0.2578181915 | Q86: 138.3061248 | R86: 0.0007 | S86: 0.5594331082 | T86: 148.1032138 | U86: 0.0014 | V86: 0.3999873446 | W86: 192.2080759 | X86: 0.0037 | Y86: 0.167967414 | Z86: 147.6845137 | AA86: 0.0115 | AB86: 0.2234640149 | AC86: 147.7166843 | AD86: 0.0105 | AE86: 0.2513025561 | AF86: 84.34457617 | AG86: 0 | AH86: 129.2143034 | AI86: 0 | AJ86: 102.45456 | AK86: 0 | AL86: 170.1638992 | AM86: 0.0235 | AN86: 177.9152174 | AO86: 0.01 | AP86: 105.3378132 | AQ86: 0 | AR86: 0.07795428332 | AS86: 173.2644264 | AT86: 0.0179116172 | AU86: 0.5863438896 | AV86: 179.9293883 | AW86: 0 | AX86: 0.01473792 | AY86: 121.5407186 | AZ86: ='3.3.Variacao_mensal_IEE'!CN74 -> -0.06165897209 | BA86: 0.08009307346
A87: 2020-01-01 | B87: 146.9739935 | C87: 0.0019 | D87: 0.2453834116 | E87: 149.5466782 | F87: 0.0048 | G87: 0.5828439107 | H87: 149.2870894 | I87: 0.0009 | J87: 0.5949472914 | K87: 149.180853 | L87: 0.0038 | M87: 0.3896064735 | N87: 158.6743828 | O87: 0.0006 | P87: 0.2570639531 | Q87: 139.3572514 | R87: 0.0076 | S87: 0.5476708101 | T87: 148.4882822 | U87: 0.0026 | V87: 0.3963568168 | W87: 192.9384666 | X87: 0.0038 | Y87: 0.1635459394 | Z87: 147.9946512 | AA87: 0.0021 | AB87: 0.2209001246 | AC87: 148.7654727 | AD87: 0.0071 | AE87: 0.2424809414 | AF87: 84.34457617 | AG87: 0 | AH87: 129.2143034 | AI87: 0 | AJ87: 102.45456 | AK87: 0 | AL87: 171.3890792 | AM87: 0.0072 | AN87: 181.313398 | AO87: 0.0191 | AP87: 105.3378132 | AQ87: 0 | AR87: 0.07795428332 | AS87: 175.3588067 | AT87: 0.01208776867 | AU87: 0.5673975506 | AV87: 179.9293883 | AW87: 0 | AX87: 0.01473792 | AY87: 121.5407186 | AZ87: ='3.3.Variacao_mensal_IEE'!CN75 -> 0 | BA87: 0.08009307346
A88: 2020-02-01 | B88: 147.2238493 | C88: 0.0017 | D88: 0.2432698528 | E88: 149.4868595 | F88: -0.0004 | G88: 0.5834773016 | H88: 149.3020181 | I88: 0.0001 | J88: 0.5947878126 | K88: 149.6731498 | L88: 0.0033 | M88: 0.3850358552 | N88: 159.007599 | O88: 0.0021 | P88: 0.2544296508 | Q88: 140.0122305 | R88: 0.0047 | S88: 0.5404307854 | T88: 149.0079912 | U88: 0.0035 | V88: 0.3914866137 | W88: 193.4979882 | X88: 0.0029 | Y88: 0.1601814133 | Z88: 148.3646378 | AA88: 0.0025 | AB88: 0.2178554859 | AC88: 149.0927568 | AD88: 0.0022 | AE88: 0.2397534837 | AF88: 85.01089832 | AG88: 0.0079 | AH88: 129.2143034 | AI88: 0 | AJ88: 102.45456 | AK88: 0 | AL88: 170.5492727 | AM88: -0.0049 | AN88: 178.7931418 | AO88: -0.0139 | AP88: 105.5599206 | AQ88: 0.002108524728 | AR88: 0.07568617242 | AS88: 173.8468204 | AT88: -0.00862224381 | AU88: 0.581029573 | AV88: 179.9293883 | AW88: 0 | AX88: 0.01473792 | AY88: 119.1899339 | AZ88: ='3.3.Variacao_mensal_IEE'!CN76 -> -0.01934154068 | BA88: 0.1013957645
A89: 2020-03-01 | B89: 147.4888522 | C89: 0.0018 | D89: 0.2410359881 | E89: 151.3404966 | F89: 0.0124 | G89: 0.5640826764 | H89: 151.7505712 | I89: 0.0164 | J89: 0.5690553056 | K89: 150.0623 | L89: 0.0026 | M89: 0.3814441005 | N89: 159.3415149 | O89: 0.0021 | P89: 0.251800869 | Q89: 140.4462684 | R89: 0.0031 | S89: 0.5356702077 | T89: 149.5742216 | U89: 0.0038 | V89: 0.3862189816 | W89: 194.1558813 | X89: 0.0034 | Y89: 0.1562501628 | Z89: 148.468493 | AA89: 0.0007 | AB89: 0.2170035834 | AC89: 149.1225753 | AD89: 0.0002 | AE89: 0.2395055826 | AF89: 85.09590922 | AG89: 0.001 | AH89: 129.2143034 | AI89: 0 | AJ89: 102.45456 | AK89: 0 | AL89: 168.9802194 | AM89: -0.0092 | AN89: 173.339951 | AO89: -0.0305 | AP89: 105.5882575 | AQ89: 0.0002684443674 | AR89: 0.07539748802 | AS89: 170.724112 | AT89: -0.01796241259 | AU89: 0.6099481255 | AV89: 179.9293883 | AW89: 0 | AX89: 0.01473792 | AY89: 119.0393882 | AZ89: ='3.3.Variacao_mensal_IEE'!CN77 -> -0.001263074025 | BA89: 0.1027886682
A90: 2020-04-01 | B90: 147.1496279 | C90: -0.0023 | D90: 0.2438969511 | E90: 152.5512206 | F90: 0.008 | G90: 0.5516693218 | H90: 151.8264465 | I90: 0.0005 | J90: 0.56827117 | K90: 150.392437 | L90: 0.0022 | M90: 0.378411595 | N90: 159.3415149 | O90: 0 | P90: 0.251800869 | Q90: 141.1204105 | R90: 0.0048 | S90: 0.5283342036 | T90: 149.8434552 | U90: 0.0018 | V90: 0.3837282707 | W90: 194.6995178 | X90: 0.0028 | Y90: 0.153021702 | Z90: 148.0082407 | AA90: -0.0031 | AB90: 0.2207880263 | AC90: 149.107663 | AD90: -0.0001 | AE90: 0.2396295456 | AF90: 85.09590922 | AG90: 0 | AH90: 129.2143034 | AI90: 0 | AJ90: 102.45456 | AK90: 0 | AL90: 156.2053148 | AM90: -0.0756 | AN90: 164.4302775 | AO90: -0.0514 | AP90: 105.5882575 | AQ90: 0 | AR90: 0.07539748802 | AS90: 159.4952999 | AT90: -0.06577168281 | AU90: 0.7232919361 | AV90: 179.9293883 | AW90: 0 | AX90: 0.01473792 | AY90: 117.8905756 | AZ90: ='3.3.Variacao_mensal_IEE'!CN78 -> -0.009650692372 | BA90: 0.1135350524
A91: 2020-05-01 | B91: 146.7817538 | C91: -0.0025 | D91: 0.2470144873 | E91: 152.978364 | F91: 0.0028 | G91: 0.5473367788 | H91: 153.4509895 | I91: 0.0107 | J91: 0.551668319 | K91: 150.6932219 | L91: 0.002 | M91: 0.3756602745 | N91: 159.3415149 | O91: 0 | P91: 0.251800869 | Q91: 141.7413403 | R91: 0.0044 | S91: 0.521638992 | T91: 150.1581264 | U91: 0.0021 | V91: 0.3808285308 | W91: 195.1667967 | X91: 0.0024 | Y91: 0.1502610754 | Z91: 147.4458094 | AA91: -0.0038 | AB91: 0.2254447162 | AC91: 148.2279278 | AD91: -0.0059 | AE91: 0.2469867675 | AF91: 85.09590922 | AG91: 0 | AH91: 129.2143034 | AI91: 0 | AJ91: 102.45456 | AK91: 0 | AL91: 145.8801435 | AM91: -0.0661 | AN91: 152.262437 | AO91: -0.074 | AP91: 105.5882575 | AQ91: 0 | AR91: 0.07539748802 | AS91: 148.4330609 | AT91: -0.06935777422 | AU91: 0.8517233459 | AV91: 179.9293883 | AW91: 0 | AX91: 0.01473792 | AY91: 117.7070983 | AZ91: ='3.3.Variacao_mensal_IEE'!CN79 -> -0.00155633563 | BA91: 0.1152707881
A92: 2020-06-01 | B92: 147.2220991 | C92: 0.003 | D92: 0.2432846334 | E92: 155.3648265 | F92: 0.0156 | G92: 0.5235691009 | H92: 155.9062053 | I92: 0.016 | J92: 0.5272325975 | K92: 151.2055788 | L92: 0.0034 | M92: 0.3709988783 | N92: 159.3415149 | O92: 0 | P92: 0.251800869 | Q92: 142.7902262 | R92: 0.0074 | S92: 0.5104615763 | T92: 150.6386324 | U92: 0.0032 | V92: 0.376423974 | W92: 195.5766469 | X92: 0.0021 | Y92: 0.1478505892 | Z92: 147.8291685 | AA92: 0.0026 | AB92: 0.2222668225 | AC92: 148.2575734 | AD92: 0.0002 | AE92: 0.24673742 | AF92: 85.09590922 | AG92: 0 | AH92: 129.2143034 | AI92: 0 | AJ92: 102.45456 | AK92: 0 | AL92: 147.6015292 | AM92: 0.0118 | AN92: 151.1965999 | AO92: -0.007 | AP92: 105.5882575 | AQ92: 0 | AR92: 0.07539748802 | AS92: 149.0395575 | AT92: 0.004085993976 | AU92: 0.8441880048 | AV92: 179.9293883 | AW92: 0 | AX92: 0.01473792 | AY92: 117.9730755 | AZ92: ='3.3.Variacao_mensal_IEE'!CN80 -> 0.002259652901 | BA92: 0.112756345
A93: 2020-07-01 | B93: 147.8698763 | C93: 0.0044 | D93: 0.2378381455 | E93: 158.8294621 | F93: 0.0223 | G93: 0.4903346384 | H93: 159.5544105 | I93: 0.0234 | J93: 0.4923124853 | K93: 152.9746841 | L93: 0.0117 | M93: 0.355143697 | N93: 161.5244937 | O93: 0.0137 | P93: 0.2348829723 | Q93: 144.1324543 | R93: 0.0094 | S93: 0.496395459 | T93: 151.9039969 | U93: 0.0084 | V93: 0.3649583241 | W93: 195.9482426 | X93: 0.0019 | Y93: 0.145673809 | Z93: 148.3613535 | AA93: 0.0036 | AB93: 0.2178824457 | AC93: 148.7023461 | AD93: 0.003 | AE93: 0.2430083948 | AF93: 85.15547635 | AG93: 0.0007 | AH93: 129.2143034 | AI93: 0 | AJ93: 102.45456 | AK93: 0 | AL93: 151.8672134 | AM93: 0.0289 | AN93: 160.4498318 | AO93: 0.0612 | AP93: 105.6081133 | AQ93: 0.0001880484877 | AR93: 0.07519529917 | AS93: 155.3002608 | AT93: 0.04200699054 | AU93: 0.7698422578 | AV93: 179.9293883 | AW93: 0 | AX93: 0.01473792 | AY93: 117.7287585 | AZ93: ='3.3.Variacao_mensal_IEE'!CN81 -> -0.002070956138 | BA93: 0.1150655969
A94: 2020-08-01 | B94: 148.4022078 | C94: 0.0036 | D94: 0.233397913 | E94: 163.1813893 | F94: 0.0274 | G94: 0.4505885132 | H94: 165.7291662 | I94: 0.0387 | J94: 0.4367117409 | K94: 154.0761018 | L94: 0.0072 | M94: 0.3454564109 | N94: 161.7183231 | O94: 0.0012 | P94: 0.2334028888 | Q94: 146.1791352 | R94: 0.0142 | S94: 0.475444152 | T94: 153.1496097 | U94: 0.0082 | V94: 0.3538566992 | W94: 196.2617597 | X94: 0.0016 | Y94: 0.1438436591 | Z94: 148.7174207 | AA94: 0.0024 | AB94: 0.214966526 | AC94: 149.0443615 | AD94: 0.0023 | AE94: 0.2401560359 | AF94: 85.23211628 | AG94: 0.0009 | AH94: 129.2143034 | AI94: 0 | AJ94: 114.9335254 | AK94: 0.1218 | AL94: 157.0610721 | AM94: 0.0342 | AN94: 164.4450326 | AO94: 0.0249 | AP94: 109.793315 | AQ94: 0.03962954786 | AR94: 0.03421002355 | AS94: 160.0146563 | AT94: 0.03035664925 | AU94: 0.7176986814 | AV94: 179.9293883 | AW94: 0 | AX94: 0.01473792 | AY94: 118.7930571 | AZ94: ='3.3.Variacao_mensal_IEE'!CN82 -> 0.009040260696 | BA94: 0.105075427
A95: 2020-09-01 | B95: 149.6933071 | C95: 0.0087 | D95: 0.2227599019 | E95: 170.2634616 | F95: 0.0434 | G95: 0.390251594 | H95: 171.1982287 | I95: 0.033 | J95: 0.3908148509 | K95: 155.8633846 | L95: 0.0116 | M95: 0.3300280851 | N95: 161.7183231 | O95: 0 | P95: 0.2334028888 | Q95: 149.8336136 | R95: 0.025 | S95: 0.4394577093 | T95: 154.9108302 | U95: 0.0115 | V95: 0.3384643591 | W95: 196.5757786 | X95: 0.0016 | Y95: 0.1420164328 | Z95: 149.6692122 | AA95: 0.0064 | AB95: 0.2072401888 | AC95: 149.7150612 | AD95: 0.0045 | AE95: 0.2346003344 | AF95: 85.63270723 | AG95: 0.0047 | AH95: 129.2143034 | AI95: 0 | AJ95: 114.9335254 | AK95: 0 | AL95: 161.8671409 | AM95: 0.0306 | AN95: 169.0494935 | AO95: 0.028 | AP95: 109.9268454 | AQ95: 0.001216197138 | AR95: 0.03295374815 | AS95: 164.740082 | AT95: 0.02953120519 | AU95: 0.668427992 | AV95: 179.9293883 | AW95: 0 | AX95: 0.01473792 | AY95: 118.6012695 | AZ95: ='3.3.Variacao_mensal_IEE'!CN83 -> -0.001614468045 | BA95: 0.106862421
A96: 2020-10-01 | B96: 151.0255775 | C96: 0.0089 | D96: 0.2119733392 | E96: 175.7629715 | F96: 0.0323 | G96: 0.3467515199 | H96: 177.4983235 | I96: 0.0368 | J96: 0.3414495089 | K96: 158.5598212 | L96: 0.0173 | M96: 0.3074098939 | N96: 162.1387907 | O96: 0.0026 | P96: 0.2302043575 | Q96: 154.9129731 | R96: 0.0339 | S96: 0.3922600922 | T96: 157.5288232 | U96: 0.0169 | V96: 0.316220237 | W96: 196.8902998 | X96: 0.0016 | Y96: 0.1401921254 | Z96: 150.9563675 | AA96: 0.0086 | AB96: 0.1969464493 | AC96: 151.1223827 | AD96: 0.0094 | AE96: 0.2231031647 | AF96: 88.30444769 | AG96: 0.0312 | AH96: 127.5474389 | AI96: -0.0129 | AJ96: 114.9335254 | AK96: 0 | AL96: 163.3077585 | AM96: 0.0089 | AN96: 168.0351966 | AO96: -0.006 | AP96: 110.261804 | AQ96: 0.003047105094 | AR96: 0.02981579121 | AS96: 165.1987337 | AT96: 0.002784093237 | AU96: 0.6637958293 | AV96: 179.9293883 | AW96: 0 | AX96: 0.01473792 | AY96: 119.0103677 | AZ96: ='3.3.Variacao_mensal_IEE'!CN84 -> 0.003449357165 | BA96: 0.1030575814
A97: 2020-11-01 | B97: 152.4603205 | C97: 0.0095 | D97: 0.2005679437 | E97: 181.5279969 | F97: 0.0328 | G97: 0.3039809449 | H97: 182.1842793 | I97: 0.0264 | J97: 0.3069461311 | K97: 160.5893869 | L97: 0.0128 | M97: 0.2908865461 | N97: 162.4954961 | O97: 0.0022 | P97: 0.227503849 | Q97: 158.6928496 | R97: 0.0244 | S97: 0.3590980986 | T97: 159.5609451 | U97: 0.0129 | V97: 0.2994572387 | W97: 197.1856353 | X97: 0.0015 | Y97: 0.1384843988 | Z97: 152.2998791 | AA97: 0.0089 | AB97: 0.1863875997 | AC97: 152.346474 | AD97: 0.0081 | AE97: 0.2132756321 | AF97: 88.30444769 | AG97: 0 | AH97: 129.6902359 | AI97: 0.0168 | AJ97: 114.9335254 | AK97: 0 | AL97: 165.6920518 | AM97: 0.0146 | AN97: 171.5471322 | AO97: 0.0209 | AP97: 110.9760697 | AQ97: 0.006477906509 | AR97: 0.0231876771 | AS97: 168.0340839 | AT97: 0.01716326841 | AU97: 0.6357215021 | AV97: 185.3992417 | AW97: 0.0304 | AX97: -0.0152 | AY97: 118.9139867 | AZ97: ='3.3.Variacao_mensal_IEE'!CN85 -> -0.0008098538932 | BA97: 0.1039516209
A98: 2020-12-01 | B98: 154.6862412 | C98: 0.0146 | D98: 0.1832918822 | E98: 183.2706657 | F98: 0.0096 | G98: 0.29158176 | H98: 183.5688798 | I98: 0.0076 | J98: 0.2970882603 | K98: 161.7135126 | L98: 0.007 | M98: 0.281913154 | N98: 162.6579915 | O98: 0.001 | P98: 0.2262775715 | Q98: 160.8193338 | R98: 0.0134 | S98: 0.3411269968 | T98: 160.9650814 | U98: 0.0088 | V98: 0.2881217671 | W98: 197.5011323 | X98: 0.0016 | Y98: 0.1366657336 | Z98: 154.3559275 | AA98: 0.0135 | AB98: 0.1705847062 | AC98: 153.9613467 | AD98: 0.0106 | AE98: 0.2005498041 | AF98: 88.30444769 | AG98: 0 | AH98: 129.6902359 | AI98: 0 | AJ98: 114.9335254 | AK98: 0 | AL98: 167.730064 | AM98: 0.0123 | AN98: 174.66929 | AO98: 0.0182 | AP98: 110.9760697 | AQ98: 0 | AR98: 0.0231876771 | AS98: 170.5057544 | AT98: 0.01470933995 | AU98: 0.6120099005 | AV98: 185.3992417 | AW98: 0 | AX98: -0.0152 | AY98: 136.2444047 | AZ98: ='3.3.Variacao_mensal_IEE'!CN86 -> 0.1457391054 | BA98: -0.03647207663
A99: 2021-01-01 | B99: 155.103894 | C99: 0.0027 | D99: 0.1801055971 | E99: 187.9990489 | F99: 0.0258 | G99: 0.259097056 | H99: 188.9107342 | I99: 0.0291 | J99: 0.26041032 | K99: 163.1527629 | L99: 0.0089 | M99: 0.2706047716 | N99: 163.5526105 | O99: 0.0055 | P99: 0.2195699368 | Q99: 162.8456574 | R99: 0.0126 | S99: 0.3244390646 | T99: 162.4620566 | U99: 0.0093 | V99: 0.2762526178 | W99: 197.797384 | X99: 0.0015 | Y99: 0.1349632887 | Z99: 154.7418173 | AA99: 0.0025 | AB99: 0.1676655423 | AC99: 155.1622452 | AD99: 0.0078 | AE99: 0.1912579918 | AF99: 88.30444769 | AG99: 0 | AH99: 129.6902359 | AI99: 0 | AJ99: 114.9335254 | AK99: 0 | AL99: 171.9065426 | AM99: 0.0249 | AN99: 179.0534892 | AO99: 0.0251 | AP99: 110.9760697 | AQ99: 0 | AR99: 0.0231876771 | AS99: 174.7653212 | AT99: 0.0249819535 | AU99: 0.5727202757 | AV99: 185.3992417 | AW99: 0 | AX99: -0.0152 | AY99: 123.2109054 | AZ99: ='3.3.Variacao_mensal_IEE'!CN87 -> -0.09566263925 | BA99: 0.06545186032
A100: 2021-02-01 | B100: 156.3757459 | C100: 0.0082 | D100: 0.1705074361 | E100: 192.7554248 | F100: 0.0253 | G100: 0.2280279489 | H100: 194.0302151 | I100: 0.0271 | J100: 0.2271544348 | K100: 166.2363501 | L100: 0.0189 | M100: 0.247035795 | N100: 163.7488736 | O100: 0.0012 | P100: 0.218108207 | Q100: 168.9523695 | R100: 0.0375 | S100: 0.2765677731 | T100: 164.2004006 | U100: 0.0107 | V100: 0.262741286 | W100: 198.0545206 | X100: 0.0013 | Y100: 0.133489752 | Z100: 156.072597 | AA100: 0.0086 | AB100: 0.1577092428 | AC100: 155.9070239 | AD100: 0.0048 | AE100: 0.1855672689 | AF100: 88.30444769 | AG100: 0 | AH100: 129.6902359 | AI100: 0 | AJ100: 114.9335254 | AK100: 0 | AL100: 182.0490286 | AM100: 0.059 | AN100: 188.6507562 | AO100: 0.0536 | AP100: 110.9760697 | AQ100: 0 | AR100: 0.0231876771 | AS100: 184.6897196 | AT100: 0.05678700068 | AU100: 0.4882093314 | AV100: 185.3992417 | AW100: 0 | AX100: -0.0152 | AY100: 122.7714933 | AZ100: ='3.3.Variacao_mensal_IEE'!CN88 -> -0.003566340798 | BA100: 0.06926522452
A101: 2021-03-01 | B101: 157.7205774 | C101: 0.0086 | D101: 0.1605269048 | E101: 198.4224343 | F101: 0.0294 | G101: 0.1929550698 | H101: 198.2406708 | I101: 0.0217 | J101: 0.2010907652 | K101: 168.3974226 | L101: 0.013 | M101: 0.2310323742 | N101: 164.0108718 | O101: 0.0016 | P101: 0.2161623472 | Q101: 173.1085978 | R101: 0.0246 | S101: 0.2459181858 | T101: 167.4844087 | U101: 0.02 | V101: 0.237981653 | W101: 198.4506296 | X101: 0.002 | Y101: 0.1312272974 | Z101: 157.5240721 | AA101: 0.0093 | AB101: 0.1470417545 | AC101: 157.3569593 | AD101: 0.0093 | AE101: 0.1746430882 | AF101: 88.30444769 | AG101: 0 | AH101: 129.6902359 | AI101: 0 | AJ101: 114.9335254 | AK101: 0 | AL101: 206.2615494 | AM101: 0.133 | AN101: 205.1765624 | AO101: 0.0876 | AP101: 110.9760697 | AQ101: 0 | AR101: 0.0231876771 | AS101: 205.8275546 | AT101: 0.1144505229 | AU101: 0.3353749681 | AV101: 185.3992417 | AW101: 0 | AX101: -0.0152 | AY101: 122.3898776 | AZ101: ='3.3.Variacao_mensal_IEE'!CN89 -> -0.003108341307 | BA101: 0.07259922901
A102: 2021-04-01 | B102: 158.3199155 | C102: 0.0038 | D102: 0.1561335971 | E102: 201.4186131 | F102: 0.0151 | G102: 0.1752094077 | H102: 202.6416137 | I102: 0.0222 | J102: 0.17500564 | K102: 169.9129994 | L102: 0.009 | M102: 0.220051907 | N102: 164.0108718 | O102: 0 | P102: 0.2161623472 | Q102: 176.2072417 | R102: 0.0179 | S102: 0.2240084348 | T102: 169.0755105 | U102: 0.0095 | V102: 0.2263315037 | W102: 198.8673759 | X102: 0.0021 | Y102: 0.1288566984 | Z102: 158.0123967 | AA102: 0.0031 | AB102: 0.1434969141 | AC102: 158.301101 | AD102: 0.006 | AE102: 0.1676372646 | AF102: 88.30444769 | AG102: 0 | AH102: 129.6902359 | AI102: 0 | AJ102: 114.9335254 | AK102: 0 | AL102: 207.004091 | AM102: 0.0036 | AN102: 201.5654549 | AO102: -0.0176 | AP102: 110.9760697 | AQ102: 0 | AR102: 0.0231876771 | AS102: 204.8286366 | AT102: -0.004853179423 | AU102: 0.3418873883 | AV102: 185.3992417 | AW102: 0 | AX102: -0.0152 | AY102: 123.5264629 | AZ102: ='3.3.Variacao_mensal_IEE'!CN90 -> 0.009286595714 | BA102: 0.06273008436
A103: 2021-05-01 | B103: 159.8397867 | C103: 0.0096 | D103: 0.1451402507 | E103: 209.6767762 | F103: 0.041 | G103: 0.1289235425 | H103: 209.5314285 | I103: 0.034 | J103: 0.1363690909 | K103: 173.685068 | L103: 0.0222 | M103: 0.1935549863 | N103: 167.1598806 | O103: 0.0192 | P103: 0.1932519105 | Q103: 180.6300435 | R103: 0.0251 | S103: 0.194038079 | T103: 172.1188697 | U103: 0.018 | V103: 0.2046478425 | W103: 199.4043179 | X103: 0.0027 | Y103: 0.1258169925 | Z103: 159.3238996 | AA103: 0.0083 | AB103: 0.1340840167 | AC103: 158.9976259 | AD103: 0.0044 | AE103: 0.1625221671 | AF103: 88.2073128 | AG103: -0.0011 | AH103: 129.6902359 | AI103: 0 | AJ103: 114.9335254 | AK103: 0 | AL103: 210.5231605 | AM103: 0.017 | AN103: 210.8374659 | AO103: 0.046 | AP103: 110.9436914 | AQ103: -0.0002917592738 | AR103: 0.02348628871 | AS103: 210.6488827 | AT103: 0.02841519719 | AU103: 0.3048109285 | AV103: 185.3992417 | AW103: 0 | AX103: -0.0152 | AY103: 130.3897857 | AZ103: ='3.3.Variacao_mensal_IEE'!CN91 -> 0.05556155836 | BA103: 0.00679119654
A104: 2021-06-01 | B104: 160.7988255 | C104: 0.006 | D104: 0.1383103884 | E104: 210.9348368 | F104: 0.006 | G104: 0.1221904001 | H104: 209.7619131 | I104: 0.0011 | J104: 0.1351204584 | K104: 177.4366655 | L104: 0.0216 | M104: 0.1683192897 | N104: 171.6564814 | O104: 0.0269 | P104: 0.1619942648 | Q104: 183.5923762 | R104: 0.0164 | S104: 0.1747718211 | T104: 176.0776037 | U104: 0.023 | V104: 0.1775638734 | W104: 200.0224712 | X104: 0.0031 | Y104: 0.1223377455 | Z104: 160.1683163 | AA104: 0.0053 | AB104: 0.1281050599 | AC104: 160.3173062 | AD104: 0.0083 | AE104: 0.15295266 | AF104: 88.11028476 | AG104: -0.0011 | AH104: 129.6902359 | AI104: 0 | AJ104: 114.9335254 | AK104: 0 | AL104: 211.9126134 | AM104: 0.0066 | AN104: 215.1596339 | AO104: 0.0205 | AP104: 110.9113487 | AQ104: -0.0002915233932 | AR104: 0.02378474592 | AS104: 213.2114216 | AT104: 0.01216497758 | AU104: 0.2891287067 | AV104: 185.3992417 | AW104: 0 | AX104: -0.0152 | AY104: 141.9286926 | AZ104: ='3.3.Variacao_mensal_IEE'!CN92 -> 0.08849548174 | BA104: -0.07506166683
A105: 2021-07-01 | B105: 162.4389735 | C105: 0.0102 | D105: 0.1268168564 | E105: 212.5801286 | F105: 0.0078 | G105: 0.1135050606 | H105: 212.8034608 | I105: 0.0145 | J105: 0.1188964597 | K105: 178.9448771 | L105: 0.0085 | M105: 0.1584722753 | N105: 172.4804325 | O105: 0.0048 | P105: 0.1564433368 | Q105: 185.813844 | R105: 0.0121 | S105: 0.1607270241 | T105: 178.260966 | U105: 0.0124 | V105: 0.1631409259 | W105: 200.7425521 | X105: 0.0036 | Y105: 0.1183118229 | Z105: 161.7059321 | AA105: 0.0096 | AB105: 0.1173782289 | AC105: 161.4715908 | AD105: 0.0072 | AE105: 0.1447107426 | AF105: 88.11028476 | AG105: 0 | AH105: 129.6902359 | AI105: 0 | AJ105: 114.9335254 | AK105: 0 | AL105: 213.0569415 | AM105: 0.0054 | AN105: 217.1821345 | AO105: 0.0094 | AP105: 110.9113487 | AQ105: 0 | AR105: 0.02378474592 | AS105: 214.7070187 | AT105: 0.007014619947 | AU105: 0.2801489483 | AV105: 185.3992417 | AW105: 0 | AX105: -0.0152 | AY105: 151.0299423 | AZ105: ='3.3.Variacao_mensal_IEE'!CN93 -> 0.06412550935 | BA105: -0.1307995861
A106: 2021-08-01 | B106: 163.8684364 | C106: 0.0088 | D106: 0.1169873676 | E106: 213.9831574 | F106: 0.0066 | G106: 0.1062041135 | H106: 212.505536 | I106: -0.0014 | J106: 0.1204651109 | K106: 179.7680236 | L106: 0.0046 | M106: 0.1531677039 | N106: 172.4804325 | O106: 0 | P106: 0.1564433368 | Q106: 187.5233313 | R106: 0.0092 | S106: 0.1501456838 | T106: 179.2592274 | U106: 0.0056 | V106: 0.1566636097 | W106: 201.6057451 | X106: 0.0043 | Y106: 0.1135236711 | Z106: 163.1127737 | AA106: 0.0087 | AB106: 0.1077408832 | AC106: 162.9086879 | AD106: 0.0089 | AE106: 0.1346126897 | AF106: 88.82397806 | AG106: 0.0081 | AH106: 129.6902359 | AI106: 0 | AJ106: 114.9335254 | AK106: 0 | AL106: 218.9373131 | AM106: 0.0276 | AN106: 217.5296259 | AO106: 0.0016 | AP106: 111.1492464 | AQ106: 0.002144936219 | AR106: 0.02159349303 | AS106: 218.3742382 | AT106: 0.01708011009 | AU106: 0.2586510498 | AV106: 182.5811732 | AW106: -1,52% | AX106: 0 | AY106: 151.2952181 | AZ106: ='3.3.Variacao_mensal_IEE'!CN94 -> 0.001756445246 | BA106: -0.1323236122
A107: 2021-09-01 | B107: 165.8348577 | C107: 0.012 | D107: 0.1037424581 | E107: 212.6136652 | F107: -0.0064 | G107: 0.1133294218 | H107: 211.3367555 | I107: -0.0055 | J107: 0.1266617505 | K107: 180.6848405 | L107: 0.0051 | M107: 0.1473163903 | N107: 173.1186101 | O107: 0.0037 | P107: 0.1521802698 | Q107: 188.742233 | R107: 0.0065 | S107: 0.1427180167 | T107: 180.2630791 | U107: 0.0056 | V107: 0.1502223645 | W107: 202.4928104 | X107: 0.0044 | Y107: 0.1086456304 | Z107: 165.0048819 | AA107: 0.0116 | AB107: 0.09503843735 | AC107: 164.765847 | AD107: 0.0114 | AE107: 0.1218238973 | AF107: 90.45833926 | AG107: 0.0184 | AH107: 129.6902359 | AI107: 0 | AJ107: 114.9335254 | AK107: 0 | AL107: 226.2060319 | AM107: 0.0332 | AN107: 220.7490643 | AO107: 0.0148 | AP107: 111.6940335 | AQ107: 0.00490140134 | AR107: 0.0166106761 | AS107: 224.0232449 | AT107: 0.02586846648 | AU107: 0.2269126998 | AV107: 182.5811732 | AW107: 0 | AX107: 0 | AY107: 163.3742913 | AZ107: ='3.3.Variacao_mensal_IEE'!CN95 -> 0.07983777241 | BA107: -0.1964752392
A108: 2021-10-01 | B108: 167.758542 | C108: 0.0116 | D108: 0.09108586209 | E108: 213.9743927 | F108: 0.0064 | G108: 0.1062494255 | H108: 214.7181436 | I108: 0.016 | J108: 0.1089190458 | K108: 182.2387301 | L108: 0.0086 | M108: 0.1375336013 | N108: 173.1186101 | O108: 0 | P108: 0.1521802698 | Q108: 191.9131025 | R108: 0.0168 | S108: 0.123837546 | T108: 181.7051837 | U108: 0.008 | V108: 0.1410936156 | W108: 203.4850252 | X108: 0.0049 | Y108: 0.1032397556 | Z108: 167.0674429 | AA108: 0.0125 | AB108: 0.08151944429 | AC108: 166.7430371 | AD108: 0.012 | AE108: 0.1085216376 | AF108: 98.80764397 | AG108: 0.0923 | AH108: 129.6902359 | AI108: 0 | AJ108: 114.9335254 | AK108: 0 | AL108: 232.6529038 | AM108: 0.0285 | AN108: 233.331761 | AO108: 0.057 | AP108: 114.4771351 | AQ108: 0.02491719104 | AR108: -0.008104571775 | AS108: 232.9244467 | AT108: 0.03973338489 | AU108: 0.1800262621 | AV108: 182.5811732 | AW108: 0 | AX108: 0 | AY108: 163.8342299 | AZ108: ='3.3.Variacao_mensal_IEE'!CN96 -> 0.00281524476 | BA108: -0.1987310075
A109: 2021-11-01 | B109: 169.1677138 | C109: 0.0084 | D109: 0.08199708656 | E109: 214.0171875 | F109: 0.0002 | G109: 0.1060282198 | H109: 213.4727784 | I109: -0.0058 | J109: 0.1153882979 | K109: 183.4597296 | L109: 0.0067 | M109: 0.1299628502 | N109: 173.7764608 | O109: 0.0038 | P109: 0.1478185593 | Q109: 193.736277 | R109: 0.0095 | S109: 0.1132615611 | T109: 182.9952905 | U109: 0.0071 | V109: 0.1330489679 | W109: 204.6855868 | X109: 0.0059 | Y109: 0.09676881953 | Z109: 168.6545836 | AA109: 0.0095 | AB109: 0.07134169816 | AC109: 168.6939307 | AD109: 0.0117 | AE109: 0.0957019251 | AF109: 98.80764397 | AG109: 0 | AH109: 129.6902359 | AI109: 0 | AJ109: 114.9335254 | AK109: 0 | AL109: 249.496974 | AM109: 0.0724 | AN109: 247.3083335 | AO109: 0.0599 | AP109: 114.4771351 | AQ109: 0 | AR109: -0.008104571775 | AS109: 248.6215178 | AT109: 0.06739125651 | AU109: 0.1055236353 | AV109: 182.5811732 | AW109: 0 | AX109: 0 | AY109: 164.1600345 | AZ109: ='3.3.Variacao_mensal_IEE'!CN97 -> 0.001988623452 | BA109: -0.2003212674
A110: 2021-12-01 | B110: 170.4026381 | C110: 0.0073 | D110: 0.07415574959 | E110: 215.8791371 | F110: 0.0087 | G110: 0.09648876754 | H110: 216.1411881 | I110: 0.0125 | J110: 0.101618072 | K110: 184.1018387 | L110: 0.0035 | M110: 0.126021774 | N110: 173.7764608 | O110: 0 | P110: 0.1478185593 | Q110: 195.03431 | R110: 0.0067 | S110: 0.1058523504 | T110: 183.5442764 | U110: 0.003 | V110: 0.1296599879 | W110: 206.2616658 | X110: 0.0077 | Y110: 0.08838823015 | Z110: 169.8857621 | AA110: 0.0073 | AB110: 0.06357758181 | AC110: 170.0097433 | AD110: 0.0078 | AE110: 0.08722159665 | AF110: 98.80764397 | AG110: 0 | AH110: 129.6902359 | AI110: 0 | AJ110: 114.9335254 | AK110: 0 | AL110: 248.7235334 | AM110: -0.0031 | AN110: 246.0717918 | AO110: -0.005 | AP110: 114.4771351 | AQ110: 0 | AR110: -0.008104571775 | AS110: 247.6628368 | AT110: -0.003855985786 | AU110: 0.1098030199 | AV110: 182.5811732 | AW110: 0 | AX110: 0 | AY110: 162.5684536 | AZ110: ='3.3.Variacao_mensal_IEE'!CN98 -> -0.009695300717 | BA110: -0.1924922368
A111: 2022-01-01 | B111: 171.5443358 | C111: 0.0067 | D111: 0.067006804 | E111: 219.8081374 | F111: 0.0182 | G111: 0.0768893808 | H111: 220.485626 | I111: 0.0201 | J111: 0.07991184394 | K111: 185.4089617 | L111: 0.0071 | M111: 0.118083382 | N111: 174.2282796 | O111: 0.0026 | P111: 0.1448419701 | Q111: 197.2381977 | R111: 0.0113 | S111: 0.0934958473 | T111: 184.7189598 | U111: 0.0064 | V111: 0.1224761406 | W111: 207.767376 | X111: 0.0073 | Y111: 0.08050057595 | Z111: 170.8031452 | AA111: 0.0054 | AB111: 0.05786511022 | AC111: 170.9957998 | AD111: 0.0058 | AE111: 0.08095207461 | AF111: 98.80764397 | AG111: 0 | AH111: 130.6240056 | AI111: 0.0072 | AJ111: 114.9335254 | AK111: 0 | AL111: 249.4945763 | AM111: 0.0031 | AN111: 252.9864092 | AO111: 0.0281 | AP111: 114.7883917 | AQ111: 0.002718940912 | AR111: -0.01079416399 | AS111: 250.8913095 | AT111: 0.01303575762 | AU111: 0.09552205988 | AV111: 182.5811732 | AW111: 0 | AX111: 0 | AY111: 164.1204802 | AZ111: ='3.3.Variacao_mensal_IEE'!CN99 -> 0.00954691131 | BA111: -0.2001285387
A112: 2022-02-01 | B112: 173.2597791 | C112: 0.01 | D112: 0.0564423802 | E112: 223.8306263 | F112: 0.0183 | G112: 0.05753646352 | H112: 223.7929104 | I112: 0.015 | J112: 0.06395255561 | K112: 186.1135158 | L112: 0.0038 | M112: 0.1138507492 | N112: 174.6638503 | O112: 0.0025 | P112: 0.1419870026 | Q112: 198.2441125 | R112: 0.0051 | S112: 0.08794731599 | T112: 185.6056108 | U112: 0.0048 | V112: 0.1171139935 | W112: 209.346408 | X112: 0.0076 | Y112: 0.07235071055 | Z112: 172.528257 | AA112: 0.0101 | AB112: 0.0472875064 | AC112: 172.6886583 | AD112: 0.0099 | AE112: 0.07035555462 | AF112: 98.80764397 | AG112: 0 | AH112: 131.2640632 | AI112: 0.0049 | AJ112: 114.9335254 | AK112: 0 | AL112: 249.3947785 | AM112: -0.0004 | AN112: 259.5640558 | AO112: 0.026 | AP112: 115.0017442 | AQ112: 0.001858659568 | AR112: -0.0126293499 | AS112: 253.4624894 | AT112: 0.01024818262 | AU112: 0.08440884005 | AV112: 182.5811732 | AW112: 0 | AX112: 0 | AY112: 162.7754949 | AZ112: ='3.3.Variacao_mensal_IEE'!CN100 -> -0.008195109663 | BA112: -0.1935193412
A113: 2022-03-01 | B113: 176.2225213 | C113: 0.0171 | D113: 0.03868093619 | E113: 227.7252792 | F113: 0.0174 | G113: 0.03945003295 | H113: 229.0968024 | I113: 0.0237 | J113: 0.03932065606 | K113: 187.714092 | L113: 0.0086 | M113: 0.1043533107 | N113: 176.7772829 | O113: 0.0121 | P113: 0.1283341593 | Q113: 199.2948063 | R113: 0.0053 | S113: 0.08221159454 | T113: 186.9605317 | U113: 0.0073 | V113: 0.1090181609 | W113: 211.2933296 | X113: 0.0093 | Y113: 0.06246974195 | Z113: 175.3232147 | AA113: 0.0162 | AB113: 0.03059191734 | AC113: 174.3292005 | AD113: 0.0095 | AE113: 0.06028286738 | AF113: 99.84512423 | AG113: 0.0105 | AH113: 130.4633524 | AI113: -0.0061 | AJ113: 114.9335254 | AK113: 0 | AL113: 264.2337678 | AM113: 0.0595 | AN113: 292.5546473 | AO113: 0.1271 | AP113: 115.0806674 | AQ113: 0.0006862779281 | AR113: -0.01330649587 | AS113: 275.5621196 | AT113: 0.08719093007 | AU113: -0.002558970958 | AV113: 182.5811732 | AW113: 0 | AX113: 0 | AY113: 164.4189929 | AZ113: ='3.3.Variacao_mensal_IEE'!CN101 -> 0.01009671653 | BA113: -0.201580754
A114: 2022-04-01 | B114: 178.0552356 | C114: 0.0104 | D114: 0.02798984184 | E114: 230.9362056 | F114: 0.0141 | G114: 0.02499756725 | H114: 230.0360993 | I114: 0.0041 | J114: 0.03507684101 | K114: 189.4973759 | L114: 0.0095 | M114: 0.09396068418 | N114: 177.1485152 | O114: 0.0021 | P114: 0.1259696231 | Q114: 202.5433117 | R114: 0.0163 | S114: 0.06485446673 | T114: 188.5870884 | U114: 0.0087 | V114: 0.09945292047 | W114: 213.0470643 | X114: 0.0083 | Y114: 0.05372383413 | Z114: 177.1816408 | AA114: 0.0106 | AB114: 0.01978222575 | AC114: 177.3450957 | AD114: 0.0173 | AE114: 0.04225190935 | AF114: 99.84512423 | AG114: 0 | AH114: 130.4633524 | AI114: 0 | AJ114: 114.9335254 | AK114: 0 | AL114: 272.5042848 | AM114: 0.0313 | AN114: 305.5440737 | AO114: 0.0444 | AP114: 115.0806674 | AQ114: 0 | AR114: -0.01330649587 | AS114: 285.7202003 | AT114: 0.0368631244 | AU114: -0.03802053948 | AV114: 182.5811732 | AW114: 0 | AX114: 0 | AY114: 123.752466 | AZ114: ='3.3.Variacao_mensal_IEE'!CN102 -> -0.247334728 | BA114: 0.06078927203
A115: 2022-05-01 | B115: 178.8564841 | C115: 0.0045 | D115: 0.02338461109 | E115: 232.1370739 | F115: 0.0052 | G115: 0.01969515246 | H115: 231.6233483 | I115: 0.0069 | J115: 0.02798375312 | K115: 193.8179161 | L115: 0.0228 | M115: 0.06957438813 | N115: 182.6046894 | O115: 0.0308 | P115: 0.09232598282 | Q115: 205.7029874 | R115: 0.0156 | S115: 0.0484978995 | T115: 191.397036 | U115: 0.0149 | V115: 0.08331157796 | W115: 215.241449 | X115: 0.0103 | Y115: 0.0429811285 | Z115: 178.0143945 | AA115: 0.0047 | AB115: 0.0150116709 | AC115: 178.3914317 | AD115: 0.0059 | AE115: 0.03613869107 | AF115: 99.83513972 | AG115: -0.0001 | AH115: 133.1900365 | AI115: 0.0209 | AJ115: 114.9335254 | AK115: 0 | AL115: 272.9947925 | AM115: 0.0018 | AN115: 313.3354475 | AO115: 0.0255 | AP115: 115.9862339 | AQ115: 0.007868971727 | AR115: -0.02101013941 | AS115: 289.1310545 | AT115: 0.0119377425 | AU115: -0.04936892843 | AV115: 182.5811732 | AW115: 0 | AX115: 0 | AY115: 124.0692627 | AZ115: ='3.3.Variacao_mensal_IEE'!CN103 -> 0.002559922381 | BA115: 0.05808066764
A116: 2022-06-01 | B116: 179.9653943 | C116: 0.0062 | D116: 0.017078723 | E116: 233.5066826 | F116: 0.0059 | G116: 0.01371423845 | H116: 233.0594131 | I116: 0.0062 | J116: 0.02164952606 | K116: 197.9656195 | L116: 0.0214 | M116: 0.04716505594 | N116: 188.7219465 | O116: 0.0335 | P116: 0.05691918995 | Q116: 207.7805875 | R116: 0.0101 | S116: 0.03801395852 | T116: 196.7752927 | U116: 0.0281 | V116: 0.05370253668 | W116: 217.4369118 | X116: 0.0102 | Y116: 0.0324501371 | Z116: 179.207091 | AA116: 0.0067 | AB116: 0.00825635333 | AC116: 179.6223326 | AD116: 0.0069 | AE116: 0.02903832662 | AF116: 101.5123701 | AG116: 0.0168 | AH116: 133.1900365 | AI116: 0 | AJ116: 114.9335254 | AK116: 0 | AL116: 270.6470373 | AM116: -0.0086 | AN116: 331.195568 | AO116: 0.057 | AP116: 116.5453107 | AQ116: 0.004820199465 | AR116: -0.02570642876 | AS116: 294.8664496 | AT116: 0.01983666225 | AU116: -0.067859485 | AV116: 182.5811732 | AW116: 0 | AX116: 0 | AY116: =AY115*(1+AZ116) -> 124.0954582 | AZ116: ='3.3.Variacao_mensal_IEE'!CN104 -> 0.0002111357883 | BA116: =AY$122/AY116-1 -> 0.05785731611
A117: 2022-07-01 | B117: 178.885602 | C117: -0.006 | D117: 0.02321803119 | E117: 233.9970467 | F117: 0.0021 | G117: 0.01158989966 | H117: 232.1737873 | I117: -0.0038 | J117: 0.02554660315 | K117: 199.6681238 | L117: 0.0086 | M117: 0.03823622441 | N117: 191.288565 | O117: 0.0136 | P117: 0.04273795378 | Q117: 208.5909318 | R117: 0.0039 | S117: 0.03398143094 | T117: 199.0578861 | U117: 0.0116 | V117: 0.0416197476 | W117: 219.676512 | X117: 0.0103 | Y117: 0.02192431664 | Z117: 177.9884828 | AA117: -0.0068 | AB117: 0.01515943751 | AC117: 179.8558417 | AD117: 0.0013 | AE117: 0.02770231361 | AF117: 101.5123701 | AG117: 0 | AH117: 133.1900365 | AI117: 0 | AJ117: 114.9335254 | AK117: 0 | AL117: 222.255347 | AM117: -0.1788 | AN117: 347.5897487 | AO117: 0.0495 | AP117: 116.5453107 | AQ117: 0 | AR117: -0.02570642876 | AS117: 272.3891077 | AT117: -0.07622888919 | AU117: 0.009060041062 | AV117: 182.5811732 | AW117: 0 | AX117: 0 | AY117: 131.8453451 | AZ117: ='3.3.Variacao_mensal_IEE'!CN105 -> 0.06245101211 | BA117: -0.004323677944
A118: 2022-08-01 | B118: 178.3310566 | C118: -0.0031 | D118: 0.02639987079 | E118: 232.3590673 | F118: -0.007 | G118: 0.01872094629 | H118: 230.8968315 | I118: -0.0055 | J118: 0.03121830382 | K118: 199.8478251 | L118: 0.0009 | M118: 0.03730265202 | N118: 191.824173 | O118: 0.0028 | P118: 0.03982643975 | Q118: 208.3823409 | R118: -0.001 | S118: 0.03501644739 | T118: 199.7346908 | U118: 0.0033 | V118: 0.03809019952 | W118: 222.2467272 | X118: 0.0117 | Y118: 0.01010607556 | Z118: 177.3477242 | AA118: -0.0036 | AB118: 0.01882721548 | AC118: 178.542894 | AD118: -0.0073 | AE118: 0.0289487256 | AF118: 91.76718254 | AG118: -0.096 | AH118: 129.5273105 | AI118: -0.0275 | AJ118: 114.9335254 | AK118: 0 | AL118: 192.9398667 | AM118: -0.1319 | AN118: 334.5898921 | AO118: -0.0374 | AP118: 111.8201496 | AQ118: -0.038373 | AR118: -0.002386473215 | AS118: 249.5998769 | AT118: -0.083664 | AU118: 0.05986056463 | AV118: 182.5811732 | AW118: 0 | AX118: 0 | AY118: 131.8496214 | AZ118: ='3.3.Variacao_mensal_IEE'!CN106 -> 3.243388909e-05 | BA118: -0.004355970552
A119: 2022-09-01 | B119: 179.595721 | C119: 0.007091666667 | D119: 0.01917224098 | E119: 232.6941291 | F119: 0.001442 | G119: 0.01725406592 | H119: 232.5112621 | I119: 0.006992 | J119: 0.02405808966 | K119: 201.6230733 | L119: 0.008883 | M119: 0.02816942304 | N119: 193.5425339 | O119: 0.008958 | P119: 0.03059437534 | Q119: 210.2248575 | R119: 0.008842 | S119: 0.02594504133 | T119: 201.5456853 | U119: 0.009067 | V119: 0.02876241074 | W119: 222.8061222 | X119: 0.002517 | Y119: 0.007570021813 | Z119: 177.5928188 | AA119: 0.001382 | AB119: 0.01742113947 | AC119: 180.1576359 | AD119: 0.009044 | AE119: 0.02598073968 | AF119: 92.91482293 | AG119: 0.012506 | AH119: 129.7717285 | AI119: 0.001887 | AJ119: 114.9335254 | AK119: 0 | AL119: 193.654516 | AM119: 0.003704 | AN119: 349.2225118 | AO119: 0.043733 | AP119: 112.5400256 | AQ119: 0.006437802279 | AR119: 0.008968554129 | AS119: 255.8817143 | AT119: 0.02516763044 | AU119: 0.07415633389 | AV119: 182.5811732 | AW119: 0 | AX119: 0 | AY119: 131.2414629 | AZ119: ='3.3.Variacao_mensal_IEE'!CN107 -> -0.004612515979 | BA119: 0.0002577342307
A120: 2022-10-01 | B120: 180.7958944 | C120: 0.006682638889 | D120: 0.01240669265 | E120: 233.8966924 | F120: 0.005168 | G120: 0.01202392627 | H120: 234.3790251 | I120: 0.008033 | J120: 0.01589738595 | K120: 203.477804 | L120: 0.009199 | M120: 0.01879750479 | N120: 195.3612531 | O120: 0.009397 | P120: 0.02100003798 | Q120: 212.1246596 | R120: 0.009037 | S120: 0.01675661183 | T120: 203.4313467 | U120: 0.009356 | V120: 0.01922652735 | W120: 223.3669252 | X120: 0.002517 | Y120: 0.005040335289 | Z120: 178.4463299 | AA120: 0.004806 | AB120: 0.01255480109 | AC120: 181.7516707 | AD120: 0.008848 | AE120: 0.01698247871 | AF120: 94.03110161 | AG120: 0.012014 | AH120: 130.0369819 | AI120: 0.002044 | AJ120: 114.9335254 | AK120: 0 | AL120: 193.8958095 | AM120: 0.001246 | AN120: 365.3370354 | AO120: 0.046144 | AP120: 113.0005363 | AQ120: 0.004091972576 | AR120: 0.004856708037 | AS120: 262.4722999 | AT120: 0.02575637563 | AU120: 0.04718465262 | AV120: 182.5811732 | AW120: 0 | AX120: 0 | AY120: 131.27823 | AZ120: ='3.3.Variacao_mensal_IEE'!CN108 -> 0.0002801480861 | BA120: -2.240757797e-05
A121: 2022-11-01 | B121: 181.9300015 | C121: 0.006272858796 | D121: 0.006095597029 | E121: 235.3084928 | F121: 0.006036 | G121: 0.005952 | H121: 236.1061642 | I121: 0.007369 | J121: 0.008466 | K121: 205.3597702 | L121: 0.009249 | M121: 0.009461 | N121: 197.3500307 | O121: 0.01018 | P121: 0.010711 | Q121: 213.9043855 | R121: 0.00839 | S121: 0.008297 | T121: 205.3576381 | U121: 0.009469 | V121: 0.009666 | W121: 223.9291398 | X121: 0.002517 | Y121: 0.002517 | Z121: 179.3544432 | AA121: 0.005089 | AB121: 0.007428 | AC121: 183.3120088 | AD121: 0.008585 | AE121: 0.008326 | AF121: 94.53172319 | AG121: 0.005324 | AH121: 130.3248838 | AI121: 0.002214 | AJ121: 114.9335254 | AK121: 0 | AL121: 193.6968724 | AM121: -0.001026 | AN121: 381.8645175 | AO121: 0.045239 | AP121: 113.2633775 | AQ121: 0.002326016875 | AR121: 0.002524818392 | AS121: 268.9639305 | AT121: 0.02473263122 | AU121: 0.02191012633 | AV121: 182.5811732 | AW121: 0 | AX121: 0 | AY121: 131.287249 | AZ121: ='3.3.Variacao_mensal_IEE'!CN109 -> 6.870135169e-05 | BA121: -9.110267078e-05
A122: 2022-12-01 | B122: 183.0389734 | C122: 0.006095597029 | D122: =B$122/B122-1 -> 0 | E122: 236.709049 | F122: 0.005952 | G122: =E$122/E122-1 -> 0 | H122: 238.1050389 | I122: 0.008466 | J122: =H$122/H122-1 -> 0 | K122: 207.302679 | L122: 0.009461 | M122: =K$122/K122-1 -> 0 | N122: 199.4638469 | O122: 0.010711 | P122: =N$122/N122-1 -> 0 | Q122: 215.6791502 | R122: 0.008297 | S122: =Q$122/Q122-1 -> 0 | T122: 207.3426251 | U122: 0.009666 | V122: =T$122/T122-1 -> 0 | W122: 224.4927694 | X122: 0.002517 | Y122: =W$122/W122-1 -> 0 | Z122: 180.686688 | AA122: 0.007428 | AB122: =Z$122/Z122-1 -> 0 | AC122: 184.8382646 | AD122: 0.008326 | AE122: =AC$122/AC122-1 -> 0 | AF122: 95.07698217 | AG122: 0.005768 | AH122: 130.6375332 | AI122: 0.002399 | AJ122: 114.9335254 | AK122: 0 | AL122: 192.3129083 | AM122: -0.007145 | AN122: 398.673048 | AO122: 0.044017 | AP122: 113.5493469 | AQ122: 0.002524818392 | AR122: =AP$122/AP122-1 -> 0 | AS122: 274.8569642 | AT122: 0.02191012633 | AU122: =AS$122/AS122-1 -> 0 | AV122: 182.5811732 | AW122: 0 | AX122: 0 | AY122: 131.2752883 | AZ122: ='3.3.Variacao_mensal_IEE'!CN110 -> -9.110267078e-05 | BA122: 0
Z123: =Z117/Z105-1 -> 0.100692352
B124: 2 | C124: 3 | D124: 4 | E124: 5 | F124: 6 | G124: 7 | H124: 8 | I124: 9 | J124: 10 | K124: 11 | L124: 12 | M124: 13 | N124: 14 | O124: 15 | P124: 16 | Q124: 17 | R124: 18 | S124: 19 | T124: 20 | U124: 21 | V124: 22 | W124: 23 | X124: 24 | Y124: 25 | Z124: 26 | AA124: 27 | AB124: 28 | AC124: 29 | AD124: 30 | AE124: 31 | AF124: 32 | AG124: 33 | AH124: 34 | AI124: 35 | AJ124: 36 | AK124: 37 | AL124: 38 | AM124: 39 | AN124: 40 | AO124: 41 | AP124: 42 | AQ124: 43 | AR124: 44 | AS124: 45 | AT124: 46 | AU124: 47
A125: TRUE | F125: Previsão Bacen | X125: Previsão Bacen | AA125: Previsão Bacen
A126: Acumulado ANOS | B126: INPC | E126: IGP-M | H126: IGP-DI | K126: INCC | N126: INCC-DI MB | Q126: INCC-DI MS | T126: INCC-M | W126: SELIC | Z126: IPCA | AC126: IPCA 15 | AF126: IPCA BH Fixo | AH126: IPCA BH Cel | AJ126: IPCA BH Int | AL126: IPCA BH Gas | AN126: IPCA BH Die | AP126: IPCA BH Tel | AS126: IPCA BH Comb | AV126: ETM | AY126: IEE
A127: 2013 | B127: =B14/B2-1 -> 0.05562663707 | E127: =E14/E2-1 -> 0.05525658421 | H127: =H14/H2-1 -> 0.05527757994 | K127: =K14/K2-1 -> 0.08087493555 | N127: =N14/N2-1 -> 0.09759609658 | Q127: =Q14/Q2-1 -> 0.06334843158 | T127: =T14/T2-1 -> 0.08069430928 | W127: =W14/W2-1 -> 0.08213356184 | Z127: =Z14/Z2-1 -> 0.0591081808 | AC127: =AC14/AC2-1 -> 0.05848114629 | AF127: =AF14/AF2-1 -> -0.01638276918 | AH127: =AH14/AH2-1 -> 0.047244755 | AJ127: =AJ14/AJ2-1 -> 0 | AL127: =AL14/AL2-1 -> 0.03437497405 | AN127: =AN14/AN2-1 -> 0.1609860023 | AP127: =AP14/AP2-1 -> 0.01028732861 | AS127: =AS14/AS2-1 -> 0.08501938533
A128: 2014 | B128: =B26/B14-1 -> 0.06228269215 | E128: =E26/E14-1 -> 0.03674882508 | H128: =H26/H14-1 -> 0.03779997091 | K128: =K26/K14-1 -> 0.06944929719 | N128: =N26/N14-1 -> 0.08490093574 | Q128: =Q26/Q14-1 -> 0.05292316139 | T128: =T26/T14-1 -> 0.0674004472 | W128: =W26/W14-1 -> 0.1091009207 | Z128: =Z26/Z14-1 -> 0.06407616596 | AC128: =AC26/AC14-1 -> 0.06461048404 | AF128: =AF26/AF14-1 -> -0.03254488448 | AH128: =AH26/AH14-1 -> 0.02406816962 | AJ128: =AJ26/AJ14-1 -> 0 | AL128: =AL26/AL14-1 -> 0.02771410084 | AN128: =AN26/AN14-1 -> 0.06582471565 | AP128: =AP26/AP14-1 -> -0.002245712537 | AS128: =AS26/AS14-1 -> 0.04402565838
A129: 2015 | B129: =B38/B26-1 -> 0.112761662 | E129: =E38/E26-1 -> 0.1054429461 | H129: =H38/H26-1 -> 0.1067860742 | K129: =K38/K26-1 -> 0.07493890454 | N129: =N38/N26-1 -> 0.08110166043 | Q129: =Q38/Q26-1 -> 0.06777871601 | T129: =T38/T26-1 -> 0.07216996411 | W129: =W38/W26-1 -> 0.132857836 | Z129: =Z38/Z26-1 -> 0.10673498 | AC129: =AC38/AC26-1 -> 0.107065071 | AF129: =AF38/AF26-1 -> -0.025120305 | AH129: =AH38/AH26-1 -> 0.09079553367 | AJ129: =AJ38/AJ26-1 -> 0 | AL129: =AL38/AL26-1 -> 0.2181181318 | AN129: =AN38/AN26-1 -> 0.1193855889 | AP129: =AP38/AP26-1 -> 0.02429487485 | AS129: =AS38/AS26-1 -> 0.1749777073
A130: 2016 | B130: =B50/B38-1 -> 0.06579963613 | E130: =E50/E38-1 -> 0.0719070751 | H130: =H50/H38-1 -> 0.07153318977 | K130: =K50/K38-1 -> 0.06101646533 | N130: =N50/N38-1 -> 0.09356990973 | Q130: =Q50/Q38-1 -> 0.02465319327 | T130: =T50/T38-1 -> 0.06337445332 | W130: =W50/W38-1 -> 0.1402838763 | Z130: =Z50/Z38-1 -> 0.06288055054 | AC130: =AC50/AC38-1 -> 0.06583325421 | AF130: =AF50/AF38-1 -> -0.007871274845 | AH130: =AH50/AH38-1 -> 0.0029 | AJ130: =AJ50/AJ38-1 -> 0 | AL130: =AL50/AL38-1 -> 0.03038649247 | AN130: =AN50/AN38-1 -> 0.0307538596 | AP130: =AP50/AP38-1 -> -0.001262201459 | AS130: =AS50/AS38-1 -> 0.03053941605
A131: 2017 | B131: =B62/B50-1 -> 0.02066930964 | E131: =E62/E50-1 -> -0.005325890366 | H131: =H62/H50-1 -> -0.004230711057 | K131: =K62/K50-1 -> 0.04246236578 | N131: =N62/N50-1 -> 0.05204171896 | Q131: =Q62/Q50-1 -> 0.03119438808 | T131: =T62/T50-1 -> 0.04025352747 | W131: =W62/W50-1 -> 0.09955642316 | Z131: =Z62/Z50-1 -> 0.02947349908 | AC131: =AC62/AC50-1 -> 0.02937093539 | AF131: =AF62/AF50-1 -> -0.05883723856 | AH131: =AH62/AH50-1 -> 0.06828885159 | AJ131: =AJ62/AJ50-1 -> 0.0104 | AL131: =AL62/AL50-1 -> 0.08684798703 | AN131: =AN62/AN50-1 -> 0.07102271066 | AP131: =AP62/AP50-1 -> 0.01175449055 | AS131: =AS62/AS50-1 -> 0.08025904264
A132: 2018 | B132: =B74/B62-1 -> 0.03433953868 | E132: =E74/E62-1 -> 0.07552135634 | H132: =H74/H62-1 -> 0.0710206239 | K132: =K74/K62-1 -> 0.03832393341 | N132: =N74/N62-1 -> 0.0204352805 | Q132: =Q74/Q62-1 -> 0.06058484991 | T132: =T74/T62-1 -> 0.03957735493 | W132: =W74/W62-1 -> 0.064215212 | Z132: =Z74/Z62-1 -> 0.03745482122 | AC132: =AC74/AC62-1 -> 0.03860544807 | AF132: =AF74/AF62-1 -> -0.01369463157 | AH132: =AH74/AH62-1 -> 0.0073 | AJ132: =AJ74/AJ62-1 -> 0.014 | AL132: =AL74/AL62-1 -> 0.1338051303 | AN132: =AN74/AN62-1 -> 0.09354738422 | AP132: =AP74/AP62-1 -> 0.003652430682 | AS132: =AS74/AS62-1 -> 0.1171869003
A133: 2019 | B133: =B86/B74-1 -> 0.04481588663 | E133: =E86/E74-1 -> 0.07317908281 | H133: =H86/H74-1 -> 0.07677588541 | K133: =K86/K74-1 -> 0.04143242256 | N133: =N86/N74-1 -> 0.04925770613 | Q133: =Q86/Q74-1 -> 0.03234538735 | T133: =T86/T74-1 -> 0.04132997711 | W133: =W86/W74-1 -> 0.05945940358 | Z133: =Z86/Z74-1 -> 0.04306039984 | AC133: =AC86/AC74-1 -> 0.03913212759 | AF133: =AF86/AF74-1 -> -0.01280027503 | AH133: =AH86/AH74-1 -> 0.02349333 | AJ133: =AJ86/AJ74-1 -> 0 | AL133: =AL86/AL74-1 -> 0.03495226864 | AN133: =AN86/AN74-1 -> 0.0639699392 | AP133: =AP86/AP74-1 -> 0.005960254069 | AS133: =AS86/AS74-1 -> 0.04667718156
A134: 2020 | B134: =B98/B86-1 -> 0.05447325281 | E134: =E98/E86-1 -> 0.2313905404 | H134: =H98/H86-1 -> 0.2307433448 | K134: =K98/K86-1 -> 0.08812907778 | N134: =N98/N86-1 -> 0.02572062048 | Q134: =Q98/Q86-1 -> 0.1627781052 | T134: =T98/T86-1 -> 0.0868439462 | W134: =W98/W86-1 -> 0.02753815782 | Z134: =Z98/Z86-1 -> 0.04517341501 | AC134: =AC98/AC86-1 -> 0.04227459099 | AF134: =AF98/AF86-1 -> 0.04694873941 | AH134: =AH98/AH86-1 -> 0.00368328 | AJ134: =AJ98/AJ86-1 -> 0.1218 | AL134: =AL98/AL86-1 -> -0.01430288785 | AN134: =AN98/AN86-1 -> -0.01824423697 | AP134: =AP98/AP86-1 -> 0.05352547479 | AS134: =AS98/AS86-1 -> -0.01592174522
A135: 2021 | B135: =B110/B98-1 -> 0.1016017767 | E135: =E110/E98-1 -> 0.1779252084 | H135: =H110/H98-1 -> 0.1774391627 | K135: =K110/K98-1 -> 0.1384443744 | N135: =N110/N98-1 -> 0.06835489073 | Q135: =Q110/Q98-1 -> 0.2127541225 | T135: =T110/T98-1 -> 0.1402738708 | W135: =W110/W98-1 -> 0.04435687759 | Z135: =Z110/Z98-1 -> 0.1006105489 | AC135: =AC110/AC98-1 -> 0.1042365308 | AF135: =AF110/AF98-1 -> 0.1189430041 | AH135: =AH110/AH98-1 -> 0 | AJ135: =AJ110/AJ98-1 -> 0 | AL135: =AL110/AL98-1 -> 0.4828798576 | AN135: =AN110/AN98-1 -> 0.4087868099 | AP135: =AP110/AP98-1 -> 0.03154793135 | AS135: =AS110/AS98-1 -> 0.452518935
A137: Acumulado PRs | B137: INPC | E137: IGP-M | H137: IGP-DI | K137: INCC | N137: INCC-DI MB | Q137: INCC-DI MS | T137: INCC-M | W137: SELIC | Z137: IPCA | AC137: IPCA 15 | AF137: IPCA BH Fixo | AH137: IPCA BH Cel | AJ137: IPCA BH Int | AL137: IPCA BH Gas | AN137: IPCA BH Die | AP137: IPCA BH Tel | AS137: IPCA BH Comb | AV137: ETM | AY137: IEE
A138: PR2013/14
A139: PR2014/15
A140: PR2015/16
A141: PR2016/17 | W141: =W117/W104-1 -> 0.09825916382
A142: PR2017/18
A143: PR2018/19
A144: PR2019/20 | B144: =B88/B74-1 -> 0.04858059858 | E144: =E88/E74-1 -> 0.07789901027 | H144: =H88/H74-1 -> 0.07785275821 | K144: =K88/K74-1 -> 0.04883965233 | N144: =N88/N74-1 -> 0.052092024 | Q144: =Q88/Q74-1 -> 0.04508011099 | T144: =T88/T74-1 -> 0.04769156607 | W144: =W88/W74-1 -> 0.06656945682 | Z144: =Z88/Z74-1 -> 0.04786395375 | AC144: =AC88/AC74-1 -> 0.04881228762 | AF144: =AF88/AF74-1 -> -0.005001397199 | AH144: =AH88/AH74-1 -> 0.02349333 | AJ144: =AJ88/AJ74-1 -> 0 | AL144: =AL88/AL74-1 -> 0.03729614574 | AN144: =AN88/AN74-1 -> 0.06922010951 | AP144: =AP88/AP74-1 -> 0.00808134614 | AS144: =AS88/AS74-1 -> 0.05019537879
A145: PR2020/21 | B145: =B105/B88-1 -> 0.1033468711 | E145: =E105/E88-1 -> 0.4220656534 | H145: =H105/H88-1 -> 0.4253220651 | K145: =K105/K88-1 -> 0.1955709987 | N145: =N105/N88-1 -> 0.08473075242 | Q145: =Q105/Q88-1 -> 0.3271258042 | T145: =T105/T88-1 -> 0.1963181612 | W145: =W105/W88-1 -> 0.03743999622 | Z145: =Z105/Z88-1 -> 0.08992233283 | AC145: =AC105/AC88-1 -> 0.08302773577 | AF145: =AF105/AF88-1 -> 0.0364586953 | AH145: =AH105/AH88-1 -> 0.00368328 | AJ145: =AJ105/AJ88-1 -> 0.1218 | AL145: =AL105/AL88-1 -> 0.2492398125 | AN145: =AN105/AN88-1 -> 0.2147117741 | AP145: =AP105/AP88-1 -> 0.05069564351 | AS145: =AS105/AS88-1 -> 0.2350356379
A146: PR2021/22 | B146: =B117/B105-1 -> 0.101248045 | E146: =E117/E105-1 -> 0.1007475075 | H146: =H117/H105-1 -> 0.09102449006 | K146: =K117/K105-1 -> 0.1158079906 | N146: =N117/N105-1 -> 0.1090450219 | Q146: =Q117/Q105-1 -> 0.1225801445 | T146: =T117/T105-1 -> 0.1166655861 | W146: =W117/W105-1 -> 0.09431961321 | Z146: =Z117/Z105-1 -> 0.100692352 | AC146: =AC117/AC105-1 -> 0.1138543988 | AF146: =AF117/AF105-1 -> 0.1521057996 | AH146: =AH117/AH105-1 -> 0.02698584502 | AJ146: =AJ117/AJ105-1 -> 0 | AL146: =AL117/AL105-1 -> 0.04317346081 | AN146: =AN117/AN105-1 -> 0.6004527698 | AP146: =AP117/AP105-1 -> 0.05079698372 | AS146: =AS117/AS105-1 -> 0.268654883 | AY146: =AY117/AY105-1 -> -0.1270251239
A147: PR2021/22 (17 meses) | B147: =B122/B105-1 -> 0.1268168564 | E147: =E122/E105-1 -> 0.1135050606 | H147: 0.1188964597 | K147: 0.1584722753 | N147: 0.1564433368 | Q147: 0.1607270241 | T147: 0.1631409259 | W147: 0.1183118229 | Z147: 0.1173782289 | AC147: 0.1447107426 | AF147: 0.07906792536 | AH147: 0.007304307207 | AJ147: 0 | AL147: -0.09736379895 | AN147: 0.835662261 | AP147: 0.02378474592 | AS147: 0.2801489483 | AY147: -0.1307995861
A149: Acum. do período | B149: INPC | E149: IGP-M | H149: IGP-DI | K149: INCC | N149: INCC-DI MB | Q149: INCC-DI MS | T149: INCC-M | W149: SELIC | Z149: IPCA | AC149: IPCA 15 | AF149: IPCA BH Fixo | AH149: IPCA BH Cel | AJ149: IPCA BH Int | AL149: IPCA BH Gas | AN149: IPCA BH Die | AP149: IPCA BH Tel | AS149: IPCA BH Comb | AV149: ETM | AY149: IEE
A150: jan20 - jan21 | B150: =B99/B86-1 -> 0.05732033059 | E150: =E99/E86-1 -> 0.2631604163 | H150: =H99/H86-1 -> 0.2665579761 | K150: =K99/K86-1 -> 0.09781342657 | N150: =N99/N86-1 -> 0.03136208389 | Q150: =Q99/Q86-1 -> 0.1774291093 | T150: =T99/T86-1 -> 0.0969515949 | W150: =W99/W86-1 -> 0.02907946506 | Z150: =Z99/Z86-1 -> 0.04778634854 | AC150: =AC99/AC86-1 -> 0.0504043328 | AF150: =AF99/AF86-1 -> 0.04694873941 | AH150: =AH99/AH86-1 -> 0.00368328 | AJ150: =AJ99/AJ86-1 -> 0.1218 | AL150: =AL99/AL86-1 -> 0.01024097025 | AN150: =AN99/AN86-1 -> 0.006397832684 | AP150: =AP99/AP86-1 -> 0.05352547479 | AS150: =AS99/AS86-1 -> 0.008662451981
A151: fev20 - fev21 | B151: 0.06396881655 | E151: 0.2889315037 | H151: 0.2997119565 | K151: 0.1143276552 | N151: 0.03198053008 | Q151: 0.2123686988 | T151: 0.1058138609 | W151: 0.02651650564 | Z151: 0.0545826875 | AC151: 0.04800543501 | AF151: 0.04694873941 | AH151: 0.00368328 | AJ151: =AJ100/AJ87-1 -> 0.1218 | AL151: =AL100/AL87-1 -> 0.06219736645 | AN151: =AN100/AN87-1 -> 0.04046782113 | AP151: =AP100/AP87-1 -> 0.05352547479 | AS151: =AS100/AS87-1 -> 0.05321040361
A152: mar20 - mar21 | B152: 0.07129774221 | E152: 0.3273570327 | H152: 0.3277829277 | K152: 0.1251010812 | N152: 0.03146562112 | Q152: 0.2363819735 | T152: 0.1239961516 | W152: 0.02559531225 | Z152: 0.06173596657 | AC152: 0.05542993968 | AF152: 0.0387426723 | AH152: 0.00368328 | AJ152: =AJ101/AJ88-1 -> 0.1218 | AL152: 0.2093956549 | AN152: =AN101/AN88-1 -> 0.147563941 | AP152: =AP101/AP88-1 -> 0.05130876427 | AS152: =AS101/AS88-1 -> 0.1839592705
A153: abr20 - abr21 | B153: 0.07343648795 | E153: 0.3308970011 | H153: 0.3353598078 | K153: 0.132283055 | N153: 0.02930408255 | Q153: 0.2546238769 | T153: 0.1303786761 | W153: 0.02426655611 | Z153: 0.06428235042 | AC153: 0.06155020928 | AF153: 0.03770496733 | AH153: 0.00368328 | AJ153: =AJ102/AJ89-1 -> 0.1218 | AL153: =AL102/AL89-1 -> 0.2250196601 | AN153: =AN102/AN89-1 -> 0.1628332292 | AP153: =AP102/AP89-1 -> 0.05102662209 | AS153: =AS102/AS89-1 -> 0.199763959
A154: mai20 - mai21 | B154: 0.08623982984 | E154: 0.3744680338 | H154: 0.3800720053 | K154: 0.154879005 | N154: 0.04906672093 | Q154: 0.279971075 | T154: 0.148657908 | W154: 0.02416441545 | Z154: 0.07645289792 | AC154: 0.06632766297 | AF154: 0.03656349187 | AH154: 0.00368328 | AJ154: =AJ103/AJ90-1 -> 0.1218 | AL154: =AL103/AL90-1 -> 0.347733659 | AN154: =AN103/AN90-1 -> 0.2822301895 | AP154: =AP103/AP90-1 -> 0.05071997533 | AS154: =AS103/AS90-1 -> 0.3207215685
A155: jun20 - jun21 | B155: 0.09549600884 | E155: 0.3788540507 | H155: 0.3669635743 | K155: 0.1774694526 | N155: 0.07728661572 | Q155: 0.2952634415 | T155: 0.1726145494 | W155: 0.02487961406 | Z155: 0.08628598502 | AC155: 0.08155938293 | AF155: 0.03542327203 | AH155: 0.00368328 | AJ155: =AJ104/AJ91-1 -> 0.1218 | AL155: =AL104/AL91-1 -> 0.4526487859 | AN155: =AN104/AN91-1 -> 0.4130841343 | AP155: =AP104/AP91-1 -> 0.05041366587 | AS155: =AS104/AS91-1 -> 0.436414639
A156: jul20 - jul21 | B156: 0.1033599882 | E156: 0.3682641909 | H156: 0.3649454194 | K156: 0.1834541987 | N156: 0.08245759148 | Q156: 0.3013064613 | T156: 0.1833681915 | W156: 0.02641371188 | Z156: 0.09387026778 | AC156: 0.08912878473 | AF156: 0.03542327203 | AH156: 0.00368328 | AJ156: =AJ105/AJ92-1 -> 0.1218 | AL156: =AL105/AL92-1 -> 0.4434602583 | AN156: =AN105/AN92-1 -> 0.4364220797 | AP156: =AP105/AP92-1 -> 0.05041366587 | AS156: =AS105/AS92-1 -> 0.4406042415
A157: jan21 - jul21 | B157: =B105/B98-1 -> 0.05011908145 | E157: =E105/E98-1 -> 0.1599244635 | H157: 0.1592567382 | K157: 0.1065548838 | N157: 0.0603870786 | Q157: 0.1554198093 | T157: 0.1074511595 | W157: =W105/W98-1 -> 0.01641215835 | Z157: =Z105/Z98-1 -> 0.04761724891 | AC157: 0.04878006243 | AF157: -0.00219879 | AH157: 0 | AJ157: 0 | AL157: 0.2702370489 | AN157: 0.2433904923 | AP157: -0.0005831976123 | AS157: 0.2592362026
A158: jan22 - jul22 | B158: =B117/B110-1 -> 0.04978188113 | E158: =E117/E110-1 -> 0.08392617196 | H158: =H117/H110-1 -> 0.07417651097 | K158: =K117/K110-1 -> 0.08455257825 | N158: =N117/N110-1 -> 0.1007737419 | Q158: =Q117/Q110-1 -> 0.06950890731 | T158: =T117/T110-1 -> 0.08452243779 | W158: =W117/W110-1 -> 0.06503799981 | Z158: =Z117/Z110-1 -> 0.04769511322 | AC158: =AC117/AC110-1 -> 0.05791490614 | AF158: =AF117/AF110-1 -> 0.02737365236 | AH158: =AH117/AH110-1 -> 0.02698584502 | AJ158: =AJ117/AJ110-1 -> 0 | AL158: =AL117/AL110-1 -> -0.1064160919 | AN158: =AN117/AN110-1 -> 0.4125542228 | AP158: =AP117/AP110-1 -> 0.01806627643 | AS158: =AS117/AS110-1 -> 0.09983843851
A160: Acum. do período | B160: INPC | E160: IGP-M | H160: IGP-DI | K160: INCC | N160: INCC-DI MB | Q160: INCC-DI MS | T160: INCC-M | W160: SELIC | Z160: IPCA | AC160: IPCA 15 | AF160: IPCA BH Fixo | AH160: IPCA BH Cel | AJ160: IPCA BH Int | AL160: IPCA BH Gas | AN160: IPCA BH Die | AP160: IPCA BH Tel | AS160: IPCA BH Comb | AV160: ETM | AY160: IEE
A161: 2016-2022 | B161: =(1+B130)*(1+B131)*(1+B132)*(1+B133)*(1+B134)*(1+B135)-1 -> 0.3656006461 | E161: =(1+E130)*(1+E131)*(1+E132)*(1+E133)*(1+E134)*(1+E135)-1 -> 0.7850184863 | H161: =(1+H130)*(1+H131)*(1+H132)*(1+H133)*(1+H134)*(1+H135)-1 -> 0.7831730129 | K161: =(1+K130)*(1+K131)*(1+K132)*(1+K133)*(1+K134)*(1+K135)-1 -> 0.4816263706 | N161: =(1+N130)*(1+N131)*(1+N132)*(1+N133)*(1+N134)*(1+N135)-1 -> 0.3498694728 | Q161: =(1+Q130)*(1+Q131)*(1+Q132)*(1+Q133)*(1+Q134)*(1+Q135)-1 -> 0.6313888306 | T161: =(1+T130)*(1+T131)*(1+T132)*(1+T133)*(1+T134)*(1+T135)-1 -> 0.4840446392 | W161: =(1+W130)*(1+W131)*(1+W132)*(1+W133)*(1+W134)*(1+W135)-1 -> 0.5170195421 | Z161: =(1+Z130)*(1+Z131)*(1+Z132)*(1+Z133)*(1+Z134)*(1+Z135)-1 -> 0.3620727607 | AC161: =(1+AC130)*(1+AC131)*(1+AC132)*(1+AC133)*(1+AC134)*(1+AC135)-1 -> 0.3627832835 | AF161: =(1+AF130)*(1+AF131)*(1+AF132)*(1+AF133)*(1+AF134)*(1+AF135)-1 -> 0.06508082395 | AH161: =(1+AH130)*(1+AH131)*(1+AH132)*(1+AH133)*(1+AH134)*(1+AH135)-1 -> 0.1086306154 | AJ161: =(1+AJ130)*(1+AJ131)*(1+AJ132)*(1+AJ133)*(1+AJ134)*(1+AJ135)-1 -> 0.1493352541 | AL161: =(1+AL130)*(1+AL131)*(1+AL132)*(1+AL133)*(1+AL134)*(1+AL135)-1 -> 0.9207779037 | AN161: =(1+AN130)*(1+AN131)*(1+AN132)*(1+AN133)*(1+AN134)*(1+AN135)-1 -> 0.7765169261 | AP161: =(1+AP130)*(1+AP131)*(1+AP132)*(1+AP133)*(1+AP134)*(1+AP135)-1 -> 0.1087285833 | AS161: =(1+AS130)*(1+AS131)*(1+AS132)*(1+AS133)*(1+AS134)*(1+AS135)-1 -> 0.860726516 | AV161: =(1+AV130)*(1+AV131)*(1+AV132)*(1+AV133)*(1+AV134)*(1+AV135)-1 -> 0 | AY161: =(1+AY130)*(1+AY131)*(1+AY132)*(1+AY133)*(1+AY134)*(1+AY135)-1 -> 0
A162: 2017-2022 | B162: =(1+B131)*(1+B132)*(1+B133)*(1+B134)*(1+B135)-1 -> 0.2812920926 | E162: =(1+E131)*(1+E132)*(1+E133)*(1+E134)*(1+E135)-1 -> 0.665273537 | H162: =(1+H131)*(1+H132)*(1+H133)*(1+H134)*(1+H135)-1 -> 0.6641323198 | K162: =(1+K131)*(1+K132)*(1+K133)*(1+K134)*(1+K135)-1 -> 0.396421657 | N162: =(1+N131)*(1+N132)*(1+N133)*(1+N134)*(1+N135)-1 -> 0.234369619 | Q162: =(1+Q131)*(1+Q132)*(1+Q133)*(1+Q134)*(1+Q135)-1 -> 0.5921375557 | T162: =(1+T131)*(1+T132)*(1+T133)*(1+T134)*(1+T135)-1 -> 0.3955992967 | W162: =(1+W131)*(1+W132)*(1+W133)*(1+W134)*(1+W135)-1 -> 0.3303876111 | Z162: =(1+Z131)*(1+Z132)*(1+Z133)*(1+Z134)*(1+Z135)-1 -> 0.2814918478 | AC162: =(1+AC131)*(1+AC132)*(1+AC133)*(1+AC134)*(1+AC135)-1 -> 0.2786083359 | AF162: =(1+AF131)*(1+AF132)*(1+AF133)*(1+AF134)*(1+AF135)-1 -> 0.07353088056 | AH162: =(1+AH131)*(1+AH132)*(1+AH133)*(1+AH134)*(1+AH135)-1 -> 0.1054248833 | AJ162: =(1+AJ131)*(1+AJ132)*(1+AJ133)*(1+AJ134)*(1+AJ135)-1 -> 0.1493352541 | AL162: =(1+AL131)*(1+AL132)*(1+AL133)*(1+AL134)*(1+AL135)-1 -> 0.8641334274 | AN162: =(1+AN131)*(1+AN132)*(1+AN133)*(1+AN134)*(1+AN135)-1 -> 0.7235122717 | AP162: =(1+AP131)*(1+AP132)*(1+AP133)*(1+AP134)*(1+AP135)-1 -> 0.1101297907 | AS162: =(1+AS131)*(1+AS132)*(1+AS133)*(1+AS134)*(1+AS135)-1 -> 0.8055850044 | AV162: =(1+AV131)*(1+AV132)*(1+AV133)*(1+AV134)*(1+AV135)-1 -> 0 | AY162: =(1+AY131)*(1+AY132)*(1+AY133)*(1+AY134)*(1+AY135)-1 -> 0
A163: 2018-2022 | B163: =(1+B132)*(1+B133)*(1+B134)*(1+B135)-1 -> 0.2553449785 | E163: =(1+E132)*(1+E133)*(1+E134)*(1+E135)-1 -> 0.6741900899 | H163: =(1+H132)*(1+H133)*(1+H134)*(1+H135)-1 -> 0.6712026956 | K163: =(1+K132)*(1+K133)*(1+K134)*(1+K135)-1 -> 0.3395415535 | N163: =(1+N132)*(1+N133)*(1+N134)*(1+N135)-1 -> 0.1733086215 | Q163: =(1+Q132)*(1+Q133)*(1+Q134)*(1+Q135)-1 -> 0.5439742245 | T163: =(1+T132)*(1+T133)*(1+T134)*(1+T135)-1 -> 0.3415953514 | W163: =(1+W132)*(1+W133)*(1+W134)*(1+W135)-1 -> 0.2099311896 | Z163: =(1+Z132)*(1+Z133)*(1+Z134)*(1+Z135)-1 -> 0.2448031435 | AC163: =(1+AC132)*(1+AC133)*(1+AC134)*(1+AC135)-1 -> 0.2421259353 | AF163: =(1+AF132)*(1+AF133)*(1+AF134)*(1+AF135)-1 -> 0.1406431752 | AH163: =(1+AH132)*(1+AH133)*(1+AH134)*(1+AH135)-1 -> 0.03476216345 | AJ163: =(1+AJ132)*(1+AJ133)*(1+AJ134)*(1+AJ135)-1 -> 0.1375052 | AL163: =(1+AL132)*(1+AL133)*(1+AL134)*(1+AL135)-1 -> 0.7151740166 | AN163: =(1+AN132)*(1+AN133)*(1+AN134)*(1+AN135)-1 -> 0.609221032 | AP163: =(1+AP132)*(1+AP133)*(1+AP134)*(1+AP135)-1 -> 0.09723238305 | AS163: =(1+AS132)*(1+AS133)*(1+AS134)*(1+AS135)-1 -> 0.6714370656 | AV163: =(1+AV132)*(1+AV133)*(1+AV134)*(1+AV135)-1 -> 0 | AY163: =(1+AY132)*(1+AY133)*(1+AY134)*(1+AY135)-1 -> 0
A164: 2019-2022 | B164: =(1+B133)*(1+B134)*(1+B135)-1 -> 0.2136681733 | E164: =(1+E133)*(1+E134)*(1+E135)-1 -> 0.556631191 | H164: =(1+H133)*(1+H134)*(1+H135)-1 -> 0.5603833001 | K164: =(1+K133)*(1+K134)*(1+K135)-1 -> 0.2900998527 | N164: =(1+N133)*(1+N134)*(1+N135)-1 -> 0.1498118929 | Q164: =(1+Q133)*(1+Q134)*(1+Q135)-1 -> 0.4557762396 | T164: =(1+T133)*(1+T134)*(1+T135)-1 -> 0.2905199839 | W164: =(1+W133)*(1+W134)*(1+W135)-1 -> 0.1369234117 | Z164: =(1+Z133)*(1+Z134)*(1+Z135)-1 -> 0.1998625078 | AC164: =(1+AC133)*(1+AC134)*(1+AC135)-1 -> 0.195955536 | AF164: =(1+AF133)*(1+AF134)*(1+AF135)-1 -> 0.156480753 | AH164: =(1+AH133)*(1+AH134)*(1+AH135)-1 -> 0.02726314251 | AJ164: =(1+AJ133)*(1+AJ134)*(1+AJ135)-1 -> 0.1218 | AL164: =(1+AL133)*(1+AL134)*(1+AL135)-1 -> 0.5127590895 | AN164: =(1+AN133)*(1+AN134)*(1+AN135)-1 -> 0.4715604053 | AP164: =(1+AP133)*(1+AP134)*(1+AP135)-1 -> 0.09323940192 | AS164: =(1+AS133)*(1+AS134)*(1+AS135)-1 -> 0.4961123024 | AV164: =(1+AV133)*(1+AV134)*(1+AV135)-1 -> 0 | AY164: =(1+AY133)*(1+AY134)*(1+AY135)-1 -> 0
A165: 2020-2022 | B165: =(1+B134)*(1+B135)-1 -> 0.1616096088 | E165: =(1+E134)*(1+E135)-1 -> 0.4504859589 | H165: =(1+H134)*(1+H135)-1 -> 0.4491254134 | K165: =(1+K134)*(1+K135)-1 -> 0.2387744272 | N165: =(1+N134)*(1+N135)-1 -> 0.09583364142 | Q165: =(1+Q134)*(1+Q135)-1 -> 0.4101639407 | T165: =(1+T134)*(1+T135)-1 -> 0.2392997535 | W165: =(1+W134)*(1+W135)-1 -> 0.07311654211 | Z165: =(1+Z134)*(1+Z135)-1 -> 0.150328886 | AC165: =(1+AC134)*(1+AC135)-1 -> 0.1509176785 | AF165: =(1+AF134)*(1+AF135)-1 -> 0.1714759676 | AH165: =(1+AH134)*(1+AH135)-1 -> 0.00368328 | AJ165: =(1+AJ134)*(1+AJ135)-1 -> 0.1218 | AL165: =(1+AL134)*(1+AL135)-1 -> 0.4616703933 | AN165: =(1+AN134)*(1+AN135)-1 -> 0.3830845695 | AP165: =(1+AP134)*(1+AP135)-1 -> 0.08676202414 | AS165: =(1+AS134)*(1+AS135)-1 -> 0.4293922985 | AV165: =(1+AV134)*(1+AV135)-1 -> 0 | AY165: =(1+AY134)*(1+AY135)-1 -> 0
A166: 2021-2022 | B166: =B135 -> 0.1016017767 | E166: =E135 -> 0.1779252084 | H166: =H135 -> 0.1774391627 | K166: =K135 -> 0.1384443744 | N166: =N135 -> 0.06835489073 | Q166: =Q135 -> 0.2127541225 | T166: =T135 -> 0.1402738708 | W166: =W135 -> 0.04435687759 | Z166: =Z135 -> 0.1006105489 | AC166: =AC135 -> 0.1042365308 | AF166: =AF135 -> 0.1189430041 | AH166: =AH135 -> 0 | AJ166: =AJ135 -> 0 | AL166: =AL135 -> 0.4828798576 | AN166: =AN135 -> 0.4087868099 | AP166: =AP135 -> 0.03154793135 | AS166: =AS135 -> 0.452518935 | AV166: =AV135 -> 0 | AY166: =AY135 -> 0
A168: Para procv na planilha de compensação itens não adm.:
B169: 2 | C169: 3 | D169: 4 | E169: 5 | F169: 6 | G169: 7 | H169: 8 | I169: 9 | J169: 10 | K169: 11 | L169: 12 | M169: 13 | N169: 14 | O169: 15 | P169: 16 | Q169: 17 | R169: 18 | S169: 19 | T169: 20 | U169: 21 | V169: 22 | W169: 23 | X169: 24 | Y169: 25 | Z169: 26 | AA169: 27 | AB169: 28 | AC169: 29 | AD169: 30 | AE169: 31 | AF169: 32 | AG169: 33 | AH169: 34 | AI169: 35 | AJ169: 36 | AK169: 37 | AL169: 38 | AM169: 39 | AN169: 40 | AO169: 41 | AP169: 42 | AQ169: 43 | AR169: 44 | AS169: 45 | AT169: 46 | AU169: 47 | AV169: 48 | AW169: 49 | AX169: 50 | AY169: 51 | AZ169: 52 | BA169: 53
A173: Ajuste índices itens não administráveis
A174: Mês | B174: INPC | C174: Δ% | D174: Acum até dez/22 | E174: IGP-M | F174: Δ% | G174: Acum até dez/22 | H174: IGP-DI | I174: Δ% | J174: Acum até dez/22 | K174: INCC | L174: Δ% | M174: Acum até dez/22 | N174: INCC-DI MB | O174: Δ% | P174: Acum até dez/22 | Q174: INCC-DI MS | R174: Δ% | S174: Acum até dez/22 | T174: INCC-M | U174: Δ% | V174: Acum até dez/22 | W174: SELIC | X174: Δ% | Y174: Acum até dez/22 | Z174: IPCA | AA174: Δ% | AB174: Acum até dez/22 | AC174: IPCA 15 | AD174: Δ% | AE174: Acum até dez/22 | AF174: IPCA BH Fixo | AG174: Δ% | AH174: IPCA BH Cel | AI174: Δ% | AJ174: IPCA BH Int | AK174: Δ% | AL174: IPCA BH Gas | AM174: Δ% | AN174: IPCA BH Die | AO174: Δ% | AP174: IPCA BH Tel | AQ174: Δ% | AR174: Acum até dez/22 | AS174: IPCA BH Comb | AT174: Δ% | AU174: Acum até dez/22 | AV174: ETM | AW174: Δ% | AX174: Acum até dez/22 | AY174: IEE | AZ174: Δ% | BA174: Acum até dez/22
A175: jul/21 inco | B175: 162.4389735 | C175: 0.0102 | D175: =B$193/B175-1 -> 0.1250464042 | E175: 212.5801286 | F175: 0.0078 | G175: 0.07735739831 | H175: 212.8034608 | I175: 0.0145 | J175: 0.1062185384 | K175: 178.9448771 | L175: 0.0085 | M175: 0.08550738073 | N175: 172.4804325 | O175: 0.0048 | P175: 0.03911579647 | Q175: 185.813844 | R175: 0.0121 | S175: 0.131866513 | T175: 178.260966 | U175: 0.0124 | V175: 0.08951238393 | W175: 200.7425521 | X175: 0.0036 | Y175: 0.05543715907 | Z175: 161.7059321 | AA175: 0.0096 | AB175: 0.08756946285 | AC175: 161.4715908 | AD175: 0.0072 | AE175: 0.11730385 | AF175: 88.11028476 | AG175: 0 | AH175: 129.6902359 | AI175: 0 | AJ175: 114.9335254 | AK175: 0 | AL175: 213.0569415 | AM175: 0.0054 | AN175: 217.1821345 | AO175: 0.0094 | AP175: 110.9113487 | AQ175: 0 | AR175: 0.04967250539 | AS175: 214.7070187 | AT175: 0.007014619947 | AU175: 0.3205149849 | AV175: 185.3992417 | AW175: 0 | AX175: 0 | AY175: =AY105 -> 151.0299423 | AZ175: =AZ105 -> 0.06412550935 | BA175: -0.1325303681
A176: jul/21 prev | B176: 162.1837497 | C176: 0.007477777778 | D176: 0.1268168564 | E176: 213.6350795 | F176: 0.0062 | G176: =E$188/E176-1 -> 0.1007475075 | H176: 220.89723 | I176: 0.02719444444 | J176: =H$188/H176-1 -> 0.09102449006 | K176: 177.9739637 | L176: 0.01262638889 | M176: =K$188/K176-1 -> 0.1158079906 | N176: 168.5616054 | O176: 0.004351388889 | P176: =N$188/N176-1 -> 0.1090450219 | Q176: 188.2938045 | R176: 0.0215375 | S176: =Q$188/Q176-1 -> 0.1225801445 | T176: 176.2026437 | U176: 0.0121375 | V176: =T$188/T176-1 -> 0.1166655861 | W176: 200.7923837 | X176: 0.003474495003 | Y176: =W$188/W176-1 -> 0.09431961321 | Z176: 160.6169692 | AA176: 0.0034 | AB176: =Z$188/Z176-1 -> 0.100692352 | AC176: 160.9441931 | AD176: 0.006338888889 | AE176: =AC$188/AC176-1 -> 0.1138543988 | AF176: 88.76561325 | AG176: 0.003286111111 | AH176: 129.7780618 | AI176: 0.0003520833333 | AJ176: 117.376718 | AK176: 0.01099583333 | AL176: 224.3816912 | AM176: 0.03321388889 | AN176: 223.4003756 | AO176: 0.03081736111 | AP176: 111.9734644 | AQ176: 0.004824997671 | AR176: =AP$188/AP176-1 -> 0.04586186133 | AS176: 223.9891649 | AT176: 0.03225646285 | AU176: =AS$188/AS176-1 -> 0.2673227513 | AV176: 185.3992417 | AW176: 0 | AX176: 0 | AY176: 125.9180919 | AZ176: -0.09946277112 | BA176: =$AY$188/AY176-1 -> -0.1270251239
A177: 2021-08-01 | B177: =B176*(1+C177) -> 163.6109667 | C177: 0.0088 | D177: 0.1169873676 | E177: =E176*(1+F177) -> 215.0450711 | F177: 0.0066 | G177: =E$188/E177-1 -> 0.09353020809 | H177: =H176*(1+I177) -> 220.5879739 | I177: -0.0014 | J177: =H$188/H177-1 -> 0.09255406575 | K177: =K176*(1+L177) -> 178.792644 | L177: 0.0046 | M177: =K$188/K177-1 -> 0.1106987762 | N177: =N176*(1+O177) -> 168.5616054 | O177: 0 | P177: =N$188/N177-1 -> 0.1090450219 | Q177: =Q176*(1+R177) -> 190.0261075 | R177: 0.0092 | S177: =Q$188/Q177-1 -> 0.1123465562 | T177: =T176*(1+U177) -> 177.1893785 | U177: 0.0056 | V177: =T$188/T177-1 -> 0.1104470824 | W177: =W176*(1+X177) -> 201.6557909 | X177: 0.0043 | Y177: =W$188/W177-1 -> 0.08963418621 | Z177: =Z176*(1+AA177) -> 162.0143368 | AA177: 0.0087 | AB177: =Z$188/Z177-1 -> 0.09119892137 | AC177: =AC176*(1+AD177) -> 162.3765964 | AD177: 0.0089 | AE177: =AC$188/AC177-1 -> 0.1040285447 | AF177: =AF176*(1+AG177) -> 89.48461472 | AG177: 0.0081 | AH177: =AH176*(1+AI177) -> 129.7780618 | AI177: 0 | AJ177: =AJ176*(1+AK177) -> 117.376718 | AK177: 0 | AL177: =AL176*(1+AM177) -> 230.5746259 | AM177: 0.0276 | AN177: =AN176*(1+AO177) -> 223.7578162 | AO177: 0.0016 | AP177: =AVERAGE(AF177,AH177,AJ177) -> 112.2131315 | AQ177: =AP177/AP176-1 -> 0.002140392433 | AR177: =AP$188/AP177-1 -> 0.04362808767 | AS177: =0.4*AN177+0.6*AL177 -> 227.847902 | AT177: =AS177/AS176-1 -> 0.01722733797 | AU177: =AS$188/AS177-1 -> 0.2458599017 | AY177: =AY176*(1+AZ177) -> 126.1392601 | AZ177: =AZ106 -> 0.001756445246 | BA177: =$AY$188/AY177-1 -> -0.128555768
A178: 2021-09-01 | B178: 165.5742983 | C178: 0.012 | D178: 0.1037424581 | E178: 213.6687826 | F178: -0.0064 | G178: 0.1005738809 | H178: 219.37474 | I178: -0.0055 | J178: 0.09859634565 | K178: 179.7044864 | L178: 0.0051 | M178: 0.1050629552 | N178: 169.1852833 | O178: 0.0037 | P178: 0.1049566822 | Q178: 191.2612772 | R178: 0.0065 | S178: 0.1051629967 | T178: 178.181639 | U178: 0.0056 | V178: 0.1042632085 | W178: 202.5430764 | X178: 0.0044 | Y178: 0.0848607987 | Z178: 163.8937031 | AA178: 0.0116 | AB178: 0.07868616189 | AC178: 164.2276896 | AD178: 0.0114 | AE178: 0.09158448163 | AF178: 91.13113163 | AG178: 0.0184 | AH178: 129.7780618 | AI178: 0 | AJ178: 117.376718 | AK178: 0 | AL178: =AL177*(1+AM178) -> 238.2297034 | AM178: 0.0332 | AN178: 227.0694319 | AO178: 0.0148 | AP178: 112.7619705 | AQ178: 0.004891040494 | AR178: 0.03854850488 | AS178: 233.7655948 | AT178: 0.02597211898 | AU178: 0.2143214018 | AY178: 136.2099377 | AZ178: 0.07983777241 | BA178: =$AY$188/AY178-1 -> -0.1929859704
A179: 2021-10-01 | B179: 167.4949602 | C179: 0.0116 | D179: 0.09108586209 | E179: 215.0362628 | F179: 0.0064 | G179: 0.09357500092 | H179: 222.8847358 | I179: 0.016 | J179: 0.0812956158 | K179: 181.249945 | L179: 0.0086 | M179: 0.09564044731 | N179: 169.1852833 | O179: 0 | P179: 0.1049566822 | Q179: 194.4744667 | R179: 0.0168 | S179: 0.08690302585 | T179: 179.6070921 | U179: 0.008 | V179: 0.09549921474 | W179: 203.5355375 | X179: 0.0049 | Y179: 0.07957090128 | Z179: 165.9423744 | AA179: 0.0125 | AB179: 0.06536904878 | AC179: 166.1984218 | AD179: 0.012 | AE179: 0.07864079213 | AF179: 99.54253508 | AG179: 0.0923 | AH179: 129.7780618 | AI179: 0 | AJ179: 117.376718 | AK179: 0 | AL179: 245.01925 | AM179: 0.0285 | AN179: 240.0123895 | AO179: 0.057 | AP179: 115.5657716 | AQ179: 0.02486477611 | AR179: 0.01335174073 | AS179: 243.0165058 | AT179: 0.03957344956 | AU179: 0.1680958208 | AY179: 136.593402 | AZ179: 0.00281524476 | BA179: -0.1952515343
A180: 2021-11-01 | B180: 168.9019178 | C180: 0.0084 | D180: 0.08199708656 | E180: 215.0792701 | F180: 0.0002 | G180: 0.09335632966 | H180: 221.5920044 | I180: -0.0058 | J180: 0.08760371736 | K180: 182.4643197 | L180: 0.0067 | M180: 0.08834851227 | N180: 169.8281874 | O180: 0.0038 | P180: 0.1007737419 | Q180: 196.3219741 | R180: 0.0095 | S180: 0.07667461698 | T180: 180.8823025 | U180: 0.0071 | V180: 0.0877760051 | W180: 204.7363972 | X180: 0.0059 | Y180: 0.07323879241 | Z180: 167.518827 | AA180: 0.0095 | AB180: 0.05534328755 | AC180: 168.1429434 | AD180: 0.0117 | AE180: 0.06616664241 | AF180: 99.54253508 | AG180: 0 | AH180: 129.7780618 | AI180: 0 | AJ180: 117.376718 | AK180: 0 | AL180: 262.7586437 | AM180: 0.0724 | AN180: 254.3891316 | AO180: 0.0599 | AP180: 115.5657716 | AQ180: 0 | AR180: 0.01335174073 | AS180: 259.4108389 | AT180: 0.06746180889 | AU180: 0.09427410989 | AY180: 136.8650348 | AZ180: 0.001988623452 | BA180: -0.1968486998
A181: 2021-12-01 | B181: 170.1349018 | C181: 0.0073 | D181: 0.07415574959 | E181: 216.9504597 | F181: 0.0087 | G181: 0.08392617196 | H181: 224.3619044 | I181: 0.0125 | J181: 0.07417651097 | K181: 183.1029448 | L181: 0.0035 | M181: 0.08455257825 | N181: 169.8281874 | O181: 0 | P181: 0.1007737419 | Q181: 197.6373313 | R181: 0.0067 | S181: 0.06950890731 | T181: 181.4249494 | U181: 0.003 | V181: 0.08452243779 | W181: 206.3128674 | X181: 0.0077 | Y181: 0.06503799981 | Z181: 168.7417144 | AA181: 0.0073 | AB181: 0.04769511322 | AC181: 169.4544583 | AD181: 0.0078 | AE181: 0.05791490614 | AF181: 99.54253508 | AG181: 0 | AH181: 129.7780618 | AI181: 0 | AJ181: 117.376718 | AK181: 0 | AL181: 261.9440919 | AM181: -0.0031 | AN181: 253.1171859 | AO181: -0.005 | AP181: 115.5657716 | AQ181: 0 | AR181: 0.01335174073 | AS181: 258.4133295 | AT181: -0.003845287826 | AU181: 0.09849815146 | AY181: 135.5380871 | AZ181: -0.009695300717 | BA181: -0.188985672
A182: 2022-01-01 | B182: 171.2748057 | C182: 0.0067 | D182: 0.067006804 | E182: 220.8989581 | F182: 0.0182 | G182: 0.06455133762 | H182: 228.8715787 | I182: 0.0201 | J182: 0.05301099007 | K182: 184.4029757 | L182: 0.0071 | M182: 0.0769065418 | N182: 170.2697407 | O182: 0.0026 | P182: 0.09791915215 | Q182: 199.8706332 | R182: 0.0113 | S182: 0.0575584963 | T182: 182.5860691 | U182: 0.0064 | V182: 0.07762563373 | W182: 207.8189514 | X182: 0.0073 | Y182: 0.05731956697 | Z182: 169.6529197 | AA182: 0.0054 | AB182: 0.04206794631 | AC182: 170.4372942 | AD182: 0.0058 | AE182: 0.05181438272 | AF182: 99.54253508 | AG182: 0 | AH182: 129.7780618 | AI182: 0 | AJ182: 117.376718 | AK182: 0 | AL182: 262.7561186 | AM182: 0.0031 | AN182: 260.2297789 | AO182: 0.0281 | AP182: 115.5657716 | AQ182: 0 | AR182: 0.01335174073 | AS182: 261.7455827 | AT182: 0.01289505146 | AU182: 0.0845132967 | AY182: 136.8320572 | AZ182: 0.00954691131 | BA182: -0.1966551342
A183: 2022-02-01 | B183: 172.9875537 | C183: 0.01 | D183: 0.0564423802 | E183: 224.941409 | F183: 0.0183 | G183: 0.04542014889 | H183: 232.3046524 | I183: 0.015 | J183: 0.0374492513 | K183: 185.103707 | L183: 0.0038 | M183: 0.07282978861 | N183: 170.695415 | O183: 0.0025 | P183: 0.09518119915 | Q183: 200.8899734 | R183: 0.0051 | S183: 0.05219231549 | T183: 183.4624822 | U183: 0.0048 | V183: 0.07247774058 | W183: 209.3983754 | X183: 0.0076 | Y183: 0.0493445484 | Z183: 171.3664142 | AA183: 0.0101 | AB183: 0.0316482985 | AC183: 172.1246234 | AD183: 0.0099 | AE183: 0.04150349809 | AF183: 99.54253508 | AG183: 0 | AH183: 129.7780618 | AI183: 0 | AJ183: 117.376718 | AK183: 0 | AL183: 262.6510161 | AM183: -0.0004 | AN183: 266.9957531 | AO183: 0.026 | AP183: 115.5657716 | AQ183: 0 | AR183: 0.01335174073 | AS183: 264.3889109 | AT183: 0.01009884562 | AU183: 0.07367046443 | AY183: 135.7107035 | AZ183: -0.008195109663 | BA183: -0.1900172366
A184: 2022-03-01 | B184: 175.9456409 | C184: =C113 -> 0.0171 | D184: 0.03868093619 | E184: 228.8553895 | F184: =F113 -> 0.0174 | G184: 0.0275409366 | H184: 237.8102727 | I184: =I113 -> 0.0237 | J184: 0.01343093807 | K184: 186.6955989 | L184: =L113 -> 0.0086 | M184: 0.06368212236 | N184: 172.7608296 | O184: =O113 -> 0.0121 | P184: 0.08208793514 | Q184: 201.9546902 | R184: =R113 -> 0.0053 | S184: 0.04664509648 | T184: 184.8017583 | U184: =U113 -> 0.0073 | V184: 0.06470539122 | W184: 211.3457803 | X184: =X113 -> 0.0093 | Y184: 0.03967556564 | Z184: 174.1425501 | AA184: =AA113 -> 0.0162 | AB184: 0.01520202568 | AC184: 173.7598073 | AD184: =AD113 -> 0.0095 | AE184: 0.03170232599 | AF184: 100.5877317 | AG184: =AG113 -> 0.0105 | AH184: 128.9864156 | AI184: =AI113 -> -0.0061 | AJ184: 117.376718 | AK184: =AK113 -> 0 | AL184: 278.2787516 | AM184: =AM113 -> 0.0595 | AN184: 300.9309133 | AO184: =AO113 -> 0.1271 | AP184: 115.6502885 | AQ184: =AQ113 -> 0.0006862779281 | AR184: 0.01261118693 | AS184: 287.3396163 | AT184: =AT113 -> 0.08719093007 | AU184: -0.01208692192 | AY184: 137.080936 | AZ184: 0.01009671653 | BA184: -0.1981136557
A185: 2022-04-01 | B185: 177.7754756 | C185: =C114 -> 0.0104 | D185: 0.02798984184 | E185: 232.0822505 | F185: =F114 -> 0.0141 | G185: 0.01325405443 | H185: 238.7852948 | I185: =I114 -> 0.0041 | J185: 0.009292837436 | K185: 188.4692071 | L185: =L114 -> 0.0095 | M185: 0.05367223611 | N185: 173.1236273 | O185: =O114 -> 0.0021 | P185: 0.07982031248 | Q185: 205.2465517 | R185: =R114 -> 0.0163 | S185: 0.02985840448 | T185: 186.4095336 | U185: =U114 -> 0.0087 | V185: 0.0555223468 | W185: 213.0999503 | X185: =X114 -> 0.0083 | Y185: 0.03111729212 | Z185: 175.9884611 | AA185: =AA114 -> 0.0106 | AB185: 0.004553755868 | AC185: 176.765852 | AD185: =AD114 -> 0.0173 | AE185: 0.01415740292 | AF185: 100.5877317 | AG185: =AG114 -> 0 | AH185: 128.9864156 | AI185: =AI114 -> 0 | AJ185: 117.376718 | AK185: =AK114 -> 0 | AL185: 286.9888765 | AM185: =AM114 -> 0.0313 | AN185: 314.2922459 | AO185: =AO114 -> 0.0444 | AP185: 115.6502885 | AQ185: =AQ114 -> 0 | AR185: 0.01261118693 | AS185: 297.9102243 | AT185: =AT114 -> 0.0368631244 | AU185: -0.04714057571 | AY185: 103.17606 | AZ185: -0.247334728 | BA185: 0.06539569992
A186: 2022-05-01 | B186: 178.5754652 | C186: 0.0045 | D186: 0.02338461109 | E186: 233.2890782 | F186: 0.0052 | G186: 0.00801239 | H186: 240.4329133 | I186: 0.0069 | J186: 0.00237644 | K186: 192.766305 | L186: 0.0228 | M186: 0.03018404 | N186: 178.455835 | O186: 0.0308 | P186: 0.0475556 | Q186: 208.4483979 | R186: 0.0156 | S186: 0.01403939 | T186: 189.1870356 | U186: 0.0149 | V186: 0.04002596 | W186: 215.2948797 | X186: 0.0103 | Y186: 0.02060506 | Z186: 176.8156069 | AA186: 0.0047 | AB186: -0.00014556 | AC186: 177.8087705 | AD186: 0.0059 | AE186: 0.00820897 | AF186: 100.5776729 | AG186: -0.0001 | AH186: 131.6822317 | AI186: 0.0209 | AJ186: 117.376718 | AK186: 0 | AL186: 287.5054565 | AM186: 0.0018 | AN186: 322.3066982 | AO186: 0.0255 | AP186: 116.5455409 | AQ186: 0.007868971727 | AR186: 0.004832745758 | AS186: 301.4259532 | AT186: 0.0119377425 | AU186: -0.0582544011 | AY186: 103.4401827 | AZ186: 0.002559922381 | BA186: 0.06267533355
A187: 2022-06-01 | B187: 179.6826331 | C187: 0.0062 | D187: 0.017078723 | E187: 234.6654838 | F187: 0.0059 | G187: 0.0021 | H187: 241.9235974 | I187: 0.0062 | J187: -0.0038 | K187: 196.8915039 | L187: 0.0214 | M187: 0.0086 | N187: 184.4341055 | O187: 0.0335 | P187: 0.0136 | Q187: 210.5537267 | R187: 0.0101 | S187: 0.0039 | T187: 194.5031914 | U187: 0.0281 | V187: 0.0116 | W187: 217.4908875 | X187: 0.0102 | Y187: 0.0103 | Z187: 178.0002714 | AA187: 0.0067 | AB187: -0.0068 | AC187: 179.035651 | AD187: 0.0069 | AE187: 0.0013 | AF187: 102.2673778 | AG187: 0.0168 | AH187: 131.6822317 | AI187: 0 | AJ187: 117.376718 | AK187: 0 | AL187: 285.0329096 | AM187: -0.0086 | AN187: 340.67818 | AO187: 0.057 | AP187: 117.1087759 | AQ187: 0.004820199465 | AR187: 0 | AS187: 307.2910177 | AT187: 0.01983666225 | AU187: -0.07622888919 | AY187: 103.4620226 | AZ187: 0.0002111357883 | BA187: 0.06245101211
A188: 2022-07-01 | B188: 178.6045373 | C188: -0.006 | D188: 0.02321803119 | E188: 235.1582813 | F188: 0.0021 | G188: =E$193/E188-1 -> 0.01158989966 | H188: 241.0042877 | I188: -0.0038 | J188: =H$193/H188-1 -> 0.02554660315 | K188: 198.5847708 | L188: 0.0086 | M188: =K$193/K188-1 -> 0.03823622441 | N188: 186.9424093 | O188: 0.0136 | P188: =N$193/N188-1 -> 0.04273795378 | Q188: 211.3748863 | R188: 0.0039 | S188: =Q$193/Q188-1 -> 0.03398143094 | T188: 196.7594284 | U188: 0.0116 | V188: =T$193/T188-1 -> 0.04151589718 | W188: 219.7310437 | X188: 0.0103 | Y188: =W$193/W188-1 -> 0.02192431664 | Z188: 176.7898696 | AA188: -0.0068 | AB188: =Z$193/Z188-1 -> 0.01515943751 | AC188: 179.2683974 | AD188: 0.0013 | AE188: =AC$193/AC188-1 -> 0.02770231361 | AF188: 102.2673778 | AG188: 0 | AH188: 131.6822317 | AI188: 0 | AJ188: 117.376718 | AK188: 0 | AL188: 234.0690253 | AM188: -0.1788 | AN188: 357.5417499 | AO188: =AO117 -> 0.0495 | AP188: =AP187*(1+AQ188) -> 117.1087759 | AQ188: 0 | AR188: =AP$193/AP188-1 -> -0.0235023095 | AS188: =AS187*(1+AT188) -> 283.8665648 | AT188: -0.07622888919 | AU188: =AS$193/AS188-1 -> 0.00906031798 | AY188: 109.9233307 | AZ188: =AZ117 -> 0.06245101211 | BA188: =AY$193/AY188-1 -> -0.004323677944
A189: 2022-08-01 | B189: 178.0508632 | C189: -0.0031 | D189: 0.02639987079 | E189: 233.5121733 | F189: -0.007 | G189: 0.01872094629 | H189: 239.6787641 | I189: -0.0055 | J189: 0.03121830382 | K189: 198.7634971 | L189: 0.0009 | M189: 0.03730265202 | N189: 187.4658481 | O189: 0.0028 | P189: 0.03982643975 | Q189: 211.1635114 | R189: -0.001 | S189: 0.03501644739 | T189: 197.4087345 | U189: 0.0033 | V189: 0.03809019952 | W189: 222.3018969 | X189: 0.0117 | Y189: 0.01010607556 | Z189: 176.1534261 | AA189: -0.0036 | AB189: 0.01882721548 | AC189: 177.9597381 | AD189: -0.0073 | AE189: 0.03525970949 | AF189: 92.44970956 | AG189: -0.096 | AH189: 128.0609703 | AI189: -0.0275 | AJ189: 117.376718 | AK189: 0 | AL189: 203.1953209 | AM189: -0.1319 | AN189: 344.1696884 | AO189: =AO118 -> -0.0374 | AP189: 112.6149608 | AQ189: -0.038373 | AR189: 0.01546409419 | AS189: 260.1171525 | AT189: -0.083664 | AU189: 0.1011903035 | AY189: 109.9268959 | AZ189: 3.243388909e-05 | BA189: -0.004355970552
A190: 2022-09-01 | B190: 179.3135406 | C190: 0.007091666667 | D190: 0.01917224098 | E190: 233.8488979 | F190: 0.001442 | G190: 0.01725406592 | H190: 241.354598 | I190: 0.006992 | J190: 0.02405808966 | K190: 200.5291133 | L190: 0.008883 | M190: 0.02816942304 | N190: 189.1451671 | O190: 0.008958 | P190: 0.03059437534 | Q190: 213.0306191 | R190: 0.008842 | S190: 0.02594504133 | T190: 199.1986395 | U190: 0.009067 | V190: 0.02876241074 | W190: 222.8614307 | X190: 0.002517 | Y190: 0.007570021813 | Z190: 176.3968701 | AA190: 0.001382 | AB190: 0.01742113947 | AC190: 179.569206 | AD190: 0.009044 | AE190: 0.02598073968 | AF190: 93.60588563 | AG190: 0.012506 | AH190: 128.3026214 | AI190: 0.001887 | AJ190: 117.376718 | AK190: 0 | AL190: 203.9479564 | AM190: 0.003704 | AN190: 359.2212614 | AO190: =AO119 -> 0.043733 | AP190: 113.3399537 | AQ190: 0.006437802279 | AR190: 0.008968554129 | AS190: 266.6636849 | AT190: 0.02516763044 | AU190: 0.07415633389 | AY190: 109.4198563 | AZ190: -0.004612515979 | BA190: 0.0002577342307
A191: 2022-10-01 | B191: 180.5118282 | C191: 0.006682638889 | D191: 0.01240669265 | E191: 235.057429 | F191: 0.005168 | G191: 0.01202392627 | H191: 243.2933995 | I191: 0.008033 | J191: 0.01589738595 | K191: 202.3737806 | L191: 0.009199 | M191: 0.01879750479 | N191: 190.9225643 | O191: 0.009397 | P191: 0.02100003798 | Q191: 214.9557768 | R191: 0.009037 | S191: 0.01675661183 | T191: 201.062342 | U191: 0.009356 | V191: 0.01922652735 | W191: 223.422373 | X191: 0.002517 | Y191: 0.005040335289 | Z191: 177.2446335 | AA191: 0.004806 | AB191: 0.01255480109 | AC191: 181.1580343 | AD191: 0.008848 | AE191: 0.01698247871 | AF191: 94.73046674 | AG191: 0.012014 | AH191: 128.564872 | AI191: 0.002044 | AJ191: 117.376718 | AK191: 0 | AL191: 204.2020755 | AM191: 0.001246 | AN191: 375.7971673 | AO191: =AO120 -> 0.046144 | AP191: 113.8037376 | AQ191: 0.004091972576 | AR191: 0.004856708037 | AS191: 273.5319749 | AT191: 0.02575637563 | AU191: 0.04718465262 | AY191: 109.4505101 | AZ191: 0.0002801480861 | BA191: -2.240757797e-05
A192: 2022-11-01 | B192: 181.6441534 | C192: 0.006272858796 | D192: 0.006095597029 | E192: 236.4762356 | F192: 0.006036 | G192: 0.005952 | H192: 245.0862286 | I192: 0.007369 | J192: 0.008466 | K192: 204.2455357 | L192: 0.009249 | M192: 0.009461 | N192: 192.866156 | O192: 0.01018 | P192: 0.010711 | Q192: 216.7592558 | R192: 0.00839 | S192: 0.008297 | T192: 202.9662013 | U192: 0.009469 | V192: 0.009666 | W192: 223.9847271 | X192: 0.002517 | Y192: 0.002517 | Z192: 178.1466314 | AA192: 0.005089 | AB192: 0.007428 | AC192: 182.713276 | AD192: 0.008585 | AE192: 0.008326 | AF192: 95.23481174 | AG192: 0.005324 | AH192: 128.8495146 | AI192: 0.002214 | AJ192: 117.376718 | AK192: 0 | AL192: 203.9925642 | AM192: -0.001026 | AN192: 392.7978553 | AO192: =AO121 -> 0.045239 | AP192: 114.0684471 | AQ192: 0.002326016875 | AR192: 0.002524818392 | AS192: 280.2971404 | AT192: 0.02473263122 | AU192: 0.02191012633 | AY192: 109.4580295 | AZ192: 6.870135169e-05 | BA192: -9.110267078e-05
A193: 2022-12-01 | B193: 182.751383 | C193: 0.006095597029 | D193: =B$193/B193-1 -> 0 | E193: 237.8837422 | F193: 0.005952 | G193: =E$193/E193-1 -> 0 | H193: 247.1611286 | I193: 0.008466 | J193: =H$193/H193-1 -> 0 | K193: 206.1779027 | L193: 0.009461 | M193: =K$193/K193-1 -> 0 | N193: 194.9319454 | O193: 0.010711 | P193: =N$193/N193-1 -> 0 | Q193: 218.5577074 | R193: 0.008297 | S193: =Q$193/Q193-1 -> 0 | T193: 204.9280726 | U193: 0.009666 | V193: =T$193/T193-1 -> 0 | W193: 224.5484966 | X193: 0.002517 | Y193: =W$193/W193-1 -> 0 | Z193: 179.4699046 | AA193: 0.007428 | AB193: =Z$193/Z193-1 -> 0 | AC193: 184.2345468 | AD193: 0.008326 | AE193: =AC$193/AC193-1 -> 0 | AF193: 95.78412613 | AG193: 0.005768 | AH193: 129.1586246 | AI193: 0.002399 | AJ193: 117.376718 | AK193: 0 | AL193: 202.5350373 | AM193: -0.007145 | AN193: 410.0876385 | AO193: =AO122 -> 0.044017 | AP193: 114.3564492 | AQ193: 0.002524818392 | AR193: =AP$193/AP193-1 -> 0 | AS193: 286.4384861 | AT193: 0.02191012633 | AU193: =AS$193/AS193-1 -> 0 | AY193: 109.4480576 | AZ193: -9.110267078e-05 | BA193: =AY$193/AY193-1 -> 0
B194: =(1+C195)/(1+C194)-1 -> 0.001573670393 | C194: =B122/B105-1 -> 0.1268168564 | D194: inc | E194: =(1+F195)/(1+F194)-1 -> -0.004938097994 | F194: =E122/E105-1 -> 0.1135050606 | G194: inc | H194: =(1+I195)/(1+I194)-1 -> -0.03664042848 | I194: =H122/H105-1 -> 0.1188964597 | J194: inc | K194: =(1+L195)/(1+L194)-1 -> 0.005455367744 | L194: =K122/K105-1 -> 0.1584722753 | M194: inc | N194: =(1+O195)/(1+O194)-1 -> 0.02324863416 | O194: =N122/N105-1 -> 0.1564433368 | P194: inc | Q194: =(1+R195)/(1+R194)-1 -> -0.01317069634 | R194: =Q122/Q105-1 -> 0.1607270241 | S194: inc | T194: =(1+U195)/(1+U194)-1 -> 0.01168156331 | U194: =T122/T105-1 -> 0.1631409259 | V194: inc | W194: =(1+X195)/(1+X194)-1 -> -0.000248174564 | X194: =W122/W105-1 -> 0.1183118229 | Y194: inc | Z194: =(1+AA195)/(1+AA194)-1 -> 0.006779874673 | AA194: =Z122/Z105-1 -> 0.1173782289 | AB194: inc | AC194: =(1+AD195)/(1+AD194)-1 -> 0.003276898073 | AD194: =AC122/AC105-1 -> 0.1447107426 | AE194: inc | AF194: =(1+AG195)/(1+AG194)-1 -> -0.007382684262 | AG194: =AF122/AF105-1 -> 0.07906792536 | AH194: =(1+AI195)/(1+AI194)-1 -> -0.000676739474 | AI194: =AH122/AH105-1 -> 0.007304307207 | AJ194: =(1+AK195)/(1+AK194)-1 -> -0.02081496808 | AK194: =AJ122/AJ105-1 -> 0 | AL194: =(1+AM195)/(1+AM194)-1 -> -0.05047091695 | AM194: =AL122/AL105-1 -> -0.09736379895 | AN194: =(1+AO195)/(1+AO194)-1 -> -0.02783451502 | AO194: =AN122/AN105-1 -> 0.835662261 | AP194: =(1+AQ195)/(1+AQ194)-1 -> -0.00948542315 | AQ194: =AP122/AP105-1 -> 0.02378474592 | AR194: inc | AS194: =(1+AT195)/(1+AT194)-1 -> -0.04144015746 | AT194: =AS122/AS105-1 -> 0.2801489483 | AU194: inc | AY194: =(1+AZ195)/(1+AZ194)-1 -> 0.1994300422 | AZ194: =AY117/AY105-1 -> -0.1270251239 | BA194: inc
B195: =B175/B176-1 -> 0.001573670393 | C195: =B122/B176-1 -> 0.1285900947 | D195: prev | E195: =E175/E176-1 -> -0.004938097994 | F195: =E122/E176-1 -> 0.1080064635 | G195: prev | H195: =H175/H176-1 -> -0.03664042848 | I195: =H122/H176-1 -> 0.07789961402 | J195: prev | K195: =K175/K176-1 -> 0.005455367744 | L195: =K122/K176-1 -> 0.1647921676 | M195: prev | N195: =N175/N176-1 -> 0.02324863416 | O195: =N122/N176-1 -> 0.1833290648 | P195: prev | Q195: =Q175/Q176-1 -> -0.01317069634 | R195: =Q122/Q176-1 -> 0.145439441 | S195: prev | T195: =T175/T176-1 -> 0.01168156331 | U195: =T122/T176-1 -> 0.1767282303 | V195: prev | W195: =W175/W176-1 -> -0.000248174564 | X195: =W122/W176-1 -> 0.1180342864 | Y195: prev | Z195: =Z175/Z176-1 -> 0.006779874673 | AA195: =Z122/Z176-1 -> 0.1249539133 | AB195: prev | AC195: =AC175/AC176-1 -> 0.003276898073 | AD195: =AC122/AC176-1 -> 0.1484618431 | AE195: prev | AF195: =AF175/AF176-1 -> -0.007382684262 | AG195: =AF122/AF176-1 -> 0.07110150757 | AH195: =AH175/AH176-1 -> -0.000676739474 | AI195: =AH122/AH176-1 -> 0.00662262462 | AJ195: =AJ175/AJ176-1 -> -0.02081496808 | AK195: =AJ122/AJ176-1 -> -0.02081496808 | AL195: =AL175/AL176-1 -> -0.05047091695 | AM195: =AL122/AL176-1 -> -0.1429206757 | AN195: =AN175/AN176-1 -> -0.02783451502 | AO195: =AN122/AN176-1 -> 0.7845674922 | AP195: =AP175/AP176-1 -> -0.00948542315 | AQ195: =AP122/AP176-1 -> 0.01407371439 | AR195: prev | AS195: =AS175/AS176-1 -> -0.04144015746 | AT195: =AS122/AS176-1 -> 0.2270993743 | AU195: prev | AY195: =AY175/AY176-1 -> 0.1994300422 | AZ195: =AY117/AY176-1 -> 0.04707229253 | BA195: prev

Sheet 3.3.Variacao_mensal_IEE
A1: ARSAE-MG
A2: Cálculo da variação de preços de energia elétrica incorrida mês a mês (IEE mensal), para correção inflacionária das despesas com energia elétrica
D5: Energia Elétrica - Cálculo da variação de preços incorrida mês a mês (IEE mensal), considerando variação de tarifas e bandeiras
D7: Perfil de consumo da Copasa (últimos 12 meses)
E8: AES | F8: AES | G8: AES | H8: AES | I8: AES | J8: AES | K8: AES | L8: AES | M8: AES | N8: AES | O8: AES | P8: AES | Q8: ADM | R8: ADM | S8: ADM | T8: ADM | U8: AES | V8: AES | W8: AES | X8: AES | Y8: ADM | Z8: ADM | AA8: ADM | AB8: ADM | AC8: AES | AD8: AES | AE8: AES | AF8: AES | AG8: ADM | AH8: ADM | AI8: ADM | AJ8: ADM | AK8: AES | AL8: AES | AM8: AES | AN8: AES | AO8: ADM | AP8: ADM | AQ8: ADM | AR8: ADM
E9: A2 | I9: A3 | M9: A4 | Q9: A4 | U9: A4 | Y9: A4 | AC9: A4 | AG9: A4 | AK9: B3 | AO9: B3
E10: AZ_AES | I10: AZ_AES | M10: AZ_AES | Q10: AZ_ADM | U10: VD_AES | Y10: VD_ADM | AC10: EQ_AES | AG10: EQ_ADM | AK10: EQ_AES | AO10: EQ_ADM
E11: D_P | F11: D_FP | G11: E_P | H11: E_FP | I11: D_P | J11: D_FP | K11: E_P | L11: E_FP | M11: D_P | N11: D_FP | O11: E_P | P11: E_FP | Q11: D_P | R11: D_FP | S11: E_P | T11: E_FP | U11: D_P | V11: D_FP | W11: E_P | X11: E_FP | Y11: D_P | Z11: D_FP | AA11: E_P | AB11: E_FP | AC11: D_P | AD11: D_FP | AE11: E_P | AF11: E_FP | AG11: D_P | AH11: D_FP | AI11: E_P | AJ11: E_FP | AK11: D_P | AL11: D_FP | AM11: E_P | AN11: E_FP | AO11: D_P | AP11: D_FP | AQ11: E_P | AR11: E_FP
E12: kW | F12: kW | G12: kWh | H12: kWh | I12: kW | J12: kW | K12: kWh | L12: kWh | M12: kW | N12: kW | O12: kWh | P12: kWh | Q12: kW | R12: kW | S12: kWh | T12: kWh | U12: kW | V12: kW | W12: kWh | X12: kWh | Y12: kW | Z12: kW | AA12: kWh | AB12: kWh | AC12: kW | AD12: kW | AE12: kWh | AF12: kWh | AG12: kW | AH12: kW | AI12: kWh | AJ12: kWh | AK12: kW | AL12: kW | AM12: kWh | AN12: kWh | AO12: kW | AP12: kW | AQ12: kWh | AR12: kWh
D13: 2021-09-01
D14: 2021-10-01
D15: 2021-11-01
D16: 2021-12-01
D17: 2022-01-01
D18: 2022-02-01
D19: 2022-03-01
D20: 2022-04-01
D21: 2022-05-01
D22: 2022-06-01
D23: 2022-07-01
D24: 2022-08-01
D25: Média | E25: 44779.66667 | F25: 52847.75 | G25: 2354254.583 | H25: 24637643.58 | I25: 3212 | J25: 3860 | K25: 344642.1667 | L25: 2621571.417 | M25: 19232.92 | N25: 23060.16917 | O25: 903634.0833 | P25: 9575323.833 | Q25: 9.833333333 | R25: 9.833333333 | S25: 102.5 | T25: 1011.333333 | U25: 2940.344167 | V25: 60696.83167 | W25: 1829400.25 | X25: 21237937.67 | Y25: 0 | Z25: 1832.833333 | AA25: 46111 | AB25: 447875.8333 | AC25: 0 | AD25: 0 | AE25: 0 | AF25: 0 | AG25: 0 | AH25: 0 | AI25: 0 | AJ25: 0 | AK25: 0 | AL25: 0 | AM25: 0 | AN25: 14909687.5 | AO25: 0 | AP25: 0 | AQ25: 0 | AR25: 298370.4167
AT26: Faturamento simulado considerando tarifas e bandeiras realizadas e consumo médio dos últimos 12 meses (mesmo consumo todo mês para aferir apenas variação das tarifas e bandeiras)
AT28: Desconto AES: até mai/19 | AU28: 0.15 | AV28: 0.15 | AW28: 0.15 | AX28: 0.15 | AY28: 0.15 | AZ28: 0.15 | BA28: 0.15 | BB28: 0.15 | BC28: 0.15 | BD28: 0.15 | BE28: 0.15 | BF28: 0.15 | BG28: 0 | BH28: 0 | BI28: 0 | BJ28: 0 | BK28: 0.15 | BL28: 0.15 | BM28: 0.15 | BN28: 0.15 | BO28: 0 | BP28: 0 | BQ28: 0 | BR28: 0 | BS28: 0.15 | BT28: 0.15 | BU28: 0.15 | BV28: 0.15 | BW28: 0 | BX28: 0 | BY28: 0 | BZ28: 0 | CA28: 0.15 | CB28: 0.15 | CC28: 0.15 | CD28: 0.15 | CE28: 0 | CF28: 0 | CG28: 0 | CH28: 0
AT29: A partir Jun/19 | AU29: =AU28-(AU$28-0.8*AU$28) -> 0.12 | AV29: =AV28-(AV$28-0.8*AV$28) -> 0.12 | AW29: 0.12 | AX29: 0.12 | AY29: 0.12 | AZ29: 0.12 | BA29: 0.12 | BB29: 0.12 | BC29: 0.12 | BD29: 0.12 | BE29: 0.12 | BF29: 0.12 | BG29: 0 | BH29: 0 | BI29: 0 | BJ29: 0 | BK29: 0.12 | BL29: 0.12 | BM29: 0.12 | BN29: 0.12 | BO29: 0 | BP29: 0 | BQ29: 0 | BR29: 0 | BS29: 0.12 | BT29: 0.12 | BU29: 0.12 | BV29: 0.12 | BW29: 0 | BX29: 0 | BY29: 0 | BZ29: 0 | CA29: 0.12 | CB29: 0.12 | CC29: 0.12 | CD29: 0.12 | CE29: 0 | CF29: 0 | CG29: 0 | CH29: 0
AT30: A partir Set/20 | AU30: =AU29-(AU$28-0.8*AU$28) -> 0.09 | AV30: 0.09 | AW30: 0.09 | AX30: 0.09 | AY30: 0.09 | AZ30: 0.09 | BA30: 0.09 | BB30: 0.09 | BC30: 0.09 | BD30: 0.09 | BE30: 0.09 | BF30: 0.09 | BG30: 0 | BH30: 0 | BI30: 0 | BJ30: 0 | BK30: 0.09 | BL30: 0.09 | BM30: 0.09 | BN30: 0.09 | BO30: 0 | BP30: 0 | BQ30: 0 | BR30: 0 | BS30: 0.09 | BT30: 0.09 | BU30: 0.09 | BV30: 0.09 | BW30: 0 | BX30: 0 | BY30: 0 | BZ30: 0 | CA30: 0.09 | CB30: 0.09 | CC30: 0.09 | CD30: 0.09 | CE30: 0 | CF30: 0 | CG30: 0 | CH30: 0
AT31: A partir Jun/21 | AU31: =AU30-(AU$28-0.8*AU$28) -> 0.06 | AV31: 0.06 | AW31: 0.06 | AX31: 0.06 | AY31: 0.06 | AZ31: 0.06 | BA31: 0.06 | BB31: 0.06 | BC31: 0.06 | BD31: 0.06 | BE31: 0.06 | BF31: 0.06 | BG31: 0 | BH31: 0 | BI31: 0 | BJ31: 0 | BK31: 0.06 | BL31: 0.06 | BM31: 0.06 | BN31: 0.06 | BO31: 0 | BP31: 0 | BQ31: 0 | BR31: 0 | BS31: 0.06 | BT31: 0.06 | BU31: 0.06 | BV31: 0.06 | BW31: 0 | BX31: 0 | BY31: 0 | BZ31: 0 | CA31: 0.06 | CB31: 0.06 | CC31: 0.06 | CD31: 0.06 | CE31: 0 | CF31: 0 | CG31: 0 | CH31: 0
AT32: A partir Jul/22 | AU32: =AU31-(AU$28-0.8*AU$28) -> 0.03 | AV32: =AV31-(AV$28-0.8*AV$28) -> 0.03 | AW32: 0.03 | AX32: 0.03 | AY32: 0.03 | AZ32: 0.03 | BA32: 0.03 | BB32: 0.03 | BC32: 0.03 | BD32: 0.03 | BE32: 0.03 | BF32: 0.03 | BG32: 0 | BH32: 0 | BI32: 0 | BJ32: 0 | BK32: 0.03 | BL32: 0.03 | BM32: 0.03 | BN32: 0.03 | BO32: 0 | BP32: 0 | BQ32: 0 | BR32: 0 | BS32: 0.03 | BT32: 0.03 | BU32: 0.03 | BV32: 0.03 | BW32: 0 | BX32: 0 | BY32: 0 | BZ32: 0 | CA32: 0.03 | CB32: 0.03 | CC32: 0.03 | CD32: 0.03 | CE32: 0 | CF32: 0 | CG32: 0 | CH32: 0
AU33: 1 | AV33: 1 | AW33: 1000 | AX33: 1000 | AY33: 1 | AZ33: 1 | BA33: 1000 | BB33: 1000 | BC33: 1 | BD33: 1 | BE33: 1000 | BF33: 1000 | BG33: 1 | BH33: 1 | BI33: 1000 | BJ33: 1000 | BK33: 1 | BL33: 1 | BM33: 1000 | BN33: 1000 | BO33: 1 | BP33: 1 | BQ33: 1000 | BR33: 1000 | BS33: 1 | BT33: 1 | BU33: 1000 | BV33: 1000 | BW33: 1 | BX33: 1 | BY33: 1000 | BZ33: 1000 | CA33: 1 | CB33: 1 | CC33: 1000 | CD33: 1000 | CE33: 1 | CF33: 1 | CG33: 1000 | CH33: 1000 | CK33: Alíquota ICMS = | CL33: 0.18
B34: Tarifas e bandeiras de energia elétrica - CEMIG | BS34: Grupo A4-EQ não existe mais desde o reajuste 2018
B35: MÊS | C35: Bandeira | D35: Valor | E35: A2 | I35: A3 | M35: A4 | Q35: A4 | U35: A4 | Y35: A4 | AC35: A4 | AG35: A4 | AK35: B3 | AO35: B3 | AT35: MÊS | AU35: A2 | AY35: A3 | BC35: A4 | BG35: A4 | BK35: A4 | BO35: A4 | BS35: A4 | BW35: A4 | CA35: B3 | CE35: B3 | CK35: PIS/Cofins - Alíquota líquida incorrida | CL35: Total de tributos (PIS/Cofins + ICMS) R$ | CM35: TOTAL | CN35: Variação mensal
E36: AZ_AES | I36: AZ_AES | M36: AZ_AES | Q36: AZ_ADM | U36: VD_AES | Y36: VD_ADM | AC36: EQ_AES | AG36: EQ_ADM | AK36: EQ_AES | AO36: EQ_ADM | AU36: AZ_AES | AY36: AZ_AES | BC36: AZ_AES | BG36: AZ_ADM | BK36: VD_AES | BO36: VD_ADM | BS36: EQ_AES | BW36: EQ_ADM | CA36: EQ_AES | CE36: EQ_ADM | CI36: TOTAL | CJ36: Bandeiras
E37: D_P | F37: D_FP | G37: E_P | H37: E_FP | I37: D_P | J37: D_FP | K37: E_P | L37: E_FP | M37: D_P | N37: D_FP | O37: E_P | P37: E_FP | Q37: D_P | R37: D_FP | S37: E_P | T37: E_FP | U37: D_P | V37: D_FP | W37: E_P | X37: E_FP | Y37: D_P | Z37: D_FP | AA37: E_P | AB37: E_FP | AC37: D_P | AD37: D_FP | AE37: E_P | AF37: E_FP | AG37: D_P | AH37: D_FP | AI37: E_P | AJ37: E_FP | AK37: D_P | AL37: D_FP | AM37: E_P | AN37: E_FP | AO37: D_P | AP37: D_FP | AQ37: E_P | AR37: E_FP | AU37: D_P | AV37: D_FP | AW37: E_P | AX37: E_FP | AY37: D_P | AZ37: D_FP | BA37: E_P | BB37: E_FP | BC37: D_P | BD37: D_FP | BE37: E_P | BF37: E_FP | BG37: D_P | BH37: D_FP | BI37: E_P | BJ37: E_FP | BK37: D_P | BL37: D_FP | BM37: E_P | BN37: E_FP | BO37: D_P | BP37: D_FP | BQ37: E_P | BR37: E_FP | BS37: D_P | BT37: D_FP | BU37: E_P | BV37: E_FP | BW37: D_P | BX37: D_FP | BY37: E_P | BZ37: E_FP | CA37: D_P | CB37: D_FP | CC37: E_P | CD37: E_FP | CE37: D_P | CF37: D_FP | CG37: E_P | CH37: E_FP
E38: R$/kW | F38: R$/kW | G38: R$/MWh | H38: R$/MWh | I38: R$/kW | J38: R$/kW | K38: R$/MWh | L38: R$/MWh | M38: R$/kW | N38: R$/kW | O38: R$/MWh | P38: R$/MWh | Q38: R$/kW | R38: R$/kW | S38: R$/MWh | T38: R$/MWh | U38: R$/kW | V38: R$/kW | W38: R$/MWh | X38: R$/MWh | Y38: R$/kW | Z38: R$/kW | AA38: R$/MWh | AB38: R$/MWh | AC38: R$/kW | AD38: R$/kW | AE38: R$/MWh | AF38: R$/MWh | AG38: R$/kW | AH38: R$/kW | AI38: R$/MWh | AJ38: R$/MWh | AK38: R$/kW | AL38: R$/kW | AM38: R$/MWh | AN38: R$/MWh | AO38: R$/kW | AP38: R$/kW | AQ38: R$/MWh | AR38: R$/MWh | AU38: R$ | AV38: R$ | AW38: R$ | AX38: R$ | AY38: R$ | AZ38: R$ | BA38: R$ | BB38: R$ | BC38: R$ | BD38: R$ | BE38: R$ | BF38: R$ | BG38: R$ | BH38: R$ | BI38: R$ | BJ38: R$ | BK38: R$ | BL38: R$ | BM38: R$ | BN38: R$ | BO38: R$ | BP38: R$ | BQ38: R$ | BR38: R$ | BS38: R$ | BT38: R$ | BU38: R$ | BV38: R$ | BW38: R$ | BX38: R$ | BY38: R$ | BZ38: R$ | CA38: R$ | CB38: R$ | CC38: R$ | CD38: R$ | CE38: R$ | CF38: R$ | CG38: R$ | CH38: R$ | CI38: R$ | CJ38: R$ | CM38: R$
B39: 2017-01-01 | C39: Verde | D39: 0 | E39: 6.21 | F39: 2.06 | G39: 442.42 | H39: 313.28 | I39: 18.64 | J39: 5.26 | K39: 453.5 | L39: 324.36 | M39: 31.67 | N39: 9.06 | O39: 454.42 | P39: 325.28 | Q39: 31.67 | R39: 9.06 | S39: 454.42 | T39: 325.28 | V39: 9.06 | W39: 1221.63 | X39: 325.28 | Z39: 9.06 | AA39: 1221.63 | AB39: 325.28 | AD39: 31.86 | AF39: 336.04 | AH39: 31.86 | AJ39: 336.04 | AN39: 531.22 | AR39: 531.22 | AT39: 2017-01-01 | AU39: =E$25*E39*(1-AU$28)/AU$33 -> 236369.4705 | AV39: 92536.41025 | AW39: 885333.9158 | AX39: 6560708.835 | AY39: 50890.928 | AZ39: 17258.06 | BA39: 132850.9392 | BB39: 722782.969 | BC39: 517740.5899 | BD39: 177586.3628 | BE39: 349034.9901 | BF39: 2647462.136 | BG39: 311.4216667 | BH39: 89.09 | BI39: 46.57805 | BJ39: 328.9665067 | BK39: =U$25*U39*(1-BK$28)/BK$33 -> 0 | BL39: 467426.3007 | BM39: 1899622.693 | BN39: 5872034.91 | BO39: 0 | BP39: 16605.47 | BQ39: 56330.58093 | BR39: 145685.0511 | BS39: 0 | BT39: 0 | BU39: 0 | BV39: 0 | BW39: 0 | BX39: 0 | BY39: 0 | BZ39: 0 | CA39: =AK$25*AK39*(1-CA$28)/CA$33 -> 0 | CB39: 0 | CC39: 0 | CD39: 6732275.565 | CE39: 0 | CF39: 0 | CG39: 0 | CH39: 158500.3327 | CI39: =SUM(AU39:CH39) -> 27739812.57 | CJ39: =SUMIF($E$12:$AR$12,"kWh",$E$25:$AR$25)*D39 -> 0 | CK39: 0.0408 | CL39: =(1/(1-CK39-$CL$33)-1)*(CI39+CJ39) -> 7860562.904 | CM39: =CI39+CJ39+CL39 -> 35600375.47
B40: 2017-02-01 | C40: Verde | D40: 0 | E40: 6.21 | F40: 2.06 | G40: 442.42 | H40: 313.28 | I40: 18.64 | J40: 5.26 | K40: 453.5 | L40: 324.36 | M40: 31.67 | N40: 9.06 | O40: 454.42 | P40: 325.28 | Q40: 31.67 | R40: 9.06 | S40: 454.42 | T40: 325.28 | V40: 9.06 | W40: 1221.63 | X40: 325.28 | Z40: 9.06 | AA40: 1221.63 | AB40: 325.28 | AD40: 31.86 | AF40: 336.04 | AH40: 31.86 | AJ40: 336.04 | AN40: 531.22 | AR40: 531.22 | AT40: 2017-02-01 | AU40: 236369.4705 | AV40: 92536.41025 | AW40: 885333.9158 | AX40: 6560708.835 | AY40: 50890.928 | AZ40: 17258.06 | BA40: 132850.9392 | BB40: 722782.969 | BC40: 517740.5899 | BD40: 177586.3628 | BE40: 349034.9901 | BF40: 2647462.136 | BG40: 311.4216667 | BH40: 89.09 | BI40: 46.57805 | BJ40: 328.9665067 | BK40: 0 | BL40: 467426.3007 | BM40: 1899622.693 | BN40: 5872034.91 | BO40: 0 | BP40: 16605.47 | BQ40: 56330.58093 | BR40: 145685.0511 | BS40: 0 | BT40: 0 | BU40: 0 | BV40: 0 | BW40: 0 | BX40: 0 | BY40: 0 | BZ40: 0 | CA40: 0 | CB40: 0 | CC40: 0 | CD40: 6732275.565 | CE40: 0 | CF40: 0 | CG40: 0 | CH40: 158500.3327 | CI40: 27739812.57 | CJ40: 0 | CK40: 0.0466 | CL40: 8127542.704 | CM40: 35867355.27 | CN40: =CM40/CM39-1 -> 0.007499353504
B41: 2017-03-01 | C41: Amarela | D41: 0.02 | E41: 6.21 | F41: 2.06 | G41: 442.42 | H41: 313.28 | I41: 18.64 | J41: 5.26 | K41: 453.5 | L41: 324.36 | M41: 31.67 | N41: 9.06 | O41: 454.42 | P41: 325.28 | Q41: 31.67 | R41: 9.06 | S41: 454.42 | T41: 325.28 | V41: 9.06 | W41: 1221.63 | X41: 325.28 | Z41: 9.06 | AA41: 1221.63 | AB41: 325.28 | AD41: 31.86 | AF41: 336.04 | AH41: 31.86 | AJ41: 336.04 | AN41: 531.22 | AR41: 531.22 | AT41: 2017-03-01 | AU41: 236369.4705 | AV41: 92536.41025 | AW41: 885333.9158 | AX41: 6560708.835 | AY41: 50890.928 | AZ41: 17258.06 | BA41: 132850.9392 | BB41: 722782.969 | BC41: 517740.5899 | BD41: 177586.3628 | BE41: 349034.9901 | BF41: 2647462.136 | BG41: 311.4216667 | BH41: 89.09 | BI41: 46.57805 | BJ41: 328.9665067 | BK41: 0 | BL41: 467426.3007 | BM41: 1899622.693 | BN41: 5872034.91 | BO41: 0 | BP41: 16605.47 | BQ41: 56330.58093 | BR41: 145685.0511 | BS41: 0 | BT41: 0 | BU41: 0 | BV41: 0 | BW41: 0 | BX41: 0 | BY41: 0 | BZ41: 0 | CA41: 0 | CB41: 0 | CC41: 0 | CD41: 6732275.565 | CE41: 0 | CF41: 0 | CG41: 0 | CH41: 158500.3327 | CI41: 27739812.57 | CJ41: 1584151.323 | CK41: 0.0658 | CL41: 9556921.67 | CM41: 38880885.56 | CN41: =CM41/CM40-1 -> 0.08401874816
B42: 2017-04-01 | C42: Vermelha 1 | D42: 0.03 | E42: 6.21 | F42: 2.06 | G42: 380.7 | H42: 251.57 | I42: 18.64 | J42: 5.26 | K42: 391.78 | L42: 262.65 | M42: 31.67 | N42: 9.06 | O42: 392.7 | P42: 263.57 | Q42: 31.67 | R42: 9.06 | S42: 392.7 | T42: 263.57 | V42: 9.06 | W42: 1159.91 | X42: 268.94 | Z42: 9.06 | AA42: 1159.91 | AB42: 268.94 | AD42: 31.86 | AF42: 274.33 | AH42: 31.86 | AJ42: 274.33 | AN42: 469.51 | AR42: 469.51 | AT42: 2017-04-01 | AU42: 236369.4705 | AV42: 92536.41025 | AW42: 761825.0119 | AX42: 5268378.197 | AY42: 50890.928 | AZ42: 17258.06 | BA42: 114770.3218 | BB42: 585272.3727 | BC42: 517740.5899 | BD42: 177586.3628 | BE42: 301628.5388 | BF42: 2145202.887 | BG42: 311.4216667 | BH42: 89.09 | BI42: 40.25175 | BJ42: 266.5571267 | BK42: 0 | BL42: 467426.3007 | BM42: 1803648.697 | BN42: 4854971.313 | BO42: 0 | BP42: 16605.47 | BQ42: 53484.61001 | BR42: 120451.7266 | BS42: 0 | BT42: 0 | BU42: 0 | BV42: 0 | BW42: 0 | BX42: 0 | BY42: 0 | BZ42: 0 | CA42: 0 | CB42: 0 | CC42: 0 | CD42: 5950210.271 | CE42: 0 | CF42: 0 | CG42: 0 | CH42: 140087.8943 | CI42: 23677052.75 | CJ42: 2376226.985 | CK42: 0.0638 | CL42: 8399615.975 | CM42: 34452895.71 | CN42: -0.1138860337
B43: 2017-05-01 | C43: Vermelha 1 | D43: 0.03 | E43: 6.21 | F43: 2.06 | G43: 437.04 | H43: 307.91 | I43: 18.64 | J43: 5.26 | K43: 448.12 | L43: 318.99 | M43: 31.67 | N43: 9.06 | O43: 449.04 | P43: 319.91 | Q43: 31.67 | R43: 9.06 | S43: 449.04 | T43: 319.91 | V43: 9.06 | W43: 1216.25 | X43: 325.28 | Z43: 9.06 | AA43: 1216.25 | AB43: 325.28 | AD43: 31.86 | AF43: 330.67 | AH43: 31.86 | AJ43: 330.67 | AN43: 525.85 | AR43: 525.85 | AT43: 2017-05-01 | AU43: 236369.4705 | AV43: 92536.41025 | AW43: 874567.9096 | AX43: 6448250.31 | AY43: 50890.928 | AZ43: 17258.06 | BA43: 131274.8906 | BB43: 710816.8063 | BC43: 517740.5899 | BD43: 177586.3628 | BE43: 344902.6715 | BF43: 2603755.57 | BG43: 311.4216667 | BH43: 89.09 | BI43: 46.0266 | BJ43: 323.5356467 | BK43: 0 | BL43: 467426.3007 | BM43: 1891256.846 | BN43: 5872034.91 | BO43: 0 | BP43: 16605.47 | BQ43: 56082.50375 | BR43: 145685.0511 | BS43: 0 | BT43: 0 | BU43: 0 | BV43: 0 | BW43: 0 | BX43: 0 | BY43: 0 | BZ43: 0 | CA43: 0 | CB43: 0 | CC43: 0 | CD43: 6664220.296 | CE43: 0 | CF43: 0 | CG43: 0 | CH43: 156898.0836 | CI43: 27476929.51 | CJ43: 2376226.985 | CK43: 0.0496 | CL43: 8897046.641 | CM43: 38750203.14 | CN43: 0.1247299345
B44: 2017-06-01 | C44: Verde | D44: 0 | E44: 9.49 | F44: 3.75 | G44: 380.6 | H44: 254.75 | I44: 20.78 | J44: 7.15 | K44: 392.23 | L44: 266.38 | M44: 34.21 | N44: 11.05 | O44: 393.96 | P44: 268.11 | Q44: 34.21 | R44: 11.05 | S44: 393.96 | T44: 268.11 | V44: 11.05 | W44: 1222.64 | X44: 268.11 | Z44: 11.05 | AA44: 1222.64 | AB44: 268.11 | AD44: 35.68 | AF44: 278.59 | AH44: 35.68 | AJ44: 278.59 | AN44: 494.14 | AR44: 494.14 | AT44: 2017-06-01 | AU44: 361215.1812 | AV44: 168452.2031 | AW44: 761624.9003 | AX44: 5334973.747 | AY44: 56733.556 | AZ44: 23459.15 | BA44: 114902.1475 | BB44: 593584.0649 | BC44: 559264.4642 | BD44: 216592.6389 | BE44: 302596.3309 | BF44: 2182154.062 | BG44: 336.3983333 | BH44: 108.6583333 | BI44: 40.3809 | BJ44: 271.14858 | BK44: 0 | BL44: 570094.9914 | BM44: 1901193.233 | BN44: 4839987.948 | BO44: 0 | BP44: 20252.80833 | BQ44: 56377.15304 | BR44: 120079.9897 | BS44: 0 | BT44: 0 | BU44: 0 | BV44: 0 | BW44: 0 | BX44: 0 | BY44: 0 | BZ44: 0 | CA44: 0 | CB44: 0 | CC44: 0 | CD44: 6262352.034 | CE44: 0 | CF44: 0 | CG44: 0 | CH44: 147436.7577 | CI44: 24594083.95 | CJ44: 0 | CK44: 0.0381 | CL44: 6860173.563 | CM44: 31454257.51 | CN44: -0.1882814808
B45: 2017-07-01 | C45: Amarela | D45: 0.02 | E45: 9.49 | F45: 3.75 | G45: 380.6 | H45: 254.75 | I45: 20.78 | J45: 7.15 | K45: 392.23 | L45: 266.38 | M45: 34.21 | N45: 11.05 | O45: 393.96 | P45: 268.11 | Q45: 34.21 | R45: 11.05 | S45: 393.96 | T45: 268.11 | V45: 11.05 | W45: 1222.64 | X45: 268.11 | Z45: 11.05 | AA45: 1222.64 | AB45: 268.11 | AD45: 35.68 | AF45: 278.59 | AH45: 35.68 | AJ45: 278.59 | AN45: 494.14 | AR45: 494.14 | AT45: 2017-07-01 | AU45: 361215.1812 | AV45: 168452.2031 | AW45: 761624.9003 | AX45: 5334973.747 | AY45: 56733.556 | AZ45: 23459.15 | BA45: 114902.1475 | BB45: 593584.0649 | BC45: 559264.4642 | BD45: 216592.6389 | BE45: 302596.3309 | BF45: 2182154.062 | BG45: 336.3983333 | BH45: 108.6583333 | BI45: 40.3809 | BJ45: 271.14858 | BK45: 0 | BL45: 570094.9914 | BM45: 1901193.233 | BN45: 4839987.948 | BO45: 0 | BP45: 20252.80833 | BQ45: 56377.15304 | BR45: 120079.9897 | BS45: 0 | BT45: 0 | BU45: 0 | BV45: 0 | BW45: 0 | BX45: 0 | BY45: 0 | BZ45: 0 | CA45: 0 | CB45: 0 | CC45: 0 | CD45: 6262352.034 | CE45: 0 | CF45: 0 | CG45: 0 | CH45: 147436.7577 | CI45: 24594083.95 | CJ45: 1584151.323 | CK45: 0.0705 | CL45: 8749363.49 | CM45: 34927598.76 | CN45: 0.1104251546
B46: 2017-08-01 | C46: Vermelha 1 | D46: 0.03 | E46: 9.49 | F46: 3.75 | G46: 380.6 | H46: 254.75 | I46: 20.78 | J46: 7.15 | K46: 392.23 | L46: 266.38 | M46: 34.21 | N46: 11.05 | O46: 393.96 | P46: 268.11 | Q46: 34.21 | R46: 11.05 | S46: 393.96 | T46: 268.11 | V46: 11.05 | W46: 1222.64 | X46: 268.11 | Z46: 11.05 | AA46: 1222.64 | AB46: 268.11 | AD46: 35.68 | AF46: 278.59 | AH46: 35.68 | AJ46: 278.59 | AN46: 494.14 | AR46: 494.14 | AT46: 2017-08-01 | AU46: 361215.1812 | AV46: 168452.2031 | AW46: 761624.9003 | AX46: 5334973.747 | AY46: 56733.556 | AZ46: 23459.15 | BA46: 114902.1475 | BB46: 593584.0649 | BC46: 559264.4642 | BD46: 216592.6389 | BE46: 302596.3309 | BF46: 2182154.062 | BG46: 336.3983333 | BH46: 108.6583333 | BI46: 40.3809 | BJ46: 271.14858 | BK46: 0 | BL46: 570094.9914 | BM46: 1901193.233 | BN46: 4839987.948 | BO46: 0 | BP46: 20252.80833 | BQ46: 56377.15304 | BR46: 120079.9897 | BS46: 0 | BT46: 0 | BU46: 0 | BV46: 0 | BW46: 0 | BX46: 0 | BY46: 0 | BZ46: 0 | CA46: 0 | CB46: 0 | CC46: 0 | CD46: 6262352.034 | CE46: 0 | CF46: 0 | CG46: 0 | CH46: 147436.7577 | CI46: 24594083.95 | CJ46: 2376226.985 | CK46: 0.0387 | CL46: 7549477.795 | CM46: 34519788.73 | CN46: -0.01167586801
B47: 2017-09-01 | C47: Amarela | D47: 0.02 | E47: 9.49 | F47: 3.75 | G47: 380.6 | H47: 254.75 | I47: 20.78 | J47: 7.15 | K47: 392.23 | L47: 266.38 | M47: 34.21 | N47: 11.05 | O47: 393.96 | P47: 268.11 | Q47: 34.21 | R47: 11.05 | S47: 393.96 | T47: 268.11 | V47: 11.05 | W47: 1222.64 | X47: 268.11 | Z47: 11.05 | AA47: 1222.64 | AB47: 268.11 | AD47: 35.68 | AF47: 278.59 | AH47: 35.68 | AJ47: 278.59 | AN47: 494.14 | AR47: 494.14 | AT47: 2017-09-01 | AU47: 361215.1812 | AV47: 168452.2031 | AW47: 761624.9003 | AX47: 5334973.747 | AY47: 56733.556 | AZ47: 23459.15 | BA47: 114902.1475 | BB47: 593584.0649 | BC47: 559264.4642 | BD47: 216592.6389 | BE47: 302596.3309 | BF47: 2182154.062 | BG47: 336.3983333 | BH47: 108.6583333 | BI47: 40.3809 | BJ47: 271.14858 | BK47: 0 | BL47: 570094.9914 | BM47: 1901193.233 | BN47: 4839987.948 | BO47: 0 | BP47: 20252.80833 | BQ47: 56377.15304 | BR47: 120079.9897 | BS47: 0 | BT47: 0 | BU47: 0 | BV47: 0 | BW47: 0 | BX47: 0 | BY47: 0 | BZ47: 0 | CA47: 0 | CB47: 0 | CC47: 0 | CD47: 6262352.034 | CE47: 0 | CF47: 0 | CG47: 0 | CH47: 147436.7577 | CI47: 24594083.95 | CJ47: 1584151.323 | CK47: 0.0387 | CL47: 7327761.492 | CM47: 33505996.76 | CN47: -0.029368429
B48: 2017-10-01 | C48: Vermelha 2 | D48: 0.035 | E48: 9.49 | F48: 3.75 | G48: 380.6 | H48: 254.75 | I48: 20.78 | J48: 7.15 | K48: 392.23 | L48: 266.38 | M48: 34.21 | N48: 11.05 | O48: 393.96 | P48: 268.11 | Q48: 34.21 | R48: 11.05 | S48: 393.96 | T48: 268.11 | V48: 11.05 | W48: 1222.64 | X48: 268.11 | Z48: 11.05 | AA48: 1222.64 | AB48: 268.11 | AD48: 35.68 | AF48: 278.59 | AH48: 35.68 | AJ48: 278.59 | AN48: 494.14 | AR48: 494.14 | AT48: 2017-10-01 | AU48: 361215.1812 | AV48: 168452.2031 | AW48: 761624.9003 | AX48: 5334973.747 | AY48: 56733.556 | AZ48: 23459.15 | BA48: 114902.1475 | BB48: 593584.0649 | BC48: 559264.4642 | BD48: 216592.6389 | BE48: 302596.3309 | BF48: 2182154.062 | BG48: 336.3983333 | BH48: 108.6583333 | BI48: 40.3809 | BJ48: 271.14858 | BK48: 0 | BL48: 570094.9914 | BM48: 1901193.233 | BN48: 4839987.948 | BO48: 0 | BP48: 20252.80833 | BQ48: 56377.15304 | BR48: 120079.9897 | BS48: 0 | BT48: 0 | BU48: 0 | BV48: 0 | BW48: 0 | BX48: 0 | BY48: 0 | BZ48: 0 | CA48: 0 | CB48: 0 | CC48: 0 | CD48: 6262352.034 | CE48: 0 | CF48: 0 | CG48: 0 | CH48: 147436.7577 | CI48: 24594083.95 | CJ48: 2772264.816 | CK48: 0.0663 | CL48: 8942990.182 | CM48: 36309338.95 | CN48: 0.08366687917
B49: 2017-11-01 | C49: Vermelha 2 | D49: 0.05 | E49: 9.49 | F49: 3.75 | G49: 380.6 | H49: 254.75 | I49: 20.78 | J49: 7.15 | K49: 392.23 | L49: 266.38 | M49: 34.21 | N49: 11.05 | O49: 393.96 | P49: 268.11 | Q49: 34.21 | R49: 11.05 | S49: 393.96 | T49: 268.11 | V49: 11.05 | W49: 1222.64 | X49: 268.11 | Z49: 11.05 | AA49: 1222.64 | AB49: 268.11 | AD49: 35.68 | AF49: 278.59 | AH49: 35.68 | AJ49: 278.59 | AN49: 494.14 | AR49: 494.14 | AT49: 2017-11-01 | AU49: 361215.1812 | AV49: 168452.2031 | AW49: 761624.9003 | AX49: 5334973.747 | AY49: 56733.556 | AZ49: 23459.15 | BA49: 114902.1475 | BB49: 593584.0649 | BC49: 559264.4642 | BD49: 216592.6389 | BE49: 302596.3309 | BF49: 2182154.062 | BG49: 336.3983333 | BH49: 108.6583333 | BI49: 40.3809 | BJ49: 271.14858 | BK49: 0 | BL49: 570094.9914 | BM49: 1901193.233 | BN49: 4839987.948 | BO49: 0 | BP49: 20252.80833 | BQ49: 56377.15304 | BR49: 120079.9897 | BS49: 0 | BT49: 0 | BU49: 0 | BV49: 0 | BW49: 0 | BX49: 0 | BY49: 0 | BZ49: 0 | CA49: 0 | CB49: 0 | CC49: 0 | CD49: 6262352.034 | CE49: 0 | CF49: 0 | CG49: 0 | CH49: 147436.7577 | CI49: 24594083.95 | CJ49: 3960378.308 | CK49: 0.0771 | CL49: 9882019.445 | CM49: 38436481.7 | CN49: 0.05858390203
B50: 2017-12-01 | C50: Vermelha 1 | D50: 0.03 | E50: 9.49 | F50: 3.75 | G50: 380.6 | H50: 254.75 | I50: 20.78 | J50: 7.15 | K50: 392.23 | L50: 266.38 | M50: 34.21 | N50: 11.05 | O50: 393.96 | P50: 268.11 | Q50: 34.21 | R50: 11.05 | S50: 393.96 | T50: 268.11 | V50: 11.05 | W50: 1222.64 | X50: 268.11 | Z50: 11.05 | AA50: 1222.64 | AB50: 268.11 | AD50: 35.68 | AF50: 278.59 | AH50: 35.68 | AJ50: 278.59 | AN50: 494.14 | AR50: 494.14 | AT50: 2017-12-01 | AU50: 361215.1812 | AV50: 168452.2031 | AW50: 761624.9003 | AX50: 5334973.747 | AY50: 56733.556 | AZ50: 23459.15 | BA50: 114902.1475 | BB50: 593584.0649 | BC50: 559264.4642 | BD50: 216592.6389 | BE50: 302596.3309 | BF50: 2182154.062 | BG50: 336.3983333 | BH50: 108.6583333 | BI50: 40.3809 | BJ50: 271.14858 | BK50: 0 | BL50: 570094.9914 | BM50: 1901193.233 | BN50: 4839987.948 | BO50: 0 | BP50: 20252.80833 | BQ50: 56377.15304 | BR50: 120079.9897 | BS50: 0 | BT50: 0 | BU50: 0 | BV50: 0 | BW50: 0 | BX50: 0 | BY50: 0 | BZ50: 0 | CA50: 0 | CB50: 0 | CC50: 0 | CD50: 6262352.034 | CE50: 0 | CF50: 0 | CG50: 0 | CH50: 147436.7577 | CI50: 24594083.95 | CJ50: 2376226.985 | CK50: 0.063 | CL50: 8657576.693 | CM50: 35627887.63 | CN50: -0.07307104999
B51: 2018-01-01 | C51: Verde | D51: 0 | E51: 9.49 | F51: 3.75 | G51: 380.6 | H51: 254.75 | I51: 20.78 | J51: 7.15 | K51: 392.23 | L51: 266.38 | M51: 34.21 | N51: 11.05 | O51: 393.96 | P51: 268.11 | Q51: 34.21 | R51: 11.05 | S51: 393.96 | T51: 268.11 | V51: 11.05 | W51: 1222.64 | X51: 268.11 | Z51: 11.05 | AA51: 1222.64 | AB51: 268.11 | AD51: 35.68 | AF51: 278.59 | AH51: 35.68 | AJ51: 278.59 | AN51: 494.14 | AR51: 494.14 | AT51: 2018-01-01 | AU51: 361215.1812 | AV51: 168452.2031 | AW51: 761624.9003 | AX51: 5334973.747 | AY51: 56733.556 | AZ51: 23459.15 | BA51: 114902.1475 | BB51: 593584.0649 | BC51: 559264.4642 | BD51: 216592.6389 | BE51: 302596.3309 | BF51: 2182154.062 | BG51: 336.3983333 | BH51: 108.6583333 | BI51: 40.3809 | BJ51: 271.14858 | BK51: 0 | BL51: 570094.9914 | BM51: 1901193.233 | BN51: 4839987.948 | BO51: 0 | BP51: 20252.80833 | BQ51: 56377.15304 | BR51: 120079.9897 | BS51: 0 | BT51: 0 | BU51: 0 | BV51: 0 | BW51: 0 | BX51: 0 | BY51: 0 | BZ51: 0 | CA51: 0 | CB51: 0 | CC51: 0 | CD51: 6262352.034 | CE51: 0 | CF51: 0 | CG51: 0 | CH51: 147436.7577 | CI51: 24594083.95 | CJ51: 0 | CK51: 0.042 | CL51: 7017849.147 | CM51: 31611933.09 | CN51: -0.1127194116
B52: 2018-02-01 | C52: Verde | D52: 0 | E52: 9.49 | F52: 3.75 | G52: 380.6 | H52: 254.75 | I52: 20.78 | J52: 7.15 | K52: 392.23 | L52: 266.38 | M52: 34.21 | N52: 11.05 | O52: 393.96 | P52: 268.11 | Q52: 34.21 | R52: 11.05 | S52: 393.96 | T52: 268.11 | V52: 11.05 | W52: 1222.64 | X52: 268.11 | Z52: 11.05 | AA52: 1222.64 | AB52: 268.11 | AD52: 35.68 | AF52: 278.59 | AH52: 35.68 | AJ52: 278.59 | AN52: 494.14 | AR52: 494.14 | AT52: 2018-02-01 | AU52: 361215.1812 | AV52: 168452.2031 | AW52: 761624.9003 | AX52: 5334973.747 | AY52: 56733.556 | AZ52: 23459.15 | BA52: 114902.1475 | BB52: 593584.0649 | BC52: 559264.4642 | BD52: 216592.6389 | BE52: 302596.3309 | BF52: 2182154.062 | BG52: 336.3983333 | BH52: 108.6583333 | BI52: 40.3809 | BJ52: 271.14858 | BK52: 0 | BL52: 570094.9914 | BM52: 1901193.233 | BN52: 4839987.948 | BO52: 0 | BP52: 20252.80833 | BQ52: 56377.15304 | BR52: 120079.9897 | BS52: 0 | BT52: 0 | BU52: 0 | BV52: 0 | BW52: 0 | BX52: 0 | BY52: 0 | BZ52: 0 | CA52: 0 | CB52: 0 | CC52: 0 | CD52: 6262352.034 | CE52: 0 | CF52: 0 | CG52: 0 | CH52: 147436.7577 | CI52: 24594083.95 | CJ52: 0 | CK52: 0.0398 | CL52: 6928710.141 | CM52: 31522794.09 | CN52: -0.002819789797
B53: 2018-03-01 | C53: Verde | D53: 0 | E53: 9.49 | F53: 3.75 | G53: 380.6 | H53: 254.75 | I53: 20.78 | J53: 7.15 | K53: 392.23 | L53: 266.38 | M53: 34.21 | N53: 11.05 | O53: 393.96 | P53: 268.11 | Q53: 34.21 | R53: 11.05 | S53: 393.96 | T53: 268.11 | V53: 11.05 | W53: 1222.64 | X53: 268.11 | Z53: 11.05 | AA53: 1222.64 | AB53: 268.11 | AD53: 35.68 | AF53: 278.59 | AH53: 35.68 | AJ53: 278.59 | AN53: 494.14 | AR53: 494.14 | AT53: 2018-03-01 | AU53: 361215.1812 | AV53: 168452.2031 | AW53: 761624.9003 | AX53: 5334973.747 | AY53: 56733.556 | AZ53: 23459.15 | BA53: 114902.1475 | BB53: 593584.0649 | BC53: 559264.4642 | BD53: 216592.6389 | BE53: 302596.3309 | BF53: 2182154.062 | BG53: 336.3983333 | BH53: 108.6583333 | BI53: 40.3809 | BJ53: 271.14858 | BK53: 0 | BL53: 570094.9914 | BM53: 1901193.233 | BN53: 4839987.948 | BO53: 0 | BP53: 20252.80833 | BQ53: 56377.15304 | BR53: 120079.9897 | BS53: 0 | BT53: 0 | BU53: 0 | BV53: 0 | BW53: 0 | BX53: 0 | BY53: 0 | BZ53: 0 | CA53: 0 | CB53: 0 | CC53: 0 | CD53: 6262352.034 | CE53: 0 | CF53: 0 | CG53: 0 | CH53: 147436.7577 | CI53: 24594083.95 | CJ53: 0 | CK53: 0.0684 | CL53: 8128220.4 | CM53: 32722304.35 | CN53: 0.0380521554
B54: 2018-04-01 | C54: Verde | D54: 0 | E54: 9.49 | F54: 3.75 | G54: 380.6 | H54: 254.75 | I54: 20.78 | J54: 7.15 | K54: 392.23 | L54: 266.38 | M54: 34.21 | N54: 11.05 | O54: 393.96 | P54: 268.11 | Q54: 34.21 | R54: 11.05 | S54: 393.96 | T54: 268.11 | V54: 11.05 | W54: 1222.64 | X54: 268.11 | Z54: 11.05 | AA54: 1222.64 | AB54: 268.11 | AD54: 35.68 | AF54: 278.59 | AH54: 35.68 | AJ54: 278.59 | AN54: 494.14 | AR54: 494.14 | AT54: 2018-04-01 | AU54: 361215.1812 | AV54: 168452.2031 | AW54: 761624.9003 | AX54: 5334973.747 | AY54: 56733.556 | AZ54: 23459.15 | BA54: 114902.1475 | BB54: 593584.0649 | BC54: 559264.4642 | BD54: 216592.6389 | BE54: 302596.3309 | BF54: 2182154.062 | BG54: 336.3983333 | BH54: 108.6583333 | BI54: 40.3809 | BJ54: =T$25*T54*(1-BJ$28)/BJ$33 -> 271.14858 | BK54: 0 | BL54: 570094.9914 | BM54: 1901193.233 | BN54: 4839987.948 | BO54: 0 | BP54: 20252.80833 | BQ54: 56377.15304 | BR54: 120079.9897 | BS54: 0 | BT54: 0 | BU54: 0 | BV54: 0 | BW54: 0 | BX54: 0 | BY54: 0 | BZ54: =AJ$25*AJ54*(1-BZ$28)/BZ$33 -> 0 | CA54: 0 | CB54: 0 | CC54: 0 | CD54: 6262352.034 | CE54: 0 | CF54: 0 | CG54: 0 | CH54: 147436.7577 | CI54: 24594083.95 | CJ54: 0 | CK54: 0.067 | CL54: 8067382.118 | CM54: 32661466.07 | CN54: -0.001859229748
B55: 2018-05-01 | C55: Amarela | D55: 0.01 | E55: 9.49 | F55: 3.75 | G55: 380.6 | H55: 254.75 | I55: 20.78 | J55: 7.15 | K55: 392.23 | L55: 266.38 | M55: 34.21 | N55: 11.05 | O55: 393.96 | P55: 268.11 | Q55: 34.21 | R55: 11.05 | S55: 393.96 | T55: 268.11 | V55: 11.05 | W55: 1222.64 | X55: 268.11 | Z55: 11.05 | AA55: 1222.64 | AB55: 268.11 | AD55: 35.68 | AF55: 278.59 | AH55: 35.68 | AJ55: 278.59 | AN55: 494.14 | AR55: 494.14 | AT55: 2018-05-01 | AU55: =E$25*E55*(1-AU$28)/AU$33 -> 361215.1812 | AV55: 168452.2031 | AW55: 761624.9003 | AX55: 5334973.747 | AY55: 56733.556 | AZ55: 23459.15 | BA55: 114902.1475 | BB55: 593584.0649 | BC55: 559264.4642 | BD55: 216592.6389 | BE55: 302596.3309 | BF55: 2182154.062 | BG55: 336.3983333 | BH55: 108.6583333 | BI55: 40.3809 | BJ55: 271.14858 | BK55: 0 | BL55: 570094.9914 | BM55: 1901193.233 | BN55: 4839987.948 | BO55: 0 | BP55: 20252.80833 | BQ55: 56377.15304 | BR55: 120079.9897 | BS55: 0 | BT55: 0 | BU55: 0 | BV55: 0 | BW55: 0 | BX55: 0 | BY55: 0 | BZ55: 0 | CA55: 0 | CB55: 0 | CC55: 0 | CD55: 6262352.034 | CE55: 0 | CF55: 0 | CG55: 0 | CH55: 147436.7577 | CI55: 24594083.95 | CJ55: 792075.6617 | CK55: 0.0355 | CL55: 6973508.471 | CM55: 32359668.08 | CN55: -0.00924018489
B56: 2018-06-01 | C56: Vermelha 2 | D56: 0.05 | E56: 9.82 | F56: 4.21 | G56: 459.59 | H56: 304.88 | I56: 21.156 | J56: 7.71 | K56: 470.58 | L56: 315.87 | M56: 44.28 | N56: 14.59 | O56: 477.53 | P56: 322.82 | Q56: 44.28 | R56: 14.59 | S56: 477.53 | T56: 322.82 | V56: 14.59 | W56: 1543.33 | X56: 322.82 | Z56: 14.59 | AA56: 1543.33 | AB56: 322.82 | AD56: 46.47 | AF56: 335.71 | AH56: 46.47 | AJ56: 335.71 | AN56: 586.84 | AR56: 586.84 | AT56: 2018-06-01 | AU56: 373775.8777 | AV56: 189115.6734 | AW56: 919693.0844 | AX56: 6384796.059 | AY56: 57760.1112 | AZ56: 25296.51 | BA56: 137854.4542 | BB56: 703864.3989 | BC56: 723888.643 | BD56: 285980.6879 | BE56: 366785.5262 | BF56: 2627440.134 | BG56: 435.42 | BH56: 143.4683333 | BI56: 48.946825 | BJ56: 326.4786267 | BK56: 0 | BL56: 752731.7579 | BM56: 2399863.045 | BN56: 5827626.382 | BO56: 0 | BP56: 26741.03833 | BQ56: 71164.48963 | BR56: 144583.2765 | BS56: 0 | BT56: 0 | BU56: 0 | BV56: 0 | BW56: 0 | BX56: 0 | BY56: 0 | BZ56: 0 | CA56: 0 | CB56: 0 | CC56: 0 | CD56: 7437160.861 | CE56: 0 | CF56: 0 | CG56: 0 | CH56: 175095.6953 | CI56: 29632172.02 | CJ56: 3960378.308 | CK56: 0.0246 | CL56: 8640980.383 | CM56: 42233530.71 | CN56: 0.3051286745
B57: 2018-07-01 | C57: Vermelha 2 | D57: 0.05 | E57: 9.82 | F57: 4.21 | G57: 459.59 | H57: 304.88 | I57: 21.156 | J57: 7.71 | K57: 470.58 | L57: 315.87 | M57: 44.28 | N57: 14.59 | O57: 477.53 | P57: 322.82 | Q57: 44.28 | R57: 14.59 | S57: 477.53 | T57: 322.82 | V57: 14.59 | W57: 1543.33 | X57: 322.82 | Z57: 14.59 | AA57: 1543.33 | AB57: 322.82 | AD57: 46.47 | AF57: 335.71 | AH57: 46.47 | AJ57: 335.71 | AN57: 586.84 | AR57: 586.84 | AT57: 2018-07-01 | AU57: 373775.8777 | AV57: 189115.6734 | AW57: 919693.0844 | AX57: 6384796.059 | AY57: 57760.1112 | AZ57: 25296.51 | BA57: 137854.4542 | BB57: 703864.3989 | BC57: 723888.643 | BD57: 285980.6879 | BE57: 366785.5262 | BF57: 2627440.134 | BG57: 435.42 | BH57: 143.4683333 | BI57: 48.946825 | BJ57: 326.4786267 | BK57: 0 | BL57: 752731.7579 | BM57: 2399863.045 | BN57: 5827626.382 | BO57: 0 | BP57: 26741.03833 | BQ57: 71164.48963 | BR57: 144583.2765 | BS57: 0 | BT57: 0 | BU57: 0 | BV57: 0 | BW57: 0 | BX57: 0 | BY57: 0 | BZ57: 0 | CA57: 0 | CB57: 0 | CC57: 0 | CD57: 7437160.861 | CE57: 0 | CF57: 0 | CG57: 0 | CH57: 175095.6953 | CI57: 29632172.02 | CJ57: 3960378.308 | CK57: 0.0722 | CL57: 11329287.5 | CM57: 44921837.83 | CN57: 0.06365338326
B58: 2018-08-01 | C58: Vermelha 2 | D58: 0.05 | E58: 9.82 | F58: 4.21 | G58: 459.59 | H58: 304.88 | I58: 21.156 | J58: 7.71 | K58: 470.58 | L58: 315.87 | M58: 44.28 | N58: 14.59 | O58: 477.53 | P58: 322.82 | Q58: 44.28 | R58: 14.59 | S58: 477.53 | T58: 322.82 | V58: 14.59 | W58: 1543.33 | X58: 322.82 | Z58: 14.59 | AA58: 1543.33 | AB58: 322.82 | AD58: 46.47 | AF58: 335.71 | AH58: 46.47 | AJ58: 335.71 | AN58: 586.84 | AR58: 586.84 | AT58: 2018-08-01 | AU58: 373775.8777 | AV58: 189115.6734 | AW58: 919693.0844 | AX58: 6384796.059 | AY58: 57760.1112 | AZ58: 25296.51 | BA58: 137854.4542 | BB58: 703864.3989 | BC58: 723888.643 | BD58: 285980.6879 | BE58: 366785.5262 | BF58: 2627440.134 | BG58: 435.42 | BH58: 143.4683333 | BI58: 48.946825 | BJ58: 326.4786267 | BK58: 0 | BL58: 752731.7579 | BM58: 2399863.045 | BN58: 5827626.382 | BO58: 0 | BP58: 26741.03833 | BQ58: 71164.48963 | BR58: 144583.2765 | BS58: 0 | BT58: 0 | BU58: 0 | BV58: 0 | BW58: 0 | BX58: 0 | BY58: 0 | BZ58: 0 | CA58: 0 | CB58: 0 | CC58: 0 | CD58: 7437160.861 | CE58: 0 | CF58: 0 | CG58: 0 | CH58: 175095.6953 | CI58: 29632172.02 | CJ58: 3960378.308 | CK58: 0.0899 | CL58: 12418339.04 | CM58: 46010889.37 | CN58: 0.02424325435
B59: 2018-09-01 | C59: Vermelha 2 | D59: 0.05 | E59: 9.82 | F59: 4.21 | G59: 459.59 | H59: 304.88 | I59: 21.156 | J59: 7.71 | K59: 470.58 | L59: 315.87 | M59: 44.28 | N59: 14.59 | O59: 477.53 | P59: 322.82 | Q59: 44.28 | R59: 14.59 | S59: 477.53 | T59: 322.82 | V59: 14.59 | W59: 1543.33 | X59: 322.82 | Z59: 14.59 | AA59: 1543.33 | AB59: 322.82 | AD59: 46.47 | AF59: 335.71 | AH59: 46.47 | AJ59: 335.71 | AN59: 586.84 | AR59: 586.84 | AT59: 2018-09-01 | AU59: 373775.8777 | AV59: 189115.6734 | AW59: 919693.0844 | AX59: 6384796.059 | AY59: 57760.1112 | AZ59: 25296.51 | BA59: 137854.4542 | BB59: 703864.3989 | BC59: 723888.643 | BD59: 285980.6879 | BE59: 366785.5262 | BF59: 2627440.134 | BG59: 435.42 | BH59: 143.4683333 | BI59: 48.946825 | BJ59: 326.4786267 | BK59: 0 | BL59: 752731.7579 | BM59: 2399863.045 | BN59: 5827626.382 | BO59: 0 | BP59: 26741.03833 | BQ59: 71164.48963 | BR59: 144583.2765 | BS59: 0 | BT59: 0 | BU59: 0 | BV59: 0 | BW59: 0 | BX59: 0 | BY59: 0 | BZ59: 0 | CA59: 0 | CB59: 0 | CC59: 0 | CD59: 7437160.861 | CE59: 0 | CF59: 0 | CG59: 0 | CH59: 175095.6953 | CI59: 29632172.02 | CJ59: 3960378.308 | CK59: 0.04 | CL59: 9474821.887 | CM59: 43067372.21 | CN59: -0.06397435897
B60: 2018-10-01 | C60: Vermelha 2 | D60: 0.05 | E60: 9.82 | F60: 4.21 | G60: 459.59 | H60: 304.88 | I60: 21.156 | J60: 7.71 | K60: 470.58 | L60: 315.87 | M60: 44.28 | N60: 14.59 | O60: 477.53 | P60: 322.82 | Q60: 44.28 | R60: 14.59 | S60: 477.53 | T60: 322.82 | V60: 14.59 | W60: 1543.33 | X60: 322.82 | Z60: 14.59 | AA60: 1543.33 | AB60: 322.82 | AD60: 46.47 | AF60: 335.71 | AH60: 46.47 | AJ60: 335.71 | AN60: 586.84 | AR60: 586.84 | AT60: 2018-10-01 | AU60: 373775.8777 | AV60: 189115.6734 | AW60: 919693.0844 | AX60: 6384796.059 | AY60: 57760.1112 | AZ60: 25296.51 | BA60: 137854.4542 | BB60: 703864.3989 | BC60: 723888.643 | BD60: 285980.6879 | BE60: 366785.5262 | BF60: 2627440.134 | BG60: 435.42 | BH60: 143.4683333 | BI60: 48.946825 | BJ60: 326.4786267 | BK60: 0 | BL60: 752731.7579 | BM60: 2399863.045 | BN60: 5827626.382 | BO60: 0 | BP60: 26741.03833 | BQ60: 71164.48963 | BR60: 144583.2765 | BS60: 0 | BT60: 0 | BU60: 0 | BV60: 0 | BW60: 0 | BX60: 0 | BY60: 0 | BZ60: 0 | CA60: 0 | CB60: 0 | CC60: 0 | CD60: 7437160.861 | CE60: 0 | CF60: 0 | CG60: 0 | CH60: 175095.6953 | CI60: 29632172.02 | CJ60: 3960378.308 | CK60: 0.0251 | CL60: 8667545.694 | CM60: 42260096.02 | CN60: -0.01874449616
B61: 2018-11-01 | C61: Amarela | D61: 0.01 | E61: 9.82 | F61: 4.21 | G61: 459.59 | H61: 304.88 | I61: 21.156 | J61: 7.71 | K61: 470.58 | L61: 315.87 | M61: 44.28 | N61: 14.59 | O61: 477.53 | P61: 322.82 | Q61: 44.28 | R61: 14.59 | S61: 477.53 | T61: 322.82 | V61: 14.59 | W61: 1543.33 | X61: 322.82 | Z61: 14.59 | AA61: 1543.33 | AB61: 322.82 | AD61: 46.47 | AF61: 335.71 | AH61: 46.47 | AJ61: 335.71 | AN61: 586.84 | AR61: 586.84 | AT61: 2018-11-01 | AU61: 373775.8777 | AV61: 189115.6734 | AW61: 919693.0844 | AX61: 6384796.059 | AY61: 57760.1112 | AZ61: 25296.51 | BA61: 137854.4542 | BB61: 703864.3989 | BC61: 723888.643 | BD61: 285980.6879 | BE61: 366785.5262 | BF61: 2627440.134 | BG61: 435.42 | BH61: 143.4683333 | BI61: 48.946825 | BJ61: 326.4786267 | BK61: 0 | BL61: 752731.7579 | BM61: 2399863.045 | BN61: 5827626.382 | BO61: 0 | BP61: 26741.03833 | BQ61: 71164.48963 | BR61: 144583.2765 | BS61: 0 | BT61: 0 | BU61: 0 | BV61: 0 | BW61: 0 | BX61: 0 | BY61: 0 | BZ61: 0 | CA61: 0 | CB61: 0 | CC61: 0 | CD61: 7437160.861 | CE61: 0 | CF61: 0 | CG61: 0 | CH61: 175095.6953 | CI61: 29632172.02 | CJ61: 792075.6617 | CK61: 0.0567 | CL61: 9434585.911 | CM61: 39858833.59 | CN61: -0.05682103581
B62: 2018-12-01 | C62: Verde | D62: 0 | E62: 9.82 | F62: 4.21 | G62: 459.59 | H62: 304.88 | I62: 21.156 | J62: 7.71 | K62: 470.58 | L62: 315.87 | M62: 44.28 | N62: 14.59 | O62: 477.53 | P62: 322.82 | Q62: 44.28 | R62: 14.59 | S62: 477.53 | T62: 322.82 | V62: 14.59 | W62: 1543.33 | X62: 322.82 | Z62: 14.59 | AA62: 1543.33 | AB62: 322.82 | AD62: 46.47 | AF62: 335.71 | AH62: 46.47 | AJ62: 335.71 | AN62: 586.84 | AR62: 586.84 | AT62: 2018-12-01 | AU62: 373775.8777 | AV62: 189115.6734 | AW62: 919693.0844 | AX62: 6384796.059 | AY62: 57760.1112 | AZ62: 25296.51 | BA62: 137854.4542 | BB62: 703864.3989 | BC62: 723888.643 | BD62: 285980.6879 | BE62: 366785.5262 | BF62: 2627440.134 | BG62: 435.42 | BH62: 143.4683333 | BI62: 48.946825 | BJ62: 326.4786267 | BK62: 0 | BL62: 752731.7579 | BM62: 2399863.045 | BN62: 5827626.382 | BO62: 0 | BP62: 26741.03833 | BQ62: 71164.48963 | BR62: 144583.2765 | BS62: 0 | BT62: 0 | BU62: 0 | BV62: 0 | BW62: 0 | BX62: 0 | BY62: 0 | BZ62: 0 | CA62: 0 | CB62: 0 | CC62: 0 | CD62: 7437160.861 | CE62: 0 | CF62: 0 | CG62: 0 | CH62: 175095.6953 | CI62: =SUM(AU62:CH62) -> 29632172.02 | CJ62: 0 | CK62: 0.0804 | CL62: 10432960.51 | CM62: 40065132.53 | CN62: 0.005175739461
B63: 2019-01-01 | C63: Verde | D63: 0 | E63: 9.82 | F63: 4.21 | G63: 459.59 | H63: 304.88 | I63: 21.156 | J63: 7.71 | K63: 470.58 | L63: 315.87 | M63: 44.28 | N63: 14.59 | O63: 477.53 | P63: 322.82 | Q63: 44.28 | R63: 14.59 | S63: 477.53 | T63: 322.82 | V63: 14.59 | W63: 1543.33 | X63: 322.82 | Z63: 14.59 | AA63: 1543.33 | AB63: 322.82 | AD63: 46.47 | AF63: 335.71 | AH63: 46.47 | AJ63: 335.71 | AN63: 586.84 | AR63: 586.84 | AT63: 2019-01-01 | AU63: 373775.8777 | AV63: 189115.6734 | AW63: 919693.0844 | AX63: 6384796.059 | AY63: 57760.1112 | AZ63: 25296.51 | BA63: 137854.4542 | BB63: 703864.3989 | BC63: 723888.643 | BD63: 285980.6879 | BE63: 366785.5262 | BF63: 2627440.134 | BG63: 435.42 | BH63: 143.4683333 | BI63: 48.946825 | BJ63: 326.4786267 | BK63: 0 | BL63: 752731.7579 | BM63: 2399863.045 | BN63: 5827626.382 | BO63: 0 | BP63: 26741.03833 | BQ63: 71164.48963 | BR63: 144583.2765 | BS63: 0 | BT63: 0 | BU63: 0 | BV63: 0 | BW63: 0 | BX63: 0 | BY63: 0 | BZ63: 0 | CA63: 0 | CB63: 0 | CC63: 0 | CD63: 7437160.861 | CE63: 0 | CF63: 0 | CG63: 0 | CH63: 175095.6953 | CI63: 29632172.02 | CJ63: 0 | CK63: 0.0731 | CL63: 10041374.67 | CM63: 39673546.68 | CN63: -0.009773731423
B64: 2019-02-01 | C64: Verde | D64: 0 | E64: 9.82 | F64: 4.21 | G64: 459.59 | H64: 304.88 | I64: 21.156 | J64: 7.71 | K64: 470.58 | L64: 315.87 | M64: 44.28 | N64: 14.59 | O64: 477.53 | P64: 322.82 | Q64: 44.28 | R64: 14.59 | S64: 477.53 | T64: 322.82 | V64: 14.59 | W64: 1543.33 | X64: 322.82 | Z64: 14.59 | AA64: 1543.33 | AB64: 322.82 | AD64: 46.47 | AF64: 335.71 | AH64: 46.47 | AJ64: 335.71 | AN64: 586.84 | AR64: 586.84 | AT64: 2019-02-01 | AU64: 373775.8777 | AV64: 189115.6734 | AW64: 919693.0844 | AX64: 6384796.059 | AY64: 57760.1112 | AZ64: 25296.51 | BA64: 137854.4542 | BB64: 703864.3989 | BC64: 723888.643 | BD64: 285980.6879 | BE64: 366785.5262 | BF64: 2627440.134 | BG64: 435.42 | BH64: 143.4683333 | BI64: 48.946825 | BJ64: 326.4786267 | BK64: 0 | BL64: 752731.7579 | BM64: 2399863.045 | BN64: 5827626.382 | BO64: 0 | BP64: 26741.03833 | BQ64: 71164.48963 | BR64: 144583.2765 | BS64: 0 | BT64: 0 | BU64: 0 | BV64: 0 | BW64: 0 | BX64: 0 | BY64: 0 | BZ64: 0 | CA64: 0 | CB64: 0 | CC64: 0 | CD64: 7437160.861 | CE64: 0 | CF64: 0 | CG64: 0 | CH64: 175095.6953 | CI64: 29632172.02 | CJ64: 0 | CK64: 0.0873 | CL64: 10810262.84 | CM64: 40442434.86 | CN64: 0.01938037396
B65: 2019-03-01 | C65: Verde | D65: 0 | E65: 9.82 | F65: 4.21 | G65: 459.59 | H65: 304.88 | I65: 21.156 | J65: 7.71 | K65: 470.58 | L65: 315.87 | M65: 44.28 | N65: 14.59 | O65: 477.53 | P65: 322.82 | Q65: 44.28 | R65: 14.59 | S65: 477.53 | T65: 322.82 | V65: 14.59 | W65: 1543.33 | X65: 322.82 | Z65: 14.59 | AA65: 1543.33 | AB65: 322.82 | AD65: 46.47 | AF65: 335.71 | AH65: 46.47 | AJ65: 335.71 | AN65: 586.84 | AR65: 586.84 | AT65: 2019-03-01 | AU65: 373775.8777 | AV65: 189115.6734 | AW65: 919693.0844 | AX65: 6384796.059 | AY65: 57760.1112 | AZ65: 25296.51 | BA65: 137854.4542 | BB65: 703864.3989 | BC65: 723888.643 | BD65: 285980.6879 | BE65: 366785.5262 | BF65: 2627440.134 | BG65: 435.42 | BH65: 143.4683333 | BI65: 48.946825 | BJ65: 326.4786267 | BK65: 0 | BL65: 752731.7579 | BM65: 2399863.045 | BN65: 5827626.382 | BO65: 0 | BP65: 26741.03833 | BQ65: 71164.48963 | BR65: 144583.2765 | BS65: 0 | BT65: 0 | BU65: 0 | BV65: 0 | BW65: 0 | BX65: 0 | BY65: 0 | BZ65: 0 | CA65: 0 | CB65: 0 | CC65: 0 | CD65: 7437160.861 | CE65: 0 | CF65: 0 | CG65: 0 | CH65: 175095.6953 | CI65: 29632172.02 | CJ65: 0 | CK65: 0.041 | CL65: 8406559.713 | CM65: 38038731.73 | CN65: -0.0594351733
B66: 2019-04-01 | C66: Verde | D66: 0 | E66: 9.82 | F66: 4.21 | G66: 459.59 | H66: 304.88 | I66: 21.156 | J66: 7.71 | K66: 470.58 | L66: 315.87 | M66: 44.28 | N66: 14.59 | O66: 477.53 | P66: 322.82 | Q66: 44.28 | R66: 14.59 | S66: 477.53 | T66: 322.82 | V66: 14.59 | W66: 1543.33 | X66: 322.82 | Z66: 14.59 | AA66: 1543.33 | AB66: 322.82 | AD66: 46.47 | AF66: 335.71 | AH66: 46.47 | AJ66: 335.71 | AN66: 586.84 | AR66: 586.84 | AT66: 2019-04-01 | AU66: 373775.8777 | AV66: 189115.6734 | AW66: 919693.0844 | AX66: 6384796.059 | AY66: 57760.1112 | AZ66: 25296.51 | BA66: 137854.4542 | BB66: 703864.3989 | BC66: 723888.643 | BD66: 285980.6879 | BE66: 366785.5262 | BF66: 2627440.134 | BG66: 435.42 | BH66: 143.4683333 | BI66: 48.946825 | BJ66: 326.4786267 | BK66: 0 | BL66: 752731.7579 | BM66: 2399863.045 | BN66: 5827626.382 | BO66: 0 | BP66: 26741.03833 | BQ66: 71164.48963 | BR66: 144583.2765 | BS66: 0 | BT66: 0 | BU66: 0 | BV66: 0 | BW66: 0 | BX66: 0 | BY66: 0 | BZ66: 0 | CA66: 0 | CB66: 0 | CC66: 0 | CD66: 7437160.861 | CE66: 0 | CF66: 0 | CG66: 0 | CH66: 175095.6953 | CI66: 29632172.02 | CJ66: 0 | CK66: 0.0415 | CL66: 8430990.497 | CM66: 38063162.52 | CN66: 0.0006422607579
B67: 2019-05-01 | C67: Amarela | D67: 0.01 | E67: 9.82 | F67: 4.21 | G67: 459.59 | H67: 304.88 | I67: 21.156 | J67: 7.71 | K67: 470.58 | L67: 315.87 | M67: 44.28 | N67: 14.59 | O67: 477.53 | P67: 322.82 | Q67: 44.28 | R67: 14.59 | S67: 477.53 | T67: 322.82 | V67: 14.59 | W67: 1543.33 | X67: 322.82 | Z67: 14.59 | AA67: 1543.33 | AB67: 322.82 | AD67: 46.47 | AF67: 335.71 | AH67: 46.47 | AJ67: 335.71 | AN67: 586.84 | AR67: 586.84 | AT67: 2019-05-01 | AU67: 373775.8777 | AV67: 189115.6734 | AW67: 919693.0844 | AX67: 6384796.059 | AY67: 57760.1112 | AZ67: 25296.51 | BA67: 137854.4542 | BB67: 703864.3989 | BC67: 723888.643 | BD67: 285980.6879 | BE67: 366785.5262 | BF67: 2627440.134 | BG67: 435.42 | BH67: 143.4683333 | BI67: 48.946825 | BJ67: 326.4786267 | BK67: 0 | BL67: 752731.7579 | BM67: 2399863.045 | BN67: 5827626.382 | BO67: 0 | BP67: 26741.03833 | BQ67: 71164.48963 | BR67: 144583.2765 | BS67: 0 | BT67: 0 | BU67: 0 | BV67: 0 | BW67: 0 | BX67: 0 | BY67: 0 | BZ67: 0 | CA67: 0 | CB67: 0 | CC67: 0 | CD67: 7437160.861 | CE67: 0 | CF67: 0 | CG67: 0 | CH67: 175095.6953 | CI67: 29632172.02 | CJ67: 792075.6617 | CK67: 0.037 | CL67: 8431751.911 | CM67: 38855999.59 | CN67: 0.02082951135
B68: 2019-06-01 | C68: Verde | D68: 0 | E68: 9.81 | F68: 3.7 | G68: 510.05 | H68: 332.46 | I68: 20.16 | J68: 6.68 | K68: 522.19 | L68: 344.6 | M68: 43.85 | N68: 13.95 | O68: 534.25 | P68: 356.66 | Q68: 43.85 | R68: 13.95 | S68: 534.25 | T68: 356.66 | V68: 13.95 | W68: 1599.69 | X68: 356.66 | Z68: 13.95 | AA68: 1599.69 | AB68: 356.66 | AD68: 45.52 | AE68: 0 | AF68: 371.46 | AG68: 0 | AH68: 45.52 | AI68: 0 | AJ68: 371.46 | AN68: 628.33 | AR68: 628.33 | AT68: 2019-06-01 | AU68: =E$25*E68*(1-AU$29)/AU$33 -> 386573.9064 | AV68: 172072.274 | AW68: 1056693.044 | AX68: 7208107.267 | AY68: 56983.4496 | AZ68: 22690.624 | BA68: 158372.4499 | BB68: 794986.289 | BC68: 742159.917 | BD68: 283086.6367 | BE68: 424834.5279 | BF68: 3005318.799 | BG68: 431.1916667 | BH68: 137.175 | BI68: 54.760625 | BJ68: 360.7021467 | BK68: =U$25*U68*(1-BK$29)/BK$33 -> 0 | BL68: 745114.3055 | BM68: 2575296.492 | BN68: 6665756.106 | BO68: 0 | BP68: 25568.025 | BQ68: 73763.30559 | BR68: 159739.3947 | BS68: 0 | BT68: 0 | BU68: 0 | BV68: 0 | BW68: 0 | BX68: 0 | BY68: 0 | BZ68: 0 | CA68: =AK$25*AK68*(1-CA$29)/CA$33 -> 0 | CB68: 0 | CC68: 0 | CD68: 8244019.473 | CE68: 0 | CF68: 0 | CG68: 0 | CH68: 187475.0839 | CI68: 32989595.2 | CJ68: 0 | CK68: 0.0324 | CL68: 8896635.374 | CM68: 41886230.57 | CN68: 0.0779861801
B69: 2019-07-01 | C69: Amarela | D69: 0.015 | E69: 9.81 | F69: 3.7 | G69: 510.05 | H69: 332.46 | I69: 20.16 | J69: 6.68 | K69: 522.19 | L69: 344.6 | M69: 43.85 | N69: 13.95 | O69: 534.25 | P69: 356.66 | Q69: 43.85 | R69: 13.95 | S69: 534.25 | T69: 356.66 | V69: 13.95 | W69: 1599.69 | X69: 356.66 | Z69: 13.95 | AA69: 1599.69 | AB69: 356.66 | AD69: 45.52 | AF69: 371.46 | AH69: 45.52 | AJ69: 371.46 | AN69: 628.33 | AR69: 628.33 | AT69: 2019-07-01 | AU69: 386573.9064 | AV69: 172072.274 | AW69: 1056693.044 | AX69: 7208107.267 | AY69: 56983.4496 | AZ69: 22690.624 | BA69: 158372.4499 | BB69: 794986.289 | BC69: 742159.917 | BD69: 283086.6367 | BE69: 424834.5279 | BF69: 3005318.799 | BG69: 431.1916667 | BH69: 137.175 | BI69: 54.760625 | BJ69: 360.7021467 | BK69: 0 | BL69: 745114.3055 | BM69: 2575296.492 | BN69: 6665756.106 | BO69: 0 | BP69: 25568.025 | BQ69: 73763.30559 | BR69: 159739.3947 | BS69: 0 | BT69: 0 | BU69: 0 | BV69: 0 | BW69: 0 | BX69: 0 | BY69: 0 | BZ69: 0 | CA69: 0 | CB69: 0 | CC69: 0 | CD69: 8244019.473 | CE69: 0 | CF69: 0 | CG69: 0 | CH69: 187475.0839 | CI69: 32989595.2 | CJ69: 1188113.492 | CK69: 0.06802776178 | CL69: =(1/((1-CK69)*(1-$CL$33))-1)*(CI69+CJ69) -> 10544795.74 | CM69: 44722504.43 | CN69: 0.06771375262
B70: 2019-08-01 | C70: Vermelha 1 | D70: 0.015 | E70: 9.81 | F70: 3.7 | G70: 510.05 | H70: 332.46 | I70: 20.16 | J70: 6.68 | K70: 522.19 | L70: 344.6 | M70: 43.85 | N70: 13.95 | O70: 534.25 | P70: 356.66 | Q70: 43.85 | R70: 13.95 | S70: 534.25 | T70: 356.66 | V70: 13.95 | W70: 1599.69 | X70: 356.66 | Z70: 13.95 | AA70: 1599.69 | AB70: 356.66 | AD70: 45.52 | AF70: 371.46 | AH70: 45.52 | AJ70: 371.46 | AN70: 628.33 | AR70: 628.33 | AT70: 2019-08-01 | AU70: 386573.9064 | AV70: 172072.274 | AW70: 1056693.044 | AX70: 7208107.267 | AY70: 56983.4496 | AZ70: 22690.624 | BA70: 158372.4499 | BB70: 794986.289 | BC70: 742159.917 | BD70: 283086.6367 | BE70: 424834.5279 | BF70: 3005318.799 | BG70: 431.1916667 | BH70: 137.175 | BI70: 54.760625 | BJ70: 360.7021467 | BK70: 0 | BL70: 745114.3055 | BM70: 2575296.492 | BN70: 6665756.106 | BO70: 0 | BP70: 25568.025 | BQ70: 73763.30559 | BR70: 159739.3947 | BS70: 0 | BT70: 0 | BU70: 0 | BV70: 0 | BW70: 0 | BX70: 0 | BY70: 0 | BZ70: 0 | CA70: 0 | CB70: 0 | CC70: 0 | CD70: 8244019.473 | CE70: 0 | CF70: 0 | CG70: 0 | CH70: 187475.0839 | CI70: 32989595.2 | CJ70: 1188113.492 | CK70: 0.0704 | CL70: 10658922.71 | CM70: 44836631.4 | CN70: 0.002551891375
B71: 2019-09-01 | C71: Vermelha 1 | D71: 0.015 | E71: 9.81 | F71: 3.7 | G71: 510.05 | H71: 332.46 | I71: 20.16 | J71: 6.68 | K71: 522.19 | L71: 344.6 | M71: 43.85 | N71: 13.95 | O71: 534.25 | P71: 356.66 | Q71: 43.85 | R71: 13.95 | S71: 534.25 | T71: 356.66 | V71: 13.95 | W71: 1599.69 | X71: 356.66 | Z71: 13.95 | AA71: 1599.69 | AB71: 356.66 | AD71: 45.52 | AF71: 371.46 | AH71: 45.52 | AJ71: 371.46 | AN71: 628.33 | AR71: 628.33 | AT71: 2019-09-01 | AU71: 386573.9064 | AV71: 172072.274 | AW71: 1056693.044 | AX71: 7208107.267 | AY71: 56983.4496 | AZ71: 22690.624 | BA71: 158372.4499 | BB71: 794986.289 | BC71: 742159.917 | BD71: 283086.6367 | BE71: 424834.5279 | BF71: 3005318.799 | BG71: 431.1916667 | BH71: 137.175 | BI71: 54.760625 | BJ71: 360.7021467 | BK71: 0 | BL71: 745114.3055 | BM71: 2575296.492 | BN71: 6665756.106 | BO71: 0 | BP71: 25568.025 | BQ71: 73763.30559 | BR71: 159739.3947 | BS71: 0 | BT71: 0 | BU71: 0 | BV71: 0 | BW71: 0 | BX71: 0 | BY71: 0 | BZ71: 0 | CA71: 0 | CB71: 0 | CC71: 0 | CD71: 8244019.473 | CE71: 0 | CF71: 0 | CG71: 0 | CH71: 187475.0839 | CI71: 32989595.2 | CJ71: =SUMIF($E$12:$AR$12,"kWh",$E$25:$AR$25)*D71 -> 1188113.492 | CK71: 0.05733035327 | CL71: 10037285.07 | CM71: 44214993.76 | CN71: -0.01386450362
B72: 2019-10-01 | C72: Amarela | D72: 0.015 | E72: 9.81 | F72: 3.7 | G72: 510.05 | H72: 332.46 | I72: 20.16 | J72: 6.68 | K72: 522.19 | L72: 344.6 | M72: 43.85 | N72: 13.95 | O72: 534.25 | P72: 356.66 | Q72: 43.85 | R72: 13.95 | S72: 534.25 | T72: 356.66 | V72: 13.95 | W72: 1599.69 | X72: 356.66 | Z72: 13.95 | AA72: 1599.69 | AB72: 356.66 | AD72: 45.52 | AF72: 371.46 | AH72: 45.52 | AJ72: 371.46 | AN72: 628.33 | AR72: 628.33 | AT72: 2019-10-01 | AU72: 386573.9064 | AV72: 172072.274 | AW72: 1056693.044 | AX72: 7208107.267 | AY72: 56983.4496 | AZ72: 22690.624 | BA72: 158372.4499 | BB72: 794986.289 | BC72: 742159.917 | BD72: 283086.6367 | BE72: 424834.5279 | BF72: 3005318.799 | BG72: 431.1916667 | BH72: 137.175 | BI72: 54.760625 | BJ72: 360.7021467 | BK72: 0 | BL72: 745114.3055 | BM72: 2575296.492 | BN72: 6665756.106 | BO72: 0 | BP72: 25568.025 | BQ72: 73763.30559 | BR72: 159739.3947 | BS72: 0 | BT72: 0 | BU72: 0 | BV72: 0 | BW72: 0 | BX72: 0 | BY72: 0 | BZ72: 0 | CA72: 0 | CB72: 0 | CC72: 0 | CD72: 8244019.473 | CE72: 0 | CF72: 0 | CG72: 0 | CH72: 187475.0839 | CI72: 32989595.2 | CJ72: 1188113.492 | CK72: 0.04990283621 | CL72: 9691628.193 | CM72: 43869336.89 | CN72: -0.007817639437
B73: 2019-11-01 | C73: Vermelha 1 | D73: 0.04169 | E73: 9.81 | F73: 3.7 | G73: 510.05 | H73: 332.46 | I73: 20.16 | J73: 6.68 | K73: 522.19 | L73: 344.6 | M73: 43.85 | N73: 13.95 | O73: 534.25 | P73: 356.66 | Q73: 43.85 | R73: 13.95 | S73: 534.25 | T73: 356.66 | V73: 13.95 | W73: 1599.69 | X73: 356.66 | Z73: 13.95 | AA73: 1599.69 | AB73: 356.66 | AD73: 45.52 | AF73: 371.46 | AH73: 45.52 | AJ73: 371.46 | AN73: 628.33 | AR73: 628.33 | AT73: 2019-11-01 | AU73: 386573.9064 | AV73: 172072.274 | AW73: 1056693.044 | AX73: 7208107.267 | AY73: 56983.4496 | AZ73: 22690.624 | BA73: 158372.4499 | BB73: 794986.289 | BC73: 742159.917 | BD73: 283086.6367 | BE73: 424834.5279 | BF73: 3005318.799 | BG73: 431.1916667 | BH73: 137.175 | BI73: 54.760625 | BJ73: 360.7021467 | BK73: 0 | BL73: 745114.3055 | BM73: 2575296.492 | BN73: 6665756.106 | BO73: 0 | BP73: 25568.025 | BQ73: 73763.30559 | BR73: 159739.3947 | BS73: 0 | BT73: 0 | BU73: 0 | BV73: 0 | BW73: 0 | BX73: 0 | BY73: 0 | BZ73: 0 | CA73: 0 | CB73: 0 | CC73: 0 | CD73: 8244019.473 | CE73: 0 | CF73: 0 | CG73: 0 | CH73: 187475.0839 | CI73: 32989595.2 | CJ73: 3302163.433 | CK73: 0.04020498713 | CL73: 9820423.283 | CM73: 46112181.92 | CN73: 0.05112557404
B74: 2019-12-01 | C74: Amarela | D74: 0.01343 | E74: 9.81 | F74: 3.7 | G74: 510.05 | H74: 332.46 | I74: 20.16 | J74: 6.68 | K74: 522.19 | L74: 344.6 | M74: 43.85 | N74: 13.95 | O74: 534.25 | P74: 356.66 | Q74: 43.85 | R74: 13.95 | S74: 534.25 | T74: 356.66 | V74: 13.95 | W74: 1599.69 | X74: 356.66 | Z74: 13.95 | AA74: 1599.69 | AB74: 356.66 | AD74: 45.52 | AF74: 371.46 | AH74: 45.52 | AJ74: 371.46 | AN74: 628.33 | AR74: 628.33 | AT74: 2019-12-01 | AU74: 386573.9064 | AV74: 172072.274 | AW74: 1056693.044 | AX74: 7208107.267 | AY74: 56983.4496 | AZ74: 22690.624 | BA74: 158372.4499 | BB74: 794986.289 | BC74: 742159.917 | BD74: 283086.6367 | BE74: 424834.5279 | BF74: 3005318.799 | BG74: 431.1916667 | BH74: 137.175 | BI74: 54.760625 | BJ74: 360.7021467 | BK74: 0 | BL74: 745114.3055 | BM74: 2575296.492 | BN74: 6665756.106 | BO74: 0 | BP74: 25568.025 | BQ74: 73763.30559 | BR74: 159739.3947 | BS74: 0 | BT74: 0 | BU74: 0 | BV74: 0 | BW74: 0 | BX74: 0 | BY74: 0 | BZ74: 0 | CA74: 0 | CB74: 0 | CC74: 0 | CD74: 8244019.473 | CE74: 0 | CF74: 0 | CG74: 0 | CH74: 187475.0839 | CI74: 32989595.2 | CJ74: 1063757.614 | CK74: 0.04022452705 | CL74: 9215599.365 | CM74: 43268952.18 | CN74: -0.06165897209
B75: 2020-01-01 | C75: Amarela | D75: 0.01343 | E75: 9.81 | F75: 3.7 | G75: 510.05 | H75: 332.46 | I75: 20.16 | J75: 6.68 | K75: 522.19 | L75: 344.6 | M75: 43.85 | N75: 13.95 | O75: 534.25 | P75: 356.66 | Q75: 43.85 | R75: 13.95 | S75: 534.25 | T75: 356.66 | V75: 13.95 | W75: 1599.69 | X75: 356.66 | Z75: 13.95 | AA75: 1599.69 | AB75: 356.66 | AD75: 45.52 | AF75: 371.46 | AH75: 45.52 | AJ75: 371.46 | AN75: 628.33 | AR75: 628.33 | AT75: 2020-01-01 | AU75: 386573.9064 | AV75: 172072.274 | AW75: 1056693.044 | AX75: 7208107.267 | AY75: 56983.4496 | AZ75: 22690.624 | BA75: 158372.4499 | BB75: 794986.289 | BC75: 742159.917 | BD75: 283086.6367 | BE75: 424834.5279 | BF75: 3005318.799 | BG75: 431.1916667 | BH75: 137.175 | BI75: 54.760625 | BJ75: 360.7021467 | BK75: 0 | BL75: 745114.3055 | BM75: 2575296.492 | BN75: 6665756.106 | BO75: 0 | BP75: 25568.025 | BQ75: 73763.30559 | BR75: 159739.3947 | BS75: 0 | BT75: 0 | BU75: 0 | BV75: 0 | BW75: 0 | BX75: 0 | BY75: 0 | BZ75: 0 | CA75: 0 | CB75: 0 | CC75: 0 | CD75: 8244019.473 | CE75: 0 | CF75: 0 | CG75: 0 | CH75: 187475.0839 | CI75: 32989595.2 | CJ75: 1063757.614 | CK75: 0.04022452705 | CL75: 9215599.365 | CM75: 43268952.18 | CN75: 0
B76: 2020-02-01 | C76: Verde | D76: 0 | E76: 9.81 | F76: 3.7 | G76: 510.05 | H76: 332.46 | I76: 20.16 | J76: 6.68 | K76: 522.19 | L76: 344.6 | M76: 43.85 | N76: 13.95 | O76: 534.25 | P76: 356.66 | Q76: 43.85 | R76: 13.95 | S76: 534.25 | T76: 356.66 | V76: 13.95 | W76: 1599.69 | X76: 356.66 | Z76: 13.95 | AA76: 1599.69 | AB76: 356.66 | AD76: 45.52 | AF76: 371.46 | AH76: 45.52 | AJ76: 371.46 | AN76: 628.33 | AR76: 628.33 | AT76: 2020-02-01 | AU76: 386573.9064 | AV76: 172072.274 | AW76: 1056693.044 | AX76: 7208107.267 | AY76: 56983.4496 | AZ76: 22690.624 | BA76: 158372.4499 | BB76: 794986.289 | BC76: 742159.917 | BD76: 283086.6367 | BE76: 424834.5279 | BF76: 3005318.799 | BG76: 431.1916667 | BH76: 137.175 | BI76: 54.760625 | BJ76: 360.7021467 | BK76: 0 | BL76: 745114.3055 | BM76: 2575296.492 | BN76: 6665756.106 | BO76: 0 | BP76: 25568.025 | BQ76: 73763.30559 | BR76: 159739.3947 | BS76: 0 | BT76: 0 | BU76: 0 | BV76: 0 | BW76: 0 | BX76: 0 | BY76: 0 | BZ76: 0 | CA76: 0 | CB76: 0 | CC76: 0 | CD76: 8244019.473 | CE76: 0 | CF76: 0 | CG76: 0 | CH76: 187475.0839 | CI76: 32989595.2 | CJ76: 0 | CK76: 0.05186762355 | CL76: 9442468.78 | CM76: 42432063.98 | CN76: -0.01934154068
B77: 2020-03-01 | C77: Verde | D77: 0 | E77: 9.81 | F77: 3.7 | G77: 510.05 | H77: 332.46 | I77: 20.16 | J77: 6.68 | K77: 522.19 | L77: 344.6 | M77: 43.85 | N77: 13.95 | O77: 534.25 | P77: 356.66 | Q77: 43.85 | R77: 13.95 | S77: 534.25 | T77: 356.66 | V77: 13.95 | W77: 1599.69 | X77: 356.66 | Z77: 13.95 | AA77: 1599.69 | AB77: 356.66 | AD77: 45.52 | AF77: 371.46 | AH77: 45.52 | AJ77: 371.46 | AN77: 628.33 | AR77: 628.33 | AT77: 2020-03-01 | AU77: 386573.9064 | AV77: 172072.274 | AW77: 1056693.044 | AX77: 7208107.267 | AY77: 56983.4496 | AZ77: 22690.624 | BA77: 158372.4499 | BB77: 794986.289 | BC77: 742159.917 | BD77: 283086.6367 | BE77: 424834.5279 | BF77: 3005318.799 | BG77: 431.1916667 | BH77: 137.175 | BI77: 54.760625 | BJ77: 360.7021467 | BK77: 0 | BL77: 745114.3055 | BM77: 2575296.492 | BN77: 6665756.106 | BO77: 0 | BP77: 25568.025 | BQ77: 73763.30559 | BR77: 159739.3947 | BS77: 0 | BT77: 0 | BU77: 0 | BV77: 0 | BW77: 0 | BX77: 0 | BY77: 0 | BZ77: 0 | CA77: 0 | CB77: 0 | CC77: 0 | CD77: 8244019.473 | CE77: 0 | CF77: 0 | CG77: 0 | CH77: 187475.0839 | CI77: 32989595.2 | CJ77: 0 | CK77: 0.05066854765 | CL77: 9388873.942 | CM77: 42378469.14 | CN77: -0.001263074025
B78: 2020-04-01 | C78: Verde | D78: 0 | E78: 9.81 | F78: 3.7 | G78: 510.05 | H78: 332.46 | I78: 20.16 | J78: 6.68 | K78: 522.19 | L78: 344.6 | M78: 43.85 | N78: 13.95 | O78: 534.25 | P78: 356.66 | Q78: 43.85 | R78: 13.95 | S78: 534.25 | T78: 356.66 | V78: 13.95 | W78: 1599.69 | X78: 356.66 | Z78: 13.95 | AA78: 1599.69 | AB78: 356.66 | AD78: 45.52 | AF78: 371.46 | AH78: 45.52 | AJ78: 371.46 | AN78: 628.33 | AR78: 628.33 | AT78: 2020-04-01 | AU78: 386573.9064 | AV78: 172072.274 | AW78: 1056693.044 | AX78: 7208107.267 | AY78: 56983.4496 | AZ78: 22690.624 | BA78: 158372.4499 | BB78: 794986.289 | BC78: 742159.917 | BD78: 283086.6367 | BE78: 424834.5279 | BF78: 3005318.799 | BG78: 431.1916667 | BH78: 137.175 | BI78: 54.760625 | BJ78: 360.7021467 | BK78: 0 | BL78: 745114.3055 | BM78: 2575296.492 | BN78: 6665756.106 | BO78: 0 | BP78: 25568.025 | BQ78: 73763.30559 | BR78: 159739.3947 | BS78: 0 | BT78: 0 | BU78: 0 | BV78: 0 | BW78: 0 | BX78: 0 | BY78: 0 | BZ78: 0 | CA78: 0 | CB78: 0 | CC78: 0 | CD78: 8244019.473 | CE78: 0 | CF78: 0 | CG78: 0 | CH78: 187475.0839 | CI78: 32989595.2 | CJ78: 0 | CK78: 0.04141756344 | CL78: 8979892.373 | CM78: 41969487.57 | CN78: -0.009650692372
B79: 2020-05-01 | C79: Verde | D79: 0 | E79: 9.81 | F79: 3.7 | G79: 510.05 | H79: 332.46 | I79: 20.16 | J79: 6.68 | K79: 522.19 | L79: 344.6 | M79: 43.85 | N79: 13.95 | O79: 534.25 | P79: 356.66 | Q79: 43.85 | R79: 13.95 | S79: 534.25 | T79: 356.66 | V79: 13.95 | W79: 1599.69 | X79: 356.66 | Z79: 13.95 | AA79: 1599.69 | AB79: 356.66 | AD79: 45.52 | AF79: 371.46 | AH79: 45.52 | AJ79: 371.46 | AN79: 628.33 | AR79: 628.33 | AT79: 2020-05-01 | AU79: 386573.9064 | AV79: 172072.274 | AW79: 1056693.044 | AX79: 7208107.267 | AY79: 56983.4496 | AZ79: 22690.624 | BA79: 158372.4499 | BB79: 794986.289 | BC79: 742159.917 | BD79: 283086.6367 | BE79: 424834.5279 | BF79: 3005318.799 | BG79: 431.1916667 | BH79: 137.175 | BI79: 54.760625 | BJ79: 360.7021467 | BK79: 0 | BL79: 745114.3055 | BM79: 2575296.492 | BN79: 6665756.106 | BO79: 0 | BP79: 25568.025 | BQ79: 73763.30559 | BR79: 159739.3947 | BS79: 0 | BT79: 0 | BU79: 0 | BV79: 0 | BW79: 0 | BX79: 0 | BY79: 0 | BZ79: 0 | CA79: 0 | CB79: 0 | CC79: 0 | CD79: 8244019.473 | CE79: 0 | CF79: 0 | CG79: 0 | CH79: 187475.0839 | CI79: 32989595.2 | CJ79: 0 | CK79: 0.03992336197 | CL79: 8914573.764 | CM79: 41904168.96 | CN79: -0.00155633563
B80: 2020-06-01 | C80: Verde | D80: 0 | E80: 9.81 | F80: 3.7 | G80: 510.05 | H80: 332.46 | I80: 20.16 | J80: 6.68 | K80: 522.19 | L80: 344.6 | M80: 43.85 | N80: 13.95 | O80: 534.25 | P80: 356.66 | Q80: 43.85 | R80: 13.95 | S80: 534.25 | T80: 356.66 | V80: 13.95 | W80: 1599.69 | X80: 356.66 | Z80: 13.95 | AA80: 1599.69 | AB80: 356.66 | AN80: 628.33 | AR80: 628.33 | AT80: 2020-06-01 | AU80: =E$25*E80*(1-AU$29)/AU$33 -> 386573.9064 | AV80: 172072.274 | AW80: 1056693.044 | AX80: 7208107.267 | AY80: 56983.4496 | AZ80: 22690.624 | BA80: 158372.4499 | BB80: 794986.289 | BC80: 742159.917 | BD80: 283086.6367 | BE80: 424834.5279 | BF80: 3005318.799 | BG80: 431.1916667 | BH80: 137.175 | BI80: 54.760625 | BJ80: 360.7021467 | BK80: 0 | BL80: 745114.3055 | BM80: 2575296.492 | BN80: 6665756.106 | BO80: 0 | BP80: 25568.025 | BQ80: 73763.30559 | BR80: 159739.3947 | BS80: 0 | BT80: 0 | BU80: 0 | BV80: 0 | BW80: 0 | BX80: 0 | BY80: 0 | BZ80: 0 | CA80: 0 | CB80: 0 | CC80: 0 | CD80: 8244019.473 | CE80: 0 | CF80: 0 | CG80: 0 | CH80: 187475.0839 | CI80: 32989595.2 | CJ80: 0 | CK80: 0.0420879108 | CL80: 9009262.641 | CM80: 41998857.84 | CN80: 0.002259652901
B81: 2020-07-01 | C81: Verde | D81: 0 | E81: 9.81 | F81: 3.7 | G81: 510.05 | H81: 332.46 | I81: 20.16 | J81: 6.68 | K81: 522.19 | L81: 344.6 | M81: 43.85 | N81: 13.95 | O81: 534.25 | P81: 356.66 | Q81: 43.85 | R81: 13.95 | S81: 534.25 | T81: 356.66 | V81: 13.95 | W81: 1599.69 | X81: 356.66 | Z81: 13.95 | AA81: 1599.69 | AB81: 356.66 | AN81: 628.33 | AR81: 628.33 | AT81: 2020-07-01 | AU81: =E$25*E81*(1-AU$29)/AU$33 -> 386573.9064 | AV81: 172072.274 | AW81: 1056693.044 | AX81: 7208107.267 | AY81: 56983.4496 | AZ81: 22690.624 | BA81: 158372.4499 | BB81: 794986.289 | BC81: 742159.917 | BD81: 283086.6367 | BE81: 424834.5279 | BF81: 3005318.799 | BG81: 431.1916667 | BH81: 137.175 | BI81: 54.760625 | BJ81: 360.7021467 | BK81: 0 | BL81: 745114.3055 | BM81: 2575296.492 | BN81: 6665756.106 | BO81: 0 | BP81: 25568.025 | BQ81: 73763.30559 | BR81: 159739.3947 | BS81: 0 | BT81: 0 | BU81: 0 | BV81: 0 | BW81: 0 | BX81: 0 | BY81: 0 | BZ81: 0 | CA81: 0 | CB81: 0 | CC81: 0 | CD81: 8244019.473 | CE81: 0 | CF81: 0 | CG81: 0 | CH81: 187475.0839 | CI81: 32989595.2 | CJ81: 0 | CK81: 0.0401 | CL81: 8922284.849 | CM81: 41911880.05 | CN81: -0.002070956138
B82: 2020-08-01 | C82: Verde | D82: 0 | E82: 9.81 | F82: 3.7 | G82: 510.05 | H82: 332.46 | I82: 20.16 | J82: 6.68 | K82: 522.19 | L82: 344.6 | M82: 43.85 | N82: 13.95 | O82: 534.25 | P82: 356.66 | Q82: 43.85 | R82: 13.95 | S82: 534.25 | T82: 356.66 | V82: 13.95 | W82: 1599.69 | X82: 356.66 | Z82: 13.95 | AA82: 1599.69 | AB82: 356.66 | AN82: 628.33 | AR82: 628.33 | AT82: 2020-08-01 | AU82: =E$25*E82*(1-AU$29)/AU$33 -> 386573.9064 | AV82: =F$25*F82*(1-AV$29)/AV$33 -> 172072.274 | AW82: 1056693.044 | AX82: 7208107.267 | AY82: 56983.4496 | AZ82: 22690.624 | BA82: 158372.4499 | BB82: 794986.289 | BC82: 742159.917 | BD82: 283086.6367 | BE82: 424834.5279 | BF82: 3005318.799 | BG82: 431.1916667 | BH82: 137.175 | BI82: 54.760625 | BJ82: 360.7021467 | BK82: 0 | BL82: 745114.3055 | BM82: 2575296.492 | BN82: 6665756.106 | BO82: 0 | BP82: 25568.025 | BQ82: 73763.30559 | BR82: 159739.3947 | BS82: 0 | BT82: 0 | BU82: 0 | BV82: 0 | BW82: 0 | BX82: 0 | BY82: 0 | BZ82: 0 | CA82: 0 | CB82: 0 | CC82: 0 | CD82: 8244019.473 | CE82: 0 | CF82: 0 | CG82: 0 | CH82: 187475.0839 | CI82: 32989595.2 | CJ82: 0 | CK82: 0.0487 | CL82: 9301179.17 | CM82: 42290774.37 | CN82: 0.009040260696
B83: 2020-09-01 | C83: Verde | D83: 0 | E83: 11.93 | F83: 5 | G83: 485.79 | H83: 315.08 | I83: 21.28 | J83: 7.61 | K83: 497.2 | L83: 326.49 | M83: 44.89 | N83: 14.68 | O83: 511.88 | P83: 341.17 | Q83: 44.89 | R83: 14.68 | S83: 511.88 | T83: 341.17 | V83: 14.68 | W83: 1600.78 | X83: 341.17 | Z83: 14.68 | AA83: 1600.78 | AB83: 341.17 | AN83: 618.12 | AR83: 618.12 | AT83: 2020-09-01 | AU83: =E$25*E83*(1-AU$30)/AU$33 -> 486141.4952 | AV83: 240457.2625 | AW83: 1040742.734 | AX83: 7064174.154 | AY83: 62199.7376 | AZ83: 26730.886 | BA83: 155934.0376 | BB83: 778884.3352 | BC83: 785662.8587 | BD83: 308056.1879 | BE83: 420922.5153 | BF83: 2972800.041 | BG83: 441.4183333 | BH83: 144.3533333 | BI83: 52.4677 | BJ83: 345.0365933 | BK83: =U$25*U83*(1-BK$30)/BK$33 -> 0 | BL83: 810836.8349 | BM83: 2664905.272 | BN83: 6593629.946 | BO83: 0 | BP83: 26905.99333 | BQ83: 73813.56658 | BR83: 152801.7981 | BS83: 0 | BT83: 0 | BU83: 0 | BV83: 0 | BW83: 0 | BX83: 0 | BY83: 0 | BZ83: 0 | CA83: =AK$25*AK83*(1-CA$30)/CA$33 -> 0 | CB83: 0 | CC83: 0 | CD83: 8386538.194 | CE83: 0 | CF83: 0 | CG83: 0 | CH83: 184428.722 | CI83: 33237549.85 | CJ83: 0 | CK83: 0.04 | CL83: 8984947.418 | CM83: 42222497.27 | CN83: -0.001614468045
B84: 2020-10-01 | C84: Verde | D84: 0 | E84: 11.93 | F84: 5 | G84: 485.79 | H84: 315.08 | I84: 21.28 | J84: 7.61 | K84: 497.2 | L84: 326.49 | M84: 44.89 | N84: 14.68 | O84: 511.88 | P84: 341.17 | Q84: 44.89 | R84: 14.68 | S84: 511.88 | T84: 341.17 | V84: 14.68 | W84: 1600.78 | X84: 341.17 | Z84: 14.68 | AA84: 1600.78 | AB84: 341.17 | AN84: 618.12 | AR84: 618.12 | AT84: 2020-10-01 | AU84: 486141.4952 | AV84: 240457.2625 | AW84: 1040742.734 | AX84: 7064174.154 | AY84: 62199.7376 | AZ84: 26730.886 | BA84: 155934.0376 | BB84: 778884.3352 | BC84: 785662.8587 | BD84: 308056.1879 | BE84: 420922.5153 | BF84: 2972800.041 | BG84: 441.4183333 | BH84: 144.3533333 | BI84: 52.4677 | BJ84: 345.0365933 | BK84: 0 | BL84: 810836.8349 | BM84: 2664905.272 | BN84: 6593629.946 | BO84: 0 | BP84: 26905.99333 | BQ84: 73813.56658 | BR84: 152801.7981 | BS84: 0 | BT84: 0 | BU84: 0 | BV84: 0 | BW84: 0 | BX84: 0 | BY84: 0 | BZ84: 0 | CA84: 0 | CB84: 0 | CC84: 0 | CD84: 8386538.194 | CE84: 0 | CF84: 0 | CG84: 0 | CH84: 184428.722 | CI84: 33237549.85 | CJ84: 0 | CK84: =0.77%+3.56% -> 0.0433 | CL84: 9130587.892 | CM84: 42368137.74 | CN84: 0.003449357165
B85: 2020-11-01 | C85: Verde | D85: 0 | E85: 11.93 | F85: 5 | G85: 485.79 | H85: 315.08 | I85: 21.28 | J85: 7.61 | K85: 497.2 | L85: 326.49 | M85: 44.89 | N85: 14.68 | O85: 511.88 | P85: 341.17 | Q85: 44.89 | R85: 14.68 | S85: 511.88 | T85: 341.17 | V85: 14.68 | W85: 1600.78 | X85: 341.17 | Z85: 14.68 | AA85: 1600.78 | AB85: 341.17 | AN85: 618.12 | AR85: 618.12 | AT85: 2020-11-01 | AU85: 486141.4952 | AV85: 240457.2625 | AW85: 1040742.734 | AX85: 7064174.154 | AY85: 62199.7376 | AZ85: 26730.886 | BA85: 155934.0376 | BB85: 778884.3352 | BC85: 785662.8587 | BD85: 308056.1879 | BE85: 420922.5153 | BF85: 2972800.041 | BG85: 441.4183333 | BH85: 144.3533333 | BI85: 52.4677 | BJ85: 345.0365933 | BK85: 0 | BL85: 810836.8349 | BM85: 2664905.272 | BN85: 6593629.946 | BO85: 0 | BP85: 26905.99333 | BQ85: 73813.56658 | BR85: 152801.7981 | BS85: 0 | BT85: 0 | BU85: 0 | BV85: 0 | BW85: 0 | BX85: 0 | BY85: 0 | BZ85: 0 | CA85: 0 | CB85: 0 | CC85: 0 | CD85: 8386538.194 | CE85: 0 | CF85: 0 | CG85: 0 | CH85: 184428.722 | CI85: =SUM(AU85:CH85) -> 33237549.85 | CJ85: 0 | CK85: 0.04252458481 | CL85: 9096275.891 | CM85: 42333825.74 | CN85: -0.0008098538932
B86: 2020-12-01 | C86: Vermelha 2 | D86: 0.06243 | E86: 11.93 | F86: 5 | G86: 485.79 | H86: 315.08 | I86: 21.28 | J86: 7.61 | K86: 497.2 | L86: 326.49 | M86: 44.89 | N86: 14.68 | O86: 511.88 | P86: 341.17 | Q86: 44.89 | R86: 14.68 | S86: 511.88 | T86: 341.17 | V86: 14.68 | W86: 1600.78 | X86: 341.17 | Z86: 14.68 | AA86: 1600.78 | AB86: 341.17 | AN86: 618.12 | AR86: 618.12 | AT86: 2020-12-01 | AU86: 486141.4952 | AV86: 240457.2625 | AW86: 1040742.734 | AX86: 7064174.154 | AY86: 62199.7376 | AZ86: 26730.886 | BA86: 155934.0376 | BB86: 778884.3352 | BC86: 785662.8587 | BD86: 308056.1879 | BE86: 420922.5153 | BF86: 2972800.041 | BG86: 441.4183333 | BH86: 144.3533333 | BI86: 52.4677 | BJ86: 345.0365933 | BK86: 0 | BL86: 810836.8349 | BM86: 2664905.272 | BN86: 6593629.946 | BO86: 0 | BP86: 26905.99333 | BQ86: 73813.56658 | BR86: 152801.7981 | BS86: 0 | BT86: 0 | BU86: 0 | BV86: 0 | BW86: 0 | BX86: 0 | BY86: 0 | BZ86: 0 | CA86: 0 | CB86: 0 | CC86: 0 | CD86: 8386538.194 | CE86: 0 | CF86: 0 | CG86: 0 | CH86: 184428.722 | CI86: 33237549.85 | CJ86: 4944928.356 | CK86: 0.03998723873 | CL86: 10321041.42 | CM86: 48503519.63 | CN86: 0.1457391054
B87: 2021-01-01 | C87: Amarela | D87: 0.01343 | E87: 11.93 | F87: 5 | G87: 485.79 | H87: 315.08 | I87: 21.28 | J87: 7.61 | K87: 497.2 | L87: 326.49 | M87: 44.89 | N87: 14.68 | O87: 511.88 | P87: 341.17 | Q87: 44.89 | R87: 14.68 | S87: 511.88 | T87: 341.17 | V87: 14.68 | W87: 1600.78 | X87: 341.17 | Z87: 14.68 | AA87: 1600.78 | AB87: 341.17 | AN87: 618.12 | AR87: 618.12 | AT87: 2021-01-01 | AU87: 486141.4952 | AV87: 240457.2625 | AW87: 1040742.734 | AX87: 7064174.154 | AY87: 62199.7376 | AZ87: 26730.886 | BA87: 155934.0376 | BB87: 778884.3352 | BC87: 785662.8587 | BD87: 308056.1879 | BE87: 420922.5153 | BF87: 2972800.041 | BG87: 441.4183333 | BH87: 144.3533333 | BI87: 52.4677 | BJ87: 345.0365933 | BK87: 0 | BL87: 810836.8349 | BM87: 2664905.272 | BN87: 6593629.946 | BO87: 0 | BP87: 26905.99333 | BQ87: 73813.56658 | BR87: 152801.7981 | BS87: 0 | BT87: 0 | BU87: 0 | BV87: 0 | BW87: 0 | BX87: 0 | BY87: 0 | BZ87: 0 | CA87: 0 | CB87: 0 | CC87: 0 | CD87: 8386538.194 | CE87: 0 | CF87: 0 | CG87: 0 | CH87: 184428.722 | CI87: =SUM(AU87:CH87) -> 33237549.85 | CJ87: 1063757.614 | CK87: 0.04634103726 | CL87: 9562237.466 | CM87: 43863544.93 | CN87: -0.09566263925
B88: 2021-02-01 | C88: Amarela | D88: 0.01343 | E88: 11.93 | F88: 5 | G88: 485.79 | H88: 315.08 | I88: 21.28 | J88: 7.61 | K88: 497.2 | L88: 326.49 | M88: 44.89 | N88: 14.68 | O88: 511.88 | P88: 341.17 | Q88: 44.89 | R88: 14.68 | S88: 511.88 | T88: 341.17 | V88: 14.68 | W88: 1600.78 | X88: 341.17 | Z88: 14.68 | AA88: 1600.78 | AB88: 341.17 | AN88: 618.12 | AR88: 618.12 | AT88: 2021-02-01 | AU88: 486141.4952 | AV88: 240457.2625 | AW88: 1040742.734 | AX88: 7064174.154 | AY88: 62199.7376 | AZ88: 26730.886 | BA88: 155934.0376 | BB88: 778884.3352 | BC88: 785662.8587 | BD88: 308056.1879 | BE88: 420922.5153 | BF88: 2972800.041 | BG88: 441.4183333 | BH88: 144.3533333 | BI88: 52.4677 | BJ88: 345.0365933 | BK88: 0 | BL88: 810836.8349 | BM88: 2664905.272 | BN88: 6593629.946 | BO88: 0 | BP88: 26905.99333 | BQ88: 73813.56658 | BR88: 152801.7981 | BS88: 0 | BT88: 0 | BU88: 0 | BV88: 0 | BW88: 0 | BX88: 0 | BY88: 0 | BZ88: 0 | CA88: 0 | CB88: 0 | CC88: 0 | CD88: 8386538.194 | CE88: 0 | CF88: 0 | CG88: 0 | CH88: 184428.722 | CI88: 33237549.85 | CJ88: 1063757.614 | CK88: 0.04292779159 | CL88: 9405805.116 | CM88: 43707112.58 | CN88: -0.003566340798
B89: 2021-03-01 | C89: Amarela | D89: 0.01343 | E89: 11.93 | F89: 5 | G89: 485.79 | H89: 315.08 | I89: 21.28 | J89: 7.61 | K89: 497.2 | L89: 326.49 | M89: 44.89 | N89: 14.68 | O89: 511.88 | P89: 341.17 | Q89: 44.89 | R89: 14.68 | S89: 511.88 | T89: 341.17 | V89: 14.68 | W89: 1600.78 | X89: 341.17 | Z89: 14.68 | AA89: 1600.78 | AB89: 341.17 | AN89: 618.12 | AR89: 618.12 | AT89: 2021-03-01 | AU89: 486141.4952 | AV89: 240457.2625 | AW89: 1040742.734 | AX89: 7064174.154 | AY89: 62199.7376 | AZ89: 26730.886 | BA89: 155934.0376 | BB89: 778884.3352 | BC89: 785662.8587 | BD89: 308056.1879 | BE89: 420922.5153 | BF89: 2972800.041 | BG89: 441.4183333 | BH89: 144.3533333 | BI89: 52.4677 | BJ89: 345.0365933 | BK89: 0 | BL89: 810836.8349 | BM89: 2664905.272 | BN89: 6593629.946 | BO89: 0 | BP89: 26905.99333 | BQ89: 73813.56658 | BR89: 152801.7981 | BS89: 0 | BT89: 0 | BU89: 0 | BV89: 0 | BW89: 0 | BX89: 0 | BY89: 0 | BZ89: 0 | CA89: 0 | CB89: 0 | CC89: 0 | CD89: 8386538.194 | CE89: 0 | CF89: 0 | CG89: 0 | CH89: 184428.722 | CI89: 33237549.85 | CJ89: 1063757.614 | CK89: 0.03994360866 | CL89: 9269948.493 | CM89: 43571255.95 | CN89: -0.003108341307
B90: 2021-04-01 | C90: Amarela | D90: 0.01343 | E90: 11.93 | F90: 5 | G90: 485.79 | H90: 315.08 | I90: 21.28 | J90: 7.61 | K90: 497.2 | L90: 326.49 | M90: 44.89 | N90: 14.68 | O90: 511.88 | P90: 341.17 | Q90: 44.89 | R90: 14.68 | S90: 511.88 | T90: 341.17 | V90: 14.68 | W90: 1600.78 | X90: 341.17 | Z90: 14.68 | AA90: 1600.78 | AB90: 341.17 | AN90: 618.12 | AR90: 618.12 | AT90: 2021-04-01 | AU90: 486141.4952 | AV90: 240457.2625 | AW90: 1040742.734 | AX90: 7064174.154 | AY90: 62199.7376 | AZ90: 26730.886 | BA90: 155934.0376 | BB90: 778884.3352 | BC90: 785662.8587 | BD90: 308056.1879 | BE90: 420922.5153 | BF90: 2972800.041 | BG90: 441.4183333 | BH90: 144.3533333 | BI90: 52.4677 | BJ90: 345.0365933 | BK90: 0 | BL90: 810836.8349 | BM90: 2664905.272 | BN90: 6593629.946 | BO90: 0 | BP90: 26905.99333 | BQ90: 73813.56658 | BR90: 152801.7981 | BS90: 0 | BT90: 0 | BU90: 0 | BV90: 0 | BW90: 0 | BX90: 0 | BY90: 0 | BZ90: 0 | CA90: 0 | CB90: 0 | CC90: 0 | CD90: 8386538.194 | CE90: 0 | CF90: 0 | CG90: 0 | CH90: 184428.722 | CI90: 33237549.85 | CJ90: 1063757.614 | CK90: 0.04877722996 | CL90: 9674577.132 | CM90: 43975884.59 | CN90: 0.009286595714
B91: 2021-05-01 | C91: Vermelha 1 | D91: 0.04169 | E91: 11.93 | F91: 5 | G91: 485.79 | H91: 315.08 | I91: 21.28 | J91: 7.61 | K91: 497.2 | L91: 326.49 | M91: 44.89 | N91: 14.68 | O91: 511.88 | P91: 341.17 | Q91: 44.89 | R91: 14.68 | S91: 511.88 | T91: 341.17 | V91: 14.68 | W91: 1600.78 | X91: 341.17 | Z91: 14.68 | AA91: 1600.78 | AB91: 341.17 | AN91: 618.12 | AR91: 618.12 | AT91: 2021-05-01 | AU91: 486141.4952 | AV91: 240457.2625 | AW91: 1040742.734 | AX91: 7064174.154 | AY91: 62199.7376 | AZ91: 26730.886 | BA91: 155934.0376 | BB91: 778884.3352 | BC91: 785662.8587 | BD91: 308056.1879 | BE91: 420922.5153 | BF91: 2972800.041 | BG91: 441.4183333 | BH91: 144.3533333 | BI91: 52.4677 | BJ91: 345.0365933 | BK91: 0 | BL91: 810836.8349 | BM91: 2664905.272 | BN91: 6593629.946 | BO91: 0 | BP91: 26905.99333 | BQ91: 73813.56658 | BR91: 152801.7981 | BS91: 0 | BT91: 0 | BU91: 0 | BV91: 0 | BW91: 0 | BX91: 0 | BY91: 0 | BZ91: 0 | CA91: 0 | CB91: 0 | CC91: 0 | CD91: 8386538.194 | CE91: 0 | CF91: 0 | CG91: 0 | CH91: 184428.722 | CI91: 33237549.85 | CJ91: 3302163.433 | CK91: 0.04004000899 | CL91: 9879539.99 | CM91: 46419253.27 | CN91: 0.05556155836
B92: 2021-06-01 | C92: Vermelha 2 | D92: 0.06243 | E92: 13.98 | F92: 6.07 | G92: 469.82 | H92: 320.8 | I92: 21.54 | J92: 7.94 | K92: 479.48 | L92: 330.46 | M92: 44.9 | N92: 14.86 | O92: 495.66 | P92: 346.64 | Q92: 44.9 | R92: 14.86 | S92: 495.66 | T92: 346.64 | V92: 14.86 | W92: 1583.06 | X92: 346.64 | Z92: 14.86 | AA92: 1583.06 | AB92: 346.64 | AN92: 618.05 | AR92: 618.05 | AT92: 2021-06-01 | AU92: =E$25*E92*(1-AU$31)/AU$33 -> 588458.5556 | AV92: =F$25*F92*(1-AV$31)/AV$33 -> 301538.692 | AW92: 1039711.335 | AX92: 7429530.698 | AY92: 65035.2912 | AZ92: 28809.496 | BA92: 155334.0845 | BB92: 814345.0209 | BC92: 811744.6215 | BD92: 322113.667 | BE92: 421021.5536 | BF92: 3120038.838 | BG92: 441.5166667 | BH92: 146.1233333 | BI92: 50.80515 | BJ92: 350.5685867 | BK92: 0 | BL92: 847837.6235 | BM92: 2722287.338 | BN92: 6920203.59 | BO92: 0 | BP92: 27235.90333 | BQ92: 72996.47966 | BR92: 155251.6789 | BS92: 0 | BT92: 0 | BU92: 0 | BV92: 0 | BW92: 0 | BX92: 0 | BY92: 0 | BZ92: 0 | CA92: 0 | CB92: 0 | CC92: 0 | CD92: 8662036.418 | CE92: 0 | CF92: 0 | CG92: 0 | CH92: 184407.836 | CI92: 34690927.73 | CJ92: 4944928.356 | CK92: 0.04335763439 | CL92: 10891291.36 | CM92: 50527147.45 | CN92: 0.08849548174
B93: 2021-07-01 | C93: Vermelha 2 | D93: 0.09492 | E93: 13.98 | F93: 6.07 | G93: 469.82 | H93: 320.8 | I93: 21.54 | J93: 7.94 | K93: 479.48 | L93: 330.46 | M93: 44.9 | N93: 14.86 | O93: 495.66 | P93: 346.64 | Q93: 44.9 | R93: 14.86 | S93: 495.66 | T93: 346.64 | V93: 14.86 | W93: 1583.06 | X93: 346.64 | Z93: 14.86 | AA93: 1583.06 | AB93: 346.64 | AN93: 618.05 | AR93: 618.05 | AT93: 2021-07-01 | AU93: =E$25*E93*(1-AU$31)/AU$33 -> 588458.5556 | AV93: =F$25*F93*(1-AV$31)/AV$33 -> 301538.692 | AW93: =G$25*G93*(1-AW$31)/AW$33 -> 1039711.335 | AX93: =H$25*H93*(1-AX$31)/AX$33 -> 7429530.698 | AY93: =I$25*I93*(1-AY$31)/AY$33 -> 65035.2912 | AZ93: =J$25*J93*(1-AZ$31)/AZ$33 -> 28809.496 | BA93: =K$25*K93*(1-BA$31)/BA$33 -> 155334.0845 | BB93: =L$25*L93*(1-BB$31)/BB$33 -> 814345.0209 | BC93: =M$25*M93*(1-BC$31)/BC$33 -> 811744.6215 | BD93: =N$25*N93*(1-BD$31)/BD$33 -> 322113.667 | BE93: =O$25*O93*(1-BE$31)/BE$33 -> 421021.5536 | BF93: =P$25*P93*(1-BF$31)/BF$33 -> 3120038.838 | BG93: =Q$25*Q93*(1-BG$31)/BG$33 -> 441.5166667 | BH93: =R$25*R93*(1-BH$31)/BH$33 -> 146.1233333 | BI93: =S$25*S93*(1-BI$31)/BI$33 -> 50.80515 | BJ93: =T$25*T93*(1-BJ$31)/BJ$33 -> 350.5685867 | BK93: =U$25*U93*(1-BK$31)/BK$33 -> 0 | BL93: =V$25*V93*(1-BL$31)/BL$33 -> 847837.6235 | BM93: =W$25*W93*(1-BM$31)/BM$33 -> 2722287.338 | BN93: =X$25*X93*(1-BN$31)/BN$33 -> 6920203.59 | BO93: =Y$25*Y93*(1-BO$31)/BO$33 -> 0 | BP93: =Z$25*Z93*(1-BP$31)/BP$33 -> 27235.90333 | BQ93: =AA$25*AA93*(1-BQ$31)/BQ$33 -> 72996.47966 | BR93: =AB$25*AB93*(1-BR$31)/BR$33 -> 155251.6789 | BS93: =AC$25*AC93*(1-BS$31)/BS$33 -> 0 | BT93: =AD$25*AD93*(1-BT$31)/BT$33 -> 0 | BU93: =AE$25*AE93*(1-BU$31)/BU$33 -> 0 | BV93: =AF$25*AF93*(1-BV$31)/BV$33 -> 0 | BW93: =AG$25*AG93*(1-BW$31)/BW$33 -> 0 | BX93: =AH$25*AH93*(1-BX$31)/BX$33 -> 0 | BY93: =AI$25*AI93*(1-BY$31)/BY$33 -> 0 | BZ93: =AJ$25*AJ93*(1-BZ$31)/BZ$33 -> 0 | CA93: =AK$25*AK93*(1-CA$31)/CA$33 -> 0 | CB93: =AL$25*AL93*(1-CB$31)/CB$33 -> 0 | CC93: =AM$25*AM93*(1-CC$31)/CC$33 -> 0 | CD93: =AN$25*AN93*(1-CD$31)/CD$33 -> 8662036.418 | CE93: =AO$25*AO93*(1-CE$31)/CE$33 -> 0 | CF93: =AP$25*AP93*(1-CF$31)/CF$33 -> 0 | CG93: =AQ$25*AQ93*(1-CG$31)/CG$33 -> 0 | CH93: =AR$25*AR93*(1-CH$31)/CH$33 -> 184407.836 | CI93: 34690927.73 | CJ93: 7518382.181 | CK93: 0.04263672274 | CL93: =(1/((1-CK93)*(1-$CL$33))-1)*(CI93+CJ93) -> 11557916.6 | CM93: =CI93+CJ93+CL93 -> 53767226.52 | CN93: 0.06412550935
B94: 2021-08-01 | C94: Vermelha 2 | D94: 0.09492 | E94: 13.98 | F94: 6.07 | G94: 469.82 | H94: 320.8 | I94: 21.54 | J94: 7.94 | K94: 479.48 | L94: 330.46 | M94: 44.9 | N94: 14.86 | O94: 495.66 | P94: 346.64 | Q94: 44.9 | R94: 14.86 | S94: 495.66 | T94: 346.64 | V94: 14.86 | W94: 1583.06 | X94: 346.64 | Z94: 14.86 | AA94: 1583.06 | AB94: 346.64 | AN94: 618.05 | AR94: 618.05 | AT94: 2021-08-01 | AU94: 588458.5556 | AV94: 301538.692 | AW94: 1039711.335 | AX94: 7429530.698 | AY94: 65035.2912 | AZ94: 28809.496 | BA94: 155334.0845 | BB94: 814345.0209 | BC94: 811744.6215 | BD94: 322113.667 | BE94: 421021.5536 | BF94: 3120038.838 | BG94: 441.5166667 | BH94: 146.1233333 | BI94: 50.80515 | BJ94: 350.5685867 | BK94: 0 | BL94: 847837.6235 | BM94: 2722287.338 | BN94: 6920203.59 | BO94: 0 | BP94: 27235.90333 | BQ94: 72996.47966 | BR94: 155251.6789 | BS94: 0 | BT94: 0 | BU94: 0 | BV94: 0 | BW94: 0 | BX94: 0 | BY94: 0 | BZ94: 0 | CA94: 0 | CB94: 0 | CC94: 0 | CD94: 8662036.418 | CE94: 0 | CF94: 0 | CG94: 0 | CH94: 184407.836 | CI94: =SUM(AU94:CH94) -> 34690927.73 | CJ94: 7518382.181 | CK94: 0.04431533053 | CL94: =(1/((1-CK94)*(1-$CL$33))-1)*(CI94+CJ94) -> 11652355.79 | CM94: =CI94+CJ94+CL94 -> 53861665.71 | CN94: 0.001756445246
B95: 2021-09-01 | C95: Escassez Hídrica | D95: 0.142 | E95: 13.98 | F95: 6.07 | G95: 469.82 | H95: 320.8 | I95: 21.54 | J95: 7.94 | K95: 479.48 | L95: 330.46 | M95: 44.9 | N95: 14.86 | O95: 495.66 | P95: 346.64 | Q95: 44.9 | R95: 14.86 | S95: 495.66 | T95: 346.64 | V95: 14.86 | W95: 1583.06 | X95: 346.64 | Z95: 14.86 | AA95: 1583.06 | AB95: 346.64 | AN95: 618.05 | AR95: 618.05 | AT95: 2021-09-01 | AU95: 588458.5556 | AV95: 301538.692 | AW95: 1039711.335 | AX95: 7429530.698 | AY95: 65035.2912 | AZ95: 28809.496 | BA95: 155334.0845 | BB95: 814345.0209 | BC95: 811744.6215 | BD95: 322113.667 | BE95: 421021.5536 | BF95: 3120038.838 | BG95: 441.5166667 | BH95: 146.1233333 | BI95: 50.80515 | BJ95: 350.5685867 | BK95: 0 | BL95: 847837.6235 | BM95: 2722287.338 | BN95: 6920203.59 | BO95: 0 | BP95: 27235.90333 | BQ95: 72996.47966 | BR95: 155251.6789 | BS95: 0 | BT95: 0 | BU95: 0 | BV95: 0 | BW95: 0 | BX95: 0 | BY95: 0 | BZ95: 0 | CA95: 0 | CB95: 0 | CC95: 0 | CD95: 8662036.418 | CE95: 0 | CF95: 0 | CG95: 0 | CH95: 184407.836 | CI95: 34690927.73 | CJ95: 11247474.4 | CK95: 0.03678388988 | CL95: 12223458.99 | CM95: 58161861.12 | CN95: =CM95/CM94-1 -> 0.07983777241
B96: 2021-10-01 | C96: Escassez Hídrica | D96: 0.142 | E96: 13.98 | F96: 6.07 | G96: 469.82 | H96: 320.8 | I96: 21.54 | J96: 7.94 | K96: 479.48 | L96: 330.46 | M96: 44.9 | N96: 14.86 | O96: 495.66 | P96: 346.64 | Q96: 44.9 | R96: 14.86 | S96: 495.66 | T96: 346.64 | V96: 14.86 | W96: 1583.06 | X96: 346.64 | Z96: 14.86 | AA96: 1583.06 | AB96: 346.64 | AN96: 618.05 | AR96: 618.05 | AT96: 2021-10-01 | AU96: 588458.5556 | AV96: 301538.692 | AW96: 1039711.335 | AX96: 7429530.698 | AY96: 65035.2912 | AZ96: 28809.496 | BA96: 155334.0845 | BB96: 814345.0209 | BC96: 811744.6215 | BD96: 322113.667 | BE96: 421021.5536 | BF96: 3120038.838 | BG96: 441.5166667 | BH96: 146.1233333 | BI96: 50.80515 | BJ96: 350.5685867 | BK96: 0 | BL96: 847837.6235 | BM96: 2722287.338 | BN96: 6920203.59 | BO96: 0 | BP96: 27235.90333 | BQ96: 72996.47966 | BR96: 155251.6789 | BS96: 0 | BT96: 0 | BU96: 0 | BV96: 0 | BW96: 0 | BX96: 0 | BY96: 0 | BZ96: 0 | CA96: 0 | CB96: 0 | CC96: 0 | CD96: 8662036.418 | CE96: 0 | CF96: 0 | CG96: 0 | CH96: 184407.836 | CI96: 34690927.73 | CJ96: 11247474.4 | CK96: 0.03948796635 | CL96: 12387198.86 | CM96: 58325600.99 | CN96: =CM96/CM95-1 -> 0.00281524476
B97: 2021-11-01 | C97: Escassez Hídrica | D97: 0.142 | E97: 13.98 | F97: 6.07 | G97: 469.82 | H97: 320.8 | I97: 21.54 | J97: 7.94 | K97: 479.48 | L97: 330.46 | M97: 44.9 | N97: 14.86 | O97: 495.66 | P97: 346.64 | Q97: 44.9 | R97: 14.86 | S97: 495.66 | T97: 346.64 | V97: 14.86 | W97: 1583.06 | X97: 346.64 | Z97: 14.86 | AA97: 1583.06 | AB97: 346.64 | AN97: 618.05 | AR97: 618.05 | AT97: 2021-11-01 | AU97: 588458.5556 | AV97: 301538.692 | AW97: 1039711.335 | AX97: 7429530.698 | AY97: 65035.2912 | AZ97: 28809.496 | BA97: 155334.0845 | BB97: 814345.0209 | BC97: 811744.6215 | BD97: 322113.667 | BE97: 421021.5536 | BF97: 3120038.838 | BG97: 441.5166667 | BH97: 146.1233333 | BI97: 50.80515 | BJ97: 350.5685867 | BK97: 0 | BL97: 847837.6235 | BM97: 2722287.338 | BN97: 6920203.59 | BO97: 0 | BP97: 27235.90333 | BQ97: 72996.47966 | BR97: 155251.6789 | BS97: 0 | BT97: 0 | BU97: 0 | BV97: 0 | BW97: 0 | BX97: 0 | BY97: 0 | BZ97: 0 | CA97: 0 | CB97: 0 | CC97: 0 | CD97: 8662036.418 | CE97: 0 | CF97: 0 | CG97: 0 | CH97: 184407.836 | CI97: 34690927.73 | CJ97: 11247474.4 | CK97: 0.04139427218 | CL97: 12503186.52 | CM97: 58441588.65 | CN97: =CM97/CM96-1 -> 0.001988623452
B98: 2021-12-01 | C98: Escassez Hídrica | D98: 0.142 | E98: 13.98 | F98: 6.07 | G98: 469.82 | H98: 320.8 | I98: 21.54 | J98: 7.94 | K98: 479.48 | L98: 330.46 | M98: 44.9 | N98: 14.86 | O98: 495.66 | P98: 346.64 | Q98: 44.9 | R98: 14.86 | S98: 495.66 | T98: 346.64 | V98: 14.86 | W98: 1583.06 | X98: 346.64 | Z98: 14.86 | AA98: 1583.06 | AB98: 346.64 | AN98: 618.05 | AR98: 618.05 | AT98: 2021-12-01 | AU98: 588458.5556 | AV98: 301538.692 | AW98: 1039711.335 | AX98: 7429530.698 | AY98: 65035.2912 | AZ98: 28809.496 | BA98: 155334.0845 | BB98: 814345.0209 | BC98: 811744.6215 | BD98: 322113.667 | BE98: 421021.5536 | BF98: 3120038.838 | BG98: 441.5166667 | BH98: 146.1233333 | BI98: 50.80515 | BJ98: 350.5685867 | BK98: 0 | BL98: 847837.6235 | BM98: 2722287.338 | BN98: 6920203.59 | BO98: 0 | BP98: 27235.90333 | BQ98: 72996.47966 | BR98: 155251.6789 | BS98: 0 | BT98: 0 | BU98: 0 | BV98: 0 | BW98: 0 | BX98: 0 | BY98: 0 | BZ98: 0 | CA98: 0 | CB98: 0 | CC98: 0 | CD98: 8662036.418 | CE98: 0 | CF98: 0 | CG98: 0 | CH98: 184407.836 | CI98: 34690927.73 | CJ98: 11247474.4 | CK98: 0.03200931136 | CL98: 11936577.74 | CM98: 57874979.87 | CN98: -0.009695300717
B99: 2022-01-01 | C99: Escassez Hídrica | D99: 0.142 | E99: 13.98 | F99: 6.07 | G99: 469.82 | H99: 320.8 | I99: 21.54 | J99: 7.94 | K99: 479.48 | L99: 330.46 | M99: 44.9 | N99: 14.86 | O99: 495.66 | P99: 346.64 | Q99: 44.9 | R99: 14.86 | S99: 495.66 | T99: 346.64 | V99: 14.86 | W99: 1583.06 | X99: 346.64 | Z99: 14.86 | AA99: 1583.06 | AB99: 346.64 | AN99: 618.05 | AR99: 618.05 | AT99: 2022-01-01 | AU99: 588458.5556 | AV99: 301538.692 | AW99: 1039711.335 | AX99: 7429530.698 | AY99: 65035.2912 | AZ99: 28809.496 | BA99: 155334.0845 | BB99: 814345.0209 | BC99: 811744.6215 | BD99: 322113.667 | BE99: 421021.5536 | BF99: 3120038.838 | BG99: 441.5166667 | BH99: 146.1233333 | BI99: 50.80515 | BJ99: 350.5685867 | BK99: 0 | BL99: 847837.6235 | BM99: 2722287.338 | BN99: 6920203.59 | BO99: 0 | BP99: 27235.90333 | BQ99: 72996.47966 | BR99: 155251.6789 | BS99: 0 | BT99: 0 | BU99: 0 | BV99: 0 | BW99: 0 | BX99: 0 | BY99: 0 | BZ99: 0 | CA99: 0 | CB99: 0 | CC99: 0 | CD99: 8662036.418 | CE99: 0 | CF99: 0 | CG99: 0 | CH99: 184407.836 | CI99: 34690927.73 | CJ99: 11247474.4 | CK99: 0.04116324086 | CL99: 12489105.04 | CM99: 58427507.17 | CN99: 0.00954691131
B100: 2022-02-01 | C100: Escassez Hídrica | D100: 0.142 | E100: 13.98 | F100: 6.07 | G100: 469.82 | H100: 320.8 | I100: 21.54 | J100: 7.94 | K100: 479.48 | L100: 330.46 | M100: 44.9 | N100: 14.86 | O100: 495.66 | P100: 346.64 | Q100: 44.9 | R100: 14.86 | S100: 495.66 | T100: 346.64 | V100: 14.86 | W100: 1583.06 | X100: 346.64 | Z100: 14.86 | AA100: 1583.06 | AB100: 346.64 | AN100: 618.05 | AR100: 618.05 | AT100: 2022-02-01 | AU100: 588458.5556 | AV100: 301538.692 | AW100: 1039711.335 | AX100: 7429530.698 | AY100: 65035.2912 | AZ100: 28809.496 | BA100: 155334.0845 | BB100: 814345.0209 | BC100: 811744.6215 | BD100: 322113.667 | BE100: 421021.5536 | BF100: 3120038.838 | BG100: 441.5166667 | BH100: 146.1233333 | BI100: 50.80515 | BJ100: 350.5685867 | BK100: 0 | BL100: 847837.6235 | BM100: 2722287.338 | BN100: 6920203.59 | BO100: 0 | BP100: 27235.90333 | BQ100: 72996.47966 | BR100: 155251.6789 | BS100: 0 | BT100: 0 | BU100: 0 | BV100: 0 | BW100: 0 | BX100: 0 | BY100: 0 | BZ100: 0 | CA100: 0 | CB100: 0 | CC100: 0 | CD100: 8662036.418 | CE100: 0 | CF100: 0 | CG100: 0 | CH100: 184407.836 | CI100: 34690927.73 | CJ100: 11247474.4 | CK100: 0.03324054108 | CL100: 12010285.21 | CM100: 57948687.34 | CN100: -0.008195109663
B101: 2022-03-01 | C101: Escassez Hídrica | D101: 0.142 | E101: 13.98 | F101: 6.07 | G101: 469.82 | H101: 320.8 | I101: 21.54 | J101: 7.94 | K101: 479.48 | L101: 330.46 | M101: 44.9 | N101: 14.86 | O101: 495.66 | P101: 346.64 | Q101: 44.9 | R101: 14.86 | S101: 495.66 | T101: 346.64 | V101: 14.86 | W101: 1583.06 | X101: 346.64 | Z101: 14.86 | AA101: 1583.06 | AB101: 346.64 | AN101: 618.05 | AR101: 618.05 | AT101: 2022-03-01 | AU101: 588458.5556 | AV101: 301538.692 | AW101: 1039711.335 | AX101: 7429530.698 | AY101: 65035.2912 | AZ101: 28809.496 | BA101: 155334.0845 | BB101: 814345.0209 | BC101: 811744.6215 | BD101: 322113.667 | BE101: 421021.5536 | BF101: 3120038.838 | BG101: 441.5166667 | BH101: 146.1233333 | BI101: 50.80515 | BJ101: 350.5685867 | BK101: 0 | BL101: 847837.6235 | BM101: 2722287.338 | BN101: 6920203.59 | BO101: 0 | BP101: 27235.90333 | BQ101: 72996.47966 | BR101: 155251.6789 | BS101: 0 | BT101: 0 | BU101: 0 | BV101: 0 | BW101: 0 | BX101: 0 | BY101: 0 | BZ101: 0 | CA101: 0 | CB101: 0 | CC101: 0 | CD101: 8662036.418 | CE101: 0 | CF101: 0 | CG101: 0 | CH101: 184407.836 | CI101: 34690927.73 | CJ101: 11247474.4 | CK101: 0.0429040674 | CL101: 12595376.68 | CM101: 58533778.81 | CN101: 0.01009671653
B102: 2022-04-01 | C102: Verde | D102: 0 | E102: 13.98 | F102: 6.07 | G102: 469.82 | H102: 320.8 | I102: 21.54 | J102: 7.94 | K102: 479.48 | L102: 330.46 | M102: 44.9 | N102: 14.86 | O102: 495.66 | P102: 346.64 | Q102: 44.9 | R102: 14.86 | S102: 495.66 | T102: 346.64 | V102: 14.86 | W102: 1583.06 | X102: 346.64 | Z102: 14.86 | AA102: 1583.06 | AB102: 346.64 | AN102: 618.05 | AR102: 618.05 | AT102: 2022-04-01 | AU102: 588458.5556 | AV102: 301538.692 | AW102: 1039711.335 | AX102: 7429530.698 | AY102: 65035.2912 | AZ102: 28809.496 | BA102: 155334.0845 | BB102: 814345.0209 | BC102: 811744.6215 | BD102: 322113.667 | BE102: 421021.5536 | BF102: 3120038.838 | BG102: 441.5166667 | BH102: 146.1233333 | BI102: 50.80515 | BJ102: 350.5685867 | BK102: 0 | BL102: 847837.6235 | BM102: 2722287.338 | BN102: 6920203.59 | BO102: 0 | BP102: 27235.90333 | BQ102: 72996.47966 | BR102: 155251.6789 | BS102: 0 | BT102: 0 | BU102: 0 | BV102: 0 | BW102: 0 | BX102: 0 | BY102: 0 | BZ102: 0 | CA102: 0 | CB102: 0 | CC102: 0 | CD102: 8662036.418 | CE102: 0 | CF102: 0 | CG102: 0 | CH102: 184407.836 | CI102: 34690927.73 | CJ102: 0 | CK102: 0.03972942415 | CL102: 9365414.818 | CM102: 44056342.55 | CN102: -0.247334728
B103: 2022-05-01 | C103: Verde | D103: 0 | E103: 13.98 | F103: 6.07 | G103: 469.82 | H103: 320.8 | I103: 21.54 | J103: 7.94 | K103: 479.48 | L103: 330.46 | M103: 44.9 | N103: 14.86 | O103: 495.66 | P103: 346.64 | Q103: 44.9 | R103: 14.86 | S103: 495.66 | T103: 346.64 | V103: 14.86 | W103: 1583.06 | X103: 346.64 | Z103: 14.86 | AA103: 1583.06 | AB103: 346.64 | AN103: 618.05 | AR103: 618.05 | AT103: 2022-05-01 | AU103: 588458.5556 | AV103: 301538.692 | AW103: 1039711.335 | AX103: 7429530.698 | AY103: 65035.2912 | AZ103: 28809.496 | BA103: 155334.0845 | BB103: 814345.0209 | BC103: 811744.6215 | BD103: 322113.667 | BE103: 421021.5536 | BF103: 3120038.838 | BG103: 441.5166667 | BH103: 146.1233333 | BI103: 50.80515 | BJ103: 350.5685867 | BK103: 0 | BL103: 847837.6235 | BM103: 2722287.338 | BN103: 6920203.59 | BO103: 0 | BP103: 27235.90333 | BQ103: 72996.47966 | BR103: 155251.6789 | BS103: 0 | BT103: 0 | BU103: 0 | BV103: 0 | BW103: 0 | BX103: 0 | BY103: 0 | BZ103: 0 | CA103: 0 | CB103: 0 | CC103: 0 | CD103: 8662036.418 | CE103: 0 | CF103: 0 | CG103: 0 | CH103: 184407.836 | CI103: 34690927.73 | CJ103: =SUMIF($E$12:$AR$12,"kWh",$E$25:$AR$25)*D103 -> 0 | CK103: 0.04218136551 | CL103: 9478195.635 | CM103: 44169123.37 | CN103: 0.002559922381
B104: 2022-06-01 | C104: Verde | D104: 0 | E104: 13.98 | F104: 6.07 | G104: 469.82 | H104: 320.8 | I104: 21.54 | J104: 7.94 | K104: 479.48 | L104: 330.46 | M104: 44.9 | N104: 14.86 | O104: 495.66 | P104: 346.64 | Q104: 44.9 | R104: 14.86 | S104: 495.66 | T104: 346.64 | V104: 14.86 | W104: 1583.06 | X104: 346.64 | Z104: 14.86 | AA104: 1583.06 | AB104: 346.64 | AN104: 618.05 | AR104: 618.05 | AT104: 2022-06-01 | AU104: 588458.5556 | AV104: 301538.692 | AW104: 1039711.335 | AX104: 7429530.698 | AY104: 65035.2912 | AZ104: 28809.496 | BA104: 155334.0845 | BB104: 814345.0209 | BC104: 811744.6215 | BD104: 322113.667 | BE104: 421021.5536 | BF104: 3120038.838 | BG104: 441.5166667 | BH104: 146.1233333 | BI104: 50.80515 | BJ104: 350.5685867 | BK104: 0 | BL104: 847837.6235 | BM104: 2722287.338 | BN104: 6920203.59 | BO104: 0 | BP104: 27235.90333 | BQ104: 72996.47966 | BR104: 155251.6789 | BS104: 0 | BT104: 0 | BU104: 0 | BV104: 0 | BW104: 0 | BX104: 0 | BY104: 0 | BZ104: 0 | CA104: 0 | CB104: 0 | CC104: 0 | CD104: 8662036.418 | CE104: 0 | CF104: 0 | CG104: 0 | CH104: 184407.836 | CI104: 34690927.73 | CJ104: 0 | CK104: 0.04238355261 | CL104: 9487521.318 | CM104: 44178449.05 | CN104: 0.0002111357883
